{"text_format":"1","workbook":"xlsx","n_sheets":6,"sheets":["INSTRUCCIONES","1-INFORME RESULTADOS","2-INVENTARIO CALIFICACIONES","auxiliar1","directorio.viejo","dir20190527"],"not_rendered":{"charts":0,"images":10,"macros":1,"external_links":0,"defined_names":1,"comments":0,"pivot_tables":0},"unopened":[],"bounds":{"document_bytes":16777216,"sheet_cells":100000,"rows_first":2000,"rows_last":500,"rows_between":2000,"halvings":0,"cell_chars":16384,"cell_head_chars":4096},"cells_cut":0,"cells_raw":0,"read":"whole","date_system":"1900"}

{"sheet":"INSTRUCCIONES","index":0,"n_rows":197,"n_cols":18,"rows_kept":197,"cut":false,"hidden":false,"merged":[[158,15,160,15]]}
[]
[]
[]
[]
[null,"Los Centros deberán remitir los documentos por correo electrónico en los formatos originales:"]
[null,"-","Anexo III según la hoja de cálculo distribuida (formato xlsm) a: evaluacion@aragon.es"]
[]
[null,"Los Centros deberán remitir por correo ordinario:"]
[null,"-","Anexo III en formato papel, sellado y firmado, a la Inspección de Educación provincial correspondiente."]
[null,"-","La valoración de los resultados académicos se incluirá en la Memoria Anual, no se envía."]
[]
[null,"En cada uno de los ficheros que vayan a utilizar en su Centro, solamente se introducirá la información solicitada en los espacios habilitados"]
[null,"para ello en las hojas 1 y 2 (color amarillo o verde). El resto, se encuentra protegido. La organización de los códigos de color es la siguiente:"]
[null,null,"Color amarillo:",null,"Sí se puede escribir. Zona de texto"]
[null,null,"Color verde: ",null,"Sí se puede escribir. Zona de número"]
[null,null,"Color naranja:",null,"Se completa de manera automática al introducir el código de centro. Si es necesario, se puede corregir."]
[null,null,"Color azul: ",null,"Verifica la información introducida. En caso de error deben corregirse los valores introducidos en las casillas correspondientes."]
[null,null,"Color rojo:",null,"Totales calculados de manera automática a partir de otros valores. No se pueden modificar."]
[]
[null,"Se debe comenzar cumplimentando el código de centro (celda J8)"]
[null,null,"Introducir  en la celda J8 de la hoja \"1-INFORME RESULTADOS\" el código numérico propio de cada centro en lugar del texto que consta por defecto \"Introducir código\""]
[null,"Al introducir el código de centro en la celda correspondiente se inicia un proceso automático para guardar el fichero con el nombre adecuado para el envío,"]
[null,"siempre y cuando estén habilitadas las macros. "]
[null,"Si no están habilitadas, el proceso comentado debe hacerse de forma manual, bien con la opción \"Guardar Como\", bien renombrando el fichero posteriormente."]
[]
[null,"Después, es necesario selecionar el tipo de centro (concertado o no concertado) en el formulario que aparece, siempre y cuando estén habilitadas las macros."]
[null,null,"Seleccionar el Tipo de centro correspondiente en el formulario."]
[null,"Si no están habilitadas, debe indicarse el tipo de centro de forma manual en la casilla correspondiente (celda T8)"]
[]
[null,"Los datos del centro se completan automáticamente, una vez introducido el código del mismo, y solo es necesario escribir en los campos correspondientes"]
[null,"en caso de detectar que alguno sea incorrecto."]
[null,"También, de manera automática, se copian los datos del centro a la hoja \"2-INVENTARIO CALIFICACIONES\". Por ello, las casillas de datos de centro en dicha hoja están protegidas."]
[]
[null,"En relación con el PMAR, este alumnado se incluirá con el resto sólo en aquellas materias que cursen en común."]
[null,"Por tanto, en las filas para 2º ESO y 3º ESO de la hoja \"1-INFORME RESULTADOS\" deben figurar la totalidad de los alumnos de dichos cursos (alumnos PMAR incluidos).    "]
[]
[null,"En ningún caso deben introducirse en este anexo datos relativos a asignaturas pendientes de cursos anteriores."]
[]
[null,"Para enviar la información a la Unidad de Evaluación (evaluacion@aragon.es), deberá comprobar que el código de su Centro consta en el inicio del nombre del fichero. "]
[null,"Entre el código introducido y el actual nombre del fichero deberá haber una barra baja. "]
[null,null,"Ejemplo:"]
[null,null,null,"50012345_1819_Anexo_III_ESO.xlsm "]
[]
[null,"Le ruego habilite las medidas oportunas para que el envío de la información relacionada con su centro sea respetuoso con los plazos establecidos y las formas que les solicitamos."]
[]
[null,"Se recuerda que toda la documentación referida en estas instrucciones está accesible en la Página Web del Departamento:  ",null,null,null,null,null,null,null,null,null,null,null,null,"www.educararagon.org"]
[null,"en el siguiente emplazamiento:"]
[null,null,null,null,null,"Ordenación curricular"]
[null,null,null,null,null,"∟","Centros Educativos"]
[null,null,null,null,null,null,"∟","Documentos Institucionales"]
[null,null,null,null,null,null,null,"∟","Informes de Resultados Académicos"]
[]
[]
[]
[]
[]
[]
[]
[]
[null,"Control de errores hoja \"1-INFORME RESULTADOS\""]
[null,"Si el número de evaluados no coincide con el número de matriculados se presenta un texto de error en la celda correspondiente de la columna X",null,null,null,null,null,null,null,null,null,null,null,null,null,null,null,"Error"]
[]
[null,"Si el número de calificados con calificación negativa en convocatoria ordinaria no coincide con los  calificados con calificación",null,null,null,null,null,null,null,null,null,null,null,null,null,null,null,"Error"]
[null,"positiva y negativa en convocatoria extraordinaria se presenta un texto de error en la celda correspondiente de la columna Y"]
[]
[null,"Si el número promocionados es mayor que el de evaluados se presenta un texto de error en la celda correspondiente de la columna Z",null,null,null,null,null,null,null,null,null,null,null,null,null,null,null,"Error"]
[]
[]
[null,"Control de errores hoja \"2-INVENTARIO CALIFICACIONES\""]
[null,"Si el número de calificados de cada materia no es correcto se presenta un texto de error en la celda correspondiente de la columna P",null,null,null,null,null,null,null,null,null,null,null,null,null,null,null,"Error"]
[null,"Al lado izquierdo del mensaje de error figura una nota aclaratoria del motivo por el que el número de calificados puede ser incorrecto."]
[]
[null,"Esta \"excel\" se puede guardar con los errores mencionados ya que en casos excepcionales puede haber motivos ello."]
[null,"Por ejemplo, alumnos exentos en algunas materias o centros con UIEE."]
[null,"No obstante el usuario recibirá un aviso, en el momento de guardar el fichero, que le indicará el número de errores del tipo"]
[null,"mencionado que se han detectado."]
[null,"Si se pulsa en el botón \"Sí\" no se guarda el fichero y aparece un mensaje indicando a partir de qué columna se pueden observar"]
[null,"los mensajes de error. Queda seleccionada la celda en la que se encuentra el primer mensaje de error."]
[]
[]
[]
[]
[]
[]
[]
[]
[]
[]
[null,"Si se pulsa en el botón \"No\" se guarda el fichero y no cambia la celda seleccionada. Se puede seguir editando el fichero."]
[]
[null,"Si se realizan modificaciones y optamos por cerrar el fichero, se muestra el mensaje habitual de \"excel\" advirtiendo que"]
[null,"se han realizado cambios y ofreciendo la posibilidad de \"Guardar\" \"No guardar\" o \"Cancelar\"."]
[null,"Si se opta por \"Guardar\" y no se detectan errores, se guarda el fichero y se cierra."]
[null,"Si se opta por \"Guardar\" y  se detectan errores, se muestra el mensaje de aviso mencionado anteriormente."]
[null,"Las opciones se presentan en la siguiente imagen:"]
[]
[]
[]
[]
[]
[]
[]
[]
[]
[]
[]
[]
[]
[]
[]
[]
[]
[null,"Las opciones de \"No guardar\" y \"Cancelar\" son las habituales de \"excel\"."]
[]
[null,"Si el centro envía a evaluacion@aragon.es un fichero con errores, debe dar en el correo una explicación sobre los mismos."]
[]
[]
[]
[]
[]
[]
[]
[]
[]
[]
[]
[]
[]
[]
[]
[]
[]
[]
[]
[]
[]
[]
[]
[]
[]
[]
[]
[]
[]
[]
[]
[]
[]
[]
[]
[]
[]
[]
[]
[]
[]
[]
[]
[]
[]
[]
[]
[]
[]
[]
[null,"Esta \"excel\" se puede guardar con los errores mencionados ya que en casos excepcionales puede haber motivos para que no"]
[null,"coincidan las sumas mencionadas con el total de evaluados."]
[null,"No obstante el usuario recibirá un aviso, en el momento de guardar el fichero, que le indicará el número de errores del tipo"]
[null,"mencionado que se han detectado."]
[null,"Si se pulsa en el botón \"Sí\" no se guarda el fichero y aparece un mensaje indicando a partir de qué columna se pueden obserbar"]
[null,"los mensajes de error. Queda seleccionada la celda en la que se encuentra el primer mensaje de error."]
[]
[]
[]
[]
[]
[]
[]
[null,"Si se pulsa en el botón \"No\" se guarda el fichero y no cambia la celda seleccionada. Se puede seguir editando el fichero."]
[]
[null,"Si se realizan modificaciones y optamos por cerrar el fichero, se muestra el mensaje habitual de \"excel\" advirtiendo que"]
[null,"se han realizado cambios y ofreciendo la posibilidad de \"Guardar\" \"No guardar\" o \"Cancelar\"."]
[null,"Si se opta por \"Guardar\" y no se detectan errores, se guarda el fichero y se cierra."]
[null,"Si se opta por \"Guardar\" y  se detectan errores, se muestra el mensaje de aviso mencionado anteriormente."]
[null,"Las opciones se presentan en la siguiente imagen:"]
[]
[]
[]
[]
[]
[]
[]
[]
[]
[null,"Las opciones de \"No guardar\" y \"Cancelar\" son las habituales de \"excel\"."]
[]
[null,"Si el centro envía a evaluacion@aragon.es un fichero con errores, debe dar en el correo una explicación sobre los mismos."]

{"sheet":"1-INFORME RESULTADOS","index":1,"n_rows":40,"n_cols":26,"rows_kept":40,"cut":false,"hidden":false,"merged":[[32,4,32,7],[32,10,32,13],[32,16,32,19],[10,1,11,1],[10,3,10,4],[10,5,10,6],[10,7,10,8],[10,9,10,10],[10,11,10,12],[10,13,10,14],[10,15,10,20],[25,3,25,7],[25,9,25,10],[25,12,25,13],[7,17,7,18],[7,19,7,20],[8,2,8,3],[8,5,8,8],[8,11,8,12],[8,13,8,14],[8,15,8,16],[8,18,8,20],[7,13,7,16],[5,3,5,4],[7,2,7,6],[7,7,7,8],[7,9,7,10],[7,11,7,12]]}
[]
[]
[]
[null,null,null,"ANEXO III - ESO",null,null,"INFORME DE LOS RESULTADOS DE LA EVALUACIÓN FINAL DEL ALUMNADO"]
[]
[null,null,"Año Académico: ","2019-2020",null,null,null,null,"EDUCACIÓN SECUNDARIA OBLIGATORIA",null,null,null,null,"PRESENCIAL"]
[]
[null,"Centro:",{"$f":"IFERROR(VLOOKUP(J8,dir20190527!$A$2:$J$1046,5,0),\"\")","v":""},null,null,null,null,"Código centro:",null,"introducir código",null,"Correo electrónico",null,{"$f":"IFERROR(VLOOKUP(J8,dir20190527!$A$2:$J$1046,10,0),\"\")","v":""},null,null,null,"Titularidad del nivel educativo"]
[null,"Dirección:",{"$f":"IFERROR(VLOOKUP(J8,dir20190527!$A$2:$J$1046,6,0),\"\")","v":""},null,"Localidad:",{"$f":"IFERROR(VLOOKUP(J8,dir20190527!$A$2:$J$1046,4,0),\"\")","v":""},null,null,null,"Provincia:",null,{"$f":"IFERROR(VLOOKUP(J8,dir20190527!$A$2:$J$1046,2,0),\"\")","v":""},null,"Cód Postal:",null,{"$f":"IFERROR(VLOOKUP(J8,dir20190527!$A$2:$J$1046,7,0),\"\")","v":""},null,"Teléf:",{"$f":"IFERROR(VLOOKUP(J8,dir20190527!$A$2:$J$1046,8,0),\"\")","v":""},null,null,null,null,null,"Ord (neg1+neg2+neg3+neg4m)="]
[" ",null,null,1,2,3,4,5,6,7,8,9,10,11,12,13,14,15,16,17,18,19,null,"mat=eval","Ext (pos+neg1+neg2+neg3+neg4m)","prom<=eval"]
[null,"CURSO\n",null,"Matrículados\n y evaluados",null,"Positiva en todas",null,"Negativa en UNA",null,"Negativa en DOS",null,"Negativa en TRES",null,"Negativa en CUATRO o más",null,"Número de alumnos que \nPROMOCIONAN (1º, 2º, 3º) \no TITULAN (4º)",null,null,null,null,null,"Número de alumnos que \nNO PROMOCIONAN",null,"1 = 2","5+7+9+11=4+6+8+10+12","13+14+15+16+17<=2"]
[null,null,null,"Matri-\nculados","Evaluados","Ordinaria","Extra-ordinaria","Ordinaria","Extra-ordinaria","Ordinaria","Extra-ordinaria","Ordinaria","Extra-ordinaria","Ordinaria","Extra-ordinaria","POSITIVA en todas","NEGATIVA en UNA","NEGATIVA en DOS","NEGATIVA en TRES","PIL\nArtíc 11.6 (1)","TOTAL","TOTAL"]
[{"$f":"+$J$8","v":"introducir código"},"1º ESO","Hombres",null,{"$f":"F13+H13+J13+L13+N13","v":0},null,null,null,null,null,null,null,null,null,null,{"$f":"F13+G13","v":0},null,null,null,null,{"$f":"P13+Q13+R13+S13+T13","v":0},{"$f":"+E13-U13","v":0},"Hombres",{"$f":"IF(D13=E13,\"Correcto\",\"Error\")","v":"Correcto"},{"$f":"IF(H13+J13+L13+N13=G13+I13+K13+M13+O13,\"Correcto\",\"Error\")","v":"Correcto"},{"$f":"IF(SUM(P13:T13)>E13,\"Error\",\"Correcto\")","v":"Correcto"}]
[{"$f":"+$J$8","v":"introducir código"},"1º ESO","Mujeres",null,{"$f":"F14+H14+J14+L14+N14","v":0},null,null,null,null,null,null,null,null,null,null,0,null,null,null,null,{"$f":"P14+Q14+R14+S14+T14","v":0},{"$f":"+E14-U14","v":0},"Mujeres","Correcto",{"$f":"IF(H14+J14+L14+N14=G14+I14+K14+M14+O14,\"Correcto\",\"Error\")","v":"Correcto"},{"$f":"IF(SUM(P14:T14)>E14,\"Error\",\"Correcto\")","v":"Correcto"}]
["introducir código","2º ESO","Hombres",null,{"$f":"F15+H15+J15+L15+N15","v":0},null,null,null,null,null,null,null,null,null,null,0,null,null,null,null,0,0,"Hombres","Correcto","Correcto","Correcto"]
["introducir código","2º ESO","Mujeres",null,0,null,null,null,null,null,null,null,null,null,null,0,null,null,null,null,0,0,"Mujeres","Correcto","Correcto","Correcto"]
["introducir código","3º ESO","Hombres",null,0,null,null,null,null,null,null,null,null,null,null,0,null,null,null,null,0,0,"Hombres","Correcto","Correcto","Correcto"]
["introducir código","3º ESO","Mujeres",null,0,null,null,null,null,null,null,null,null,null,null,0,null,null,null,null,0,0,"Mujeres","Correcto","Correcto","Correcto"]
["introducir código","4º ESO","Hombres",null,0,null,null,null,null,null,null,null,null,null,null,0,null,null,null,0,0,0,"Hombres","Correcto",{"$f":"IF(H19+J19+L19+N19>=G19+I19+K19+M19+O19,\"Correcto\",\"Error\")","v":"Correcto"},"Correcto"]
["introducir código","4º ESO","Mujeres",null,0,null,null,null,null,null,null,null,null,null,null,0,null,null,null,0,0,0,"Mujeres","Correcto",{"$f":"IF(H20+J20+L20+N20>=G20+I20+K20+M20+O20,\"Correcto\",\"Error\")","v":"Correcto"},"Correcto"]
["introducir código","TOTAL ","Hombres",{"$f":"+D13+D15+D17+D19","v":0},0,0,0,0,0,0,0,0,0,0,0,0,0,0,0,0,0,0,"Hombres"]
["introducir código","TOTAL ","Mujeres",0,0,0,0,0,0,0,0,0,0,0,0,0,0,0,0,0,0,0,"Mujeres"]
[null,null,null,null,null,null,null,null,null,null,null,"(1) Artc 11.6 RD 1631/2006, el alumno podrá repetir el mismo curso una sola vez y dos veces como máximo dentro de la etapa"]
[]
[]
[null,null,"En ",null,null,null,null,null,",",null,null,"de ",null,null,"de 2020"]
[]
[]
[null,null,null,"VºBº El/La Director/a",null,null,null,null,null,"El/La Jefe de estudios",null,null,null,null,null,"El/La Secretario/a"]
[]
[]
[null,null,null,null,null,null,null,null,null,null,null,null,null,null,null,null,null,null,null,null,null,null,null,null," "]
[null,null,null,"Fdo.:",null,null,null,null,null,"Fdo.:",null,null,null,null,null,"Fdo.:"]
[]
[]
[]
[null,null,"Notas:"]
[]
[null,null,"Se contabilizarán los NO PRESENTADOS en una determinada materia como alumnos evaluados con calificación negativa en dicha materia."]
[null,null,"ESTAS HOJAS CONTIENEN TODOS LOS DATOS REQUERIDOS POR EL FORMATO OFICIAL."]

{"sheet":"2-INVENTARIO CALIFICACIONES","index":2,"n_rows":183,"n_cols":18,"rows_kept":183,"cut":false,"hidden":false,"merged":[[158,3,158,6],[161,1,165,13],[167,1,167,6],[167,8,167,9],[167,11,167,12],[174,1,174,2],[174,5,174,7],[174,10,174,12],[152,3,152,6],[153,3,153,6],[154,3,154,6],[155,3,155,6],[156,3,156,6],[157,3,157,6],[146,3,146,6],[147,3,147,6],[148,3,148,6],[149,3,149,6],[150,3,150,6],[151,3,151,6],[140,3,140,6],[141,3,141,6],[142,3,142,6],[143,3,143,6],[144,3,144,6],[145,3,145,6],[134,3,134,6],[135,3,135,6],[136,3,136,6],[137,3,137,6],[138,3,138,6],[139,3,139,6],[128,3,128,6],[129,3,129,6],[130,3,130,6],[131,3,131,6],[132,3,132,6],[133,3,133,6],[122,3,122,6],[123,3,123,6],[124,3,124,6],[125,3,125,6],[126,3,126,6],[127,3,127,6],[116,3,116,6],[117,3,117,6],[118,3,118,6],[119,3,119,6],[120,3,120,6],[121,3,121,6],[110,3,110,6],[111,3,111,6],[112,3,112,6],[113,3,113,6],[114,3,114,6],[115,3,115,6],[104,3,104,6],[105,3,105,6],[106,3,106,6],[107,3,107,6],[108,3,108,6],[109,3,109,6],[98,3,98,6],[99,3,99,6],[100,3,100,6],[101,3,101,6],[102,3,102,6],[103,3,103,6],[92,3,92,6],[93,3,93,6],[94,3,94,6],[95,3,95,6],[96,3,96,6],[97,3,97,6],[86,3,86,6],[87,3,87,6],[88,3,88,6],[89,3,89,6],[90,3,90,6],[91,3,91,6],[80,3,80,6],[81,3,81,6],[82,3,82,6],[83,3,83,6],[84,3,84,6],[85,3,85,6],[74,3,74,6],[75,3,75,6],[76,3,76,6],[77,3,77,6],[78,3,78,6],[79,3,79,6],[68,3,68,6],[69,3,69,6],[70,3,70,6],[71,3,71,6],[72,3,72,6],[73,3,73,6],[62,3,62,6],[63,3,63,6],[64,3,64,6],[65,3,65,6],[66,3,66,6],[67,3,67,6],[56,3,56,6],[57,3,57,6],[58,3,58,6],[59,3,59,6],[60,3,60,6],[61,3,61,6],[50,3,50,6],[51,3,51,6],[52,3,52,6],[53,3,53,6],[54,3,54,6],[55,3,55,6],[44,3,44,6],[45,3,45,6],[46,3,46,6],[47,3,47,6],[48,3,48,6],[49,3,49,6],[38,3,38,6],[39,3,39,6],[40,3,40,6],[41,3,41,6],[42,3,42,6],[43,3,43,6],[32,3,32,6],[33,3,33,6],[34,3,34,6],[35,3,35,6],[36,3,36,6],[37,3,37,6],[26,3,26,6],[27,3,27,6],[28,3,28,6],[29,3,29,6],[30,3,30,6],[31,3,31,6],[20,3,20,6],[21,3,21,6],[22,3,22,6],[23,3,23,6],[24,3,24,6],[25,3,25,6],[13,1,13,13],[15,8,15,13],[16,3,16,6],[17,3,17,6],[18,3,18,6],[19,3,19,6],[8,2,8,3],[10,2,10,5],[10,6,10,7],[10,9,10,10],[10,11,10,13],[11,2,11,4],[11,6,11,8],[11,9,11,10],[11,11,11,13]]}
[]
[]
[]
[]
[]
[null,null,"ANEXO III - ESO",null,"Inventario de calificaciones finales obtenidas por el alumnado en las diferentes materias"]
[]
[]
["Año Académico:",null,{"$f":"+'1-INFORME RESULTADOS'!D6","v":"2019-2020"},null,null,null,null,"EDUCACIÓN SECUNDARIA OBLIGATORIA",null,null,null,"PRESENCIAL"]
[]
[null,"Centro:",{"$f":"'1-INFORME RESULTADOS'!C8","v":""},null,null,null,"Código centro:",null,{"$f":"'1-INFORME RESULTADOS'!J8","v":"introducir código"},"Correo electrónico",null,{"$f":"'1-INFORME RESULTADOS'!N8","v":""}]
[null,"Dirección:",{"$f":"'1-INFORME RESULTADOS'!C9","v":""},null,null,"Localidad:",{"$f":"'1-INFORME RESULTADOS'!F9","v":""},null,null,"Provincia:",null,{"$f":"'1-INFORME RESULTADOS'!L9","v":""}]
[]
[null,"Inventario de calificaciones finales obtenidas por el alumnado en las diferentes materias"]
[null,1,2,4,5,6,7,8,9,10,11,12,13,14]
[null,null,null,"Si no se imparte la materia, no cumplimentar",null,null,null,null,"calificaciones finales (incluir en IN los no presentados en septiembre)"]
[null,"mod-reg","curso","Materia",null,null,null," NP\n(Sólo \nevaluac. \nextraord.)","IN","SU ","BI","NT","SB","Total \nalumnos",null,"total alumnos correcto","NP<=IN"]
[{"$f":"+$E$12","v":0},"PRESENCIAL_DIURNO","1º ESO","Lengua castellana y literatura",null,null,null,null,null,null,null,null,null,{"$f":"I18+J18+K18+L18+M18","v":0},null,{"$f":"IF('1-INFORME RESULTADOS'!$E$13+'1-INFORME RESULTADOS'!$E$14='2-INVENTARIO CALIFICACIONES'!N18,\"\",\"Error\")","v":""},{"$f":"IF(I18>=H18,\"\",\"Error\")","v":""},"nota: total alumnos debe ser igual a nº de evaluados"]
[0,"PRESENCIAL_DIURNO","1º ESO","Geografía e historia",null,null,null,null,null,null,null,null,null,{"$f":"I19+J19+K19+L19+M19","v":0},null,{"$f":"IF('1-INFORME RESULTADOS'!$E$13+'1-INFORME RESULTADOS'!$E$14='2-INVENTARIO CALIFICACIONES'!N19,\"\",\"Error\")","v":""},{"$f":"IF(I19>=H19,\"\",\"Error\")","v":""},"nota: total alumnos debe ser igual a nº de evaluados"]
[0,"PRESENCIAL_DIURNO","1º ESO","Matemáticas",null,null,null,null,null,null,null,null,null,0,null,{"$f":"IF('1-INFORME RESULTADOS'!$E$13+'1-INFORME RESULTADOS'!$E$14='2-INVENTARIO CALIFICACIONES'!N20,\"\",\"Error\")","v":""},"","nota: total alumnos debe ser igual a nº de evaluados"]
[0,"PRESENCIAL_DIURNO","1º ESO","Biología y Geología",null,null,null,null,null,null,null,null,null,0,null,{"$f":"IF('1-INFORME RESULTADOS'!$E$13+'1-INFORME RESULTADOS'!$E$14='2-INVENTARIO CALIFICACIONES'!N21,\"\",\"Error\")","v":""},"","nota: total alumnos debe ser igual a nº de evaluados"]
[0,"PRESENCIAL_DIURNO","1º ESO","Educación física",null,null,null,null,null,null,null,null,null,0,null,{"$f":"IF('1-INFORME RESULTADOS'!$E$13+'1-INFORME RESULTADOS'!$E$14='2-INVENTARIO CALIFICACIONES'!N22,\"\",\"Error\")","v":""},"","nota: total alumnos debe ser igual a nº de evaluados"]
[0,"PRESENCIAL_DIURNO","1º ESO","Educación plástica, visual y audiovisual",null,null,null,null,null,null,null,null,null,0,null,{"$f":"IF('1-INFORME RESULTADOS'!$E$13+'1-INFORME RESULTADOS'!$E$14='2-INVENTARIO CALIFICACIONES'!N23,\"\",\"Error\")","v":""},"","nota: total alumnos debe ser igual a nº de evaluados"]
[0,"PRESENCIAL_DIURNO","1º ESO","Música",null,null,null,null,null,null,null,null,null,0,null,{"$f":"IF('1-INFORME RESULTADOS'!$E$13+'1-INFORME RESULTADOS'!$E$14='2-INVENTARIO CALIFICACIONES'!N24,\"\",\"Error\")","v":""},"","nota: total alumnos debe ser igual a nº de evaluados"]
[0,"PRESENCIAL_DIURNO","1º ESO","Inglés. /Primera Lengua extranjera",null,null,null,null,null,null,null,null,null,0,null,{"$f":"IF('1-INFORME RESULTADOS'!$E$13+'1-INFORME RESULTADOS'!$E$14=SUM($N$25:$N$27),\"\",\"Error\")","v":""},"","nota: suma de total alumnos alemán, ingles y frances 1ª lengua extr. debe ser igual a nº de evaluados"]
[0,"PRESENCIAL_DIURNO","1º ESO","Francés. /Primera Lengua extranjera",null,null,null,null,null,null,null,null,null,0,null,{"$f":"IF('1-INFORME RESULTADOS'!$E$13+'1-INFORME RESULTADOS'!$E$14=SUM($N$25:$N$27),\"\",\"Error\")","v":""},"","nota: suma de total alumnos alemán, ingles y frances 1ª lengua extr. debe ser igual a nº de evaluados"]
[0,"PRESENCIAL_DIURNO","1º ESO","Alemán. /Primera Lengua extranjera",null,null,null,null,null,null,null,null,null,0,null,{"$f":"IF('1-INFORME RESULTADOS'!$E$13+'1-INFORME RESULTADOS'!$E$14=SUM($N$25:$N$27),\"\",\"Error\")","v":""},"","nota: suma de total alumnos alemán, ingles y frances 1ª lengua extr. debe ser igual a nº de evaluados"]
[0,"PRESENCIAL_DIURNO","1º ESO","Inglés. /Segunda Lengua extranjera",null,null,null,null,null,null,null,null,null,0,null,{"$f":"IF('1-INFORME RESULTADOS'!$E$13+'1-INFORME RESULTADOS'!$E$14=SUM($N$28:$N$35),\"\",\"Error\")","v":""},"","nota: suma de total alumnos alemán, ingles y frances 2ª lengua extr. y lengua aragones y catalana y talleres debe ser igual a nº de evaluados"]
[0,"PRESENCIAL_DIURNO","1º ESO","Francés. /Segunda Lengua extranjera",null,null,null,null,null,null,null,null,null,0,null,{"$f":"IF('1-INFORME RESULTADOS'!$E$13+'1-INFORME RESULTADOS'!$E$14=SUM($N$28:$N$35),\"\",\"Error\")","v":""},"","nota: suma de total alumnos alemán, ingles y frances 2ª lengua extr. y lengua aragones y catalana y talleres debe ser igual a nº de evaluados"]
[0,"PRESENCIAL_DIURNO","1º ESO","Alemán. /Segunda Lengua extranjera",null,null,null,null,null,null,null,null,null,0,null,{"$f":"IF('1-INFORME RESULTADOS'!$E$13+'1-INFORME RESULTADOS'!$E$14=SUM($N$28:$N$35),\"\",\"Error\")","v":""},"","nota: suma de total alumnos alemán, ingles y frances 2ª lengua extr. y lengua aragones y catalana y talleres debe ser igual a nº de evaluados"]
[0,"PRESENCIAL_DIURNO","1º ESO","Lengua Aragonesa",null,null,null,null,null,null,null,null,null,0,null,{"$f":"IF('1-INFORME RESULTADOS'!$E$13+'1-INFORME RESULTADOS'!$E$14=SUM($N$28:$N$35),\"\",\"Error\")","v":""},"","nota: suma de total alumnos alemán, ingles y frances 2ª lengua extr. y lengua aragones y catalana y talleres debe ser igual a nº de evaluados"]
[0,"PRESENCIAL_DIURNO","1º ESO","Lengua Catalana",null,null,null,null,null,null,null,null,null,0,null,{"$f":"IF('1-INFORME RESULTADOS'!$E$13+'1-INFORME RESULTADOS'!$E$14=SUM($N$28:$N$35),\"\",\"Error\")","v":""},"","nota: suma de total alumnos alemán, ingles y frances 2ª lengua extr. y lengua aragones y catalana y talleres debe ser igual a nº de evaluados"]
[0,"PRESENCIAL_DIURNO","1º ESO","Taller de lengua castellana",null,null,null,null,null,null,null,null,null,0,null,{"$f":"IF('1-INFORME RESULTADOS'!$E$13+'1-INFORME RESULTADOS'!$E$14=SUM($N$28:$N$35),\"\",\"Error\")","v":""},"","nota: suma de total alumnos alemán, ingles y frances 2ª lengua extr. y lengua aragones y catalana y talleres debe ser igual a nº de evaluados"]
[0,"PRESENCIAL_DIURNO","1º ESO","Taller de matemáticas",null,null,null,null,null,null,null,null,null,0,null,{"$f":"IF('1-INFORME RESULTADOS'!$E$13+'1-INFORME RESULTADOS'!$E$14=SUM($N$28:$N$35),\"\",\"Error\")","v":""},"","nota: suma de total alumnos alemán, ingles y frances 2ª lengua extr. y lengua aragones y catalana y talleres debe ser igual a nº de evaluados"]
[0,"PRESENCIAL_DIURNO","1º ESO","Taller de lengua y matemáticas",null,null,null,null,null,null,null,null,null,0,null,{"$f":"IF('1-INFORME RESULTADOS'!$E$13+'1-INFORME RESULTADOS'!$E$14=SUM($N$28:$N$35),\"\",\"Error\")","v":""},"","nota: suma de total alumnos alemán, ingles y frances 2ª lengua extr. y lengua aragones y catalana y talleres debe ser igual a nº de evaluados"]
[0,"PRESENCIAL_DIURNO","1º ESO","Religión católica",null,null,null,null,null,null,null,null,null,0,null,{"$f":"IF('1-INFORME RESULTADOS'!$E$13+'1-INFORME RESULTADOS'!$E$14=SUM($N$36:$N$40),\"\",\"Error\")","v":""},"","nota: suma de total alumnos religiones y valores éticos debe ser igual a nº de evaluados"]
[0,"PRESENCIAL_DIURNO","1º ESO","Religión islámica",null,null,null,null,null,null,null,null,null,0,null,{"$f":"IF('1-INFORME RESULTADOS'!$E$13+'1-INFORME RESULTADOS'!$E$14=SUM($N$36:$N$40),\"\",\"Error\")","v":""},"","nota: suma de total alumnos religiones y valores éticos debe ser igual a nº de evaluados"]
[0,"PRESENCIAL_DIURNO","1º ESO","Religión evangélica",null,null,null,null,null,null,null,null,null,0,null,{"$f":"IF('1-INFORME RESULTADOS'!$E$13+'1-INFORME RESULTADOS'!$E$14=SUM($N$36:$N$40),\"\",\"Error\")","v":""},"","nota: suma de total alumnos religiones y valores éticos debe ser igual a nº de evaluados"]
[0,"PRESENCIAL_DIURNO","1º ESO","Religión judia",null,null,null,null,null,null,null,null,null,0,null,{"$f":"IF('1-INFORME RESULTADOS'!$E$13+'1-INFORME RESULTADOS'!$E$14=SUM($N$36:$N$40),\"\",\"Error\")","v":""},"","nota: suma de total alumnos religiones y valores éticos debe ser igual a nº de evaluados"]
[0,"PRESENCIAL_DIURNO","1º ESO","Valores Éticos",null,null,null,null,null,null,null,null,null,0,null,{"$f":"IF('1-INFORME RESULTADOS'!$E$13+'1-INFORME RESULTADOS'!$E$14=SUM($N$36:$N$40),\"\",\"Error\")","v":""},"","nota: suma de total alumnos religiones y valores éticos debe ser igual a nº de evaluados"]
[]
[0]
[0]
[0]
[0]
[0]
[0,"PRESENCIAL_DIURNO","2º ESO","Lengua castellana y literatura",null,null,null,null,null,null,null,null,null,{"$f":"I47+J47+K47+L47+M47","v":0},null,{"$f":"IF('1-INFORME RESULTADOS'!$E$15+'1-INFORME RESULTADOS'!$E$16-$N$141=N47,\"\",\"Error\")","v":""},{"$f":"IF(I47>=H47,\"\",\"Error\")","v":""},"nota: total alumnos debe ser igual a nº de evaluados menos alumnos 1º PMAR"]
[0,"PRESENCIAL_DIURNO","2º ESO","Geografía e historia",null,null,null,null,null,null,null,null,null,{"$f":"I48+J48+K48+L48+M48","v":0},null,{"$f":"IF('1-INFORME RESULTADOS'!$E$15+'1-INFORME RESULTADOS'!$E$16-$N$141=N48,\"\",\"Error\")","v":""},{"$f":"IF(I48>=H48,\"\",\"Error\")","v":""},"nota: total alumnos debe ser igual a nº de evaluados menos alumnos 1º PMAR"]
[0,"PRESENCIAL_DIURNO","2º ESO","Matemáticas",null,null,null,null,null,null,null,null,null,0,null,{"$f":"IF('1-INFORME RESULTADOS'!$E$15+'1-INFORME RESULTADOS'!$E$16-$N$141=N49,\"\",\"Error\")","v":""},"","nota: total alumnos debe ser igual a nº de evaluados menos alumnos 1º PMAR"]
[0,"PRESENCIAL_DIURNO","2º ESO","Educación física",null,null,null,null,null,null,null,null,null,0,null,{"$f":"IF('1-INFORME RESULTADOS'!$E$15+'1-INFORME RESULTADOS'!$E$16=$N$50,\"\",\"Error\")","v":""},"","nota: total alumnos debe ser igual a nº de evaluados"]
[0,"PRESENCIAL_DIURNO","2º ESO","Educación plástica, visual y audiovisual",null,null,null,null,null,null,null,null,null,0,null,{"$f":"IF('1-INFORME RESULTADOS'!$E$15+'1-INFORME RESULTADOS'!$E$16-$N$144=N51,\"\",\"Error\")","v":""},"","nota: total alumnos debe ser igual a nº de evaluados menos alumnos 1º PMAR en ámbito práctico"]
[0,"PRESENCIAL_DIURNO","2º ESO","Tecnología",null,null,null,null,null,null,null,null,null,0,null,{"$f":"IF('1-INFORME RESULTADOS'!$E$15+'1-INFORME RESULTADOS'!$E$16-$N$144=N52,\"\",\"Error\")","v":""},"","nota: total alumnos debe ser igual a nº de evaluados menos alumnos 1º PMAR en ámbito práctico"]
[0,"PRESENCIAL_DIURNO","2º ESO","Inglés. /Primera Lengua extranjera",null,null,null,null,null,null,null,null,null,0,null,{"$f":"IF('1-INFORME RESULTADOS'!$E$15+'1-INFORME RESULTADOS'!$E$16-$N$143=SUM($N$53:$N$55),\"\",\"Error\")","v":""},"","nota: suma de total alumnos alemán, ingles y frances 1ª lengua extr. debe ser igual a nº de evaluados menos alumnos 1º PMAR en ámbito lengua extr."]
[0,"PRESENCIAL_DIURNO","2º ESO","Francés. /Primera Lengua extranjera",null,null,null,null,null,null,null,null,null,0,null,{"$f":"IF('1-INFORME RESULTADOS'!$E$15+'1-INFORME RESULTADOS'!$E$16-$N$143=SUM($N$53:$N$55),\"\",\"Error\")","v":""},"","nota: suma de total alumnos alemán, ingles y frances 1ª lengua extr. debe ser igual a nº de evaluados menos alumnos 1º PMAR en ámbito lengua extr."]
[0,"PRESENCIAL_DIURNO","2º ESO","Alemán. /Primera Lengua extranjera",null,null,null,null,null,null,null,null,null,0,null,{"$f":"IF('1-INFORME RESULTADOS'!$E$15+'1-INFORME RESULTADOS'!$E$16-$N$143=SUM($N$53:$N$55),\"\",\"Error\")","v":""},"","nota: suma de total alumnos alemán, ingles y frances 1ª lengua extr. debe ser igual a nº de evaluados menos alumnos 1º PMAR en ámbito lengua extr."]
[0,"PRESENCIAL_DIURNO","2º ESO","Física y química",null,null,null,null,null,null,null,null,null,0,null,{"$f":"IF('1-INFORME RESULTADOS'!$E$15+'1-INFORME RESULTADOS'!$E$16-$N$141=N56,\"\",\"Error\")","v":""},"","nota: total alumnos debe ser igual a nº de evaluados menos alumnos 1º PMAR"]
[0,"PRESENCIAL_DIURNO","2º ESO","Inglés. /Segunda Lengua extranjera",null,null,null,null,null,null,null,null,null,0,null,{"$f":"IF('1-INFORME RESULTADOS'!$E$15+'1-INFORME RESULTADOS'!$E$16-$N$143=SUM($N$57:$N$62)+SUM($N$68:$N$69),\"\",\"Error\")","v":""},"","nota: suma de total alumnos alemán, ingles y frances 2ª lengua extr. y lengua aragones y catalana y talleres debe ser igual a nº de evaluados menos alumnos 1º PMAR en ámbito lengua extranjera"]
[0,"PRESENCIAL_DIURNO","2º ESO","Francés. /Segunda Lengua extranjera",null,null,null,null,null,null,null,null,null,0,null,{"$f":"IF('1-INFORME RESULTADOS'!$E$15+'1-INFORME RESULTADOS'!$E$16-$N$143=SUM($N$57:$N$62)+SUM($N$68:$N$69),\"\",\"Error\")","v":""},"","nota: suma de total alumnos alemán, ingles y frances 2ª lengua extr. y lengua aragones y catalana y talleres debe ser igual a nº de evaluados menos alumnos 1º PMAR en ámbito lengua extranjera"]
[0,"PRESENCIAL_DIURNO","2º ESO","Alemán. /Segunda Lengua extranjera",null,null,null,null,null,null,null,null,null,0,null,{"$f":"IF('1-INFORME RESULTADOS'!$E$15+'1-INFORME RESULTADOS'!$E$16-$N$143=SUM($N$57:$N$62)+SUM($N$68:$N$69),\"\",\"Error\")","v":""},"","nota: suma de total alumnos alemán, ingles y frances 2ª lengua extr. y lengua aragones y catalana y talleres debe ser igual a nº de evaluados menos alumnos 1º PMAR en ámbito lengua extranjera"]
[0,"PRESENCIAL_DIURNO","2º ESO","Taller de lengua castellana",null,null,null,null,null,null,null,null,null,0,null,{"$f":"IF('1-INFORME RESULTADOS'!$E$15+'1-INFORME RESULTADOS'!$E$16-$N$143=SUM($N$57:$N$62)+SUM($N$68:$N$69),\"\",\"Error\")","v":""},"","nota: suma de total alumnos alemán, ingles y frances 2ª lengua extr. y lengua aragones y catalana y talleres debe ser igual a nº de evaluados menos alumnos 1º PMAR en ámbito lengua extranjera"]
[0,"PRESENCIAL_DIURNO","2º ESO","Taller de matemáticas",null,null,null,null,null,null,null,null,null,0,null,{"$f":"IF('1-INFORME RESULTADOS'!$E$15+'1-INFORME RESULTADOS'!$E$16-$N$143=SUM($N$57:$N$62)+SUM($N$68:$N$69),\"\",\"Error\")","v":""},"","nota: suma de total alumnos alemán, ingles y frances 2ª lengua extr. y lengua aragones y catalana y talleres debe ser igual a nº de evaluados menos alumnos 1º PMAR en ámbito lengua extranjera"]
[0,"PRESENCIAL_DIURNO","2º ESO","Taller de lengua y matemáticas",null,null,null,null,null,null,null,null,null,0,null,{"$f":"IF('1-INFORME RESULTADOS'!$E$15+'1-INFORME RESULTADOS'!$E$16-$N$143=SUM($N$57:$N$62)+SUM($N$68:$N$69),\"\",\"Error\")","v":""},"","nota: suma de total alumnos alemán, ingles y frances 2ª lengua extr. y lengua aragones y catalana y talleres debe ser igual a nº de evaluados menos alumnos 1º PMAR en ámbito lengua extranjera"]
[0,"PRESENCIAL_DIURNO","2º ESO","Religión católica",null,null,null,null,null,null,null,null,null,0,null,{"$f":"IF('1-INFORME RESULTADOS'!$E$15+'1-INFORME RESULTADOS'!$E$16=SUM($N$63:$N$67),\"\",\"Error\")","v":""},"","nota: suma de total alumnos religiones y valores éticos debe ser igual a nº de evaluados"]
[0,"PRESENCIAL_DIURNO","2º ESO","Religión islámica",null,null,null,null,null,null,null,null,null,0,null,{"$f":"IF('1-INFORME RESULTADOS'!$E$15+'1-INFORME RESULTADOS'!$E$16=SUM($N$63:$N$67),\"\",\"Error\")","v":""},"","nota: suma de total alumnos religiones y valores éticos debe ser igual a nº de evaluados"]
[0,"PRESENCIAL_DIURNO","2º ESO","Religión evangélica",null,null,null,null,null,null,null,null,null,0,null,{"$f":"IF('1-INFORME RESULTADOS'!$E$15+'1-INFORME RESULTADOS'!$E$16=SUM($N$63:$N$67),\"\",\"Error\")","v":""},"","nota: suma de total alumnos religiones y valores éticos debe ser igual a nº de evaluados"]
[0,"PRESENCIAL_DIURNO","2º ESO","Religión judia",null,null,null,null,null,null,null,null,null,0,null,{"$f":"IF('1-INFORME RESULTADOS'!$E$15+'1-INFORME RESULTADOS'!$E$16=SUM($N$63:$N$67),\"\",\"Error\")","v":""},"","nota: suma de total alumnos religiones y valores éticos debe ser igual a nº de evaluados"]
[0,"PRESENCIAL_DIURNO","2º ESO","Valores Éticos",null,null,null,null,null,null,null,null,null,0,null,{"$f":"IF('1-INFORME RESULTADOS'!$E$15+'1-INFORME RESULTADOS'!$E$16=SUM($N$63:$N$67),\"\",\"Error\")","v":""},"","nota: suma de total alumnos religiones y valores éticos debe ser igual a nº de evaluados"]
[0,"PRESENCIAL_DIURNO","2º ESO","Lengua Aragonesa",null,null,null,null,null,null,null,null,null,0,null,{"$f":"IF('1-INFORME RESULTADOS'!$E$15+'1-INFORME RESULTADOS'!$E$16-$N$143=SUM($N$57:$N$62)+SUM($N$68:$N$69),\"\",\"Error\")","v":""},"","nota: suma de total alumnos alemán, ingles y frances 2ª lengua extr. y lengua aragones y catalana y talleres debe ser igual a nº de evaluados menos alumnos 1º PMAR en ámbito lengua extranjera"]
[null,"PRESENCIAL_DIURNO","2º ESO","Lengua Catalana",null,null,null,null,null,null,null,null,null,0,null,{"$f":"IF('1-INFORME RESULTADOS'!$E$15+'1-INFORME RESULTADOS'!$E$16-$N$143=SUM($N$57:$N$62)+SUM($N$68:$N$69),\"\",\"Error\")","v":""},"","nota: suma de total alumnos alemán, ingles y frances 2ª lengua extr. y lengua aragones y catalana y talleres debe ser igual a nº de evaluados menos alumnos 1º PMAR en ámbito lengua extranjera"]
[0]
[0]
[0]
[0]
[0]
[0,"PRESENCIAL_DIURNO","3º ESO","Lengua castellana y literatura",null,null,null,null,null,null,null,null,null,{"$f":"I75+J75+K75+L75+M75","v":0},null,{"$f":"IF('1-INFORME RESULTADOS'!$E$17+'1-INFORME RESULTADOS'!$E$18-$N$146=N75,\"\",\"Error\")","v":""},{"$f":"IF(I75>=H75,\"\",\"Error\")","v":""},"nota: total alumnos debe ser igual a nº de evaluados menos alumnos 2º PMAR"]
[0,"PRESENCIAL_DIURNO","3º ESO","Geografía e historia",null,null,null,null,null,null,null,null,null,{"$f":"I76+J76+K76+L76+M76","v":0},null,{"$f":"IF('1-INFORME RESULTADOS'!$E$17+'1-INFORME RESULTADOS'!$E$18-$N$146=N76,\"\",\"Error\")","v":""},"","nota: total alumnos debe ser igual a nº de evaluados menos alumnos 2º PMAR"]
[0,"PRESENCIAL_DIURNO","3º ESO","Matemáticas Orientadas a las Enseñanzas Académicas",null,null,null,null,null,null,null,null,null,0,null,{"$f":"IF('1-INFORME RESULTADOS'!$E$17+'1-INFORME RESULTADOS'!$E$18-$N$146=SUM($N$77:$N$78),\"\",\"Error\")","v":""},"","nota: suma de total alumnos académicas y aplicadas debe ser igual a nº de evaluados menos alumnos 2º PMAR"]
[null,"PRESENCIAL_DIURNO","3º ESO","Matemáticas Orientadas a las Enseñanzas Aplicadas",null,null,null,null,null,null,null,null,null,0,null,{"$f":"IF('1-INFORME RESULTADOS'!$E$17+'1-INFORME RESULTADOS'!$E$18-$N$146=SUM($N$77:$N$78),\"\",\"Error\")","v":""},"","nota: suma de total alumnos académicas y aplicadas debe ser igual a nº de evaluados menos alumnos 2º PMAR"]
[0,"PRESENCIAL_DIURNO","3º ESO","Educación para la ciudadanía y los derechos humanos",null,null,null,null,null,null,null,null,null,0,null,{"$f":"IF('1-INFORME RESULTADOS'!$E$17+'1-INFORME RESULTADOS'!$E$18=N79,\"\",\"Error\")","v":""},"","nota: total alumnos debe ser igual a nº de evaluados"]
[0,"PRESENCIAL_DIURNO","3º ESO","Biología y Geología",null,null,null,null,null,null,null,null,null,0,null,{"$f":"IF('1-INFORME RESULTADOS'!$E$17+'1-INFORME RESULTADOS'!$E$18-$N$146=N80,\"\",\"Error\")","v":""},"","nota: total alumnos debe ser igual a nº de evaluados menos alumnos 2º PMAR"]
[0,"PRESENCIAL_DIURNO","3º ESO","Física y química",null,null,null,null,null,null,null,null,null,0,null,{"$f":"IF('1-INFORME RESULTADOS'!$E$17+'1-INFORME RESULTADOS'!$E$18-$N$146=N81,\"\",\"Error\")","v":""},"","nota: total alumnos debe ser igual a nº de evaluados menos alumnos 2º PMAR"]
[{"$f":"+$E$12","v":0},"PRESENCIAL_DIURNO","3º ESO","Música",null,null,null,null,null,null,null,null,null,0,null,{"$f":"IF('1-INFORME RESULTADOS'!$E$17+'1-INFORME RESULTADOS'!$E$18=N82,\"\",\"Error\")","v":""},"","nota: total alumnos debe ser igual a nº de evaluados"]
[0,"PRESENCIAL_DIURNO","3º ESO","Educación física",null,null,null,null,null,null,null,null,null,0,null,{"$f":"IF('1-INFORME RESULTADOS'!$E$17+'1-INFORME RESULTADOS'!$E$18=N83,\"\",\"Error\")","v":""},"","nota: total alumnos debe ser igual a nº de evaluados"]
[0,"PRESENCIAL_DIURNO","3º ESO","Tecnología",null,null,null,null,null,null,null,null,null,0,null,{"$f":"IF('1-INFORME RESULTADOS'!$E$17+'1-INFORME RESULTADOS'!$E$18-$N$149=N84,\"\",\"Error\")","v":""},"","nota: total alumnos debe ser igual a nº de evaluados menos alumnos 2º PMAR en ámbito práctico"]
[0,"PRESENCIAL_DIURNO","3º ESO","Inglés. /Primera Lengua extranjera",null,null,null,null,null,null,null,null,null,0,null,{"$f":"IF('1-INFORME RESULTADOS'!$E$17+'1-INFORME RESULTADOS'!$E$18-$N$148=SUM($N$85:$N$87),\"\",\"Error\")","v":""},"","nota: suma de total alumnos alemán, ingles y frances 1ª lengua extr. debe ser igual a nº de evaluados menos alumnos 2º PMAR en ámbito lengua extr."]
[0,"PRESENCIAL_DIURNO","3º ESO","Francés. /Primera Lengua extranjera",null,null,null,null,null,null,null,null,null,0,null,{"$f":"IF('1-INFORME RESULTADOS'!$E$17+'1-INFORME RESULTADOS'!$E$18-$N$148=SUM($N$85:$N$87),\"\",\"Error\")","v":""},"","nota: suma de total alumnos alemán, ingles y frances 1ª lengua extr. debe ser igual a nº de evaluados menos alumnos 2º PMAR en ámbito lengua extr."]
[0,"PRESENCIAL_DIURNO","3º ESO","Alemán. /Primera Lengua extranjera",null,null,null,null,null,null,null,null,null,0,null,{"$f":"IF('1-INFORME RESULTADOS'!$E$17+'1-INFORME RESULTADOS'!$E$18-$N$148=SUM($N$85:$N$87),\"\",\"Error\")","v":""},"","nota: suma de total alumnos alemán, ingles y frances 1ª lengua extr. debe ser igual a nº de evaluados menos alumnos 2º PMAR en ámbito lengua extr."]
[0,"PRESENCIAL_DIURNO","3º ESO","Inglés. /Segunda Lengua extranjera",null,null,null,null,null,null,null,null,null,0,null,{"$f":"IF('1-INFORME RESULTADOS'!$E$17+'1-INFORME RESULTADOS'!$E$18-$N$148>=SUM($N$88:$N$94,$N$101:$N$102),\"\",\"Error\")","v":""},"","nota: suma de total alumnos alemán, ingles y frances 2ª lengua extr. y lengua aragones y catalana y talleres y cultura cásica debe ser menor o igual que nº de evaluados menos alumnos 2º PMAR en ámbito lengua extranjera"]
[0,"PRESENCIAL_DIURNO","3º ESO","Francés. /Segunda Lengua extranjera",null,null,null,null,null,null,null,null,null,0,null,{"$f":"IF('1-INFORME RESULTADOS'!$E$17+'1-INFORME RESULTADOS'!$E$18-$N$148>=SUM($N$88:$N$94,$N$101:$N$102),\"\",\"Error\")","v":""},"","nota: suma de total alumnos alemán, ingles y frances 2ª lengua extr. y lengua aragones y catalana y talleres y cultura cásica debe ser menor o igual que nº de evaluados menos alumnos 2º PMAR en ámbito lengua extranjera"]
[0,"PRESENCIAL_DIURNO","3º ESO","Alemán. /Segunda Lengua extranjera",null,null,null,null,null,null,null,null,null,0,null,{"$f":"IF('1-INFORME RESULTADOS'!$E$17+'1-INFORME RESULTADOS'!$E$18-$N$148>=SUM($N$88:$N$94,$N$101:$N$102),\"\",\"Error\")","v":""},"","nota: suma de total alumnos alemán, ingles y frances 2ª lengua extr. y lengua aragones y catalana y talleres y cultura cásica debe ser menor o igual que nº de evaluados menos alumnos 2º PMAR en ámbito lengua extranjera"]
[0,"PRESENCIAL_DIURNO","3º ESO","Taller de lengua castellana",null,null,null,null,null,null,null,null,null,0,null,{"$f":"IF('1-INFORME RESULTADOS'!$E$17+'1-INFORME RESULTADOS'!$E$18-$N$148>=SUM($N$88:$N$94,$N$101:$N$102),\"\",\"Error\")","v":""},"","nota: suma de total alumnos alemán, ingles y frances 2ª lengua extr. y lengua aragones y catalana y talleres y cultura cásica debe ser menor o igual que nº de evaluados menos alumnos 2º PMAR en ámbito lengua extranjera"]
[0,"PRESENCIAL_DIURNO","3º ESO","Taller de matemáticas",null,null,null,null,null,null,null,null,null,0,null,{"$f":"IF('1-INFORME RESULTADOS'!$E$17+'1-INFORME RESULTADOS'!$E$18-$N$148>=SUM($N$88:$N$94,$N$101:$N$102),\"\",\"Error\")","v":""},"","nota: suma de total alumnos alemán, ingles y frances 2ª lengua extr. y lengua aragones y catalana y talleres y cultura cásica debe ser menor o igual que nº de evaluados menos alumnos 2º PMAR en ámbito lengua extranjera"]
[0,"PRESENCIAL_DIURNO","3º ESO","Taller de lengua y matemáticas",null,null,null,null,null,null,null,null,null,0,null,{"$f":"IF('1-INFORME RESULTADOS'!$E$17+'1-INFORME RESULTADOS'!$E$18-$N$148>=SUM($N$88:$N$94,$N$101:$N$102),\"\",\"Error\")","v":""},"","nota: suma de total alumnos alemán, ingles y frances 2ª lengua extr. y lengua aragones y catalana y talleres y cultura cásica debe ser menor o igual que nº de evaluados menos alumnos 2º PMAR en ámbito lengua extranjera"]
[0,"PRESENCIAL_DIURNO","3º ESO","Cultura clásica",null,null,null,null,null,null,null,null,null,0,null,{"$f":"IF('1-INFORME RESULTADOS'!$E$17+'1-INFORME RESULTADOS'!$E$18-$N$148>=SUM($N$88:$N$94,$N$101:$N$102),\"\",\"Error\")","v":""},"","nota: suma de total alumnos alemán, ingles y frances 2ª lengua extr. y lengua aragones y catalana y talleres y cultura cásica debe ser menor o igual que nº de evaluados menos alumnos 2º PMAR en ámbito lengua extranjera"]
[0,"PRESENCIAL_DIURNO","3º ESO","Iniciación a la Actividad Emprendedora y Empresarial  ",null,null,null,null,null,null,null,null,null,0,null,{"$f":"IF('1-INFORME RESULTADOS'!$E$17+'1-INFORME RESULTADOS'!$E$18>=N95,\"\",\"Error\")","v":""},"","nota: suma de total alumnos debe ser menor o igual que nº de evaluados"]
[0,"PRESENCIAL_DIURNO","3º ESO","Religión católica",null,null,null,null,null,null,null,null,null,0,null,{"$f":"IF('1-INFORME RESULTADOS'!$E$17+'1-INFORME RESULTADOS'!$E$18=SUM($N$96:$N$100),\"\",\"Error\")","v":""},"","nota: suma de total alumnos religiones y valores éticos debe ser igual a nº de evaluados"]
[0,"PRESENCIAL_DIURNO","3º ESO","Religión islámica",null,null,null,null,null,null,null,null,null,0,null,{"$f":"IF('1-INFORME RESULTADOS'!$E$17+'1-INFORME RESULTADOS'!$E$18=SUM($N$96:$N$100),\"\",\"Error\")","v":""},"","nota: suma de total alumnos religiones y valores éticos debe ser igual a nº de evaluados"]
[0,"PRESENCIAL_DIURNO","3º ESO","Religión evangélica",null,null,null,null,null,null,null,null,null,0,null,{"$f":"IF('1-INFORME RESULTADOS'!$E$17+'1-INFORME RESULTADOS'!$E$18=SUM($N$96:$N$100),\"\",\"Error\")","v":""},"","nota: suma de total alumnos religiones y valores éticos debe ser igual a nº de evaluados"]
[0,"PRESENCIAL_DIURNO","3º ESO","Religión judia",null,null,null,null,null,null,null,null,null,0,null,{"$f":"IF('1-INFORME RESULTADOS'!$E$17+'1-INFORME RESULTADOS'!$E$18=SUM($N$96:$N$100),\"\",\"Error\")","v":""},"","nota: suma de total alumnos religiones y valores éticos debe ser igual a nº de evaluados"]
[0,"PRESENCIAL_DIURNO","3º ESO","Valores Éticos",null,null,null,null,null,null,null,null,null,0,null,{"$f":"IF('1-INFORME RESULTADOS'!$E$17+'1-INFORME RESULTADOS'!$E$18=SUM($N$96:$N$100),\"\",\"Error\")","v":""},"","nota: suma de total alumnos religiones y valores éticos debe ser igual a nº de evaluados"]
[0,"PRESENCIAL_DIURNO","3º ESO","Lengua Aragonesa",null,null,null,null,null,null,null,null,null,0,null,{"$f":"IF('1-INFORME RESULTADOS'!$E$17+'1-INFORME RESULTADOS'!$E$18-$N$148>=SUM($N$88:$N$94,$N$101:$N$102),\"\",\"Error\")","v":""},"","nota: suma de total alumnos alemán, ingles y frances 2ª lengua extr. y lengua aragones y catalana y talleres y cultura cásica debe ser menor o igual que nº de evaluados menos alumnos 2º PMAR en ámbito lengua extranjera"]
[null,"PRESENCIAL_DIURNO","3º ESO","Lengua Catalana",null,null,null,null,null,null,null,null,null,0,null,{"$f":"IF('1-INFORME RESULTADOS'!$E$17+'1-INFORME RESULTADOS'!$E$18-$N$148>=SUM($N$88:$N$94,$N$101:$N$102),\"\",\"Error\")","v":""},"","nota: suma de total alumnos alemán, ingles y frances 2ª lengua extr. y lengua aragones y catalana y talleres y cultura cásica debe ser menor o igual que nº de evaluados menos alumnos 2º PMAR en ámbito lengua extranjera"]
[0]
[0]
[0]
[0]
[0]
[0,"PRESENCIAL_DIURNO","4º ESO","Lengua castellana y literatura",null,null,null,null,null,null,null,null,null,{"$f":"I108+J108+K108+L108+M108","v":0},null,{"$f":"IF('1-INFORME RESULTADOS'!$E$19+'1-INFORME RESULTADOS'!$E$20=N108,\"\",\"Error\")","v":""},{"$f":"IF(I108>=H108,\"\",\"Error\")","v":""},"nota: total alumnos debe ser igual a nº de evaluados"]
[0,"PRESENCIAL_DIURNO","4º ESO","Geografía e historia",null,null,null,null,null,null,null,null,null,{"$f":"I109+J109+K109+L109+M109","v":0},null,{"$f":"IF('1-INFORME RESULTADOS'!$E$19+'1-INFORME RESULTADOS'!$E$20=N109,\"\",\"Error\")","v":""},"","nota: total alumnos debe ser igual a nº de evaluados"]
[0,"PRESENCIAL_DIURNO","4º ESO","Matemáticas Orientadas a las Enseñanzas Académicas",null,null,null,null,null,null,null,null,null,0,null,{"$f":"IF('1-INFORME RESULTADOS'!$E$19+'1-INFORME RESULTADOS'!$E$20=SUM($N$110:$N$111),\"\",\"Error\")","v":""},"","nota: suma de total alumnos académicas y aplicadas debe ser igual a nº de evaluados"]
[0,"PRESENCIAL_DIURNO","4º ESO","Matemáticas Orientadas a las Enseñanzas Aplicadas",null,null,null,null,null,null,null,null,null,0,null,{"$f":"IF('1-INFORME RESULTADOS'!$E$19+'1-INFORME RESULTADOS'!$E$20=SUM($N$110:$N$111),\"\",\"Error\")","v":""},"","nota: suma de total alumnos académicas y aplicadas debe ser igual a nº de evaluados"]
[0,"PRESENCIAL_DIURNO","4º ESO","Biología y Geología",null,null,null,null,null,null,null,null,null,0,null,{"$f":"IF('1-INFORME RESULTADOS'!$E$19+'1-INFORME RESULTADOS'!$E$20>=N112,\"\",\"Error\")","v":""},"","nota: total alumnos debe ser menor o igual a nº de evaluados"]
[0,"PRESENCIAL_DIURNO","4º ESO","Física y química",null,null,null,null,null,null,null,null,null,0,null,{"$f":"IF('1-INFORME RESULTADOS'!$E$19+'1-INFORME RESULTADOS'!$E$20>=N113,\"\",\"Error\")","v":""},"","nota: total alumnos debe ser menor o igual a nº de evaluados"]
[0,"PRESENCIAL_DIURNO","4º ESO","Economía",null,null,null,null,null,null,null,null,null,0,null,{"$f":"IF('1-INFORME RESULTADOS'!$E$19+'1-INFORME RESULTADOS'!$E$20>=N114,\"\",\"Error\")","v":""},"","nota: total alumnos debe ser menor o igual a nº de evaluados"]
[0,"PRESENCIAL_DIURNO","4º ESO","Latín",null,null,null,null,null,null,null,null,null,0,null,{"$f":"IF('1-INFORME RESULTADOS'!$E$19+'1-INFORME RESULTADOS'!$E$20>=N115,\"\",\"Error\")","v":""},"","nota: total alumnos debe ser menor o igual a nº de evaluados"]
[0,"PRESENCIAL_DIURNO","4º ESO","Educación plástica, visual y audiovisual",null,null,null,null,null,null,null,null,null,0,null,{"$f":"IF('1-INFORME RESULTADOS'!$E$19+'1-INFORME RESULTADOS'!$E$20>=N116,\"\",\"Error\")","v":""},"","nota: total alumnos debe ser menor o igual a nº de evaluados"]
[0,"PRESENCIAL_DIURNO","4º ESO","Música",null,null,null,null,null,null,null,null,null,0,null,{"$f":"IF('1-INFORME RESULTADOS'!$E$19+'1-INFORME RESULTADOS'!$E$20>=N117,\"\",\"Error\")","v":""},"","nota: total alumnos debe ser menor o igual a nº de evaluados"]
[0,"PRESENCIAL_DIURNO","4º ESO","Educación física",null,null,null,null,null,null,null,null,null,0,null,{"$f":"IF('1-INFORME RESULTADOS'!$E$19+'1-INFORME RESULTADOS'!$E$20=N118,\"\",\"Error\")","v":""},"","nota: total alumnos debe ser igual a nº de evaluados"]
[0,"PRESENCIAL_DIURNO","4º ESO","Tecnología",null,null,null,null,null,null,null,null,null,0,null,{"$f":"IF('1-INFORME RESULTADOS'!$E$19+'1-INFORME RESULTADOS'!$E$20>=N119,\"\",\"Error\")","v":""},"","nota: total alumnos debe ser menor o igual a nº de evaluados"]
[0,"PRESENCIAL_DIURNO","4º ESO","Inglés. /Primera Lengua extranjera",null,null,null,null,null,null,null,null,null,0,null,{"$f":"IF('1-INFORME RESULTADOS'!$E$19+'1-INFORME RESULTADOS'!$E$20=SUM($N$120:$N$122),\"\",\"Error\")","v":""},"","nota: suma de total alumnos alemán, ingles y frances 1ª lengua extr. debe ser igual a nº de evaluados"]
[0,"PRESENCIAL_DIURNO","4º ESO","Francés. /Primera Lengua extranjera",null,null,null,null,null,null,null,null,null,0,null,{"$f":"IF('1-INFORME RESULTADOS'!$E$19+'1-INFORME RESULTADOS'!$E$20=SUM($N$120:$N$122),\"\",\"Error\")","v":""},"","nota: suma de total alumnos alemán, ingles y frances 1ª lengua extr. debe ser igual a nº de evaluados"]
[0,"PRESENCIAL_DIURNO","4º ESO","Alemán. /Primera Lengua extranjera",null,null,null,null,null,null,null,null,null,0,null,{"$f":"IF('1-INFORME RESULTADOS'!$E$19+'1-INFORME RESULTADOS'!$E$20=SUM($N$120:$N$122),\"\",\"Error\")","v":""},"","nota: suma de total alumnos alemán, ingles y frances 1ª lengua extr. debe ser igual a nº de evaluados"]
[0,"PRESENCIAL_DIURNO","4º ESO","Ciencias Aplicadas a la Actividad Profesional",null,null,null,null,null,null,null,null,null,0,null,{"$f":"IF('1-INFORME RESULTADOS'!$E$19+'1-INFORME RESULTADOS'!$E$20>=N123,\"\",\"Error\")","v":""},"","nota: total alumnos debe ser menor o igual a nº de evaluados"]
[0,"PRESENCIAL_DIURNO","4º ESO","Iniciación a la Actividad Emprendedora y Empresarial  ",null,null,null,null,null,null,null,null,null,0,null,{"$f":"IF('1-INFORME RESULTADOS'!$E$19+'1-INFORME RESULTADOS'!$E$20>=N124,\"\",\"Error\")","v":""},"","nota: total alumnos debe ser menor o igual a nº de evaluados"]
[0,"PRESENCIAL_DIURNO","4º ESO","Inglés. /Segunda Lengua extranjera",null,null,null,null,null,null,null,null,null,0,null,{"$f":"IF('1-INFORME RESULTADOS'!$E$19+'1-INFORME RESULTADOS'!$E$20>=SUM($N$125:$N$127),\"\",\"Error\")","v":""},"","nota: suma de total alumnos alemán, ingles y frances 2ª lengua extr. debe ser menor o igual que nº de evaluados"]
[0,"PRESENCIAL_DIURNO","4º ESO","Francés. /Segunda Lengua extranjera",null,null,null,null,null,null,null,null,null,0,null,{"$f":"IF('1-INFORME RESULTADOS'!$E$19+'1-INFORME RESULTADOS'!$E$20>=SUM($N$125:$N$127),\"\",\"Error\")","v":""},"","nota: suma de total alumnos alemán, ingles y frances 2ª lengua extr. debe ser menor o igual que nº de evaluados"]
[0,"PRESENCIAL_DIURNO","4º ESO","Alemán. /Segunda Lengua extranjera",null,null,null,null,null,null,null,null,null,0,null,{"$f":"IF('1-INFORME RESULTADOS'!$E$19+'1-INFORME RESULTADOS'!$E$20>=SUM($N$125:$N$127),\"\",\"Error\")","v":""},"","nota: suma de total alumnos alemán, ingles y frances 2ª lengua extr. debe ser menor o igual que nº de evaluados"]
[0,"PRESENCIAL_DIURNO","4º ESO","Religión católica",null,null,null,null,null,null,null,null,null,0,null,{"$f":"IF('1-INFORME RESULTADOS'!$E$19+'1-INFORME RESULTADOS'!$E$20=SUM($N$128:$N$132),\"\",\"Error\")","v":""},"","nota: suma de total alumnos religiones y valores éticos debe ser igual a nº de evaluados"]
[0,"PRESENCIAL_DIURNO","4º ESO","Religión islámica",null,null,null,null,null,null,null,null,null,0,null,{"$f":"IF('1-INFORME RESULTADOS'!$E$19+'1-INFORME RESULTADOS'!$E$20=SUM($N$128:$N$132),\"\",\"Error\")","v":""},"","nota: suma de total alumnos religiones y valores éticos debe ser igual a nº de evaluados"]
[0,"PRESENCIAL_DIURNO","4º ESO","Religión evangélica",null,null,null,null,null,null,null,null,null,0,null,{"$f":"IF('1-INFORME RESULTADOS'!$E$19+'1-INFORME RESULTADOS'!$E$20=SUM($N$128:$N$132),\"\",\"Error\")","v":""},"","nota: suma de total alumnos religiones y valores éticos debe ser igual a nº de evaluados"]
[0,"PRESENCIAL_DIURNO","4º ESO","Religión judia",null,null,null,null,null,null,null,null,null,0,null,{"$f":"IF('1-INFORME RESULTADOS'!$E$19+'1-INFORME RESULTADOS'!$E$20=SUM($N$128:$N$132),\"\",\"Error\")","v":""},"","nota: suma de total alumnos religiones y valores éticos debe ser igual a nº de evaluados"]
[0,"PRESENCIAL_DIURNO","4º ESO","Valores Éticos",null,null,null,null,null,null,null,null,null,0,null,{"$f":"IF('1-INFORME RESULTADOS'!$E$19+'1-INFORME RESULTADOS'!$E$20=SUM($N$128:$N$132),\"\",\"Error\")","v":""},"","nota: suma de total alumnos religiones y valores éticos debe ser igual a nº de evaluados"]
[0,"PRESENCIAL_DIURNO","4º ESO","Lengua Aragonesa",null,null,null,null,null,null,null,null,null,0,null,{"$f":"IF('1-INFORME RESULTADOS'!$E$19+'1-INFORME RESULTADOS'!$E$20>=N133,\"\",\"Error\")","v":""},"","nota: total alumnos debe ser menor o igual a nº de evaluados"]
[0,"PRESENCIAL_DIURNO","4º ESO","Lengua Catalana",null,null,null,null,null,null,null,null,null,0,null,{"$f":"IF('1-INFORME RESULTADOS'!$E$19+'1-INFORME RESULTADOS'!$E$20>=N134,\"\",\"Error\")","v":""},"","nota: total alumnos debe ser menor o igual a nº de evaluados"]
[null,"PRESENCIAL_DIURNO","4º ESO","Cultura Clásica",null,null,null,null,null,null,null,null,null,0,null,{"$f":"IF('1-INFORME RESULTADOS'!$E$19+'1-INFORME RESULTADOS'!$E$20>=N135,\"\",\"Error\")","v":""},"","nota: total alumnos debe ser menor o igual a nº de evaluados"]
[0,"PRESENCIAL_DIURNO","4º ESO","Fiosofía",null,null,null,null,null,null,null,null,null,0,null,{"$f":"IF('1-INFORME RESULTADOS'!$E$19+'1-INFORME RESULTADOS'!$E$20>=N136,\"\",\"Error\")","v":""},"","nota: total alumnos debe ser menor o igual a nº de evaluados"]
[0,"PRESENCIAL_DIURNO","4º ESO","Artes Escénicas y Danza",null,null,null,null,null,null,null,null,null,0,null,{"$f":"IF('1-INFORME RESULTADOS'!$E$19+'1-INFORME RESULTADOS'!$E$20>=N137,\"\",\"Error\")","v":""},"","nota: total alumnos debe ser menor o igual a nº de evaluados"]
[0,"PRESENCIAL_DIURNO","4º ESO","Cultura Científica",null,null,null,null,null,null,null,null,null,0,null,{"$f":"IF('1-INFORME RESULTADOS'!$E$19+'1-INFORME RESULTADOS'!$E$20>=N138,\"\",\"Error\")","v":""},"","nota: total alumnos debe ser menor o igual a nº de evaluados"]
[0,"PRESENCIAL_DIURNO","4º ESO","Tecnologías de la Información y la Comunicación",null,null,null,null,null,null,null,null,null,0,null,{"$f":"IF('1-INFORME RESULTADOS'!$E$19+'1-INFORME RESULTADOS'!$E$20>=N139,\"\",\"Error\")","v":""},"","nota: total alumnos debe ser menor o igual a nº de evaluados"]
[0]
[0,"PRESENCIAL_DIURNO","1º PMAR","Ámbito de carácter lingüístico y social  ",null,null,null,null,null,null,null,null,null,{"$f":"I141+J141+K141+L141+M141","v":0},null,{"$f":"IF('1-INFORME RESULTADOS'!$E$15+'1-INFORME RESULTADOS'!$E$16>=N141,\"\",\"Error\")","v":""},"","nota: total alumnos debe ser menor o igual a nº de evaluados"]
[0,"PRESENCIAL_DIURNO","1º PMAR","Ámbito de carácter científico y matemático  ",null,null,null,null,null,null,null,null,null,{"$f":"I142+J142+K142+L142+M142","v":0},null,{"$f":"IF(N141=N142,\"\",\"Error\")","v":""},"","nota: total alumnos debe ser igual a nº de alumnos en ámbito de carácter lingüístico y social"]
[0,"PRESENCIAL_DIURNO","1º PMAR","Ámbito de lengua extranjera  ",null,null,null,null,null,null,null,null,null,{"$f":"I143+J143+K143+L143+M143","v":0},null,{"$f":"IF(N141=N143,\"\",\"Error\")","v":""},"","nota: total alumnos debe ser igual a nº de alumnos en ámbito de carácter lingüístico y social"]
[0,"PRESENCIAL_DIURNO","1º PMAR","Ámbito Práctico  ",null,null,null,null,null,null,null,null,null,{"$f":"I144+J144+K144+L144+M144","v":0},null,{"$f":"IF(OR(0=N144,N141=N144),\"\",\"Error\")","v":""},"","nota: total alumnos debe ser igual a 0 ó nº de alumnos en ámbito de carácter lingüístico y social"]
[0]
[{"$f":"+$E$12","v":0},"PRESENCIAL_DIURNO","2º PMAR","Ámbito de carácter lingüístico y social  ",null,null,null,null,null,null,null,null,null,{"$f":"I146+J146+K146+L146+M146","v":0},null,{"$f":"IF('1-INFORME RESULTADOS'!$E$17+'1-INFORME RESULTADOS'!$E$18>=N146,\"\",\"Error\")","v":""},"","nota: total alumnos debe ser menor o igual a nº de evaluados"]
[0,"PRESENCIAL_DIURNO","2º PMAR","Ámbito de carácter científico y matemático  ",null,null,null,null,null,null,null,null,null,{"$f":"I147+J147+K147+L147+M147","v":0},null,{"$f":"IF(N146=N147,\"\",\"Error\")","v":""},"","nota: total alumnos debe ser igual a nº de alumnos en ámbito de carácter lingüístico y social"]
[0,"PRESENCIAL_DIURNO","2º PMAR","Ámbito de lengua extranjera  ",null,null,null,null,null,null,null,null,null,{"$f":"I148+J148+K148+L148+M148","v":0},null,{"$f":"IF(N146=N148,\"\",\"Error\")","v":""},"","nota: total alumnos debe ser igual a nº de alumnos en ámbito de carácter lingüístico y social"]
[0,"PRESENCIAL_DIURNO","2º PMAR","Ámbito Práctico  ",null,null,null,null,null,null,null,null,null,{"$f":"I149+J149+K149+L149+M149","v":0},null,{"$f":"IF(OR(0=N149,N146=N149),\"\",\"Error\")","v":""},"","nota: total alumnos debe ser igual a 0 ó nº de alumnos en ámbito de carácter lingüístico y social"]
[0]
[0]
[0]
[0]
[0]
[0]
[0]
[]
[]
[]
[]
[null,"Observaciones:"]
[]
[]
[]
[]
[]
[]
["En ",{"$f":"'1-INFORME RESULTADOS'!D26","v":0},null,null,null,null,null,",",{"$f":"+'1-INFORME RESULTADOS'!J26","v":0},null,"de ",{"$f":"+'1-INFORME RESULTADOS'!M26","v":0},null,"de 2020"]
[]
[]
["VºBº El/La Director/a",null,null,null,"El/La Jefe de estudios",null,null,null,null,"El/La Secretario/a"]
[]
[]
[]
["Fdo.:",{"$f":"+'1-INFORME RESULTADOS'!E33","v":0},null,null,"Fdo.:",{"$f":"+'1-INFORME RESULTADOS'!K33","v":0},null,null,null,"Fdo.:",{"$f":"+'1-INFORME RESULTADOS'!Q33","v":0}]
[]
[]
[]
[null,"Notas"]
[null,"Si el alumno no se presenta a la prueba extraordinaria de alguna materia, se reflejará el término"]
[null,"de No presentado (NP), que tendrá la consideración de calificación negativa. A efectos de"]
[null,"cálculo de la nota media, la calificación de estas materias será la obtenida en la evaluación ordinaria."]
[null,"ESTA HOJA CONTIENE TODOS LOS DATOS REQUERIDOS POR EL FORMATO OFICIAL."]

{"sheet":"auxiliar1","index":3,"n_rows":2,"n_cols":1,"rows_kept":2,"cut":false,"hidden":true,"merged":[]}
["Privada concertada"]
["Privada NO concertada"]

{"sheet":"directorio.viejo","index":4,"n_rows":1047,"n_cols":10,"rows_kept":1047,"cut":false,"hidden":true,"merged":[]}
["CÓDIGO","PROVINCIA","DENOMINACION GENÉRICA","LOCALIDAD","DENOMINACION ESPECÍFICA","DOMICILIO","CODPOSTAL","TELÉFONO","FAX","EMAIL"]
["Introducir código","","","","","","","","",""]
[22000056,"Huesca","Colegio Rural Agrupado","Adahuesca","VERO-ALCANADRE","Avda. .De Santiago Foncillas, S/N",22147,"974 31 82 97",974318297,"craadahuesca@educa.aragon.es"]
[22000071,"Huesca","Colegio de Educación Infantil y Primaria","Aínsa","ASUNCIÓN PAÑART MONTANER","Cl. Cortes De Aragón, 1-3",22330,"974 51 00 40",974510040,"cpainsa@educa.aragon.es"]
[22000251,"Huesca","Colegio de Educación Infantil y Primaria","Alcolea de Cinca","JOSÉ MANUEL BLECUA","Avda. Autonomía De Aragón, S/N",22410,"974 46 85 85","974 46 85 85","cpalcolea@educa.aragon.es"]
[22000299,"Huesca","Colegio de Educación Infantil y Primaria","Almudévar","SANTOS SAMPER SARASA","Cl. Las Ciencias, S/N",22270,"974 250 218","974 250 218","cpssalmudevar@educa.aragon.es"]
[22000585,"Huesca","Centro Público Integrado","Ayerbe","RAMÓN Y CAJAL","Cl. Progreso, 4",22800,"974 38 00 28","974 38 00 28","cpayerbe@educa.aragon.es"]
[22000706,"Huesca","Colegio de Educación Infantil y Primaria","Ballobar","FRANCISCO GALIAY SARAÑANA","Cl. Barrio Nuevo, S/N",22234,"974 46 11 97",974461197,"cpballobar@educa.aragon.es"]
[22000721,"Huesca","Colegio de Educación Infantil y Primaria","Barbastro","ALTO ARAGÓN","Avda. Del Cinca, S/N",22300,"974 31 19 76","974 31 19 76","cpaabarbastro@educa.aragon.es"]
[22000731,"Huesca","Colegio de Educación Infantil y Primaria","Barbastro","LA MERCED","Cl. Beato Florentino Asensio, S/N",22300,"974 313813","974 306275","cplmbarbastro@educa.aragon.es"]
[22000767,"Huesca","Centro Privado de Educación Infantil Primaria y Secundaria","Barbastro","SAN VICENTE DE PAÚL","Cami. Real De Zaragoza, S/N",22300,"974 31 02 95","974 31 45 31","svpaulbar@planalfa.es"]
[22000779,"Huesca","Centro Privado de Educación Infantil Primaria y Secundaria","Barbastro","SAN JOSÉ DE CALASANZ","Pza. Constitución, 2",22300,"974 31 43 31","974 31 50 55","sjcalasanzbar@escolapiosemaus.org"]
[22000809,"Huesca","Instituto de Educación Secundaria","Barbastro","HERMANOS ARGENSOLA","Avda. Del Cinca, S/N",22300,"974 31 17 38","974 31 14 38","ieshabarbastro@educa.aragon.es"]
[22001073,"Huesca","Colegio de Educación Infantil y Primaria","Binéfar","VÍCTOR MENDOZA MENDOZA","CL. ALMACELLAS, 31",22500,"974 42 83 50","974 42 83 77","cpbinefar@educa.aragon.es"]
[22001085,"Huesca","Centro Privado de Educación Infantil Primaria y Secundaria","Binéfar","VIRGEN DEL ROMERAL","Cl. Mariano De Pano, 5 Y 7",22500,"974 42 80 84","974 43 08 39","virgenromeral@colegiosaragon.org"]
[22001191,"Huesca","Colegio de Educación Infantil y Primaria","Bolea","VIRGEN DE LA SOLEDAD","Cl. Carretera, 6",22160,"974 27 25 62",null,"cpbolea@educa.aragon.es"]
[22001218,"Huesca","Escuela Hogar","Boltaña","DE BOLTAÑA","Cl. Samper, S/N",22340,"974 50 20 75","974 50 23 06","ehboltana@educa.aragon.es"]
[22001243,"Huesca","Colegio Rural Agrupado","Broto","ALTO ARA","Avda. Ordesa, 1",22370,"974 486 317","974 486 317","crabroto@educa.aragon.es"]
[22001358,"Huesca","Colegio de Educación Infantil y Primaria","Campo","CERBÍN","Pza. Cabovila, 5",22450,"974 55 01 80",null,"cpcampo@educa.aragon.es"]
[22001437,"Huesca","Colegio de Educación Infantil y Primaria","Canfranc-Estación","LOS ARAÑONES","Pza. De Las Escuelas S/N",22880,"974 37 30 15",974373015,"cpcanfranc@educa.aragon.es"]
[22001656,"Huesca","Colegio de Educación Infantil y Primaria","Chalamera","RAMÓN J. SENDER","Cl. Extramuros, S/N",22233,"974 46 16 17",null,"cpchalamera@educa.aragon.es"]
[22001875,"Huesca","Colegio de Educación Infantil y Primaria","Fraga","MIGUEL SERVET","Pza. Valencia, S/N",22520,"974 47 04 98","974 47 04 98","cpmsfraga@educa.aragon.es"]
[22001887,"Huesca","Colegio de Educación Infantil y Primaria","Fraga","SAN JOSÉ DE CALASANZ","Avda. Deportes, 4",22520,"974 47 27 06","974 47 13 92","cpjcfraga@educa.aragon.es"]
[22001899,"Huesca","Centro Privado de Educación Infantil Primaria y Secundaria","Fraga","SANTA ANA","Cl. Hermana Andresa, S/N",22520,"974 47 18 62","974 47 18 28","csantanafraga@gmail.com,santana@santanafraga.com"]
[22001905,"Huesca","Colegio de Educación Infantil y Primaria","Litera","LITERA","Ctra. Nacional, Km.442",22520,"974 47 04 30","974 47 04 30","cplitera@educa.aragon.es"]
[22001917,"Huesca","Instituto de Educación Secundaria","Fraga","RAMÓN J. SENDER","P.º De La Constitución, S/N",22520,"974 47 01 44","974 45 38 36","iesrsfraga@educa.aragon.es"]
[22002016,"Huesca","Colegio de Educación Infantil y Primaria","Tierrantona","LA FUEVA","Cl. La Fuente, S/N",22336,"974 50 71 41","974 50 71 41","cptierrantona@educa.aragon.es"]
[22002119,"Huesca","Colegio de Educación Infantil y Primaria","Grañén","SANTIAGO APÓSTOL","Cl. Escuelas, S/N",22260,"974 39 02 03",974390203,"cpsaphuesca@educa.aragon.es"]
[22002156,"Huesca","Colegio de Educación Infantil y Primaria","Graus","JOAQUÍN COSTA","Cl. Angel Samblancat, 10",22430,"974 54 01 18","974 540118","cpjcgraus@educa.aragon.es"]
[22002168,"Huesca","Instituto de Educación Secundaria","Graus","BALTASAR GRACIÁN","Partida Coscolla, S/N",22430,"974 54 01 57","974 54 05 01","iesgraus@educa.aragon.es"]
[22002302,"Huesca","Colegio de Educación Infantil y Primaria","Huesca","JUAN XXIII","Cl. Fraga, 1",22004,"974 22 02 96","974 24 49 09","cpjxxhuesca@educa.aragon.es"]
[22002338,"Huesca","Colegio de Educación Infantil y Primaria","Huesca","PÍO XII","Cl. PÍO XII, 1",22006,974223593,974245661,"cppxhuesca@educa.aragon.es"]
[22002341,"Huesca","Colegio de Educación Infantil y Primaria","Huesca","SANCHO RAMÍREZ","Cl. Torre Mendoza, 1",22005,"974 24 24 83","974 24 24 83","cpsrahuesca@educa.aragon.es"]
[22002351,"Huesca","Colegio de Educación Infantil y Primaria","Huesca","SAN VICENTE","Pza. De San Vicente, 1",22002,"974 22 06 25","974 22 06 25","cpsvihuesca@educa.aragon.es"]
[22002405,"Huesca","Centro Privado de Educación Infantil","Huesca","SAN JOSÉ","Cl. Pedro Iv, 81",22002,"974 22 07 74",null,"ceisanjose_h@hotmail.com"]
[22002417,"Huesca","Centro Privado de Educación Infantil Primaria y Secundaria","Huesca","SANTA ANA","CL. COSO ALTO, 47",22003,"974 22 02 70","974 22 00 51","santaanahu@planalfa.es"]
[22002429,"Huesca","Centro Privado de Educación Infantil","Huesca","NTRA.SRA.DEL PILAR","Avda. Dr. Artero, 66",22004,"974 24 18 61","974 24 18 61"]
[22002430,"Huesca","Centro Privado de Educación Infantil Primaria y Secundaria","Huesca","SAN BERNARDO","Avda. Monreal, 14",22003,"974 22 18 00","974 22 18 08","salesianos.huesca@salesianos.org"]
[22002466,"Huesca","Centro Privado de Educación Infantil Primaria y Secundaria","Huesca","SANTA ROSA - ALTOARAGÓN","Psje. Pico del Águila nº 7",22004,"974 23 86 25","974 23 83 69","santarosa.altoaragon@colegiosfec.com"]
[22002478,"Huesca","Centro Privado de Educación Infantil Primaria y Secundaria","Huesca","SAN VIATOR","Cl. Del Parque, 15",22003,"974 23 81 12","974 23 81 26","csv59hue@planalfa.es"]
[22002491,"Huesca","Centro Público Integrado de Formación Profesional","Huesca","MONTEARAGÓN","Ctra. De Sariñena, Km. 4",22111,"974 24 26 73","974 24 58 66","cpifpmontearagon@educa.aragon.es"]
[22002508,"Huesca","Instituto de Educación Secundaria","Huesca","RAMÓN Y CAJAL","Avda. De La Paz, 9",22004,"974 22 04 36","974 22 08 85","iesrychuesca@educa.aragon.es"]
[22002511,"Huesca","Instituto de Educación Secundaria","Huesca","PIRÁMIDE","CAMI. DE CUARTE, S/N",22004,974210012,974210042,"iespirhuesca@educa.aragon.es"]
[22002521,"Huesca","Instituto de Educación Secundaria","Huesca","SIERRA DE GUARA","Cl. Ramón J. Sender, 4",22005,"974 24 34 77","974 24 31 07","iessguhuesca@educa.aragon.es"]
[22002569,"Huesca","Colegio de Educación Infantil y Primaria","Huesca","ALCORAZ","Cl. Binéfar, 5",22004,"974 21 03 08","974 210308","cpalchuesca@educa.aragon.es"]
[22002673,"Huesca","Colegio de Educación Infantil y Primaria","Jaca","SAN JUAN DE LA PEÑA","Cl. San José De Calasanz, 3",22700,"974 35 63 70","974 35 63 70","cpsjphuesca@educa.aragon.es"]
[22002703,"Huesca","Centro Privado de Educación Infantil Primaria y Secundaria","Jaca","ESCUELAS PÍAS","Avda. Perimetral, 2",22700,"974 36 03 92","974 36 25 59","joseignaciobilbao@escolapiosemaus.org"]
[22002727,"Huesca","Instituto de Educación Secundaria","Jaca","DOMINGO MIRAL","Avda. Regimiento de Galicia, 6",22700,"974 36 18 47","974 35 58 53","iesdmjaca@educa.aragon.es"]
[22002739,"Huesca","Escuela Hogar","Jaca","DE JACA","CL. FERROCARRIL, 17",22700,"974 36 20 67",null,"ehjaca@educa.aragon.es"]
[22002740,"Huesca","Escuela de Capacitación Agraria","Jaca","INSTITUTO DE FORMACIÓN AGROAMBIENTAL","CTRA. JACA-PAMPLONA, KM. 7",22700,"974 35 68 19","974 35 68 21","ifaja@educa.aragon.es"]
[22002843,"Huesca","Colegio Rural Agrupado","Lanaja","MONEGROS NORTE","Avda. Zaragoza-Monzón, 60",22250,"974 57 42 45","974 57 42 45","cralanaja@educa.aragon.es"]
[22003100,"Huesca","Colegio de Educación Infantil y Primaria","Lupiñén","SAN GINÉS","Cl. Única, S/N",22811,"974 27 00 24",null,"cplupinen@educa.aragon.es"]
[22003215,"Huesca","Colegio de Educación Infantil y Primaria","Monzón","JOAQUÍN COSTA","Avda. Goya, 2",22400,"974 40 08 19","974 40 08 19","cpjcmonzon@educa.aragon.es"]
[22003239,"Huesca","Centro Privado de Educación Secundaria","Monzón","SANTO DOMINGO SAVIO","P.º SAN JUAN BOSCO, 83-85",22400,"974 41 68 88","974 40 49 15","colegio.monzon@salesianos.org"]
[22003252,"Huesca","Centro Privado de Educación Infantil y Primaria","Monzón","SANTA ANA","Avda. Del Pilar, 6",22400,"974 40 07 21","974 40 49 82","santaanam@colegiosaragon.org"]
[22003276,"Huesca","Centro Privado de Educación Infantil y Primaria","Monzón","MINTE","Cl. Valencia, 18",22400,"974 41 68 35","974 41 68 35","colegio.minte@telefonica.net"]
[22003288,"Huesca","Instituto de Educación Secundaria","Monzón","JOSÉ MOR DE FUENTES","Avda. Del Pueyo, 89",22400,"974 40 16 30","974 40 38 82","iesmonzon@educa.aragon.es"]
[22003343,"Huesca","Colegio de Educación Infantil y Primaria","Ontiñena","SAN GREGORIO","Cl. San Gregorio, 55",22232,"974 46 85 52",974468552,"cpontinena@educa.aragon.es"]
[22003586,"Huesca","Colegio Rural Agrupado","Plan","CINCA-CINQUETA","Cl. Alta, S/N",22367,"974 50 61 61","974 50 61 61","crabielsa@educa.aragon.es"]
[22003835,"Huesca","Colegio de Educación Infantil y Primaria","Sabiñánigo","MONTECORONA","Cl. Ciudad De Billère, 18",22600,"974 48 40 38","974 48 40 38","ceipmontecorona@educa.aragon.es"]
[22003847,"Huesca","Colegio de Educación Infantil y Primaria","Sabiñánigo","PUENTE SARDAS","Cl. Derechos Humanos, 3",22600,974480462,974480462,"cppssabinanigo@educa.aragon.es"]
[22003860,"Huesca","Centro Privado de Educación Infantil y Primaria","Sabiñánigo","SANTA ANA","Pza. Santa Ana, 4",22600,"974 48 08 91","974 48 08 91","sabihcsa@gmail.com"]
[22003902,"Huesca","Instituto de Educación Secundaria","Sabiñánigo","SAN ALBERTO MAGNO","Paseo de la Corona nº 2",22600,"974 48 01 79","974 48 07 55","iesamsabinanigo@educa.aragon.es"]
[22003926,"Huesca","Colegio de Educación Infantil y Primaria","Senegüé","MIGUEL SERVET","Cl. Única, S/N",22666,"974 48 43 00",null,"cpsenegue@educa.aragon.es"]
[22004104,"Huesca","Colegio de Educación Infantil y Primaria","Sariñena","LA LAGUNA","PZA. MAYORAL ANTONIO SUSÍN, 3-4",22200,"974 57 13 14","974 57 02 69","cpsarinena@educa.aragon.es"]
[22004189,"Huesca","Colegio de Educación Infantil y Primaria","Sena","ALBERTO GALINDO","Avda. Huesca, S/N",22230,"974 57 83 45",null,"cpsena@educa.aragon.es"]
[22004271,"Huesca","Colegio de Educación Infantil y Primaria","Tamarite de Litera","SAN MIGUEL","Cl. La Colomina, S/N",22550,"974 42 03 71","974 42 03 71","cpsmtamarite@educa.aragon.es"]
[22004566,"Huesca","Colegio de Educación Infantil y Primaria","Villanúa","COLLARADA","Cami. La Fuente, S/N",22870,"974 37 80 43",974378197,"cpvillanua@educa.aragon.es"]
[22004578,"Huesca","Colegio de Educación Infantil y Primaria","Villanueva de Sigena","MIGUEL SERVET","Cl. El Salvador, 5",22231,"974 57 84 20",974578420,"cpvillanuevas@educa.aragon.es"]
[22004608,"Huesca","Colegio de Educación Infantil y Primaria","Zaidín","SAN JUAN BAUTISTA","Avda. San Antonio Abad, 37",22530,"974 47 82 08","974 47 82 08","cpzaidin@educa.aragon.es"]
[22004611,"Huesca","Instituto de Educación Secundaria","Barbastro","MARTÍNEZ VARGAS","Cami. De La Boquera, S/N",22300,"974 31 02 94","974 30 64 59","iesmvbarbastro@educa.aragon.es"]
[22004633,"Huesca","Colegio de Educación Infantil y Primaria","Huesca","EL PARQUE","Cl. Valentín Carderera, 6",22003,"974 22 10 38","974 23 16 85","cpepahuesca@educa.aragon.es"]
[22004773,"Huesca","Instituto de Educación Secundaria","Huesca","LUCAS MALLADA","Cl. Torre Mendoza, 2",22005,"974 24 48 34","974 24 17 70","ieslmahuesca@educa.aragon.es"]
[22004803,"Huesca","Centro Privado de Formación Profesional Específica","Huesca","ALFRED","Cl. Coso Alto, 32",22003,"974 22 17 25",null,"secretaria@centrosalfred.com"]
[22004839,"Huesca","Colegio de Educación Infantil y Primaria","Jaca","MONTE OROEL","AVDA. JUAN XXIII, 48",22700,"974 35 64 59","974 35 64 59","ceipmonteoroel@educa.aragon.es"]
[22004840,"Huesca","Colegio de Educación Infantil y Primaria","Monzón","ARAGÓN","Cl. Calvario, 13",22400,"974 40 03 14","974 400314","cparmonzon@educa.aragon.es"]
[22004888,"Huesca","Instituto de Educación Secundaria","Fraga","BAJO CINCA","Cl. Río Cinca, S/N",22520,"974 45 38 60","974 45 39 00","iesbcfraga@educa.aragon.es"]
[22004891,"Huesca","Instituto de Educación Secundaria","Sabiñánigo","BIELLO ARAGÓN","Cl. Derechos Humanos, 5",22600,"974 48 26 82","974 48 30 28","iesbasabinanigo@educa.aragon.es"]
[22004906,"Huesca","Colegio de Educación Infantil y Primaria","Barbastro","PEDRO I","CL. Luis Buñuel, 7",22300,"974 31 25 21",974312521,"cpp1barbastro@educa.aragon.es"]
[22004943,"Huesca","Centro Privado de Formación Profesional Específica","Sahún","NTRA. SRA. DE GUAYENTE","CL. SANTUARIO DE GUAYENTE, S/N",22468,"974 55 13 27","974 55 21 16","escuelahosteleria@guayente.info"]
[22004955,"Huesca","Centro Público de Educación de Personas Adultas","Huesca","MIGUEL HERNÁNDEZ","Cl. Alfonso De Aragón, 12",22002,"974 24 15 04",null,"cpeahuesca@educa.aragon.es"]
[22005030,"Huesca","Instituto de Educación Secundaria","Sariñena","MONEGROS-GASPAR LAX","Cami. De Las Torres, S/N",22200,"974 57 11 14","974 57 05 65","iessarinena@educa.aragon.es"]
[22005054,"Huesca","Colegio de Educación Infantil y Primaria","Caldearenas","VIRGEN DE LOS RÍOS","Cl. La Iglesia, S/N",22624,"974 35 97 96",974359800,"cpcaldearenas@educa.aragon.es"]
[22005121,"Huesca","Centro Público Integrado de Formación Profesional","Huesca","SAN LORENZO","Cl. Madrid, 2",22004,"974 24 36 33","974 23 06 56","cpifpsanlorenzo@educa.aragon.es"]
[22005133,"Huesca","Conservatorio Profesional de Música","Huesca","DE HUESCA","Cl. Fuente Del Ibón, 5",22003,"974 24 36 17","974 24 36 08","cpmhuesca@educa.aragon.es"]
[22005145,"Huesca","Escuela de Arte","Huesca","ESCUELA DE ARTE DE HUESCA","Cl. Santo Cristo De Los Milagros, 21",22004,"974 24 06 44","974 24 65 41","escueladeartedehuesca@educa.aragon.es"]
[22005157,"Huesca","Colegio de Educación Especial","Monzón","LA ALEGRÍA","Cl. Cinca, S/N",22400,"974 41 58 14","976 41 56 08","ceemonzon@educa.aragon.es"]
[22005200,"Huesca","Colegio de Educación Infantil y Primaria","Huesca","PEDRO J. RUBIO","Cl. Los Olivos, 2",22005,"974 22 93 12","974 23 87 17","cppjrhuesca@educa.aragon.es"]
[22005212,"Huesca","Escuela Oficial de Idiomas","Huesca","DE HUESCA","P.º Lucas Mallada, S/N",22006,"974 24 02 99","974 24 02 99","eoihuesca@educa.aragon.es"]
[22005224,"Huesca","Escuela Pública de Música y Danza","Jaca","PILAR BAYONA","CL. ISAAC ALBÉNIZ, S/N",22700,"974 35 55 28","974 35 55 28","escuelamusica@aytojaca.es"]
[22005340,"Huesca","Colegio de Educación Infantil y Primaria","Aineto","VALLE DEL GUARGA","Cl. San Francisco de Asís, S/N",22623,"974 33 79 50",null,"cpaineto@educa.aragon.es"]
[22005364,"Huesca","Escuela Pública de Música","Binéfar","ESCUELA DE MÚSICA","CL. GALILEO, 7-13",22500,"974 42 81 00","974 43 09 50","aytobinefar@aragob.es"]
[22005376,"Huesca","Conservatorio Profesional de Música","Monzón","MIGUEL FLETA","Pza. Aragón, 6",22400,"974 40 38 11","974 40 29 33","cpmmonzon@educa.aragon.es"]
[22005388,"Huesca","Instituto de Educación Secundaria","Binéfar","SIERRA DE SAN QUÍLEZ","PZA. HIPÓLITO BITRIÁN, 1",22500,"974 42 82 95","974 42 80 40","iesbinefar@educa.aragon.es"]
[22005391,"Huesca","Instituto de Educación Secundaria","Tamarite de Litera","LA LLITERA","Camino La Colomina s/n",22550,"974 42 03 60","974 42 19 59","iestamarite@educa.aragon.es"]
[22005406,"Huesca","Instituto de Educación Secundaria","Aínsa","SOBRARBE","Cl. Lucien Briet, S/N",22330,"974 50 00 56","974 510092","iesainsa@educa.aragon.es"]
[22005431,"Huesca","Colegio de Educación Infantil y Primaria","Paúles de Sarsa","DE PAÚLES DE SARSA","Cl. Escuelas, S/N",22149,"974 34 31 10",null,"cppaules@educa.aragon.es"]
[22005443,"Huesca","Conservatorio Profesional de Música","Sabiñánigo","DE SABIÑÁNIGO","CL. INSTITUTO LABORAL, 9",22600,"974 48 28 34","974 48 28 34","cpmsabinanigo@educa.aragon.es"]
[22005479,"Huesca","Centro Público de Educación de Personas Adultas","Tamarite de Litera","LITERA","PZA. MAYOR nº 7",22550,"974 42 19 19",null,"cpeatamarite@educa.aragon.es"]
[22005480,"Huesca","Centro Público de Educación de Personas Adultas","Monzón","CINCA MEDIO","Pza. Sto. Domingo, 6",22400,"974 41 62 90",null,"cpeamonzon@educa.aragon.es"]
[22005492,"Huesca","Centro Público de Educación de Personas Adultas","Jaca","JACETANIA","Cl Monte Perdido, 1",22700,"974 36 28 75",null,"cpeajaca@educa.aragon.es"]
[22005509,"Huesca","Centro Público de Educación de Personas Adultas","Graus","RIBAGORZA","Plaza Compañía 1, 1ª planta",22430,"974 54 05 28",null,"cpeagraus@educa.aragon.es"]
[22005558,"Huesca","Centro Público de Educación de Personas Adultas","Boltaña","SOBRARBE","Cl. Samper, 1",22340,"974 50 23 22",null,"cpeaboltana@educa.aragon.es"]
[22005561,"Huesca","Centro Público de Educación de Personas Adultas","Sabiñánigo","ALTO GÁLLEGO","Cl. Pedro Sesé, 2",22600,"974 48 25 32",null,"cpeasabinanigo@educa.aragon.es"]
[22005583,"Huesca","Centro Público de Educación de Personas Adultas","Sariñena","MONEGROS","Cl. El Carmen, 13",22200,"974 57 43 98",null,"cpeasarinena@educa.aragon.es"]
[22005595,"Huesca","Escuela Oficial de Idiomas","Monzón","IGNACIO LUZÁN","Avda. De Fonz, 1",22400,"974 41 58 40","974 41 58 70","eoimonzon@educa.aragon.es"]
[22005662,"Huesca","Escuela Oficial de Idiomas","Sabiñánigo","DE SABIÑÁNIGO","CL. INSTITUTO LABORAL, 9",22600,"974 48 33 80","974 48 33 32","eoisabinanigo@educa.aragon.es"]
[22005674,"Huesca","Colegio Rural Agrupado","Albelda","LA LLITERA","Cl. Granero, S/N",22558,"974 42 14 07","974 42 14 07","craalbelda@educa.aragon.es"]
[22005686,"Huesca","Colegio Rural Agrupado","Peñalba","MONTESNEGROS","Cl. Las Afueras, S/N",22592,"974 46 30 79","974 46 30 79","crapenalba@educa.aragon.es"]
[22005698,"Huesca","Colegio Rural Agrupado","Peralta de Alcofea","A REDOLADA","Cl. Balmes, 16",22130,"974 30 07 43","974 30 07 43","craperalta@educa.aragon.es"]
[22005704,"Huesca","Colegio Rural Agrupado","Capella","BAJA RIBAGORZA","Bo. Bajo, S/N",22480,974540432,974540432,"cracapella@educa.aragon.es"]
[22005716,"Huesca","Colegio Rural Agrupado","Fonz","ESTADILLA-FONZ","Avda. De Las Sierras, 1",22422,"974 41 20 31","974 41 20 31","crafonz@educa.aragon.es"]
[22005728,"Huesca","Colegio Rural Agrupado","Chimillas","MONTEARAGÓN","Ctra De Huesca , S/N",22194,"974 25 21 51","974 25 21 51","crachimillas@educa.aragon.es"]
[22005731,"Huesca","Colegio Rural Agrupado","Biescas","ALTO GÁLLEGO","Pza. Ayuntamiento, 4",22630,"974 48 53 08",null,"crabiescas@educa.aragon.es"]
[22005741,"Huesca","Colegio Rural Agrupado","Binaced","EL TRÉBOL","Cl. Joaquín Costa, S/N",22510,"974 42 71 31",974427131,"crabinaced@educa.aragon.es"]
[22005765,"Huesca","Instituto de Educación Secundaria","Jaca","PIRINEOS","Cl. Ferrocarril, 17",22700,"974 35 58 57","974 35 58 42","iespijaca@educa.aragon.es"]
[22005789,"Huesca","Colegio Rural Agrupado","Puente La Reina de Jaca","RÍO ARAGÓN","Cl. Molino, 10",22753,"974 37 70 49","974 37 70 49","direccion@crarioaragon.es"]
[22005790,"Huesca","Colegio Rural Agrupado","Benabarre","RIBAGORZA ORIENTAL","Cl. San José De Calasanz, 13",22580,"974 54 32 55","974 54 32 55","crabenabarre@educa.aragon.es"]
[22005807,"Huesca","Colegio Rural Agrupado","Torrente de Cinca","RIBERA DEL CINCA","Cl. Arrabal Del Norte, S/N",22590,"974 46 71 42","974 46 71 42","cratorrente@educa.aragon.es"]
[22005819,"Huesca","Colegio Rural Agrupado","Altorricón","DE ALTORRICÓN","Cl. Miguel Fleta, 1",22540,"974 42 52 02","974 42 52 02","craaltorricon@educa.aragon.es"]
[22005820,"Huesca","Colegio Rural Agrupado","Conchel","ARCO IRIS","Cl. Monzón, S/N",22414,"974 41 33 91","974 41 33 91","craconchel@educa.aragon.es"]
[22005832,"Huesca","Colegio Rural Agrupado","Belver de Cinca","ALBEOS","Cl. Escuelas, 28",22533,"974 46 81 26",null,"crabelver@educa.aragon.es"]
[22005844,"Huesca","Colegio Rural Agrupado","Tardienta","VIOLADA MONEGROS","Cl. José María Peleato, 18",22240,"974 25 32 41","974 25 32 41","cratardienta@educa.aragon.es"]
[22005856,"Huesca","Colegio Rural Agrupado","Robres","LA SABINA","CL. Canal de Monegros s/n",22252,"974 39 22 36","974 39 22 36","crarobres@educa.aragon.es"]
[22005868,"Huesca","Colegio Rural Agrupado","Lalueza","MONEGROS-HOYA","P.º Comenge, 42",22214,"974 57 51 46","974 57 51 46","cralalueza@educa.aragon.es"]
[22005881,"Huesca","Colegio Rural Agrupado","Benasque","ALTA RIBAGORZA","Avda. De Luchón, S/N",22440,"974 55 11 80","974 55 11 80","crabenasque@educa.aragon.es"]
[22005911,"Huesca","Escuela Pública de Música","Fraga","INSTITUTO MUSICAL COMARCAL","P.º Barrón Gengonyer, 7",22520,"974 47 09 89","974 47 42 74"]
[22005960,"Huesca","Centro Público de Educación de Personas Adultas","Barbastro","SOMONTANO","AVDA. del Cinca s/n",22300,"974 30 64 33",null,"cpeabarbastro@educa.aragon.es"]
[22006022,"Huesca","Aula de Educación de Adultos","Almudévar","DE ALMUDÉVAR","Cl. Las Ciencias, S/N",22270,"974 25 09 03"]
[22006034,"Huesca","Centro Público de Educación de Personas Adultas","Fraga","BAJO CINCA","CL. AIRETAS, 17",22520,"974 47 13 92",null,"cpeafraga@educa.aragon.es"]
[22006061,"Huesca","Centro Privado de Educación Infantil","Fraga","PATI","Avda. Mequinenza, S/N",22520,"974 47 35 68",null,"ceipatufraga@gmail.com"]
[22006083,"Huesca","Sección de Instituto de Educación Secundaria","Almudévar","PIRÁMIDE","CL. Miguel Monserrat s/n",22270,"974 25 02 66","974 25 02 66","iesalmudevar@educa.aragon.es"]
[22006095,"Huesca","Instituto de Educación Secundaria","Castejón de Sos","DE CASTEJÓN DE SOS","PZA. COSTITUCIÓN, S/N",22466,"974 55 33 08",974553308,"iescastejons@educa.aragon.es"]
[22006101,"Huesca","Instituto de Educación Secundaria","Grañén","MONTES NEGROS","Cl. Escuelas, S/N",22260,"974 39 03 03","974 39 10 03","iesgranen@educa.aragon.es"]
[22006113,"Huesca","Instituto de Educación Secundaria","Alcolea de Cinca","CINCA-ALCANADRE","Avda. Autonomía De Aragón, S/N",22410,"974 46 82 36","974 46 82 36","iesalcolea@educa.aragon.es"]
[22006125,"Huesca","Sección de Instituto de Educación Secundaria","Biescas","BIELLO ARAGÓN","Pza. de la Constitución s/n",22630,"974 49 56 34",null,"iesbiescas@educa.aragon.es"]
[22006137,"Huesca","Centro Privado de Educación Secundaria","Benasque","VALLE DE BENASQUE","Avda .De Luchón, S/N",22440,"974 55 21 07","974 55 21 07","cesbenasque@hotmail.com"]
[22010001,"Huesca","Centro Privado de Educación Especial","Huesca","SAN JORGE","Ctra. De Granén, S/N",22196,"974 22 79 62","974 22 55 13","aspacehuesca@telefonica.net"]
[22010013,"Huesca","Escuela de Educación Infantil","Sallent de Gállego","DE SALLENT DE GÁLLEGO","Paseo \"Gigante Aragonés\", 34 bis",22640,"974 48 82 74","974 48 83 07","guardesallent@hotmail.com"]
[22010025,"Huesca","Extensión de Escuela Oficial de Idiomas","Fraga","DE MONZÓN","P.º De La Constitución, S/N",22520,"974 41 58 40","974 45 38 36","eoimonzon@educa.aragon.es"]
[22010037,"Huesca","Escuela Oficial de Idiomas","Barbastro","RÍO VERO","Cami. De La Boquera, S/N",22300,"974 11 03 60","974 30 64 59","eoibarbastro@educa.aragon.es"]
[22010049,"Huesca","Extensión de Escuela Oficial de Idiomas","Jaca","DE SABIÑÁNIGO","Avda. Regimiento Galicia, S/N",22700,"974 36 18 47","974 35 58 53","eoisabinanigo@educa.aragon.es"]
[22010050,"Huesca","Centro Privado de Educación Infantil","Huesca","LAS OCAS","Cl. Miguel Servet, 9",22002,"974 24 65 50"]
[22010062,"Huesca","Escuela de Educación Infantil","Albelda","LO NIU","Cl. Lorenzo Barea, 4",22558,"974 42 02 02","974 42 08 02","aytoalbelda@educa.aragon.es"]
[22010074,"Huesca","Centro Privado de Educación Infantil","Huesca","CLUB MINNIE","Cl. Travesía Ballesteros, 23",22001,"974 24 64 90"]
[22010086,"Huesca","Escuela Superior de Conservación y Restauración de Bienes Culturales","Huesca","DE ARAGÓN","Cl. Coso Alto, 61",22003,"974 23 06 05","974 21 89 24","esconres@educa.aragon.es"]
[22010098,"Huesca","Centro Privado Autorizado de Enseñanzas Deportivas","Candanchú","ESCUELA ESPAÑOLA DE ESQUÍ","Ctra. De Francia, S/N",22889,"974 37 31 94","974 37 34 90"]
[22010104,"Huesca","Escuela de Educación Infantil","Esplús","LA COMETA","Pza. Escuelas, 9",22535,"974 43 51 29","974 43 51 00","ayuntamiento@esplus.info"]
[22010116,"Huesca","Escuela de Educación Infantil","Altorricón","EL PÍ","CL. MIGUEL FLETA, 3",22540,"974 42 52 01","974 42 51 16","eei@altorricon.com"]
[22010128,"Huesca","Escuela de Educación Infantil","Sabiñánigo","CARDELINA","Cl. Valle De Oza",22600,"974 48 42 62","974 48 42 01","cardelina@aytosabinanigo.net"]
[22010131,"Huesca","Escuela Pública de Música","Barbastro","ESCUELA DE MÚSICA","Cl. Argensola, 26 Casa De Cultura",22300,"974 31 52 25","974 31 52 25","musica@barbastro.org"]
[22010153,"Huesca","Centro Privado de Formación Profesional Específica","Huesca","ARTE-MISS HUESCA","Cl. Alcalde Carderera, 3",22002,"974 21 53 21","974 21 53 20","educacion@arte-miss.com"]
[22010165,"Huesca","Centro Privado Autorizado de Enseñanzas Deportivas","Benasque","ESCUELA DE MONTAÑA DE BENASQUE","Cl. Campalet, S/N",22440,"974 55 20 19","974 55 21 45","infoemb@fam.es"]
[22010177,"Huesca","Escuela de Educación Infantil","Castejón de Sos","LA MAINADA","CL. Constitución, 2",22466,"974 55 30 00","974 55 38 20","aytocastejondesos@educa.aragon.es"]
[22010189,"Huesca","Centro Privado de Educación Infantil","Huesca","PARCHÍS","Cl. Ramón J. Sender, 13",22001,"974 21 14 12"]
[22010190,"Huesca","Escuela de Educación Infantil","Tamarite de Litera","EL TAMARINDO","CL. SAN MIGUEL, 11",22550,"974 42 14 86","974 42 17 47","escuelainfantil@tamaritedelitera.es"]
[22010207,"Huesca","Escuela de Educación Infantil","Jaca","DE JACA","CL. BORNAO, S/N",22700,"974 35 60 01","974 35 60 01","escuelainfantil@aytojaca.es"]
[22010219,"Huesca","Centro Privado de Educación Infantil","Huesca","PASITO A PASO","CL. DOCTOR ARTERO, 17",22004,"974 24 48 48"]
[22010220,"Huesca","Centro Privado de Educación Infantil","Huesca","ZIMBEL","CL. TERUEL, 5",22005,"974 24 49 90"]
[22010232,"Huesca","Escuela de Educación Infantil","Binéfar","CONCEPCIÓN BAÑERES","CL. MADRID, 7",22500,"974 42 97 92","974 43 09 50","escinfantil@binefar.es"]
[22010244,"Huesca","Escuela de Educación Infantil","Tierz","LA CANTERA","CL. LA ALEGRÍA, 6",22192,"974 25 20 41","974 24 63 97","aytotierz@educa.aragon.es"]
[22010256,"Huesca","Centro Privado de Educación Infantil","Barbastro","ENCANTARIA","CL. RAMÓN Y CAJAL, 1",22300,"974 31 33 50"]
[22010268,"Huesca","Escuela de Educación Infantil","Biescas","DE BIESCAS","AVDA. ZARAGOZA. 21",22630,"974 48 53 16","974 49 55 09"]
[22010271,"Huesca","Escuela de Educación Infantil","Vencillón","LUPITA","CL. Mediodia s/n",22549,"974 43 43 10","974 43 43 16","vencillon@lalitera.org"]
[22010281,"Huesca","Escuela de Educación Infantil","Graus","NININS","CL. GAITEROS DE CASERRAS, 2",22430,974540299,974546002,"aytograus@educa.aragon.es"]
[22010293,"Huesca","Escuela de Educación Infantil","Ayerbe","LA FONTANETA","CL. PROGRESO, 4",22800,"974 38 08 95","974 38 01 19","aytoayerbe@reinodelosmallos.com"]
[22010301,"Huesca","Escuela de Educación Infantil","Binaced","ABABOL","CL. ALBALATE, 2",22510,"974 42 70 01","974 42 74 29","ayuntamiento@binaced.org"]
[22010311,"Huesca","Escuela de Educación Infantil","Benasque","LA MAINADA","AVDA. LUCHÓN, S/N",22440,"974 55 20 86","974 55 20 86","educacioninfantil@benasque.org"]
[22010323,"Huesca","Colegio de Educación Infantil y Primaria","Huesca","PIRINEOS-PYRÉNÉES","CL. CORONA DE ARAGÓN, 2",22005,974213678,"974 21 36 78","cppirhuesca@educa.aragon.es"]
[22010335,"Huesca","Escuela de Educación Infantil","Panticosa","TRIAMOLETA","CL. CAMPOS DE LA IGLESIA, S/N",22661,"974 48 70 16","974 48 75 77","ayto@panticosa.es"]
[22010347,"Huesca","Escuela Pública de Música","Altorricón","DE ALTORRICÓN","CL. MIGUEL FLETA, 2",22540,"974 425 002"]
[22010359,"Huesca","Escuela de Educación Infantil","Benabarre","LA CANALLA","NUEVO VIAL DE LA U.A. 3",22580,"974 54 30 00","974 54 74 04","aytobenabarre@educa.aragon.es"]
[22010360,"Huesca","Escuela de Educación Infantil","Almudévar","@S`CRI@S","AVDA. DEL ROSARIO Y C/ DE LAS CIENCIAS",22270,"974 25 06 78","974 25 09 04","guardealmudevar@hotmail.com"]
[22010372,"Huesca","Escuela Pública de Música","Gurrea de Gállego","DE GURREA DE GÁLLEGO","PZA. TÍO PEPE, S/N",22280,"976 688 375"]
[22010384,"Huesca","Centro Privado Autorizado de Enseñanzas Deportivas","Alquézar","ESCUELA DE MONTAÑA DE ALQUÉZAR","CL. SAN GREGORIO, 30",22145,"974 318 966",null,"era@prames.com"]
[22010396,"Huesca","Centro Privado de Educación Infantil","Huesca","KID'S GARDEN HUESCA","CL. CALATAYUD, 31 BAJOS",22005,"974 701 211",null,"info@kidsgardenhuesca.com"]
[22010402,"Huesca","Escuela de Educación Infantil","Fraga","XIQUETS","INTERSECCIÓN C/ CABAÑERA REAL Y C/ JAIME I",22520,"974 47 08 77","974 47 08 77","xiquets@fraga.org"]
[22010414,"Huesca","Escuela de Educación Infantil","Osso De Cinca","SANTA MARGARITA","CARRETERA DE FRAGA S/N",22532,"974 45 60 40","974 45 62 68","ossodecinca@ossodecinca.es"]
[22010426,"Huesca","Escuela de Educación Infantil","Belver de Cinca","DE BELVER DE CINCA","CL. TRAVESÍA DEL PILAR S/N",22533,"650 82 46 72","974 45 60 48","aytobelver1@telefonica.net"]
[22010438,"Huesca","Escuela de Educación Infantil","Gurrea de Gállego","DE GURREA DE GÁLLEGO","CL. CERVANTES Nº 1",22280,"976 68 80 95","976 68 83 37","escuelainfantilgurreadegallego@gmail.com"]
[22010441,"Huesca","Centro Privado de Educación Infantil","Huesca","ALBADA","CL. MARÍA MOLINER S/N",22004,"974 240 983",null,"vicentelachen@gmail.com"]
[22010451,"Huesca","Escuela Pública de Música","Aínsa","JOSE MARÍA CAMPO","CL. CORTES DE ARAGÓN, Nº 3",22330,974500074,974500955,"escuelademusicaainsa@gmail.com"]
[22010463,"Huesca","Escuela de Educación Infantil","Huesca","LAS PAJARITAS","CL. FUENTE DEL IBÓN, Nº 7",22002,"974 24 59 88","974 29 21 63","secretaria@huesca.es"]
[22010475,"Huesca","Escuela de Educación Infantil","Nueno","DE NUENO","URB. PARQUE DE GUARA",22193,"974 10 16 08","974 27 12 39","guardaytonueno@yahoo.es"]
[22010487,"Huesca","Escuela de Educación Infantil","Barbastro","DE BARBASTRO","CL. OBISPO AMBROSIO ECHEBARRÍA",22300,"974 26 90 82","974 30 63 11","escuelainfantil@barbastro.org"]
[22010499,"Huesca","Escuela de Educación Infantil","Peralta de Alcofea","DE PERALTA DE ALCOFEA","CL. BALMES, 16",22130,"974 30 11 62","974 30 13 43","secretaria@peraltadealcofea.org"]
[22010505,"Huesca","Escuela de Educación Infantil","Puente La Reina de Jaca","DE PUENTE LA REINA DE JACA","CL. MOLINO, S/N",22753,974377201,974377201]
[22010517,"Huesca","Escuela de Educación Infantil","Alcampell","DE ALCAMPELL","CL. LA LITERA, 15",22560,"974 42 09 52","974 42 09 52","secretaria@alcampell.net"]
[22010542,"Huesca","Escuela de Educación Infantil","Monflorite","ANDARINES","CL. Castillones, nº 6 - 8",22111,"974 28 01 51",974280151,"eiandarines1@gmail.com"]
[22010554,"Huesca","Escuela de Educación Infantil","Fonz","DE FONZ","CL. ZARAGOZA, 8",22422,974412001,974412247]
[22010566,"Huesca","Escuela de Educación Infantil","Ballobar","DE BALLOBAR","CL. BARRIO NUEVO, S/N",22234,974461288]
[22010578,"Huesca","Escuela de Educación Infantil","Boltaña","NINONES","CL. SAMPER, 1",22340,974502416]
[22010581,"Huesca","Escuela de Educación Infantil","Canfranc-Estación","LA CASITA BLANCA","PZA. DEL PILAR, 1",22880,974372041,974373037]
[22010591,"Huesca","Escuela de Educación Infantil","Berdún","DE CANAL DE BERDÚN","PZA. DEL CASTILLO, 1-BAJO",22770,974372719,974371729]
[22010608,"Huesca","Escuela de Educación Infantil","Villanúa","DE VILLANÚA","CL. FACI ABAD, S/N",22870,974378004,974378197]
[22010611,"Huesca","Escuela de Educación Infantil","Robres","DE ROBRES","CL. SAN BLAS, 9",22252,974392121]
[22010621,"Huesca","Escuela de Educación Infantil","Frula","DE FRULA","RONDA SUR, 6",22269,974392763]
[22010633,"Huesca","Escuela de Educación Infantil","Lalueza","DE LALUEZA","P.º COMENGE, 42",22214,974575146]
[22010645,"Huesca","Escuela de Educación Infantil","Tardienta","ARBOLEDA","AVDA. JOSÉ MARÍA PELEATO, 18",22240,659590832,976253135]
[22010657,"Huesca","Escuela de Educación Infantil","Lanaja","DE LANAJA","CL. José Borruel, S/N",22250,606240353,974574399]
[22010669,"Huesca","Escuela de Educación Infantil","Grañén","DE GRAÑÉN","CL. JUAN XXIII, 6",22260,974390252]
[22010670,"Huesca","Escuela de Educación Infantil","Sariñena","DE SARIÑENA","CTRA. DE FRAGA, S/N",22200,974570900,974570860]
[22010694,"Huesca","Escuela de Educación Infantil","Monzón","CLARA CAMPOAMOR","CL. HUERVA, 1",22400,617821817]
[22010700,"Huesca","Escuela de Educación Infantil","Torrente de Cinca","DE TORRENTE DE CINCA","CL. ARRABAL DEL NORTE, S/N",22590,"974 46 70 00","974 46 71 56","ayto.torrente@gmail.com"]
[22010712,"Huesca","Centro Público Integrado de Formación Profesional","Huesca","PIRÁMIDE","CAMI. DE CUARTE, S/N",22004,"974 21 01 02","974 21 61 96","cpifppiramide@educa.aragon.es"]
[22010724,"Huesca","Escuela de Educación Infantil","Aínsa","DE LA COMARCA DE SOBRARBE","Pº. DE LOS NAVATEROS, S/N",22330,"974 500 557",null,"escuelainfantil@sobrarbe.com"]
[22010736,"Huesca","Escuela de Educación Infantil","Fiscal","CHAVALINES","CL. COSO ALTO, 47",22373,"974 503369"]
[22010748,"Huesca","Escuela de Educación Infantil","Alcolea de Cinca","SANTA CATALINA","AVDA. DE LA CONSTITUCIÓN, S/N",22410,"974 469 912",null,"eisantacatalina@hotmail.com"]
[22010751,"Huesca","Escuela de Educación Infantil","Almunia de San Juan","ATALIA","CL. JOAQUÍN COSTA, 2",22420,"974 403 003",null,"aytoalmuniadesanjuan@educa.aragon.es"]
[22010761,"Huesca","Escuela de Educación Infantil","Peñalba","DE PEÑALBA","CL. LAS AFUERAS, S/N",22592,976462031,976463399]
[22010773,"Huesca","Escuela Pública de Música","Tardienta","VILLA DE TARDIENTA","CL. MARIANO GAVÍN, 13-15",22240,974253001,974253135,"aytotardienta@educa.aragon.es"]
[22010785,"Huesca","Escuela de Educación Infantil","Adahuesca","TREVIÑER","AVDA. Santiago Foncillas, 9",22147,"974 31 81 51"]
[22010797,"Huesca","Escuela de Educación Infantil","Sena","DE SENA","AVDA. de Huesca 14",22230,974578345,974578409,"aytosena@monegros.net"]
[22010803,"Huesca","Escuela de Educación Infantil","Huesca","MARÍA SÁNCHEZ ARBÓS","Cl. Ramón J. Sender, 19",22005,"974 21 33 25","974 21 56 98","juventud@huesca.es"]
[22010815,"Huesca","Escuela de Educación Infantil","Chimillas","VIRGEN DEL ROSARIO","CL. Escuelas, 22",22194,"974 224 571",null,"chimillas@chimillas.es"]
[22010827,"Huesca","Escuela de Educación Infantil","Broto","DE BROTO","CL. Morillo S/N",22370,974466306]
[22010839,"Huesca","Colegio de Educación Infantil y Primaria","Monzón","MONZÓN III","Avda. Del Pueyo, S/N",22400,"974 41 50 81","974 40 12 33","ceipmonzon@educa.aragon.es"]
[22010840,"Huesca","Centro Privado Autorizado de Enseñanzas Deportivas","Huesca","CENTRO DE FORMACIÓN EDUCATIVA FUNDACIÓN ALCORAZ","Camino del alto Cocorón, s/n Estadio El Alcoraz, puerta 3",22004,"974 243 834"]
[22010852,"Huesca","Extensión de Escuela Oficial de Idiomas","Binéfar","DE MONZÓN","Plza. Hipólito Bitrián, 1",22500,"974 428 295",null,"iesbinefar@educa.aragon.es"]
[22010864,"Huesca","Centro Privado de Educación Infantil","Fraga","COTONET","Cl. Valle de Tena, 14",22520,"636 434 982",null,"escuelacotonet@gmail.com"]
[22010876,"Huesca","Colegio de Educación Infantil y Primaria","Fraga","MARÍA MOLINER","C/ Valle de Pineta s/n",22520,null,null,"cpfragaiii@educa.aragon.es"]
[22010888,"Huesca","Centro Privado Autorizado de Enseñanzas Deportivas","Huesca","International Coaches Education","Cl. Del Parque, 15",22003]
[22600060,"Huesca","Guardería del Gobierno de Aragón","Barbastro","LA PAZ","CL. Miguel Fleta, 3",22300,"974 31 38 44",null,"gilapaz@educa.aragon.es"]
[22600072,"Huesca","Guardería del Gobierno de Aragón","Huesca","NUESTRA SEÑORA DE SAN LORENZO","CL. Ramón J. Sender nº 19",22006,"974 22 31 38","974 22 31 38","gisanlorenzo@educa.aragon.es"]
[22600084,"Huesca","Guardería del Gobierno de Aragón","Monzón","NUESTRA SEÑORA DE LA ALEGRÍA","Avda. del Pueyo, 78",22400,"974 40 16 26",null,"ginsdelaalegria@educa.aragon.es"]
[22700029,"Huesca","Centros de Innovación y Formación Educativa","Huesca","ANA ABARCA DE BOLEA","CL. SANCHO RAMÍREZ, 24",22001,"974 22 73 61","974 24 50 13","cprhuesca@educa.aragon.es"]
[22700030,"Huesca","Centro de Profesores y Recursos","Monzón","DE MONZÓN","PZA. SANTA MARÍA, 2",22400,"974 40 31 34",null,"cprmonzon@educa.aragon.es"]
[22700054,"Huesca","Equipo de Orientación Educativa de Infantil y Primaria","Fraga","DE FRAGA","Cl. Airetas, 17; 2º",22520,"974 47 30 21","974 47 23 47","eoepfraga@educa.aragon.es"]
[22700066,"Huesca","Equipo de Orientación Educativa de Infantil y Primaria","Graus","DE GRAUS","Cl. Angel Samblancat, 10",22430,"974 54 60 62","974 54 60 62","eoepgraus@educa.aragon.es"]
[22700078,"Huesca","Equipo de Orientación Educativa de Infantil y Primaria","Huesca","DE HUESCA","Cl. Sancho Ramírez, 24",22001,"974 24 53 66","974 24 53 66","eoephuesca@educa.aragon.es"]
[22700081,"Huesca","Equipo de Orientación Educativa de Infantil y Primaria","Jaca","SUBSEDE E.O.E.I.P DE SABIÑÁNIGO en Jaca","Cl. Juan XXIII, S/N",22700,"974 36 32 00","974 36 32 00","eoepsabinanigo@educa.aragon.es"]
[22700091,"Huesca","Equipo de Orientación Educativa de Infantil y Primaria","Monzón","DE MONZÓN","Pza. Santa María, 2",22400,"974 41 58 58","974 40 18 68","eoepmonzon@educa.aragon.es"]
[22700108,"Huesca","Equipo de Orientación Educativa de Infantil y Primaria","Sabiñánigo","DE SABIÑÁNIGO","Cl. PEDRO DE SESÉ, 2",22600,"974 48 21 39",null,"eoepsabinanigo@educa.aragon.es"]
[22700111,"Huesca","Equipo de Orientación Educativa de Infantil y Primaria","Boltaña","SUBSEDE E.O.E.I.P. DE GRAUS en BoltañaBE-RIBAGORZA","Cl. Samper, S/N (Escuela hogar)",22340,"974 50 24 17",null,"eoepboltanna@educa.aragon.es"]
[44000121,"Teruel","Colegio de Educación Infantil y Primaria","Albalate del Arzobispo","ROMÁN GARCÍA","Cl. Ronda Gárate S/N",44540,"978 81 22 31","978 81 22 31","cpalbalate@educa.aragon.es"]
[44000246,"Teruel","Colegio de Educación Infantil y Primaria","Alcañiz","EMILIO DÍAZ","Cl. Ronda De Caspe, 1",44600,"978 83 24 21","978 87 08 57","cpedalcaniz@educa.aragon.es"]
[44000261,"Teruel","Centro Privado de Educación Infantil Primaria y Secundaria","Alcañiz","SAN VALERO","Cl. Escolapios, 2",44600,"978 83 11 55","978 83 11 50","sanvalero@escolapiosemaus.org"]
[44000271,"Teruel","Centro Privado de Educación Infantil Primaria y Secundaria","Alcañiz","LA INMACULADA","Cl. Blasco, 1",44600,"978 83 10 87","978 83 12 07","lainmaculadaalcaniz@gmail.com,rafaelperezmurciano@gmail.com"]
[44000325,"Teruel","Colegio de Educación Infantil y Primaria","Alcorisa","EL JUSTICIA DE ARAGÓN","Cl. San Pascual 22",44550,"978 84 02 75","978 84 02 28","cpalcorisa@educa.aragon.es"]
[44000465,"Teruel","Colegio de Educación Infantil y Primaria","Andorra","JUAN RAMÓN ALEGRE","Cl. San Isidro Labrador, 2",44500,"978 84 21 90","978 88 07 45","cpjraandorra@educa.aragon.es"]
[44000799,"Teruel","Colegio de Educación Infantil y Primaria","Calamocha","RICARDO MALLÉN","Avda. De La Constitución, 1",44200,"978 73 02 34","978 730 234","cprmcalamocha@educa.aragon.es"]
[44000829,"Teruel","Colegio de Educación Infantil y Primaria","Calanda","VIRGEN DEL PILAR","Avda. De Teruel S/N",44570,"978 84 61 09",null,"cpvpcalanda@educa.aragon.es"]
[44001159,"Teruel","Colegio de Educación Infantil y Primaria","Cella","ASTRÓNOMO ZARZOSO","Cl. Matadero, S/N",44370,"978 65 35 05","978 65 35 05","ceipazcella@educa.aragon.es"]
[44001378,"Teruel","Colegio de Educación Infantil y Primaria","Escucha","ANTONIO GARGALLO MOYA","Avda. De La Constitución, 3",44770,"978 75 81 27","978 75 81 27","cpagescucha@educa.aragon.es"]
[44001706,"Teruel","Colegio de Educación Infantil y Primaria","Híjar","LUIS TURÓN","Cl. Extramuros, S/N",44530,"978 82 01 04","978 82 01 04","cplthijar@educa.aragon.es"]
[44002061,"Teruel","Colegio de Educación Infantil y Primaria","Mas de las Matas","VALERO SERRANO","Cl. Escuelas, 9",44564,"978 84 80 87","978 84 80 87","cpvsmasmatas@educa.aragon.es"]
[44002152,"Teruel","Colegio de Educación Infantil y Primaria","Monreal del Campo","NTRA. SRA. DEL PILAR","Cl. Alfonso I El Batallador, 1",44300,"978 86 45 30","978 86 45 30","cpspmonreal@educa.aragon.es"]
[44002191,"Teruel","Colegio de Educación Infantil y Primaria","Montalbán","COMARCA CUENCAS MINERAS","Cl. Balmes, 7",44700,"978 75 02 85","978 75 02 85","cpmontalban@educa.aragon.es"]
[44002221,"Teruel","Colegio de Educación Infantil y Primaria","Mora de Rubielos","SAN MIGUEL","Avda. Ibáñez Martín, 13",44400,"978 80 01 92","978 80 01 92","cpsmmora@educa.aragon.es"]
[44002541,"Teruel","Colegio Rural Agrupado","Perales del Alfambra","TERUEL UNO","Cl. Frontón, 6",44163,"978 77 52 82","978 77 52 82","craperalesa@educa.aragon.es"]
[44002942,"Teruel","Colegio de Educación Infantil y Primaria","Sarrión","DE SARRIÓN","Cl. Tenor Juan García, 2",44460,"978 78 01 78","978 78 01 78","cpsarrion@educa.aragon.es"]
[44003028,"Teruel","Centro Público Integrado de Formación Profesional","San Blas","DE SAN BLAS","Bo. San Blas, S/N",44195,"978 61 88 20","978 61 88 21","ifpeteruel@educa.aragon.es"]
[44003041,"Teruel","Centro Privado de Educación Infantil Primaria y Secundaria","Teruel","LA SALLE-SAN JOSÉ","Cl. Tenor Marín, nº 6A",44002,"978 61 71 78","978 61 71 77","colegioteruel@lasallevp.es"]
[44003077,"Teruel","Centro Privado de Educación Infantil Primaria y Secundaria","Teruel","LAS VIÑAS","Cami. De Capuchinos, 1",44003,"978 61 71 15","978 61 71 19","semimen@planalfa.es"]
[44003090,"Teruel","Colegio de Educación Infantil y Primaria","Teruel","PIERRES VEDEL","Cl. Yagüe De Salas, 21",44001,"978 60 32 57","978 60 32 57","cppvteruel@educa.aragon.es"]
[44003107,"Teruel","Colegio de Educación Infantil y Primaria","Teruel","MIGUEL VALLÉS","Rambla De San Julián, 57",44003,"978 60 39 11","978 60 39 11","cpmvteruel@educa.aragon.es"]
[44003120,"Teruel","Colegio de Educación Infantil y Primaria","Teruel","LAS ANEJAS","Ctra. Alcañiz, S/N",44003,"978 60 35 87","978 60 35 87","cplateruel@educa.aragon.es,lasanejas@gmail.com"]
[44003156,"Teruel","Centro Privado de Educación Infantil Primaria y Secundaria","Teruel","VICTORIA DÍEZ","Avda. Ruiz Jarabo, 4",44002,"978 62 01 31","978 62 20 91","victoriadiez@planalfa.es"]
[44003171,"Teruel","Centro Privado de Educación Infantil Primaria y Secundaria","Teruel","LA PURÍSIMA Y SANTOS MÁRTIRES","Pza. Goya, 5",44001,"978 60 11 61","978 60 62 02","lpsm@planalfa.es"]
[44003211,"Teruel","Instituto de Educación Secundaria","Teruel","SANTA EMERENCIANA","CL. Juez Villanueva, 1",44002,"978 62 05 64","978 62 02 38","iessemteruel@educa.aragon.es"]
[44003223,"Teruel","Instituto de Educación Secundaria","Teruel","SEGUNDO DE CHOMÓN","CL. PABLO MONGUIÓ, 48",44003,"978 625112","978 60 00 80","iesschteruel@educa.aragon.es"]
[44003235,"Teruel","Instituto de Educación Secundaria","Teruel","VEGA DEL TURIA","Cl. Victor Pruneda, 1",44001,"978 60 26 44","978 60 26 44","iesvtteruel@educa.aragon.es"]
[44003247,"Teruel","Instituto de Educación Secundaria","Teruel","FRANCÉS DE ARANDA","CL. ATARAZANAS, 1",44003,"978 60 25 42","978 62 08 46","iesfrateruel@educa.aragon.es"]
[44003259,"Teruel","Colegio de Educación Especial","Teruel","ARBOLEDA","Camino de Capuchinos, 6",44003,"978 60 28 20","978 60 19 50","ceealteruel@educa.aragon.es"]
[44003260,"Teruel","Escuela Hogar","Teruel","DE TERUEL","Cl. Leocadio Brun, 5",44003,"978 60 32 33","978 60 32 33","ehteruel@educa.aragon.es"]
[44003272,"Teruel","Colegio de Educación Infantil y Primaria","Teruel","ENSANCHE","Cl. José Torán, 5",44002,"978 60 38 61","978 60 38 61","cpenteruel@educa.aragon.es"]
[44003284,"Teruel","Escuela de Arte","Teruel","ESCUELA DE ARTE DE TERUEL","Pza. De La Catedral, 8",44001,"978 60 26 35","978 60 26 35","earteruel@educa.aragon.es"]
[44003636,"Teruel","Colegio de Educación Infantil y Primaria","Utrillas","VILLA DE UTRILLAS","Cl. Pablo Gargallo, S/N",44760,"978 75 72 26","978 75 72 26","cpvutrillas@educa.aragon.es"]
[44003715,"Teruel","Colegio de Educación Infantil y Primaria","Valderrobres","VICENTE FERRER RAMOS","Avda. Madrid, 2",44580,"978 85 06 55","978 85 06 55","cpvfvalderrobres@educa.aragon.es"]
[44004045,"Teruel","Instituto de Educación Secundaria","Calamocha","VALLE DEL JILOCA","Avda. Zaragoza, 42",44200,"978 73 01 37","978 73 01 13","iescalamocha@educa.aragon.es"]
[44004124,"Teruel","Centro Público de Educación de Personas Adultas","Teruel","ISABEL DE SEGURA","Pza. Santa Teresa, 8",44003,"978 60 78 81","978 61 14 77","cpeateruel@educa.aragon.es"]
[44004148,"Teruel","Colegio de Educación Especial","Andorra","GLORIA FUERTES","CL. FUENTE BAJA, 28",44500,"978 84 26 52","978 84 26 52","ceeandorra@educa.aragon.es"]
[44004173,"Teruel","Conservatorio Profesional de Música","Teruel","DE TERUEL","CL. CIUDAD ESCOLAR - EDIFICIO C.E.E. ARB",44001,"978 60 57 14","978 60 57 14","cpmteruel@educa.aragon.es"]
[44004239,"Teruel","Instituto de Educación Secundaria","Híjar","PEDRO LAÍN ENTRALGO","Cl. Bajada De San Antonio, S/N",44530,"978 82 08 76","978 82 17 88","ieshijar@educa.aragon.es"]
[44004306,"Teruel","Colegio de Educación Infantil y Primaria","Teruel","LA FUENFRESCA","Cl. Los Tilos, 1",44002,"978 60 03 01",978600243,"cplfteruel@educa.aragon.es"]
[44004318,"Teruel","Escuela Oficial de Idiomas","Teruel","DE TERUEL","Juez Villanueva, 1",44002,"978 62 05 57","978 62 05 57","eoiteruel@educa.aragon.es"]
[44004331,"Teruel","Conservatorio Profesional de Música","Alcañiz","JOSÉ PERIS LACASA","CL. Federico García Lorca, 18",44600,"978 83 18 98","978 83 18 98","cpmalcaniz@educa.aragon.es"]
[44004446,"Teruel","Escuela Oficial de Idiomas","Alcañiz","DE ALCAÑIZ","Cl. José Pardo Sastrón, 1",44600,"978 83 29 36","978 87 08 02","eoialcaniz@educa.aragon.es"]
[44004471,"Teruel","Colegio Rural Agrupado","Puigmoreno","REGALLO","Cl. Ronda Miraflores, S/N",44660,"978 83 81 79","978 83 81 79","crapuigmoreno@educa.aragon.es"]
[44004483,"Teruel","Colegio Rural Agrupado","Manzanera","JAVALAMBRE","Cl. Ingeniero Piqueras, 1",44420,"978 78 18 13","978 78 18 13","cramanzanera@educa.aragon.es"]
[44004495,"Teruel","Colegio Rural Agrupado","Tramacastilla","SIERRA DE ALBARRACÍN","Cl. Magdalena, 32",44112,"978 70 69 40","978 70 69 40","cratramacastilla@educa.aragon.es"]
[44004550,"Teruel","Instituto de Educación Secundaria","Utrillas","FERNANDO LÁZARO CARRETER","Cl. Miguel Servet, 3",44760,"978 75 80 50","978 75 67 38","iesutrillas@educa.aragon.es"]
[44004562,"Teruel","Colegio de Educación Infantil y Primaria","Andorra","MANUEL FRANCO ROYO","Avda. Escatrón, 1",44500,"978 84 35 15","978 88 02 06","cpmfrandorra@educa.aragon.es"]
[44004574,"Teruel","Centro Público de Educación de Personas Adultas","Alcañiz","RÍO GUADALOPE","CL. PILAR NARVIÓN, 2",44600,"978 83 14 15","978 87 05 55","cpeaalcaniz@educa.aragon.es"]
[44004598,"Teruel","Instituto de Educación Secundaria","Valderrobres","MATARRAÑA","Avda. Gral. Gutiérrez Mellado, S/N",44580,"978 85 06 47","978 85 06 78","iesvalderrobres@educa.aragon.es"]
[44004604,"Teruel","Escuela Pública de Música y Danza","Andorra","ESCUELA DE MÚSICA Y DANZA DE ANDORRA","CL. ARAGON, 4",44500,"978 84 34 62","978 88 00 94"]
[44004616,"Teruel","Colegio Rural Agrupado","Mosqueruela","MAESTRAZGO GÚDAR","Cl. El Vall, 16",44410,"978 80 52 18","978 82 52 18","cramosqueruela@educa.aragon.es"]
[44004628,"Teruel","Colegio Rural Agrupado","San Blas","TURIA","Cl. La Iglesia, S/N",44195,"978 61 75 57","978 61 75 57","crasanblas@educa.aragon.es"]
[44004653,"Teruel","Instituto de Educación Secundaria","Andorra","PABLO SERRANO","CL. HERMANAS ZAPATA, 8",44500,"978 84 21 62","978 84 42 24","iesandorra@educa.aragon.es"]
[44004665,"Teruel","Instituto de Educación Secundaria","Monreal del Campo","SALVADOR VICTORIA","Cl. María Moliner, 4",44300,"978 86 35 11","978 86 45 35","iesmonreal@educa.aragon.es"]
[44004677,"Teruel","Colegio Rural Agrupado","Aliaga","PABLO ANTONIO CRESPO","Cl. Tras De La Iglesia , S/N",44150,"978 77 14 42","978 77 14 42","craaliaga@educa.aragon.es"]
[44004689,"Teruel","Colegio Rural Agrupado","Caminreal","GOYA","Pza. Escuelas, 3",44350,"978 86 20 15",978862015,"cracaminreal@educa.aragon.es"]
[44004690,"Teruel","Colegio Rural Agrupado","Cantavieja","ALTO MAESTRAZGO","Avda. Maestrazgo, 3",44140,"964 18 51 29","964 18 51 29","cracantavieja@educa.aragon.es"]
[44004707,"Teruel","Colegio Rural Agrupado","Mata de los Olmos (La)","SOMONTANO-BAJO ARAGÓN","Cl. Fondus, S/N",44557,"978 84 93 57","978 84 93 57","cramata@educa.aragon.es"]
[44004719,"Teruel","Colegio Rural Agrupado","Cedrillas","PALMIRA PLÁ","Cl. Basilio Muñoz, 20-29",44147,"978 77 41 62","978 77 41 62","cracedrillas@educa.aragon.es"]
[44004720,"Teruel","Colegio Rural Agrupado","Ariño","ARIÑO-ALLOZA","Cl. Teruel, 10",44547,"978 81 71 33",978817133,"craarino@educa.aragon.es"]
[44004732,"Teruel","Colegio Rural Agrupado","Castellote","OLEA","P.º. De La Mina, 3",44560,"978 88 74 15","978 88 74 15","cracastellote@educa.aragon.es,craaguaviva@educa.aragon.es"]
[44004744,"Teruel","Colegio Rural Agrupado","Fresneda (La)","DE LA FRESNEDA","CL VIRGEN DE GRACIA, 38",44596,"978 85 45 53","978 89 48 57","crafresneda@educa.aragon.es"]
[44004756,"Teruel","Colegio Rural Agrupado","Peñarroya de Tastavins","TASTAVÍNS","Cl. SANTIAGO RAMÓN Y CAJAL, 2",44586,"978 89 67 96","978 89 67 96","crapenarroya@educa.aragon.es"]
[44004768,"Teruel","Colegio Rural Agrupado","Martín del Río","DE MARTÍN DEL RÍO","Cl. Baja, 37",44750,"978 75 00 22","978 75 00 22","cramartinrio@educa.aragon.es"]
[44004771,"Teruel","Colegio Rural Agrupado","Muniesa","DE MUNIESA","Pza. Aragón, 1",44780,"978 81 06 52","978 81 06 52","cramuniesa@educa.aragon.es"]
[44004781,"Teruel","Colegio Rural Agrupado","Rubielos de Mora","PÓRTICO DE ARAGÓN","Cl. Pintor Salvador Victoria, 6",44415,"978 80 44 18","978 804418","craportico@educa.aragon.es"]
[44004793,"Teruel","Colegio Rural Agrupado","Albarracín","DE ALBARRACÍN","Cami. De Gea, S/N",44100,"978 71 00 52",978710052,"craalbarracin@educa.aragon.es"]
[44004801,"Teruel","Colegio Rural Agrupado","Puebla de Híjar (La)","BAJO MARTÍN","Avda. De La Estación, 2",44511,"978 82 63 16","978 82 63 16","crapueblah@educa.aragon.es"]
[44004811,"Teruel","Colegio Rural Agrupado","Castelserás","DEL MEZQUÍN","Cl. Mayor Alta, 69",44630,"978 87 71 31",978877131,"cracastelseras@educa.aragon.es"]
[44004847,"Teruel","Centro Público de Educación de Personas Adultas","Alcorisa","DE ALCORISA","Cl. Fuente Nueva, 24",44550,"978 841117","978 841117","cpeaalcorisa@educa.aragon.es"]
[44004884,"Teruel","Centro Público de Educación de Personas Adultas","Valderrobres","DE VALDERROBRES","La Paz 7, 2º",44580,"978 85 06 47",null,"cpeavalderrobres@educa.aragon.es"]
[44004926,"Teruel","Centro Público de Educación de Personas Adultas","Rubielos de Mora","DE RUBIELOS DE MORA","Cl. El Plano, 13",44415,"978 80 43 09","978 80 43 09","cpearubielos@educa.aragon.es"]
[44004938,"Teruel","Centro Público de Educación de Personas Adultas","Calamocha","DE CALAMOCHA","CL. ENMEDIO, 24; BAJO",44200,"978 73 06 80","978 73 06 80","cpeacalamocha@educa.aragon.es"]
[44004941,"Teruel","Centro Público de Educación de Personas Adultas","Caminreal","DE CAMINREAL","Plaza de las escuelas, nº 3",44350,"978 862792","978 862792","cpeacaminreal@educa.aragon.es"]
[44004951,"Teruel","Centro Público de Educación de Personas Adultas","Cella","DE CELLA","Cl. Sánchez Motos, 64",44370,"978 65 03 67","978 65 03 67","cpeacella@educa.aragon.es"]
[44004963,"Teruel","Aula de Educación de Adultos","Monreal del Campo","DE MONREAL DEL CAMPO","Cl. Gonzalo De Liria, 2 (1ª Planta)",44300,"978 86 45 15","978 86 36 58"]
[44005001,"Teruel","Centro Público de Educación de Personas Adultas","Montalbán","CUENCA MINERA","CL. MANUELA CIRUGEDA, EDIFICO ÍTACA",44700,"978 75 05 31","978 75 40 26","cpeamontalban@educa.aragon.es"]
[44005050,"Teruel","Escuela Pública de Música","Alcañiz","VIRGEN DE LOS PUEYOS","CL. MAYOR 43",44600,"978 83 49 67","978 83 12 39","ssaenz@ayto_alcaniz.es"]
[44005062,"Teruel","Colegio Rural Agrupado","Calaceite","MATARRANYA","Avda. De Aragón, 2-4",44610,"978 85 13 39","978 85 13 39","cracalaceit@educa.aragon.es"]
[44005074,"Teruel","Colegio Rural Agrupado","Santa Eulalia","CUNA DEL JILOCA","Cl. España, 10",44360,"978 86 07 79","978 86 07 79","crastaeulalia@educa.aragon.es"]
[44005098,"Teruel","Instituto de Educación Secundaria","Alcorisa","DAMIÁN FORMENT","CL. MIGUEL DE CERVANTES, 1",44550,"978 84 07 34","978 84 07 34","iesalcorisate@educa.aragon.es"]
[44005104,"Teruel","Instituto de Educación Secundaria","Calanda","VALLE DEL GUADALOPE","P.º Alcañiz, 27",44570,"978 84 60 02","978 88 61 19","iescalanda@educa.aragon.es"]
[44005116,"Teruel","Instituto de Educación Secundaria","Mora de Rubielos","GÚDAR-JAVALAMBRE","Avda. Ibáñez Martín, S/N",44400,"978 80 04 09","978 80 04 09","iesmora@educa.aragon.es"]
[44005128,"Teruel","Instituto de Educación Secundaria","Cella","SIERRA PALOMERA","Cl. Partida El Carro, S/N",44370,"978 65 33 12","978 65 35 42","iescella@educa.aragon.es"]
[44005131,"Teruel","Colegio Rural Agrupado","Cretas","ALGARS","Cl. Jardín De La Corona De Aragón, S/N",44623,"978 89 04 73","978 89 04 73","cracretas@educa.aragon.es"]
[44005141,"Teruel","Escuela Pública de Música","Calanda","ESCUELA DE MÚSICA","CL. CAPUCHINOS, 2",44570,"661 70 12 64","978 88 61 41","ayuntamiento@calanda.es"]
[44005153,"Teruel","Colegio Rural Agrupado","Bello","CAMPO BELLO","CL. EL PERILLAN, S/N",44232,"978 73 41 59","978 73 41 59","crabello@educa.aragon.es"]
[44005165,"Teruel","Colegio Rural Agrupado","Poyo del Cid (El)","EL POYO DEL CID","Cl. San Miguel, 26",44392,"978 73 15 04",978731504,"crapoyocid@educa.aragon.es"]
[44005177,"Teruel","Instituto de Educación Secundaria","Alcañiz","BAJO ARAGÓN","Cl. José Pardo Sastrón, S/N",44600,"978 83 10 63","978 87 05 40","iesalcaniz@educa.aragon.es"]
[44005190,"Teruel","Sección de Instituto de Educación Secundaria","Cantavieja","SEGUNDO DE CHOMÓN","Avda. Maestrazgo, 5",44140,"964 18 51 10","964 18 54 05","iescantavieja@educa.aragon.es"]
[44005207,"Teruel","Instituto de Educación Secundaria","Albarracín","LOBETANO","CAMI. DE GEA, 19",44100,978710215,978710215,"iesalbarracin@educa.aragon.es"]
[44005219,"Teruel","Escuela Pública de Música y Danza","Monreal del Campo","ESCUELA DE MÚSICA Y DANZA","Cl. Gonzalo De Liria, 2 - 2ª Plta.",44300,"978 86 33 73","978 86 33 73"]
[44005220,"Teruel","Centro Público de Educación de Personas Adultas","Andorra","DE ANDORRA","CL. ESCUELAS, 10",44500,"978 88 04 54","978 88 00 95","cpeaandorra@educa.aragon.es"]
[44010008,"Teruel","Escuela Pública de Música","Alcorisa","ESCUELA DE MÚSICA","CL. FUENTE NUEVA, 15",44550,"978 84 07 05","978 84 06 17"]
[44010011,"Teruel","Instituto de Formación Profesional Específica","Teruel","ESCUELA DE HOSTELERÍA DE TERUEL","Cl. Mariano Muñoz Nogués, 11-13",44001,"978 60 01 35","978 60 01 14","esuhosteruel@educa.aragon.es"]
[44010021,"Teruel","Extensión de Escuela Oficial de Idiomas","Monreal del Campo","DE TERUEL","Cl. Gonzalo De Liria, 2",44300,"978 62 05 57","978 62 05 57","eoiteruel@educa.aragon.es,eoimonreal@educa.aragon.es"]
[44010033,"Teruel","Extensión de Escuela Oficial de Idiomas","Utrillas","DE ALCAÑIZ","Cl. Miguel Servet, 4",44760,"978 75 80 50","978 75 67 38","eoiteruel@educa.aragon.es,eoiutrillas@educa.aragon.es"]
[44010045,"Teruel","Extensión de Escuela Oficial de Idiomas","Calamocha","DE TERUEL","Avda. Zaragoza, 42",44200,"978 73 01 37","978 73 01 13","eoiteruel@educa.aragon.es,eoicalamocha@educa.aragon.es"]
[44010069,"Teruel","Escuela de Educación Infantil","Andorra","LA MALENA","Cl. Subida A La Virgen, S/N",44500,"978 84 22 14","978 84 22 14","escuelamalena@terra.es"]
[44010070,"Teruel","Extensión de Escuela Superior de Diseño","Teruel","DE TERUEL","Pza. De La Catedral, 8",44001,"978 60 26 35","978 60 26 35","eayoteruel@educa.aragob.es"]
[44010082,"Teruel","Centro Privado de Educación Infantil","Alcañiz","VEO-VEO","Cl. Ronda De Caspe, 3",44600,"978 83 11 06"]
[44010094,"Teruel","Centro Privado de Educación Infantil","Teruel","DUMBO","CL. SAN DAMIÁN, 5",44003,"978 61 04 83"]
[44010100,"Teruel","Colegio de Educación Infantil y Primaria","Alcañiz","JUAN SOBRARIAS","CL. Morella s/n",44600,"978 83 40 35","978 83 40 35","cpjsalcaniz@educa.aragon.es"]
[44010112,"Teruel","Escuela de Educación Infantil","Alcorisa","DE ALCORISA","CL. FUENTE NUEVA, 15",44550,"978 84 07 05","978 84 06 17","secretarioayto@alcorisa.org"]
[44010124,"Teruel","Escuela de Educación Infantil","Valdealgorfa","LOS MONCHONES","CL. DIEGO RAMELLORE, 20",44594,"978 85 70 00","978 85 70 00","ayuntamiento@valdealgorfa.com"]
[44010136,"Teruel","Escuela de Educación Infantil","Calanda","DE CALANDA","CL. CAPUCHINOS, 2",44570,"978 88 61 54","978 88 60 61","aytocalanda@educa.aragon.es"]
[44010148,"Teruel","Escuela de Educación Infantil","Castelserás","SANTA BÁRBARA","CL. LA PARADA, S/N",44630,"978 87 73 40","978 87 71 01","a.castelseras@mezquin.com"]
[44010151,"Teruel","Escuela Pública de Música","Valderrobres","DE VALDERROBRES","CL. BELCHITE, 18",44580,"636 086 444"]
[44010161,"Teruel","Centro Privado de Educación Infantil","Alcañiz","SOLETES","PZA. PAOLA BLASCO, 14",44600,"978 834 909",null,"ceisoletes@hotmail.com"]
[44010173,"Teruel","Escuela de Educación Infantil","Ojos Negros","DE OJOS NEGROS","TRAVESÍA DE LA PLAZA, 11",44313,"978 86 52 57","978 86 52 86","aytoojosnegros@educa.aragon.es"]
[44010185,"Teruel","Escuela de Educación Infantil","Mazaleón","SAGALETS (AULA DE MAZALEÓN)","CL. REHUERTA, 2",44621,"978 89 86 92","978 89 87 08","madelriosanz@mazaleon.es"]
[44010197,"Teruel","Escuela de Educación Infantil","Cedrillas","EL PARQUE","CL. Basiliso Muñoz, S/N",44147,"978 77 40 01","978 77 40 01","ayuncedrillas@terra.es"]
[44010203,"Teruel","Colegio de Educación Infantil y Primaria","Alcañiz","JUAN LORENZO PALMIRENO","Avda. Aragón, 28",44600,978831338,"978 83 13 38","cppalmireno@educa.aragon.es"]
[44010215,"Teruel","Escuela Pública de Música","Teruel","CIUDAD DE TERUEL","Ctra. de Alcañiz, S/N (Edificio antiguo matadero)",44003,"978 60 86 87","978 60 86 87","escuela@bandamusicateruel.com"]
[44010227,"Teruel","Escuela de Educación Infantil","Fresneda (La)","SAGALETS (AULA DE LA FRESNEDA)","CL. DEL PILAR, 21",44596,"646 18 12 89","978 85 41 69","lafresnedaweb@terra.es"]
[44010240,"Teruel","Escuela de Educación Infantil","Codoñera (La)","LA CODOÑERA","AVDA. Isidoro Celma nº 6",44640,"978 85 23 07","978 85 20 00","aytolacodonnera@educa.aragon.es"]
[44010252,"Teruel","Escuela de Educación Infantil","Montalbán","DE MONTALBÁN","CL. BALMES, Nº 7",44700,"978 75 00 01","978 75 00 77","ayuntamiento@montalban.org"]
[44010264,"Teruel","Escuela de Educación Infantil","Torrecilla de Alcañiz","DE TORRECILLA DE ALCAÑIZ","CL. CARRETERA Nº 4",44640,"978 85 21 27","978 85 21 27","ayto-torrecilla@mezquin.com"]
[44010276,"Teruel","Escuela de Educación Infantil","Alcañiz","LA SELVETA","CL. CONCEPCIÓN GIMENO GIL, Nº 7, PLANTA BAJA",44600,"978 83 00 83","978 83 00 83"]
[44010288,"Teruel","Escuela Pública de Música","Escucha","SALVADOR SALVADOR NAVARRO","CL. SAN BARTOLOMÉ, 11",44770,"978 757 925"]
[44010291,"Teruel","Escuela de Educación Infantil","Utrillas","DE UTRILLAS","CL. CONSTITUCIÓN, S/N",44760,"978 75 70 01","978 75 82 22","ayuntamiento@utrillas.org"]
[44010306,"Teruel","Escuela de Educación Infantil","Monreal del Campo","RICARDA GONZALO DE LIRIA","CL. MARÍA MOLINER Nº 1",44300,"978 86 30 08","978 86 37 90","ayuntamiento@monrealdelcampo.com"]
[44010318,"Teruel","Centro Privado de Educación Infantil","Teruel","MAFALDA-LAS VIÑAS","CAMINO CAPUCHINOS, 1",44003,"978 601 327",null,"ceimafalda@colegiolasviñas.com"]
[44010321,"Teruel","Escuela de Educación Infantil","Híjar","EL CASTILLO","PLAZA DEL CASTILLO, Nº 6",44530,"978 82 05 08","978 82 00 37","hijar@hijar.com"]
[44010331,"Teruel","Escuela de Educación Infantil","Albalate del Arzobispo","DE ALBALATE DEL ARZOBISPO","CL. EL PALOMAR, S/N",44540,"978 81 39 80","978 81 31 16","ayuntamiento@albalatedelarzobispo.com"]
[44010343,"Teruel","Escuela de Educación Infantil","Albarracín","DE ALBARRACÍN","CAMI. DE GEA, S/N",44100,978700392,978710023]
[44010367,"Teruel","Escuela de Educación Infantil","Foz-Calanda","LA REPLACETA","PZA. DE LA IGLESIA, S/N",44579,978846951]
[44010379,"Teruel","Escuela de Educación Infantil","Mosqueruela","SANTA ENGRACIA","CL. SANTA ENGRACIA, 5",44410,"978 80 70 07","978 80 70 08"]
[44010380,"Teruel","Escuela de Educación Infantil","San Blas","DE TERUEL (SAN BLAS)","CL. LA IGLESIA, S/N",44195,978221839]
[44010392,"Teruel","Escuela de Educación Infantil","Cantavieja","DE CANTAVIEJA","AVDA. MAESTRAZGO, 3",44140,"964 18 50 01","964 18 50 01","ayuntamiento@cantavieja.es"]
[44010409,"Teruel","Escuela de Educación Infantil","Sarrión","DE SARRIÓN","C/ Tenor Juan García, 2",44460,"606 35 72 31","978 78 00 84","ayuntamiento@sarrion.es"]
[44010410,"Teruel","Escuela de Educación Infantil","Villarquemado","DE VILLARQUEMADO","CL. LARGA, 55-A",44380,"978 86 73 14","978 86 73 30","ayuntamiento@villarquemado.es"]
[44010422,"Teruel","Escuela de Educación Infantil","Puebla de Híjar (La)","DE LA PUEBLA DE HÍJAR","AVDA. ESTACIÓN, 2",44510,"978 82 67 38","978 82 66 53","aytopuebladehijar@educa.aragon.es"]
[44010434,"Teruel","Escuela de Educación Infantil","Calamocha","PRIMEROS PASOS","AVDA. CONSTITUCIÓN, 13",44200,"978 73 08 25","978 73 05 17","scd@infonegocio.com"]
[44010458,"Teruel","Escuela de Educación Infantil","Calaceite","DE CALACEITE","AVDA. ARAGÓN, 2-4",44610,"680 426 552","978 85 15 46","aytocalaceite@educa.aragon.es"]
[44010461,"Teruel","Escuela de Educación Infantil","Fortanete","DE FORTANETE","CL. SAN ANTONIO, 3",44143,"978 77 82 25","978 77 83 20","ayuntamiento@fortanete.net"]
[44010471,"Teruel","Escuela de Educación Infantil","Rubielos de Mora","DE RUBIELOS DE MORA","CL. ESTERRADOR, 1",44415,"978 80 41 44",null,"secretaria@aytorubielosdemora.com"]
[44010483,"Teruel","Escuela de Educación Infantil","Teruel","DE TERUEL (BARRIO ARRABAL)","PZA. PIRINEOS, S/N",44071,978619900]
[44010495,"Teruel","Escuela de Educación Infantil","Valderrobres","DE VALDERROBRES","CL. LOPE DE VEGA, 56",44580,"978 89 03 09","978 89 03 08","eeivalderrobres@hotmail.com"]
[44010513,"Teruel","Escuela de Educación Infantil","Santa Eulalia","DE SANTA EULALIA","CL. ESPAÑA, S/N",44360,"978 86 00 00","978 86 00 00","leonor@santaeulaliadelcampo.com"]
[44010525,"Teruel","Escuela de Educación Infantil","Villaspesa","DE TERUEL (VILLAESPESA)","El Paso 1",44190,978609120]
[44010537,"Teruel","Centro Público Integrado de Formación Profesional","Alcañiz","BAJO ARAGÓN","CL. José Pardo Sastrón, 1",null,"978 831063",null,"cpifpbajoaragon@educa.aragon.es"]
[44010549,"Teruel","Escuela de Educación Infantil","Urrea de Gaén","SEÑORA PABLA","AVDA. DE ÁNGEL GARGALLO, 16",44593,978821004,978821004,"ayuntamiento@urreadegaen.com"]
[44010550,"Teruel","Escuela de Educación Infantil","Mata de los Olmos (La)","DE LA MATA DE LOS OLMOS","CL. BAJA, 52",44557,978849154,978849154]
[44010562,"Teruel","Escuela de Educación Infantil","Aguaviva","DE AGUAVIVA","AVDA. PARRAS DE CASTELLOTE, 18",44560,978848234,978849906,"ayunagua@arrakis.es"]
[44010574,"Teruel","Escuela de Educación Infantil","Bronchales","DE BRONCHALES","CL. CARRETERA, 17-B",44367,608419386,978701085]
[44010598,"Teruel","Escuela de Educación Infantil","Monroyo","SAGALETS (AULA DE MONROYO)","CL.MURO, 5",44652,"978 856 001"]
[44010604,"Teruel","Escuela Pública de Música","Calaceite","DE CALACEITE","AVDA. DE ARAGÓN, 2-4; 1º",44610,978851209,978851546,"aytocalaceite@educa.aragon.es"]
[44010616,"Teruel","Escuela de Educación Infantil","Cretas","SAGALETS (AULA DE CRETAS)","CL. Ermita, 7",44623,"978 85 03 00"]
[44010628,"Teruel","Escuela de Educación Infantil","Mas de las Matas","DE MAS DE LAS MATAS","CL. Las Escuelas, S/N",44564,"619 634 069"]
[44010631,"Teruel","Escuela de Educación Infantil","Villastar","PEQUEÑALBA","CL. Camino Real S/N",44130,"978 680 100"]
[44010641,"Teruel","Escuela de Educación Infantil","Cella","SARGANTESA","CL. Aguaperdida, S/N",44370,978650002,978653204,"registro@cella.es"]
[44010653,"Teruel","Centro Privado de Educación Infantil","Teruel","SNOOPY","CL. TENOR MARÍN, 6-A",44002,978612180]
[44010665,"Teruel","Escuela de Educación Infantil","Beceite","SAGALETS (AULA DE BECEITE)","CL. La Pesquera, 3",44588,978850225]
[44010677,"Teruel","Residencia de Secundaria","Teruel","DE SANTA EMERENCIANA","Cl. Juez Villanueva, 1",44002,"978 62 05 33",null,"resseteruel@educa.aragon.es"]
[44010689,"Teruel","Centro Privado de Educación Infantil","Teruel","GAG CU CU-TRAS TRAS","Camino Castralvo 34, Bajo",44002,"978 227 224",null,"info@cucutrastrasteruel.es"]
[44010690,"Teruel","Escuela de Educación Infantil","Portellada (La)","SAGALETS (AULA DE PORTELLADA)","Cl. Las Escuelas, número 6",44589]
[44010719,"Teruel","Colegio Rural Agrupado","Orihuela del Tremedal","BRONCHALES-ORIHUELA","C/ Subida al Tremedal, 10",44366,978714352,978714352,"craorihuela@educa.aragon.es"]
[44600021,"Teruel","Guardería del Gobierno de Aragón","Alcañiz","SANTO ÁNGEL CUSTODIO","Avda. Aragón, s/n",44600,"978 87 09 60","978 87 09 60","gisantoangel@educa.aragon.es"]
[44700013,"Teruel","Centro de Profesores y Recursos","Alcañiz","DE ALCAÑIZ","CL. José Pardo Sastrón, 1 A",44600,"978 83 28 03",null,"cpralcaniz@educa.aragon.es"]
[44700025,"Teruel","Centros de Innovación y Formación Educativa","Teruel","ANGEL SANZ BRIZ","CL. Ciudad Escolar, s/n",44003,"978 61 84 60","978 61 70 88","cifeteruel@educa.aragon.es"]
[44700049,"Teruel","Equipo de Orientación Educativa de Infantil y Primaria","Alcañiz","DE ALCAÑIZ","CL. JOSÉ PARDO SASTRÓN, 1",44600,"978 83 28 81","978 83 28 81","eoepalcaniz@educa.aragon.es"]
[44700050,"Teruel","Equipo de Orientación Educativa de Infantil y Primaria","Cantavieja","DE CANTAVIEJA","AVDA. MAESTRAZGO, 5",null,"964 185 208",null,"eoep@educa.aragon.es"]
[44700062,"Teruel","Equipo de Orientación Educativa de Infantil y Primaria","Teruel","DE TERUEL","Cl. Miguel Servet, 2 Bajo",44002,978602693,null,"eoepteruel@educa.aragon.es"]
[44700074,"Teruel","Equipo de Orientación Educativa de Infantil y Primaria","Utrillas","DE UTRILLAS","Avda. Sres. Balsega, S/N",44760,"978 75 83 55","978 75 83 55","eoeputrillas@educa.aragon.es"]
[44700086,"Teruel","Equipo de Orientación Educativa de Infantil y Primaria","Andorra","DE ANDORRA","Cl. San Isidro Labrador, 2",44500,"978 84 34 78","978 84 34 78","eoepandorra@educa.aragon.es"]
[44700098,"Teruel","Equipo de Orientación Educativa de Infantil y Primaria","Calamocha","DE CALAMOCHA","Cl. Melchor de Luzón, 6 - 2ª Planta",44200,978730597,null,"eoepcalamocha@educa.aragon.es"]
[44700131,"Teruel","Centro Rural de Innovación Educativa","Alcorisa","ALCORISA","Pza. del Seminario, 1",44550,"978 84 05 03",null,"crietalcorisa@educa.aragon.es"]
[44700141,"Teruel","Centro Rural de Innovación Educativa","Albarracín","ALBARRACIN","Cami. De Gea, S/N",44100,"978 71 01 53","978 71 01 53","crietalbarracin@educa.aragon.es"]
[44700153,"Teruel","Centro Rural de Innovación Educativa","Calamocha","CALAMOCHA","Avda. de Aragón, 35",44200,"978 73 23 08","978 73 05 01","crietcalamocha@educa.aragon.es"]
[44700165,"Teruel","Centros de Innovación y Formación Educativa","Alcorisa","CENTRO ARAGONÉS DE TECNOLOGÍAS PARA LA EDUCACIÓN (CATEDU)","CL. Miguel de Cervantes, s/n",44550,"978 84 10 86","978 84 10 86","catedu@educa.aragon.es"]
[44701017,"Teruel","Centros de Innovación y Formación Educativa","Alcorisa","DE ALCORISA","Cl. Cervantes, 1",44550,978840357,null,"cifealcorisa@educa.aragon.es"]
[50000126,"Zaragoza","Colegio de Educación Infantil y Primaria","Alagón","ARAGÓN","Avda. De La Jarea, S/N",50630,976611354,976611354,"cpalagon@educa.aragon.es"]
[50000151,"Zaragoza","Centro Privado de Educación Infantil Primaria y Secundaria","Alagón","NTRA. SRA DEL CASTILLO","Avda. De La Portalada, 39",50630,"976 61 02 90","976 61 31 60","nscastillo@nscastillo.com"]
[50000163,"Zaragoza","Instituto de Educación Secundaria","Alagón","CONDE ARANDA","AVDA. DE LA PORTALADA, 22",50630,"976 61 60 80","976 61 60 80","iesalagon@educa.aragon.es"]
[50000291,"Zaragoza","Colegio de Educación Infantil y Primaria","Alfajarín","BRIANDA DE LUNA","Cl. La Portaza, 50",50172,"976 10 01 35",976100135,"cpalfajarin@educa.aragon.es"]
[50000369,"Zaragoza","Colegio de Educación Infantil y Primaria","Almonacid de la Sierra","ARZOBISPO DOMÉNECH","Cl. San Nicolás De Tolentino, 2",50108,"976 62 70 02",979627002,"cpalmonacids@educa.aragon.es"]
[50000370,"Zaragoza","Colegio de Educación Infantil y Primaria","Almunia de Doña Godina (La)","NERTÓBRIGA","C/ Carra La Hilera, s/n",50100,"976 81 21 99","976 81 18 84","cpalmunia@educa.aragon.es"]
[50000412,"Zaragoza","Centro Privado de Educación Secundaria","Almunia de Doña Godina (La)","SALESIANOS LAVIAGA-CASTILLO","Cl. María Auxiliadora, 12",50100,"976 81 24 20","976 81 22 59","secretaria.laalmunia@salesianos.edu"]
[50000436,"Zaragoza","Colegio de Educación Infantil y Primaria","Alpartir","RAMÓN Y CAJAL","CL. CAMINO DE ALMONACID S/N",50109,"976 81 30 01",null,"cpalpartir@educa.aragon.es,cpalpartir@gmail.com"]
[50000618,"Zaragoza","Colegio de Educación Infantil y Primaria","Ateca","VIRGEN DE LA PEANA","PZA. DEL MESÓN, 8",50200,"976 84 20 69",976842069,"cpvpateca@educa.aragon.es"]
[50000722,"Zaragoza","Colegio de Educación Infantil y Primaria","Belchite","BELIA","Cl. El Ferial, 6",50130,"976 83 03 16",976830316,"cpbelchite@educa.aragon.es"]
[50000734,"Zaragoza","Centro Privado de Educación Infantil","Belchite","SAN RAFAEL","Cl. San Ramón, 21",50130,"976 83 00 59"]
[50000850,"Zaragoza","Colegio de Educación Infantil y Primaria","Borja","CAMPO DE BORJA","Cl. Ramón Y Cajal, 2",50540,"976 86 72 17","976 86 96 60","cpcbborja@educa.aragon.es"]
[50000862,"Zaragoza","Centro Privado de Educación Infantil Primaria y Secundaria","Borja","SANTA ANA","Cl. Amad, 22",50540,"976 86 71 40","976 85 24 08","direccion@colegiosantaanaborja.com,santanaborja@telefonica.net"]
[50000874,"Zaragoza","Instituto de Educación Secundaria","Borja","JUAN DE LANUZA","Cl. Capuchinos, 1",50540,"976 86 73 68","976 85 26 27","iesborja@educa.aragon.es"]
[50000904,"Zaragoza","Colegio de Educación Infantil y Primaria","Brea de Aragón","DIPUTACIÓN PROVINCIAL","CL. CAYO VELA, 7",50246,"976 82 43 33","976 82 43 33","cpbrea@educa.aragon.es"]
[50001064,"Zaragoza","Colegio de Educación Infantil y Primaria","Calatayud","BALTASAR GRACIÁN","Ctra. De Valencia, S/N",50300,"976 88 16 52","976 88 16 52","cpbgcalatayud@educa.aragon.es"]
[50001076,"Zaragoza","Colegio de Educación Infantil y Primaria","Calatayud","FRANCISCO DE GOYA","Cl. Santander-Mediterráneo, S/N",50300,"976 88 26 96","976 54 65 29","cpfgcalatayud@educa.aragon.es"]
[50001088,"Zaragoza","Colegio de Educación Infantil y Primaria","Calatayud","SALVADOR MINGUIJÓN","Cl. Puerta De Soria, 35",50300,"976 88 16 71","976 88 16 71","cpsmcalatayud@educa.aragon.es"]
[50001121,"Zaragoza","Centro Privado de Educación Infantil Primaria y Secundaria","Calatayud","SANTA ANA","Cl. Madre Rafols, 2",50300,"976 88 20 22","976 88 19 13","secretaria@santanacalatayud.com"]
[50001167,"Zaragoza","Instituto de Educación Secundaria","Calatayud","LEONARDO DE CHABACIER","P.º San Nicolás De Francia, 10",50300,"976 88 10 15","976 88 62 40","ieslchcalatayud@educa.aragon.es"]
[50001179,"Zaragoza","Instituto de Educación Secundaria","Calatayud","EMILIO JIMENO","Cl. Río Perejiles, 2",50300,"976 881 009","976 884 593","iesejcalatayud@educa.aragon.es"]
[50001180,"Zaragoza","Centro Docente de Formación Militar","Calatayud","ACADEMIA DE LOGÍSTICA DEL EJÉRCITO DE TIERRA","AVDA. DE LAS FUERZAS ARMADAS, S/N",50300,"876 633000","876 633013"]
[50001222,"Zaragoza","Colegio de Educación Infantil y Primaria","Calatorao","DOMINGO JIMÉNEZ BELTRÁN","Paseo Bruno Solano, 2",50280,"976 60 73 67","976 60 73 67","cpdjbcalatorao@educa.aragon.es"]
[50001301,"Zaragoza","Colegio de Educación Infantil y Primaria","Cariñena","SANTO CRISTO DE SANTIAGO","CL. SAINT PIERRE D' OLÈRON, 12",50400,"976 62 08 96","976 62 08 96","cpcarinena@educa.aragon.es"]
[50001349,"Zaragoza","Instituto de Educación Secundaria","Cariñena","JOAQUÍN COSTA","Avda. Del Ejército, S/N",50400,"976 62 01 20","976 62 01 15","iescarinena@educa.aragon.es"]
[50001350,"Zaragoza","Colegio de Educación Infantil y Primaria","Caspe","COMPROMISO DE CASPE","Pza. Compromiso, 12",50700,"976 63 05 69","976 63 05 69","cpcccaspe@educa.aragon.es"]
[50001362,"Zaragoza","Centro Privado de Educación Infantil Primaria y Secundaria","Caspe","SANTA ANA","Cl. Coso, 18",50700,"976 63 03 96","976 63 18 92","colegio@santaanacaspe.com,santaanacaspe@planalfa.es"]
[50001672,"Zaragoza","Colegio de Educación Infantil y Primaria","Chiprana","LUCIO FABIO SEVERO","Cl. Lucio Fabio Severo, S/N",50792,"976 63 72 50",null,"cpchiprana@educa.aragon.es"]
[50001702,"Zaragoza","Colegio de Educación Infantil y Primaria","Daroca","PEDRO SÁNCHEZ CIRUELO","Calle Barranco de Luzbel s/n",50360,"976 80 08 79","976 80 08 79","cpscdaroca@educa.aragon.es"]
[50001738,"Zaragoza","Escuela Hogar","Daroca","PUERTA DE ZARAGOZA","Cl. Mayor, 2",50360,"976 80 02 33",null,"ehdaroca@educa.aragon.es"]
[50001763,"Zaragoza","Colegio de Educación Infantil y Primaria","Ejea de los Caballeros","CERVANTES","Paseo de la Constitución 38",50600,"976 66 15 11","976 66 15 11","cpcervantesejea@educa.aragon.es"]
[50001775,"Zaragoza","Colegio de Educación Infantil y Primaria","Ejea de los Caballeros","FERRER Y RACAJ","Cl. Alegría, S/N",50600,"976 66 27 66","976 66 27 66","cpfrejea@educa.aragon.es"]
[50001799,"Zaragoza","Centro Privado de Educación Infantil Primaria y Secundaria","Ejea de los Caballeros","NTRA. SRA. DE LAS MERCEDES","Pº. Justicia Mayor De Aragón, 49",50600,"976 66 36 36","976 66 36 36","mercedariasejea@colegiosaragon.org"]
[50001829,"Zaragoza","Centro Privado de Formación Profesional Específica","Ejea de los Caballeros","E.F.A. BOALARES","Carretera A-127, km 37",50600,"976 66 14 56","976 66 14 56","boalares@efasdearagon.es"]
[50001830,"Zaragoza","Instituto de Educación Secundaria","Ejea de los Caballeros","REYES CATÓLICOS","CL. MARIANO ALASTUEY, 26",50600,"976 66 06 45","976 66 40 30","iesrcejea@educa.aragon.es"]
[50002007,"Zaragoza","Colegio de Educación Infantil y Primaria","Épila","GASPAR REMIRO","Cl. Ronda Diputación, S/N",50290,"976 60 39 90","976 60 39 90","cpepila@educa.aragon.es"]
[50002032,"Zaragoza","Colegio de Educación Infantil y Primaria","Escatrón","SAN JAVIER","Cl. Plano De San Javier, S/N",50790,"976 17 00 95",null,"cpsjescatron@educa.aragon.es"]
[50002123,"Zaragoza","Colegio de Educación Infantil y Primaria","Fayón","NTRA. SRA. DEL PILAR","Cl. Heno, S/N",50795,"976 63 56 92","976 63 56 92","cpfayon@educa.aragon.es"]
[50002275,"Zaragoza","Colegio de Educación Infantil y Primaria","Fuentes de Ebro","LUIS GARCÍA SÁINZ","Cl. Agustina De Aragón, 1",50740,"976 16 01 01",null,"cpgsfuentes@educa.aragon.es"]
[50002329,"Zaragoza","Colegio de Educación Infantil y Primaria","Gallur","MARÍA DOMÍNGUEZ","Cl. Miguel Servet, S/N",50650,"976 86 48 45",976864845,"cpgallur@educa.aragon.es"]
[50002433,"Zaragoza","Colegio de Educación Infantil y Primaria","Herrera de los Navarros","SAN JORGE","Cl. Revés, 43",50150,"976 14 31 06","976 14 31 06","cpherrera@educa.aragon.es"]
[50002457,"Zaragoza","Colegio de Educación Infantil y Primaria","Illueca","BENEDICTO XIII","Avda. San Babil, S/N",50250,"976 82 02 27","976 820227","cpbxillueca@educa.aragon.es"]
[50002512,"Zaragoza","Colegio de Educación Infantil y Primaria","Joyosa (La)","RAMÓN Y CAJAL","Pza. De España, 1",50692,"976 65 11 55","976 65 11 55","cplajoyosa@educa.aragon.es"]
[50002810,"Zaragoza","Colegio de Educación Infantil y Primaria","Maella","VIRGEN DEL PORTAL","CL. ZARAGOZA, 38",50710,"976 63 80 65",976638065,"cpmaella@educa.aragon.es"]
[50002937,"Zaragoza","Colegio de Educación Infantil y Primaria","Mallén","MANLIA","Cl. Miraflores, S/N",50550,"976 85 03 94","976 850 400","cpcmmallen@educa.aragon.es"]
[50003048,"Zaragoza","Colegio de Educación Infantil y Primaria","Mequinenza","MARÍA QUINTANA","Ctra. De Fraga, S/N",50170,"974 46 42 70","974 46 42 70","cpmequinenza@educa.aragon.es"]
[50003206,"Zaragoza","Colegio de Educación Infantil y Primaria","Morata de Jalón","LUCAS ARRIBAS","Cami. Baldío, S/N",50260,"976 60 52 93","976 60 52 93","cpmorataja@educa.aragon.es"]
[50003504,"Zaragoza","Colegio de Educación Infantil y Primaria","Novillas","SAN NICASIO","Camino de Mallén, 40",50530,"976 86 11 97",null,"cpnovillas@educa.aragon.es"]
[50003711,"Zaragoza","Colegio de Educación Infantil y Primaria","Pastriz","LA PORTALADA","CNO. ACCESO DESDE FINAL AVDA. SANTA ANA",50195,"976 58 30 49",null,"cppastriz@educa.aragon.es"]
[50003735,"Zaragoza","Colegio de Educación Infantil y Primaria","Pedrola","CERVANTES","Cl. Progreso, 6",50690,"976 61 52 81","976 61 52 81","cppedrola@educa.aragon.es"]
[50003838,"Zaragoza","Centro Privado de Educación Infantil Primaria y Secundaria","Pina de Ebro","SANTA MARÍA DE LA ESPERANZA","Cl. Rosales, 2",50750,"976 16 50 47","976 16 54 81","smesperanzape@planalfa.es"]
[50003851,"Zaragoza","Colegio de Educación Infantil y Primaria","Pinseque","MIGUEL ARTIGAS","P.º De Los Estudiantes, S/N",50298,"976 61 73 73","976 61 73 73","cppinseque@educa.aragon.es"]
[50003863,"Zaragoza","Centro Privado de Formación Profesional Específica","Pinseque","E.F.A. LA NORIA","CL. PUENTE JUBO, S/N",50298,"976 61 71 55","976 61 71 55","lanoria@efasdearagon.org"]
[50003981,"Zaragoza","Colegio de Educación Infantil y Primaria","Pradilla de Ebro","JOAQUÍN COSTA","Cl. Joaquín Costa, 73",50668,"976 86 02 16",null,"cppradilla@educa.aragon.es"]
[50004004,"Zaragoza","Colegio de Educación Infantil y Primaria","Puebla de Alfindén (La)","LOS ALBARES","ROSALÍA DE CASTRO, 2",50171,"976 45 55 86","976 10 77 67","cpalfinden@educa.aragon.es,jefatura@ceiplosalbares.com"]
[50004031,"Zaragoza","Colegio de Educación Infantil y Primaria","Quinto","FERNANDO EL CATÓLICO","Cl. Don Quintín Debón, 1",50770,"976 17 73 02","976 17 73 02","cpquinto@educa.aragon.es"]
[50004053,"Zaragoza","Colegio de Educación Infantil y Primaria","Remolinos","ALFREDO MUIÑOS","Cl. Escuelas Nuevas, S/N",50637,"976 61 83 56",null,"cpremolinos@educa.aragon.es"]
[50004077,"Zaragoza","Colegio de Educación Infantil y Primaria","Ricla","MAESTRO MONREAL","CL. Joaquín Artigas Lausín, 2",50270,"976 60 62 94","976 60 62 94","cpricla@educa.aragon.es"]
[50004326,"Zaragoza","Colegio de Educación Infantil y Primaria","Sástago","DANIEL FEDERIO","Avda. Escuelas, 1-3",50780,"976 17 81 00","976 17 81 00","cpsastago@educa.aragon.es"]
[50004430,"Zaragoza","Colegio de Educación Infantil y Primaria","Sobradiel","SUBPRADEL","Cl. Conde, 2",50629,"976 13 91 16","976 13 91 16","cpsobradiel@educa.aragon.es"]
[50004478,"Zaragoza","Colegio de Educación Infantil y Primaria","Sos del Rey Católico","ISIDORO GIL DE JAZ","Pza. De La Villa, 2",50680,"948 88 82 02","948 88 84 64","cpsos@educa.aragon.es"]
[50004481,"Zaragoza","Escuela Hogar","Sos del Rey Católico","MANUELA PÉREZ DE BIEL","Pza. De La Villa, 2",50680,"948 88 80 20",null,"ehsos@educa.aragon.es"]
[50004545,"Zaragoza","Colegio de Educación Infantil y Primaria","Tarazona","JOAQUÍN COSTA","Avda. Navarra, 21",50500,"976 64 06 14","976 640614","cpjctarazona@educa.aragon.es"]
[50004570,"Zaragoza","Centro Privado de Educación Infantil Primaria y Secundaria","Tarazona","SAGRADA FAMILIA","Cl. Carmen, 2 - 3",50500,"976 64 07 68","976 64 19 86","sfamiliaz@planalfa.es"]
[50004594,"Zaragoza","Centro Privado de Educación Infantil Primaria y Secundaria","Tarazona","NTRA. SRA. DEL PILAR","Cl. Gutiérrez De Córdoba, 8",50500,"976 64 05 00","976 64 05 00","cpilartarazona@hotmail.com"]
[50004612,"Zaragoza","Colegio de Educación Infantil y Primaria","Tarazona","MONCAYO","AVDA. LA PAZ, 10",50500,"976 64 16 85","976 64 16 85","cpcmtarazona@educa.aragon.es"]
[50004703,"Zaragoza","Colegio de Educación Infantil y Primaria","Tauste","ALFONSO I EL BATALLADOR","AVDA. OBISPO JOSÉ MARÍA CONGET, S/N",50660,"976 85 41 92","976 85 41 92","cpabtauste@educa.aragon.es"]
[50004843,"Zaragoza","Colegio de Educación Infantil y Primaria","Torres de Berrellén","MONTES DEL CASTELLAR","CL. GARFILÁN, 37",50693,976653110,976653110,"cptorresb@educa.aragon.es"]
[50004879,"Zaragoza","Colegio de Educación Infantil y Primaria","Tosos","TOSOS","Ctra. Cariñena, 12",50154,"976 14 70 22","976 14 70 10","cptosos@educa.aragon.es"]
[50004946,"Zaragoza","Colegio de Educación Infantil y Primaria","Undués de Lerda","DE UNDUÉS DE LERDA","CL. Prado, 1-3",50689,948925929,null,"ceipunduesdelerda@educa.aragon.es"]
[50005011,"Zaragoza","Colegio de Educación Infantil y Primaria","Utebo","MIGUEL ARTAZOS TAMÉ","Cl. Zaragoza, S/N",50180,"976 77 11 28","976 784678","cpmautebo@educa.aragon.es"]
[50005276,"Zaragoza","Colegio de Educación Infantil y Primaria","Villanueva de Gállego","PINTOR PRADILLA","Cl. Pirineos, 10",50830,"976 18 01 78","976 45 11 39","cpppvillanuevag@educa.aragon.es"]
[50005291,"Zaragoza","Colegio de Educación Infantil y Primaria","Villanueva de Huerva","SAN BLAS","Avda. Zaragoza, 29",50153,"976 14 34 93",976143493,"ceipsanblas@educa.aragon.es"]
[50005331,"Zaragoza","Colegio de Educación Infantil y Primaria","Villarreal de Huerva","FERNANDO EL CATÓLICO","Camino de La Estación,15",50490,"976 80 72 19",null,"cpvillarrealh@educa.aragon.es"]
[50005422,"Zaragoza","Colegio de Educación Infantil y Primaria","Cartuja Baja","ÁNGEL ESCORIAZA","Cl. Juan De Las Viñas, 8",50720,"976 50 04 84","976 50 04 84","cpaeszaragoza@educa.aragon.es"]
[50005483,"Zaragoza","Centro Privado de Educación Infantil y Primaria","Zaragoza","VIRGEN DE GUADALUPE","Cl. Isla De Yerba, 12",50012,"976 75 40 82","976 75 40 80","vguadalupez@planalfa.es"]
[50005495,"Zaragoza","Centro Privado de Educación Infantil Primaria y Secundaria","Zaragoza","SANSUEÑA","CL. GASTÓN DE BEARNE, 3",50012,"976 56 10 00","976 56 22 79","sansuena@fomento.edu"]
[50005513,"Zaragoza","Centro Privado de Educación Infantil Primaria y Secundaria","Zaragoza","SAGRADA FAMILIA","P.º Infantes De España, 4",50012,"976 56 01 25","976 56 85 99","sfamilia@csafa.com"]
[50005537,"Zaragoza","Centro Privado de Educación Infantil Primaria y Secundaria","Zaragoza","MADRE MARÍA ROSA MOLAS","Vía Ibérica, 25",50009,"976 56 32 38","976 56 48 97","colegio@mariarosamolas.com"]
[50005549,"Zaragoza","Centro Privado de Educación Infantil Primaria y Secundaria","Zaragoza","BRITÁNICO DE ARAGÓN","Ctra. De Valencia, Km. 8,5",50410,"976 50 52 23","976 50 52 23","secretaria@britanico-aragon.edu"]
[50005550,"Zaragoza","Colegio de Educación Infantil y Primaria","Casetas","RICARDO MUR","Cl. Galicia, 2",50620,"976-78-88-46","976 77 17 16","cprmuzaragoza@educa.aragon.es"]
[50005562,"Zaragoza","Centro Privado de Educación Primaria","Casetas","SAN MIGUEL","Cl. Cataluña, S/N",50620,"976 77 11 37","976 77 11 37","976771137@telefonica.net"]
[50005574,"Zaragoza","Colegio de Educación Infantil y Primaria","Garrapinillos","GUSTAVO ADOLFO BÉCQUER","Avda. de la Jota, nº 7",50190,"976 78 03 45","976 30 30 32","cpgabzaragoza@educa.aragon.es"]
[50005598,"Zaragoza","Colegio de Educación Infantil y Primaria","Zaragoza","JULIÁN NIETO TAPIA","Cami. Del Pilón, 150",50011,976340620,976340620,"secretariacpjnt@educa.aragon.es"]
[50005616,"Zaragoza","Centro Privado de Educación Especial","Zaragoza","SAN ANTONIO","Cami. Del Buro, 80",50011,"976 33 19 40","976 32 86 50","eesanantonio@hotmail.com"]
[50005628,"Zaragoza","Centro Privado de Educación Infantil Primaria y Secundaria","Zaragoza","SAN ALBERTO MAGNO","Urb. Torres San Lamberto, 58",50011,"976 34 03 21","976 31 61 81","secretaria@colegioaleman.com"]
[50005631,"Zaragoza","Colegio de Educación Infantil y Primaria","Montañana","HERMANOS ARGENSOLA","Cl. Escuelas, 23",50059,976575325,976575325,"cpharzaragoza@educa.aragon.es"]
[50005641,"Zaragoza","Colegio de Educación Infantil y Primaria","Monzalbarba","FERNÁNDEZ VIZARRA","Cl. Gaspar De Pex, 3",50120,"976 78 58 28","976 78 58 28","cpfvizaragoza@educa.aragon.es"]
[50005653,"Zaragoza","Colegio de Educación Infantil y Primaria","Movera","MAESTRO DON PEDRO ORÓS","Pza. Mayor, 7",50194,"976 58 64 33","976 58 64 33","cppomovera@educa.aragon.es"]
[50005677,"Zaragoza","Colegio de Educación Infantil y Primaria","Movera","JUAN PABLO BONET","Cl. Río Gállego, 42",50194,"976 57 44 95",976574495,"cpjpbzaragoza@educa.aragon.es"]
[50005690,"Zaragoza","Centro Público Integrado de Formación Profesional","Movera","DE MOVERA","Ctra. Pastriz, Km. 3,6",50194,"976 58 62 84","976 58 63 30","cpifpmovera@educa.aragon.es"]
[50005707,"Zaragoza","Colegio de Educación Infantil y Primaria","Peñaflor","FLORENCIO JARDIEL","Cl. Francisco Gracia, 18",50193,"976 15 42 91","976 15 42 91","cppenaflor@educa.aragon.es"]
[50005744,"Zaragoza","Colegio de Educación Infantil y Primaria","San Juan de Mozarrifar","ANDRÉS OLIVÁN","Cl. Alejandro Palomar, 21",50820,"976 15 02 49","976 15 02 49","cpaolzaragoza@educa.aragon.es"]
[50005768,"Zaragoza","Colegio de Educación Infantil y Primaria","Zaragoza","GUILLERMO FATÁS","Cl. La Iglesia, 61",50016,"976 46 58 25","976 46 58 25","cpgfazaragoza@educa.aragon.es"]
[50005781,"Zaragoza","Centro Privado de Educación Infantil Primaria y Secundaria","Zaragoza","LA CONCEPCIÓN","Cl. La Iglesia, 30",50016,"976 57 03 22","976 57 03 22","laconcepcion@colegiosfec.com"]
[50005793,"Zaragoza","Instituto de Educación Secundaria","Zaragoza","ÍTACA","Avda de los Estudiantes, 1",50058,"976 57 24 26","976 57 44 71","iesitazaragoza@educa.aragon.es"]
[50005823,"Zaragoza","Centro Privado de Educación Infantil Primaria y Secundaria","Venta del Olivar","CONDES DE ARAGÓN","Ctra. De Logroño, Km.7,8",50011,"976 33 03 00","976 33 17 71","caragon@cece.es"]
[50005872,"Zaragoza","Colegio de Educación Infantil y Primaria","Villamayor","MARIANO CASTILLO","Cl. Calera, 30",50162,"976 58 97 14",976589714,"cpmcazaragoza@educa.aragon.es"]
[50005896,"Zaragoza","Colegio de Educación Infantil y Primaria","Zaragoza","ANA MAYAYO","CL. Alfonso Carlos Comín Ros, 2",50017,"976 33 27 97","976 33 27 97","cpamazaragoza@educa.aragon.es"]
[50005902,"Zaragoza","Colegio de Educación Infantil y Primaria","Zaragoza","ANDRÉS MANJÓN","Cl. Delicias, 90",50017,"976 33 17 28","976 30 03 72","cpamanzaragoza@educa.aragon.es"]
[50005914,"Zaragoza","Colegio de Educación Infantil y Primaria","Zaragoza","RECARTE Y ORNAT","Cl. San Juan Bosco, 7",50009,"976 35 23 38","976 55 67 84","cpryozaragoza@educa.aragon.es"]
[50005926,"Zaragoza","Colegio de Educación Infantil y Primaria","Zaragoza","CÁNDIDO DOMINGO","Cl. Sobrarbe, 8",50015,"976 29 38 12","976 297 319","cpcdozaragoza@educa.aragon.es"]
[50005951,"Zaragoza","Colegio de Educación Infantil y Primaria","Zaragoza","DOMINGO MIRAL","CL. MESONES DE ISUELA, 7",50007,"976 27 56 28",976275628,"cpdmizaragoza@educa.aragon.es"]
[50005963,"Zaragoza","Colegio de Educación Infantil y Primaria","Zaragoza","FERNANDO EL CATÓLICO","Cl San Vicente Ferrer, 2",50011,"976 33 20 32","976 33 20 32","cpfeczaragoza@educa.aragon.es"]
[50005975,"Zaragoza","Colegio de Educación Infantil y Primaria","Zaragoza","GASCÓN Y MARÍN","Pza. de los Sitios, 4",50001,"976 23 19 60","976 23 19 60","cpgymzaragoza@educa.aragon.es"]
[50005999,"Zaragoza","Colegio de Educación Infantil y Primaria","Zaragoza","JERÓNIMO BLANCAS Y TOMÁS","CL. El Noticiero, 1",50012,"976 34 53 42","976 34 53 42","cpjbtzaragoza@educa.aragon.es"]
[50006001,"Zaragoza","Colegio de Educación Infantil y Primaria","Zaragoza","JERÓNIMO ZURITA Y CASTRO","Avda. De La Almozara, 58",50003,"976 40 46 08","976 40 46 09","cpjzczaragoza@educa.aragon.es"]
[50006013,"Zaragoza","Colegio de Educación Infantil y Primaria","Zaragoza","JOAQUÍN COSTA","P.º María Agustín, 41",50004,"976 23 55 65","976 23 55 65","cpjcozaragoza@educa.aragon.es"]
[50006025,"Zaragoza","Colegio de Educación Infantil y Primaria","Zaragoza","JOSÉ MARÍA MIR","Cl. Duquesa Villahermosa, 58",50010,"976 33 17 97","976 34 44 01","cpjmmzaragoza@educa.aragon.es"]
[50006037,"Zaragoza","Centro Público Integrado","Zaragoza","LA JOTA","Cl. Balbino Orensanz, 3-5",50014,"976 47 41 29","976 47 41 29","cpljozaragoza@educa.aragon.es"]
[50006049,"Zaragoza","Colegio de Educación Infantil y Primaria","Zaragoza","JULIÁN SANZ IBÁÑEZ","Cl. Leopoldo Romeo, 24",50002,"976 42 58 70","976 42 58 70","cpjsizaragoza@educa.aragon.es"]
[50006050,"Zaragoza","Colegio de Educación Infantil y Primaria","Zaragoza","LUIS VIVES","CL. JENARO CHECA, 25",50007,"976 27 13 08","976 37 39 90","cplvizaragoza@educa.aragon.es"]
[50006074,"Zaragoza","Colegio de Educación Infantil y Primaria","Zaragoza","MARCOS FRECHÍN","CL. DOCTOR IRANZO, 25",50013,"976 41 59 07","976 41 59 07","cpmfrzaragoza@educa.aragon.es"]
[50006128,"Zaragoza","Colegio de Educación Infantil y Primaria","Zaragoza","SAN BRAULIO","Cl. Pantano De Yesa, 10",50015,"976 51 43 35",976740135,"cpsbrzaragoza@educa.aragon.es"]
[50006141,"Zaragoza","Colegio de Educación Infantil y Primaria","Zaragoza","SANTO DOMINGO","Cl. Predicadores, 60",50003,"976 44 07 03","976 44 07 03","cpsdozaragoza@educa.aragon.es"]
[50006153,"Zaragoza","Colegio de Educación Infantil y Primaria","Zaragoza","SAN JOSÉ DE CALASANZ","Cl. Eduardo Salvador Hernaz, 43",50008,"976 41 12 17",976411217,"cpsjczaragoza@educa.aragon.es"]
[50006165,"Zaragoza","Colegio de Educación Infantil y Primaria","Zaragoza","TÍO JORGE","Cl. Valle De Zuriza, 1",50015,"976 51 48 76","976 74 35 41","cptjozaragoza@educa.aragon.es"]
[50006207,"Zaragoza","Colegio de Educación Infantil y Primaria","Zaragoza","CALIXTO ARIÑO-HILARIO VAL","CL. JOSÉ GALIAY, 2",50008,"976 41 39 97","976 41 39 97","cpcarzaragoza@educa.aragon.es"]
[50006219,"Zaragoza","Colegio de Educación Infantil y Primaria","Zaragoza","EMILIO MORENO CALVETE","Paseo Calanda, 13",50010,"976 53 19 38","976 53 19 38","cpemczaragoza@educa.aragon.es"]
[50006220,"Zaragoza","Colegio de Educación Infantil y Primaria","Zaragoza","HILARIÓN GIMENO","CL. Pedro Arnal Cavero, 1",50014,"976 39 91 38","976 20 35 28","cphgizaragoza@educa.aragon.es"]
[50006232,"Zaragoza","Colegio de Educación Infantil y Primaria","Zaragoza","JUAN XXIII","Cl. Juan XXIII, 2",50010,"976 33 74 78","976 33 74 78","cpjxizaragoza@educa.aragon.es"]
[50006281,"Zaragoza","Colegio de Educación Infantil y Primaria","Zaragoza","TOMÁS ALVIRA","Cl. Pasaje Cigüeñas, 3",50013,"976 42 33 00","976 46 14 31","cptalzaragoza@educa.aragon.es"]
[50006311,"Zaragoza","Colegio de Educación Infantil y Primaria","Zaragoza","BASILIO PARAÍSO","Cl. Supervía, 29",50006,"976 55 28 46","976 55 28 46","cpbpazaragoza@educa.aragon.es"]
[50006414,"Zaragoza","Instituto de Educación Secundaria","Zaragoza","VIRGEN DEL PILAR","P.º Reyes De Aragón, 20",50012,"976 30 60 09","976 56 42 68","iesvdpzaragoza@educa.aragon.es"]
[50006426,"Zaragoza","Centro Privado de Educación Primaria","Zaragoza","ADVENTISTA RIGEL","Cl. Alicante, 3 - 11",50007,"976 27 26 23",null,"direccion@colegiorigel.es"]
[50006438,"Zaragoza","Colegio de Educación Infantil y Primaria","Zaragoza","LA ALMOZARA","Cl. Bonn, 7",50003,976433595,976430047,"cplalzaragoza@educa.aragon.es"]
[50006463,"Zaragoza","Centro Privado de Educación Infantil Primaria y Secundaria","Zaragoza","LA ANUNCIATA","Cl. Santa Inés, 3",50003,"976 43 66 00","976 28 40 66","direccionsecundaria.zaragoza@fefcoll.org"]
[50006529,"Zaragoza","Centro Privado de Educación Infantil Primaria y Secundaria","Zaragoza","EL BUEN PASTOR","Cl. Monzón, 27",50007,"976 27 37 62","976 25 81 92","secretaria@elbuenpastorzaragoza.net"]
[50006542,"Zaragoza","Centro Privado de Educación Infantil Primaria y Secundaria","Zaragoza","CALASANCIO","Cl. Sevilla, 19",50006,"976 27 49 00","976 27 49 09","calasanciozgz@escolapiosemaus.org"]
[50006554,"Zaragoza","Centro Privado de Educación Infantil Primaria y Secundaria","Zaragoza","CALASANZ","Cl. Teniente Coronel Valenzuela, 2",50004,"976 22 38 86","976 23 39 71","escolapiascalasanz@planalfa.es"]
[50006566,"Zaragoza","Centro Privado de Educación Infantil Primaria y Secundaria","Zaragoza","CARDENAL XAVIERRE","Pza. San Francisco, 15",50006,"976 79 11 30","976 35 26 91","colegio@xavierre.com"]
[50006578,"Zaragoza","Centro Privado de Educación Infantil Primaria y Secundaria","Zaragoza","CANTÍN Y GAMBOA","Cl. Moret, 4",50001,"976 22 32 11","976 22 83 19","cantin@cantinygamboa.com"]
[50006581,"Zaragoza","Centro Privado de Educación Infantil Primaria y Secundaria","Zaragoza","COLEGIO MONTESSORI","Cl. Lagasca, 25-27",50006,"976 30 61 00","976 56 21 43","administracion@colegiomontessori.com"]
[50006633,"Zaragoza","Centro Privado de Educación Infantil Primaria y Secundaria","Zaragoza","COMPAÑÍA DE MARÍA","Cl. Bilbao, 10",50004,"976 22 18 63","976 22 51 85","secretaria@ciamariaz.org"]
[50006669,"Zaragoza","Centro Privado de Educación Infantil Primaria y Secundaria","Zaragoza","CRISTO REY","Avda. Academia General Militar, 80",50015,"976 51 44 22","976 73 29 86","cristorey@escolapiosemaus.org"]
[50006670,"Zaragoza","Centro Privado de Educación Infantil","Zaragoza","LENGUATRAPO","Cl. San Juan De La Peña, 181- Bloque 25",50015,"976 51 66 01",null,"vsantolaya@hotmail.com"]
[50006682,"Zaragoza","Centro Privado de Educación Infantil","Zaragoza","DIVINA PASTORA","Cl. Maestro Estremiana, 31-33",50006,"976 27 10 42",null,"colegio.divinapastora@hotmail.com"]
[50006700,"Zaragoza","Centro Privado de Educación Infantil Primaria y Secundaria","Zaragoza","DON BOSCO","Cl. Alfonso Zapater Cerdán, 21",50014,"976 39 66 19","976 39 69 59","donbosco@colegiodonbosco.es"]
[50006724,"Zaragoza","Centro Privado de Educación Infantil Primaria y Secundaria","Zaragoza","LICEO EUROPA","Cami. Fuente De La Junquera, 21",50012,"976 56 50.00","976 56 00 18","info@liceoeuropa.com"]
[50006736,"Zaragoza","Centro Docente Privado Extranjero en España","Zaragoza","LYCÉE FRANÇAIS MOLIÈRE","Cl. Manuel Marraco Ramón, 8",50018,"976 52 54 44","976 52 54 33","moliere-zaragoza@teleline.es"]
[50006751,"Zaragoza","Centro Privado de Educación Infantil Primaria y Secundaria","Zaragoza","ESCUELAS PÍAS","Cl. Conde De Aranda, 2",50003,"976 44 02 22","976 43 97 34","dirtitularepz@escolapiosemaus.org"]
[50006761,"Zaragoza","Centro Privado de Educación Infantil Primaria y Secundaria","Zaragoza","ESCUELAS PÍAS DE SANTA ENGRACIA","Cami. De Miraflores, 23",50007,"976 37 10 68","976 27 02 42","miraflores@fe-escolapias.org"]
[50006797,"Zaragoza","Centro Privado de Educación Infantil Primaria y Secundaria","Zaragoza","PADRE ENRIQUE DE OSSÓ","Cl. Enrique De Ossó, 2-4",50017,"976 33 18 38","976 33 00 31","direcciongeneral@eossozaragoza.escuelateresiana.com"]
[50006803,"Zaragoza","Centro Privado de Educación Infantil Primaria y Secundaria","Zaragoza","MARÍA INMACULADA","Vía Hispanidad, 91-93",50011,"976 33 17 64","976 33 55 33","info@zaragoza.colegiosclaretianas.org"]
[50006815,"Zaragoza","Centro Privado de Educación Infantil y Primaria","Zaragoza","LA SALLE FRANCISCANAS","Cl. Andrés Piquer, 5",50006,"976 55 12 50","976 55 02 02","colegio@lasallefranciscanas.com"]
[50006840,"Zaragoza","Centro Privado de Educación Infantil Primaria y Secundaria","Zaragoza","HIJAS DE SAN JOSÉ","Cl. Duquesa Villahermosa, 16",50010,"976 33 35 24","976 48 83 84","direccion@colegiohijasdesanjose.com"]
[50006888,"Zaragoza","Centro Privado de Educación Infantil Primaria y Secundaria","Zaragoza","INMACULADA CONCEPCIÓN","Cl. Concepción, 8-10",50008,"976 41 63 14","976 41 59 11","cinmaculadazgz@telefonica.net"]
[50006931,"Zaragoza","Centro Privado de Educación Infantil","Zaragoza","JESÚS REPARADOR","Cl. Sancho Y Gil, 6",50001,"976 22 13 88"]
[50007005,"Zaragoza","Centro Privado de Educación Infantil","Zaragoza","MADRE DE DIOS DE BEGOÑA","Cl. Terminillo, 22-24",50017,"976 33 81 19"]
[50007017,"Zaragoza","Centro Privado de Educación Infantil Primaria y Secundaria","Zaragoza","MARÍA AUXILIADORA","Cl. Mornés, 14",50007,"976 27 27 50","976 27 07 06","mazaragoza@salesianas.net"]
[50007042,"Zaragoza","Centro Privado de Educación Infantil Primaria y Secundaria","Zaragoza","LA MILAGROSA","Cl. Maestro Estremiana, 3 Y 5",50006,"976 27 96 06","976 27 96 06","lamilagrosaz@lamilagrosaz.e.telefonica.net"]
[50007066,"Zaragoza","Centro Privado de Educación Primaria y Secundaria","Zaragoza","MONTEARAGÓN","P.º Reyes De Aragón, 21",50009,"976 56 22 67","976 35 30 76","montearagon@fomento.edu"]
[50007078,"Zaragoza","Centro Privado de Educación Infantil Primaria y Secundaria","Zaragoza","AGUSTÍN GERICÓ","Avda. Cesáreo Alierta, 72",50013,"976 41 00 77","976 49 68 05","direccionsec@agustingerico.com"]
[50007133,"Zaragoza","Centro Privado de Educación Infantil Primaria y Secundaria","Zaragoza","NTRA. SRA. DEL CARMEN","Cl. Madre Vedruna, 15",50008,"976 22 14 39","976 21 76 39","nscarmen@colegiosfec.com"]
[50007157,"Zaragoza","Centro Privado de Educación Infantil Primaria y Secundaria","Zaragoza","NTRA. SRA. DEL CARMEN Y SAN JOSÉ","Cl. Santa Inés, 1",50003,"976 43 05 05","976 43 05 03","elcarmenysanjosezgz@gmail.com"]
[50007194,"Zaragoza","Centro Privado de Educación Infantil Primaria y Secundaria","Zaragoza","NTRA. SRA. DE LA MERCED","P.º De Ruiseñores, 1",50006,"976 27 65 83","976 27 65 83","mercedarias.direccion@gmail.com,adlamercedz@gmail.com,marlene.escribano@zaragoza.femlamerced.org,ignacio.gasca@zaragoza.femlamerced.org"]
[50007236,"Zaragoza","Centro Privado de Educación Infantil Primaria y Secundaria","Zaragoza","SALESIANO NTRA. SRA.DEL PILAR","Cl. María Auxiliadora, 57",50009,"976 30 68 78","976 55 46 28","secretaria.zaragoza@salesianos.edu"]
[50007248,"Zaragoza","Centro Privado de Educación Infantil Primaria y Secundaria","Zaragoza","TERESIANO DEL PILAR","CAMI. DE PINSEQUE, 37-39",50011,"976 34 80 95","976 32 49 72","infosecretaria@tpilarzaragoza.escuelateresiana.com"]
[50007327,"Zaragoza","Centro Privado de Educación Infantil Primaria y Secundaria","Zaragoza","EL PILAR-MARISTAS","Cl. Rafael Alberti, 5",50018,"976 51 96 55","976 52 46 45","secretaria@elpilarmaristas.org"]
[50007352,"Zaragoza","Centro Privado de Educación Infantil Primaria y Secundaria","Zaragoza","POMPILIANO","P.º Ruiseñores, 28",50006,"976 27 64 92","976 37 91 05","pompiliano@fe-escolapias.org"]
[50007376,"Zaragoza","Centro Privado de Educación Especial","Zaragoza","LA PURÍSIMA PARA NIÑOS SORDOS","Cl. Corona De Aragón, 54",50009,"976 55 27 49","976 55 03 11","lpurisimansz@planalfa.es"]
[50007388,"Zaragoza","Centro Privado de Educación Infantil Primaria y Secundaria","Zaragoza","LA PURÍSIMA Y SAN ANTONIO","Cami. Del Vado, 7-9",50014,"976 20 22 53","976 20 45 41","lapurisimaysanantonio@colegiosfec.com,sergiovilluendas@lapurisimaysanantonio.es,evablasco@lapurisimaysanantonio.es"]
[50007421,"Zaragoza","Centro Privado de Educación Infantil Primaria y Secundaria","Zaragoza","SAGRADO CORAZÓN","P.º De La Mina, 4 - 10",50001,"976 22 48 64","976 22 29 99","secretaria.z@corazonistas.com"]
[50007431,"Zaragoza","Centro Privado de Educación Infantil Primaria y Secundaria","Zaragoza","SAGRADO CORAZÓN DE JESÚS","Cl. Poeta Pablo Neruda, 35",50018,"976 46 62 82","976 46 62 83","scjesusz@planalfa.es"]
[50007467,"Zaragoza","Centro Privado de Educación Secundaria","Zaragoza","LA SALLE FRANCISCANAS GRAN VÍA","Cl. Santa Teresa De Jesús, 23",50006,"976 30 60 60","976 30 60 62","direccion.granvia@lasalle.es"]
[50007479,"Zaragoza","Centro Privado de Educación Infantil Primaria y Secundaria","Zaragoza","LA SALLE MONTEMOLÍN","Cl. José Galiay, 11",50008,"976 41 63 06","976 49 24 44","lsmontemolin@lasalle.es"]
[50007492,"Zaragoza","Centro Privado Integrado de Formación Profesional","Zaragoza","LA SALLE-SANTO ANGEL","Cl. Tomás Anzano,1",50012,"976 75 37 18","976 75 37 28","admisaz@lasalle.es"]
[50007509,"Zaragoza","Centro Privado de Educación Infantil Primaria y Secundaria","Zaragoza","SAN AGUSTÍN","Cami. De Las Torres, 79-89",50008,"976 22 48 44","976 22 68 76","sagustinz@planalfa.es"]
[50007534,"Zaragoza","Centro Privado de Educación Infantil Primaria y Secundaria","Zaragoza","SAN ANTONIO DE PADUA","Cl. Fray Julián Garás, 1",50006,"976 38 51 55","976 25 87 00","direccion@ccsanantoniodepadua.com"]
[50007613,"Zaragoza","Centro Privado de Educación Infantil","Zaragoza","BOSQUE TERNURA","Vía Hispanidad, 117",50011,"976 33 24 50"]
[50007674,"Zaragoza","Centro Privado de Educación Especial","Zaragoza","ATADES, CENTRO DE EDUCACIÓN ESPECIAL SAN MARTÍN DE PORRES","Cl. Octavio De Toledo, 2",50007,"976 37 99 27","976 37 99 27","director.sanmartin@atades.org"]
[50007716,"Zaragoza","Centro Privado de Educación Secundaria","Zaragoza","SAN VALERO","Cl. Violeta Parra, 9",50015,"976 46 65 99","976 46 65 90","infoces@svalero.es"]
[50007728,"Zaragoza","Centro Privado de Educación Infantil Primaria y Secundaria","Zaragoza","SAN VICENTE DE PAÚL","Cl. San Vicente De Paúl, 31",50001,"976 29 15 25","976 29 05 08","svpaulz@planalfa.es"]
[50007731,"Zaragoza","Centro Privado de Educación Infantil Primaria y Secundaria","Zaragoza","SANTA ANA","P.º Del Canal, 135",50007,"976 38 58 11","976 37 31 30","colegiosantana@telefonica.net,stanasecretaria@telefonica.net"]
[50007777,"Zaragoza","Centro Privado de Educación Infantil Primaria y Secundaria","Zaragoza","SANTA MAGDALENA SOFÍA","Cl. Sagitario, 5",50012,"976 75 37 30","976 75 37 34","secretaria.zar@redsagradocorazon.es"]
[50007789,"Zaragoza","Centro Privado de Educación Infantil Primaria y Secundaria","Zaragoza","SANTA MARÍA DEL PILAR","P.º Reyes De Aragón, 5-7",50012,"976 25 87 87","976 25 87 88","secretaria@marianistas.net,dgeneral@marianistas.net"]
[50007790,"Zaragoza","Centro Privado de Educación Infantil Primaria y Secundaria","Zaragoza","SANTA MARÍA REINA","CL. Santa María Reina, 2",50009,"976 56 99 62","976 35 96 24","secretaria@colegiosantamariareina.org"]
[50007807,"Zaragoza","Centro Privado de Educación Infantil Primaria y Secundaria","Zaragoza","SANTA ROSA","Cl. Azoque, 33",50004,"976 22 26 99","976 22 26 99","dirgeneral.zaragoza@fesd.es"]
[50007856,"Zaragoza","Centro Privado de Educación Infantil Primaria y Secundaria","Zaragoza","OBRA DIOCESANA SANTO DOMINGO DE SILOS","Cl. Amistad, 6",50002,"976 42 49 47","976 42 47 93","odsds@planalfa.es"]
[50007996,"Zaragoza","Centro Privado de Educación Infantil Primaria y Secundaria","Zaragoza","VILLA CRUZ","Cl. Venecia, 12-16",50007,"976 27 12 05","976 37 81 27","colegiovillacruz@colegiovillacruz.com"]
[50008034,"Zaragoza","Centro Privado de Educación Infantil Primaria y Secundaria","Zaragoza","BAJO ARAGÓN","Cl. Padre Chaminade, 6",50013,"976 41 43 00","976 46 10 40","secretaria@bajoaragon-marianistas.org"]
[50008125,"Zaragoza","Instituto de Educación Secundaria","Zaragoza","CORONA DE ARAGÓN","Cl. Corona De Aragón, 35",50009,"976 46 70 00","976 46 70 61","iescorzaragoza@educa.aragon.es"]
[50008149,"Zaragoza","Colegio de Educación Infantil y Primaria","Zaragoza","EUGENIO LÓPEZ Y LÓPEZ","Cl. Cañon De Añisclo, 8",50015,"976 51 85 55","976 51 84 44","cpellzaragoza@educa.aragon.es"]
[50008174,"Zaragoza","Instituto de Educación Secundaria","Zaragoza","MIGUEL SERVET","Pº RUISEÑORES, 49-51",50006,"976 25 93 83","976 25 40 85","iesmsezaragoza@educa.aragon.es"]
[50008186,"Zaragoza","Instituto de Educación Secundaria","Zaragoza","RAMÓN PIGNATELLI","Cl. Jarque De Moncayo, 17",50012,"976 33 38 78","976 34 00 81","iespignatelli@educa.aragon.es"]
[50008198,"Zaragoza","Instituto de Educación Secundaria","Zaragoza","GOYA","Avda. Goya, 45",50006,"976 35 82 22","976 56 36 03","iesgoyzaragoza@educa.aragon.es"]
[50008277,"Zaragoza","Instituto de Educación Secundaria","Zaragoza","JERÓNIMO ZURITA","Avda. Juan Carlos I, 11",50009,"976 35 33 61",null,"iesjerzaragoza@educa.aragon.es"]
[50008289,"Zaragoza","Instituto de Educación Secundaria","Zaragoza","PEDRO DE LUNA","Cl. Universidad, 2",50001,"976 29 02 49","976 20 36 35","iespluzaragoza@educa.aragon.es"]
[50008332,"Zaragoza","Centro Privado de Educación Infantil Primaria y Secundaria","Zaragoza","ROMAREDA","Cl. Pedro Iv El Ceremonioso, 1",50009,"976 56 20 17","976 55 95 29","director@colegioromareda.com"]
[50008344,"Zaragoza","Centro Privado de Educación Primaria","Zaragoza","ESCOLANÍA INFANTES DEL PILAR","Cl. Florencio Jardiel, 1",50003,"976 29 82 73",null,"infantesdelpilar@gmail.com"]
[50008356,"Zaragoza","Colegio de Educación Infantil y Primaria","Zaragoza","CESÁREO ALIERTA","Cl. Pedro III El Grande, 4",50009,"976 55 79 35","976 55 79 35","cpcalzaragoza@educa.aragon.es"]
[50008368,"Zaragoza","Colegio de Educación Infantil y Primaria","Zaragoza","DOCTOR AZÚA","Cl. Pedro Iii El Grande, 4",50009,"976 30 65 92","976 30 65 92","cpdazzaragoza@educa.aragon.es"]
[50008371,"Zaragoza","Colegio de Educación Infantil y Primaria","Zaragoza","CÉSAR AUGUSTO","Cl. Pedro III El Grande, 5",50009,"976 56 32 16","976 56 32 16","cpcauzaragoza@educa.aragon.es"]
[50008381,"Zaragoza","Colegio de Educación Infantil y Primaria","Zaragoza","ELISEO GODOY BELTRÁN","Cl. Asín Y Palacios, 19",50009,"976 56 08 75","976 40 20 90","cpegbzaragoza@educa.aragon.es"]
[50008459,"Zaragoza","Instituto de Educación Secundaria","Zaragoza","EL PORTILLO","Cl. Juan Xxiii, 3",50010,"976 33 64 33","976 32 62 34","iesporzaragoza@educa.aragon.es"]
[50008460,"Zaragoza","Instituto de Educación Secundaria","Zaragoza","LUIS BUÑUEL","CL. Sierra Vicor, 20",50003,"976 44 00 28","976 43 73 09","ieslbuzaragoza@educa.aragon.es"]
[50008514,"Zaragoza","Escuela de Arte","Zaragoza","ESCUELA DE ARTE DE ZARAGOZA","CL. MARÍA ZAMBRANO,5",50018,"976 50 66 21","976.23.54.04","eartezaragoza@educa.aragon.es"]
[50008587,"Zaragoza","Colegio de Educación Infantil y Primaria","Zuera","ODÓN DE BUEN","Cl. Jorge Luna, 15",50800,"976 68 01 14","976 68 01 14","cpzuera@educa.aragon.es"]
[50008605,"Zaragoza","Centro Privado de Educación Infantil y Primaria","Zuera","NTRA. SRA. DEL PILAR","Cl. Antonio Machado, 18",50800,"976 68 01 16","976 68 02 51","nspilarzuera@gmail.com"]
[50008617,"Zaragoza","Centro Privado de Educación Infantil Primaria y Secundaria","Zuera","SAN GABRIEL","Cl. San Gabriel, S/N",50800,"976 68 00 44","976 68 02 51","direccion@sangabriel.es"]
[50008629,"Zaragoza","Centro Privado de Formación Profesional Específica","Zuera","E.F.A. EL SALTO","Ctra. De Huesca, Km. 28,5",50800,"976 68 03 70","976 68 03 70","elsalto@efasdearagon.org"]
[50008630,"Zaragoza","Centro Privado de Educación Especial","San Gregorio","CEDES","CL. SAN CRISTOBAL,4 BO.SAN GREGORIO",50015,"976 51 51 21","976 52 68 85","fundacioncedes@yahoo.es"]
[50008642,"Zaragoza","Instituto de Educación Secundaria","Zaragoza","MARÍA MOLINER","Cl. San Vicente Ferrer, 6",50011,"976 33 18 03","976 31 28 88","iesmmozaragoza@educa.aragon.es"]
[50008654,"Zaragoza","Centro Privado de Formación Profesional Específica","Zaragoza","CEFOR IZQUIERDO","Avda. Tenor Fleta, 57 (Pasaje)",50008,"976 48 62 71","976 36 21 63","ciclos@izquierdofp.es"]
[50008666,"Zaragoza","Colegio de Educación Infantil y Primaria","Calatayud","AUGUSTA BÍLBILIS","Cl. Aragón, S/N",50300,"976 88 17 43",976882981,"cpabcalatayud@educa.aragon.es"]
[50008678,"Zaragoza","Colegio de Educación Infantil y Primaria","Ejea de los Caballeros","RECTOR MAMÉS ESPERABÉ","P.º CONSTITUCIÓN, 136",50600,"976 66 13 23","979 66 13 23","cpmeejea@educa.aragon.es"]
[50008691,"Zaragoza","Colegio de Educación Infantil y Primaria","Zaragoza","RAMIRO SOLÁNS","Cl. Teodora Lamadrid, 61",50011,"976 34 48 65","976 34 48 65","cprsozaragoza@educa.aragon.es"]
[50008770,"Zaragoza","Instituto de Educación Secundaria","Tauste","RÍO ARBA","Avda. Del Pilar, S/N",50660,"976 85 40 20","976 85 94 49","iestauste@educa.aragon.es"]
[50008782,"Zaragoza","Colegio de Educación Infantil y Primaria","Santa Engracia","SANTA ENGRACIA","Cl. Ronda De Mediodía, S/N",50669,"976 85 68 09",null,"cpsengracia@educa.aragon.es"]
[50008915,"Zaragoza","Centro Privado de Educación Especial","Zaragoza","SAN GERMÁN","Ctra. De Huesca, S/N",50020,"976 51 65 22","976 73 02 38","aspacezaragoza@hotmail.com"]
[50008952,"Zaragoza","Colegio de Educación Infantil y Primaria","Cuarte de Huerva","RAMÓN Y CAJAL","Cl. Ramón Y Cajal, 53",50410,"976 46 32 95","976 46 32 95","cpcuarte@educa.aragon.es"]
[50008964,"Zaragoza","Centro Privado de Educación Infantil","Zaragoza","MONTESSORI","Cl. Asín Y Palacios, 18",50009,"976 30 61 10","976 56 21 43"]
[50008976,"Zaragoza","Centro Privado de Educación Infantil Primaria y Secundaria","Venta del Olivar","ANTONIO MACHADO","AUTOVÍA DE LOGROÑO, KM. 7200",50011,"976 46 08 60","976 34 02 78","colegio@colegioantoniomachado.com"]
[50009026,"Zaragoza","Centro Privado de Educación Secundaria","Zaragoza","LICEO EUROPA","CAMI. FUENTE DE LA JUNQUERA, 21",50012,"976 56 50 00","976 56 00 18","info@liceoeuropa.com"]
[50009051,"Zaragoza","Centro Privado de Formación Profesional Específica","Zaragoza","PLUS ULTRA","Cl. Gran Via, 11",50006,"976 22 61 44","976 22 21 18","centro@plusultraformacion.com"]
[50009129,"Zaragoza","Instituto de Educación Secundaria","Ejea de los Caballeros","CINCO VILLAS","P.º DE LA CONSTITUCIÓN, 122-124-126",50600,"976 66 00 08","976 66 30 93","iescvejea@educa.aragon.es"]
[50009142,"Zaragoza","Centro Privado de Educación Infantil","Zaragoza","HEIDI","Cl. Martín Abanto, 12",50013,"976 41 19 48","976 41 19 48","ciheidi@ono.com"]
[50009166,"Zaragoza","Instituto de Educación Secundaria","Zaragoza","JOSÉ MANUEL BLECUA","Cl. Cuarta Avenida, 13",50007,"976 25 86 20","976 25 86 21","iesjmbzaragoza@educa.aragon.es"]
[50009178,"Zaragoza","Instituto de Educación Secundaria","Zaragoza","PABLO GARGALLO","Cami. Miraflores, 13",50007,"976 38 50 12","976 25 54 20","iespagazaragoza@educa.aragon.es"]
[50009208,"Zaragoza","Colegio de Educación Infantil y Primaria","Zaragoza","TORRE RAMONA","Cl. Batalla De Lepanto, 40",50002,"976 41 84 77","976 41 84 77","cptrazaragoza@educa.aragon.es"]
[50009211,"Zaragoza","Instituto de Educación Secundaria","Zaragoza","FÉLIX DE AZARA","CL. RAMIRO DE ARAGÓN, 15",50017,"976 34 76 90","976 53 38 48","iesfazzaragoza@educa.aragon.es"]
[50009221,"Zaragoza","Centro Privado de Formación Profesional Específica","Mequinenza","SANTA AGATOCLIA","Ctra. De Fraga, S/N",50170,"974 46 42 11","976 46 42 11","colegiosantaagatoclia@gmail.com"]
[50009324,"Zaragoza","Centro Privado de Educación de Personas Adultas","Zaragoza","O.S.C.U.S.","Cl. Boggiero,166",50003,"976 43 20 90","976 28 19 96"]
[50009348,"Zaragoza","Instituto de Educación Secundaria","Zaragoza","AVEMPACE","Cl. Islas Canarias, 5",50015,"976 51 86 66","976 73 01 69","iesavempace@educa.aragon.es"]
[50009361,"Zaragoza","Centro Privado de Educación Infantil Primaria y Secundaria","Zaragoza","JUAN DE LANUZA","CTRA. DEL AEROPUERTO, 275",50011,"976 30 03 36","976 30 03 37","colegio@juandelanuza.org"]
[50009373,"Zaragoza","Colegio de Educación Infantil y Primaria","Zaragoza","JOSÉ CAMÓN AZNAR","Avda.de Navarra,nº 141",50017,"976 32 91 02","976 32 91 02","cpjcazaragoza@educa.aragon.es"]
[50009385,"Zaragoza","Colegio de Educación Infantil y Primaria","Zaragoza","ZALFONADA","Cl. Islas Canarias, 1",50015,"976 73 45 00","976 73 45 00","cpzalzaragoza@educa.aragon.es"]
[50009397,"Zaragoza","Colegio de Educación Infantil y Primaria","Zaragoza","TENERÍAS","CL. Coso nº 214",50002,"976 29 29 50","976 39 04 34","cptenzaragoza@educa.aragon.es"]
[50009403,"Zaragoza","Colegio de Educación Infantil y Primaria","Zaragoza","LAS FUENTES","Cl. Doctor Iranzo, 65",50002,"976 49 49 00","976 41 61 78","cplfuzaragoza@educa.aragon.es"]
[50009415,"Zaragoza","Colegio de Educación Infantil y Primaria","Zaragoza","GLORIA ARENILLAS","Cl. Río Perejiles, 2",50014,"976 57 28 38",976572838,"cpgarzaragoza@educa.aragon.es"]
[50009452,"Zaragoza","Colegio de Educación Infantil y Primaria","Zaragoza","MARÍA MOLINER","Cami. De Miraflores, 10",50007,"976 38 09 91","976 38 09 91","cpmmozaragoza@educa.aragon.es"]
[50009488,"Zaragoza","Centro Privado de Educación Especial","Villamayor","LOS PUEYOS","Cl. Paso, 250",50162,"976 57 02 44","976 57 02 44","cpueyos@infonegocio.com"]
[50009531,"Zaragoza","Colegio de Educación Infantil y Primaria","Zaragoza","RAMÓN SÁINZ DE VARANDA","CL. NTRA. SRA. DE LA OLIVA, 3",50007,"976 38 23 09","976 38 23 09","cprsvzaragoza@educa.aragon.es"]
[50009543,"Zaragoza","Instituto de Educación Secundaria","Fuentes de Ebro","BENJAMÍN JARNÉS","Cl. Agustina De Aragón, S/N",50740,"976 16 08 87","976 16 12 72","iesfuentes@educa.aragon.es"]
[50009567,"Zaragoza","Instituto de Educación Secundaria","Zaragoza","RÍO GÁLLEGO","Cl. Río Piedra, 4",50014,"976 58 81 70","976 57 04 08","iesrgazaragoza@educa.aragon.es"]
[50009580,"Zaragoza","Colegio de Educación Infantil y Primaria","Zaragoza","MIRAFLORES","Parque Miraflores Nº 1",50008,"976 49 31 05","976 49 31 05","cpmirzaragoza@educa.aragon.es"]
[50009592,"Zaragoza","Instituto de Educación Secundaria","Zuera","GALLICUM","Cami. De San Juan, S/N",50800,"976 68 03 41","976 68 04 83","ieszuera@educa.aragon.es"]
[50009646,"Zaragoza","Centro Privado de Educación Especial","Zaragoza","MARÍA-SORIANO","Ctra. Logroño, Km. 7,8",50011,"976 33 89 76","976 33 89 76","colegio@maria-soriano.es"]
[50009725,"Zaragoza","Centro Privado de Educación de Personas Adultas","Zaragoza","CODEF","CL. San Roque, 5-7",50017,"976 33 26 38","976 33 26 38"]
[50009749,"Zaragoza","Colegio de Educación Infantil y Primaria","Zaragoza","LA ESTRELLA","Cl. Pedro Lázaro, 18",50014,"976 47 27 29","976 47 27 29","cpleszaragoza@educa.aragon.es"]
[50009762,"Zaragoza","Escuela Oficial de Idiomas","Zaragoza","Nº 1","Cl. Domingo Miral, 23",50009,"976 35 72 89","976 56 80 34","eoizaragoza1@educa.aragon.es"]
[50009786,"Zaragoza","Colegio de Educación Infantil y Primaria","Casetas","ANTONIO MARTÍNEZ GARAY","CL. Cádiz, 12",50620,"976 77 44 17","976 77 44 17","cpamgzaragoza@educa.aragon.es"]
[50009804,"Zaragoza","Centro Privado Autorizado Profesional de Música","Zaragoza","J.R. SANTA MARÍA","Cl. San Jorge, 24",50001,"976 29 57 20",null,"cmusicasantamaria2013@gmail.com"]
[50009889,"Zaragoza","Centro Privado de Formación Profesional Específica","Zaragoza","ACADEMIA MARCO","Cl. Conde De Aranda, 7-9",50004,"976 44 16 99","976 40 51 00","info@academiamarco.com"]
[50009944,"Zaragoza","Colegio de Educación Infantil y Primaria","Zaragoza","MONSALUD","Cl. Marianela García Villas, 1",50017,"976 30 00 11","976 30 00 11","cpmonzaragoza@educa.aragon.es"]
[50009993,"Zaragoza","Centro Público de Educación de Personas Adultas","Zaragoza","CONCEPCIÓN ARENAL","Cl. Santo Dominguito De Val, S/N",50001,"976 29 64 91","976 29 17 11","cpeacarzaragoza@educa.aragon.es"]
[50010028,"Zaragoza","Centro Privado de Formación Profesional Específica","Alagón","ALAÚN","Cl. Ramón Y Cajal, 10",50630,"976 61 13 74","976 61 62 25","centroalaun@alaun.es"]
[50010041,"Zaragoza","Instituto de Educación Secundaria","Utebo","PEDRO CERRADA","Cl. Las Fuentes, 14",50180,"976 77 42 55","976 77 41 39","iesutebo@educa.aragon.es"]
[50010144,"Zaragoza","Instituto de Educación Secundaria","Zaragoza","PABLO SERRANO","CL. BATALLA DE LEPANTO, 30",50002,"976 49 10 15","976 59 05 42","iespsezaragoza@educa.aragon.es"]
[50010156,"Zaragoza","Instituto de Educación Secundaria","Zaragoza","MIRALBUENO","Cl. Vistabella, 8",50011,"976 33 04 50","976 31 62 20","iesmirzaragoza@educa.aragon.es"]
[50010168,"Zaragoza","Centro Privado de Formación Profesional Específica","Zaragoza","CONDES DE ARAGÓN","Cl. Condes De Aragón, 9",50009,"976 35 48 80","976 55 66 79","condesfp@condesfp.jazztel.es"]
[50010171,"Zaragoza","Colegio de Educación Infantil y Primaria","Zaragoza","HERMANOS MARX","Cl. Antón García Abril, 39",50018,"976 51 34 02","976 74 07 99","cphmazaragoza@educa.aragon.es"]
[50010181,"Zaragoza","Colegio de Educación Infantil y Primaria","Zaragoza","HISPANIDAD","Cl. Océano Atlántico, 15",50012,"976 32 98 98","976 32 98 98","cphiszaragoza@educa.aragon.es"]
[50010193,"Zaragoza","Colegio de Educación Infantil y Primaria","Zaragoza","PUERTA DE SANCHO","Cl. Batalla De Arapiles, S/N",50003,"976 44 35 77","976 46 98 70","cppsazaragoza@educa.aragon.es"]
[50010247,"Zaragoza","Colegio de Educación Infantil y Primaria","Mainar","SANTA ANA","Ctra. De Valencia, S/N",50368,"976 80 72 18","976 80 70 01","cpmainar@educa.aragon.es"]
[50010272,"Zaragoza","Centro Privado de Educación Infantil Primaria y Secundaria","Zaragoza","EL SALVADOR","Cl. Padre Arrupe, 13",50009,"976 35 34 00","976 55 65 97","colegio@jesuitaszaragoza.es"]
[50010284,"Zaragoza","Instituto de Educación Secundaria","Daroca","COMUNIDAD DE DAROCA","Cl. Barranco De Luzbel, S/N",50360,"976 80 20 72","976 80 20 16","iesdaroca@educa.aragon.es"]
[50010296,"Zaragoza","Colegio de Educación Infantil y Primaria","Utebo","INFANTA ELENA","Cl. Rosalía De Castro, 40",50180,"976 77 44 42",976774442,"cpieutebo@educa.aragon.es"]
[50010302,"Zaragoza","Instituto de Educación Secundaria","Zaragoza","FRANCISCO GRANDE COVIÁN","Cl. Tomás Higuera, 60",50002,"976 42 23 08","976 59 42 96","iesfgczaragoza@educa.aragon.es"]
[50010314,"Zaragoza","Centro Público Integrado de Formación Profesional","Zaragoza","LOS ENLACES","Cl. Jarque De Moncayo, 10",50012,"976 30 08 04","976 31 44 03","cpilosenlaces@educa.aragon.es"]
[50010326,"Zaragoza","Conservatorio Superior de Música","Zaragoza","DE ARAGÓN","VIA HISPANIDAD, 22",50001,"976 22 26 32","976 23 01 95","csmzaragoza@educa.aragon.es"]
[50010387,"Zaragoza","Colegio de Educación Especial","Zaragoza","ALBORADA","Andador Pilar Cuartero Molinero, 1",50018,"976 51 05 20","976 58 62 28","ceealzaragoza@educa.aragon.es"]
[50010399,"Zaragoza","Colegio de Educación Infantil y Primaria","Zaragoza","RÍO EBRO","Andador Pilar Cuartero Molinero, 5",50018,"976 51 70 21","976 51 88 28","cprebzaragoza@educa.aragon.es"]
[50010430,"Zaragoza","Escuela Pública de Música","Daroca","PABLO BRUNA","Cl. Mayor, 36",50360,"976 80 10 37","976 80 03 62","emusipbruna@darcultura.e.telefonica.net"]
[50010454,"Zaragoza","Centro Privado Autorizado Elemental de Música","Zaragoza","ADAGIO","Cl. Residencial Paraíso, 5 - Bajos",50008,"976 23 26 01","976 21 98 97","estudioadagio@hotmail.com"]
[50010478,"Zaragoza","Colegio de Educación Infantil y Primaria","Zaragoza","CIUDAD DE ZARAGOZA","Cl. Escultor Palao, 17",50017,"976 31 46 20","976 31 46 20","cpczazaragoza@educa.aragon.es"]
[50010481,"Zaragoza","Colegio de Educación Infantil y Primaria","Zaragoza","CORTES DE ARAGÓN","CL. Valero Julián Ripol Urbano, 4",50018,"976 51 21 11","976 51 36 00","cpcarazaragoza@educa.aragon.es"]
[50010491,"Zaragoza","Instituto de Educación Secundaria","Zaragoza","SANTIAGO HERNÁNDEZ","Avda. De Navarra, 141",50017,"976 32 42 00","976 33 79 85","iesshezaragoza@educa.aragon.es"]
[50010511,"Zaragoza","Instituto de Educación Secundaria","Zaragoza","TIEMPOS MODERNOS","CL. CINEASTA SEGUNDO DE CHOMÓN, 4",50018,"976 52 53 02","976 52 56 92","iestiemposmodernos@educa.aragon.es"]
[50010533,"Zaragoza","Instituto de Educación Secundaria","Almunia de Doña Godina (La)","CABAÑAS","Cl. Carrera De La Hilera, S/N",50100,"976 81 24 80","976 81 21 62","iesalmunia@educa.aragon.es"]
[50010727,"Zaragoza","Instituto de Educación Secundaria","Zaragoza","ELAIOS","Andador Pilar Cuartero Molinero, 3",50018,"976 52 75 00","976 52 59 68","ieselazaragoza@educa.aragon.es"]
[50010739,"Zaragoza","Instituto de Educación Secundaria","Zaragoza","PILAR LORENGAR","Cl. Miguel Asso, 5",50014,"976 47 59 66","976 47 54 36","iesplozaragoza@educa.aragon.es"]
[50010740,"Zaragoza","Escuela Oficial de Idiomas","Zaragoza","FERNANDO LÁZARO CARRETER","Cl. Cineasta Segundo De Chomón, S/N",50018,"976 52 68 88","976 52 71 33","eoizaragoza2@educa.aragon.es"]
[50010764,"Zaragoza","Colegio de Educación Infantil y Primaria","Caspe","ALEJO LORÉN ALBAREDA","Cl. Glorieta Federico García Lorca, S/N",50700,"976 63 20 28","976 63 20 28","cpalcaspe@educa.aragon.es"]
[50010818,"Zaragoza","Centro Público de Educación de Personas Adultas","Calatayud","MARCO VALERIO MARCIAL","P.º Ramón Y Cajal, 1",50300,"976 88 93 89","976 88 93 88","cpeacalatayud@educa.aragon.es"]
[50010821,"Zaragoza","Centro Público de Educación de Personas Adultas","Cariñena","RICARDO SOLA ALMAU","Cl. Las Monjas, 27",50400,"976 62 10 79","976 62 10 79","cpeacarinena@educa.aragon.es"]
[50010831,"Zaragoza","Centro Público de Educación de Personas Adultas","Caspe","JOAQUÍN COSTA","Cl. Guma, 35",50700,"976 63 90 22","976 63 90 22","cpeacaspe@educa.aragon.es"]
[50010843,"Zaragoza","Centro Público de Educación de Personas Adultas","Ejea de los Caballeros","EXEA","PZA. DE GOYA, 7",50600,"976 66 28 65","976 67 70 90","cpeaejea@educa.aragon.es"]
[50010855,"Zaragoza","Centro Público de Educación de Personas Adultas","Utebo","EMILIO NAVARRO","Cl. Argentina, S/N",50180,"976 46 20 03","976 46 20 03","cpeautebo@educa.aragon.es"]
[50010867,"Zaragoza","Centro Público de Educación de Personas Adultas","Casetas","MIGUEL HERNÁNDEZ","CL. SAN MIGUEL, 20",50620,"976 46 22 30","976 46 22 30","cpeamhezaragoza@educa.aragon.es"]
[50010879,"Zaragoza","Centro Público de Educación de Personas Adultas","Zaragoza","MARGEN IZQUIERDA","Cl. Lourdes, 23",50014,"976 39 26 57","976 39 26 57","cpeamizzaragoza@educa.aragon.es"]
[50010880,"Zaragoza","Centro Público de Educación de Personas Adultas","Zaragoza","JUAN JOSÉ LORENTE","Cl. Castellote, 3",50017,"976 31 31 99","976 32 67 00","cpeajjlzaragoza@educa.aragon.es"]
[50010892,"Zaragoza","Escuela Oficial de Idiomas","Calatayud","JOHAN FERRÁNDEZ D'HEREDIA","P.º Ramón Y Cajal, 1",50300,"976 88 55 42","976 89 13 34","eoicalatayud@educa.aragon.es"]
[50010909,"Zaragoza","Escuela Oficial de Idiomas","Ejea de los Caballeros","DE EJEA DE LOS CABALLEROS","Pza. De Goya, S/N",50600,"976 66 35 44","976 66 35 44","eoiejea@educa.aragon.es"]
[50010910,"Zaragoza","Centro Privado Autorizado Elemental de Música","Zaragoza","SANTA CECILIA","Cl. Manuel Lasala Valdés, 6",50006,"976 27 15 64","976 27 15 64","jorgesope@hotmail.com"]
[50010922,"Zaragoza","Conservatorio Profesional de Música","Tarazona","DE TARAZONA","Pza. De La Merced, S/N",50500,"976 64 35 61","976 64 44 11","cemtarazona@educa.aragon.es"]
[50010946,"Zaragoza","Instituto de Educación Secundaria","Zaragoza","ANDALÁN","Cl. París, 1",50003,"976 28 19 43","976 28 35 46","iesandzaragoza@educa.aragon.es"]
[50010958,"Zaragoza","Instituto de Educación Secundaria","Zaragoza","MIGUEL DE MOLINOS","Cl. Gabriel García Márquez, 20",50018,"976 73 21 25","976 46 64 45","iesmimozaragoza@educa.aragon.es"]
[50010961,"Zaragoza","Instituto de Educación Secundaria","Illueca","SIERRA DE LA VIRGEN","Cl. San Ildefonso, S/N",50250,"976 82 25 44","976 82 22 11","iesillueca@educa.aragon.es"]
[50010995,"Zaragoza","Instituto de Educación Secundaria","Zaragoza","MEDINA ALBAIDA","Cl. José Luis Pomarón, 4",50008,"976 49 19 00","976 49 18 29","iesmalzaragoza@educa.aragon.es"]
[50011008,"Zaragoza","Instituto de Educación Secundaria","Épila","RODANAS","Avda. De La Estación, 1",50290,"976 81 70 90","976 81 72 30","iesepila@educa.aragon.es"]
[50011021,"Zaragoza","Centro Público de Educación de Personas Adultas","Tarazona","EL PÓSITO","Pza. Carmen Viejo, 15",50500,"976 19 90 41","976 64 24 82","cpeatarazona@educa.aragon.es"]
[50011033,"Zaragoza","Escuela Oficial de Idiomas","Utebo","DE UTEBO","P.º Berbegal, 22",50180,"976 78 59 62","976 78 60 07","eoiutebo@educa.aragon.es"]
[50011045,"Zaragoza","Escuela Oficial de Idiomas","Tarazona","DE TARAZONA","Cl. Iglesias, 1",50500,"976 64 24 21","976 64 30 04","eoitarazona@educa.aragon.es"]
[50011057,"Zaragoza","Centro Privado de Educación Infantil Primaria y Secundaria","Zaragoza","LA ALFRANCA","Avda. De Movera, 147",50194,"976 57 30 30","976 57 30 30","educacion@colegioingleszaragoza.org"]
[50011069,"Zaragoza","Instituto de Educación Secundaria","Casetas","ÁNGEL SANZ BRIZ","Avenida de la Constitución, 31",50620,"976 78 72 35","976 79 20 55","iesasbcasetas@educa.aragon.es"]
[50011070,"Zaragoza","Instituto de Educación Secundaria","Pedrola","SIGLO XXI","Avda. Virgen Del Pilar, S/N",50690,"976 61 91 31","976 61 91 82","iespedrola@educa.aragon.es"]
[50011100,"Zaragoza","Centro Privado de Educación Infantil Primaria y Secundaria","Zaragoza","SAGRADO CORAZÓN-MONCAYO","Juan Pablo II, 58",50009,"976 75 12 59","976 45 81 30","director.zm@corazonistas.com"]
[50011124,"Zaragoza","Colegio Rural Agrupado","Lumpiaque","DE LUMPIAQUE","Cl. Muntadas, 3",50295,"976 60 16 17","976 60 16 17","cralumpiaque@educa.aragon.es"]
[50011136,"Zaragoza","Colegio Rural Agrupado","Sabiñán","EL ENEBRO","Cl. San Roque, 24",50299,"976 82 55 60",null,"crasabinan@educa.aragon.es"]
[50011148,"Zaragoza","Colegio Rural Agrupado","Gotor","ARANDA-ISUELA","Cl. Convento, S/N",50257,"976 82 02 12","976 82 02 12","cragotor@educa.aragon.es,crajarque@educa.aragon.es"]
[50011151,"Zaragoza","Colegio Rural Agrupado","Maluenda","TRES RIBERAS","Cl. Doctor García Sancho, 7",50340,"976 89 02 89","976 89 02 89","cramaluenda@educa.aragon.es"]
[50011161,"Zaragoza","Colegio Rural Agrupado","Aniñón","RÍO RIBOTA","Avda. Constitución, S/N",50313,"976 89 61 28","976 89 61 28","craaninon@educa.aragon.es"]
[50011173,"Zaragoza","Colegio Rural Agrupado","Moros","EL MIRADOR","Cl. Torruntero, S/N",50215,976895144,"976 87 47 87","cramoros@educa.aragon.es"]
[50011185,"Zaragoza","Colegio Rural Agrupado","Ibdes","MESA-PIEDRA-ALTO CAMPILLO","Cl. Puerta De La Aldea, S/N",50236,"976 87 27 69","976 87 27 69","craibdes@educa.aragon.es"]
[50011197,"Zaragoza","Colegio Rural Agrupado","Used","CERRO DE SANTA CRUZ","CTRA. DE ATEA, S/N",50374,"976 80 91 12",976809112,"craused@educa.aragon.es"]
[50011203,"Zaragoza","Colegio Rural Agrupado","Azuara","L' ALBARDÍN","Cl. Extramuros, 55-57",50140,"976 83 40 88",null,"craazuara@educa.aragon.es"]
[50011215,"Zaragoza","Colegio Rural Agrupado","Erla","MONLORA","Pza. Autonomía, S/N",50611,"976 69 41 61","976 69 41 61","craerla@educa.aragon.es"]
[50011227,"Zaragoza","Colegio Rural Agrupado","Novallas","BÉCQUER","CL. Serafín Villarroya Lahoz s/n",50510,"976 19 81 49","976 19 81 49","cranovallas@educa.aragon.es"]
[50011239,"Zaragoza","Colegio Rural Agrupado","Figueruelas","ÍNSULA BARATARIA","P.º La Nevería, S/N",50639,"976 65 62 40","976 65 62 40","crafigueruelas@educa.aragon.es"]
[50011240,"Zaragoza","Colegio Rural Agrupado","Pinsoro","LUIS BUÑUEL","Cl. Corneta, S/N",50694,"976 67 38 52","976 67 38 52","crapinsoro@educa.aragon.es"]
[50011252,"Zaragoza","Instituto de Educación Secundaria","Ateca","ZAURÍN","P.º Manubles, 6",50200,"976 84 21 10","976 84 21 03","iesateca@educa.aragon.es"]
[50011264,"Zaragoza","Conservatorio Profesional de Música","Zaragoza","DE ZARAGOZA","Cl. San Vicente De Paúl, 39",50001,"976 20 19 28","976 20 22 05","cpmzaragoza@educa.aragon.es"]
[50011288,"Zaragoza","Centro Público Integrado","Cadrete","CASTILLO QADRIT","CL. Miguel Servet,3",50420,976125079,976125079,"ceipcastilloqadrit@educa.aragon.es"]
[50011291,"Zaragoza","Colegio Rural Agrupado","Fuendejalón","LAS VIÑAS","Afueras s/n",50570,"976 86 21 31","976 86 21 31","crafuendejalon@educa.aragon.es"]
[50011306,"Zaragoza","Colegio de Educación Infantil y Primaria","Alfamén","MATEO VALERO","Ctra. De Longares, 57",50461,"976 62 62 42","976 62 62 42","cpalfamen@educa.aragon.es"]
[50011318,"Zaragoza","Colegio Rural Agrupado","Ariza","PUERTA DE ARAGÓN","Cl. Pilar, 12",50220,"976 84 52 71","976 84 52 71","craariza@educa.aragon.es"]
[50011321,"Zaragoza","Colegio Rural Agrupado","Bujaraloz","L' ALBADA","Ctra. General, S/N",50177,"976 17 31 70","976 17 31 70","crabujaraloz@educa.aragon.es"]
[50011331,"Zaragoza","Colegio Rural Agrupado","Burgo de Ebro (El)","MARÍA MOLINER","CL. CRISTINA ALBERDI, S/N",50730,"976 10 52 53","976 10 52 53","craburgo@educa.aragon.es"]
[50011343,"Zaragoza","Colegio Rural Agrupado","Fábara","FABARA-NONASPE DOS AGUAS","Avda. La Jota Aragonesa, S/N",50793,"976 63 50 44","976 63 50 44","crafabara@educa.aragon.es"]
[50011355,"Zaragoza","Colegio Rural Agrupado","Gelsa","DEL EBRO","Cl. Buen Suceso, S/N",50786,"976 17 66 26",null,"cragelsa@educa.aragon.es"]
[50011367,"Zaragoza","Colegio Rural Agrupado","Frasno (El)","VICORT-ISUELA","Avda. Bardají, 42",50320,"976 60 93 76","976 60 93 76","craelfrasno@educa.aragon.es"]
[50011379,"Zaragoza","Colegio Rural Agrupado","Magallón","LA HUECHA","Pza. Aragón, 12",50520,"976 85 81 78","976 85 81 78","cramagallon@educa.aragon.es"]
[50011380,"Zaragoza","Colegio Rural Agrupado","Muel","ORBA","Cl. José Antonio, 24",50450,"976 14 03 87","976 14 03 87","craorba@educa.aragon.es"]
[50011392,"Zaragoza","Colegio Rural Agrupado","Paniza","LA CEPA","Ctra. De Aladrén, S/N",50480,"976 62 29 40","976 62 29 40","crapaniza@educa.aragon.es"]
[50011409,"Zaragoza","Colegio Rural Agrupado","Villafranca de Ebro","LA SABINA","Avda. Zaragoza, 23",50174,"976 16 71 83","976 16 71 83","cravillafrancae@educa.aragon.es"]
[50011410,"Zaragoza","Colegio Rural Agrupado","Sádaba","LOS BAÑALES","Avda. General Carlos De Castro, 1",50670,"976 67 52 90","976 67 52 90","crasadaba@educa.aragon.es"]
[50011422,"Zaragoza","Colegio Rural Agrupado","Leciñena","BAJO GÁLLEGO","Avda. Zaragoza, 84",50160,"976 16 80 84","976 168084","cralecinena@educa.aragon.es"]
[50011434,"Zaragoza","Centro Público de Educación de Personas Adultas","Fuentes de Ebro","DE FUENTES DE EBRO","P.º Del Justicia, S/N",50740,"976 16 90 90","976 16 91 72","cpeafuentes@educa.aragon.es"]
[50011446,"Zaragoza","Centro Público de Educación de Personas Adultas","Zaragoza","GÓMEZ LAFUENTE","Cl. Las Armas, 22",50003,"976 46 91 46","976 44 03 52","cpeaglazaragoza@educa.aragon.es"]
[50011458,"Zaragoza","Centro Público de Educación de Personas Adultas","Zaragoza","CASA CANAL","P.º Cuellar, 6",50006,"976 27 88 86","976 25 35 56","cpeaccazaragoza@educa.aragon.es"]
[50011461,"Zaragoza","Centro Público de Educación de Personas Adultas","Puebla de Alfindén (La)","ALFINDÉN","Cl. Barrio Nuevo, 37",50171,"976 10 85 71","976 10 85 71","cpeaalfinden@educa.aragon.es"]
[50011471,"Zaragoza","Centro Público de Educación de Personas Adultas","Almunia de Doña Godina (La)","DE LA ALMUNIA DE DOÑA GODINA","C/Mayor, 7",50100,"976 81 25 46","976 81 25 46","cpeaalmunia@educa.aragon.es"]
[50011483,"Zaragoza","Centro Público de Educación de Personas Adultas","Daroca","DE DAROCA","PZA. COMUNIDAD DE DAROCA, 2",50360,"976 80 05 48","976 80 05 48","cpeadaroca@educa.aragon.es"]
[50011495,"Zaragoza","Conservatorio Elemental de Música","Zaragoza","CONSERVATORIO MUNICIPAL ELEMENTAL MÚSICA","Cl. Domingo Miral, 3",50009,"976 72 49 60","976 56 10 36"]
[50011501,"Zaragoza","Conservatorio Profesional de Danza","Zaragoza","CONSERVATORIO MUNICIPAL PROFESIONAL DE DANZA","Cl. Domingo Miral, 3",50009,"976 72 17 30","976 72 17 32"]
[50011513,"Zaragoza","Instituto de Educación Secundaria","Tarazona","TUBALCAÍN","Avda. La Paz, S/N",50500,"976 64 29 15","976 64 42 02","iestarazona@educa.aragon.es"]
[50011525,"Zaragoza","Instituto de Educación Secundaria","Zaragoza","MIGUEL CATALÁN","P.º Isabel La Católica, 3",50009,"976 40 20 04","876 11 06 62","iesmcazaragoza@educa.aragon.es"]
[50011537,"Zaragoza","Colegio de Educación Especial","Zaragoza","RINCÓN DE GOYA","CL. RINCÓN DE GOYA, 4",50006,"976 25 55 45","976 25 53 96","ceergzaragoza@educa.aragon.es"]
[50011549,"Zaragoza","Escuela Pública de Música y Danza","Zaragoza","ESCUELA DE MÚSICA Y DANZA","Cl. Domingo Miral, 5",50009,"976 72 17 99"]
[50011550,"Zaragoza","Instituto de Educación Secundaria","Zaragoza","RAMÓN Y CAJAL","CL. RAMÓN PIGNATELLI, 102",50004,"976 40 51 80","976 28 50 75","iesryczaragoza@educa.aragon.es"]
[50011562,"Zaragoza","Colegio de Educación Infantil y Primaria","Zaragoza","ANTONIO BELTRÁN MARTÍNEZ","Avda. Vía Hispanidad, 68",50017,"976 33 28 64","976 33 28 64","cpabmzaragoza@educa.aragon.es"]
[50011574,"Zaragoza","Centro Privado de Formación Profesional Específica","Zaragoza","CPA-SALDUIE","AVDA. RAMÓN SAÍNZ DE VARANDA 1-3",50009,"976 52 27 41","976 06 88 89","info@cpasalduie.com"]
[50011598,"Zaragoza","Escuela Privada de Música","Zaragoza","SANTA MARÍA","Cl. Pedro Joaquín Soler, 8",50001,"976 29 38 71",null,"cmusicasantamaria@irsmaria.e.telefonica.net"]
[50011604,"Zaragoza","Centro Privado Autorizado Profesional de Música","Zaragoza","CITTÁ DI ROMA","Cl. Pablo Remacha, 13",50013,"976 59 71 36","976 42 94 33","cdroma@able.es"]
[50011616,"Zaragoza","Centro Privado de Formación Profesional Específica","Zaragoza","ALFRED","Cami. De La Mosquetera, 45",50010,"976 32 21 09","976 32 21 09","secretaria@centrosalfred.com"]
[50011628,"Zaragoza","Centro Privado de Educación Infantil","Zaragoza","TIC TAC","Cl. Pedro Arnal Cavero, 30",50014,"976 28 54 99"]
[50011631,"Zaragoza","Centro Privado de Formación Profesional Específica","Zaragoza","MARCO ALDANY TALLER DE PELUQUEROS","Cl. Via Pignatelli, 11",50007,"976 38 43 97",null,"zaragoza_marcoaldany@hotmail.com"]
[50011641,"Zaragoza","Centro Privado Autorizado Elemental de Música","Zaragoza","ANGEL MINGOTE","Cl. Andador De Los Hudies, 6-E, Bajos",50009,"976 56 84 84","976 35 70 61","angelmingote@gmail.com"]
[50011653,"Zaragoza","Centro Privado Autorizado Elemental de Música","Zaragoza","RUBINSTEIN","Cl. Barcelona, 17",50017,"976 33 23 46",null,"academiarubinstein@msn.com"]
[50011665,"Zaragoza","Sección de Instituto de Educación Secundaria","Maella","MAR DE ARAGÓN","Cl. Zaragoza, 50",50710,"976 63 88 00","976 63 83 64","iesmaella@educa.aragon.es"]
[50011677,"Zaragoza","Instituto de Educación Secundaria","Mallén","VALLE DEL HUECHA","Avda. De La Libertad, 25",50550,"976 86 14 09","976 86 14 13","iesmallen@educa.aragon.es"]
[50011689,"Zaragoza","Sección de Instituto de Educación Secundaria","Mequinenza","BAJO CINCA","Ctra. De Fraga, S/N",50170,"974 46 50 73","974 46 50 73","iesmequinenza@educa.aragon.es"]
[50011690,"Zaragoza","Sección de Instituto de Educación Secundaria","Sádaba","REYES CATÓLICOS","Avda. Pirineos, S/N",50670,"976 67 54 25","976 67 55 79","iessadaba@educa.aragon.es"]
[50011707,"Zaragoza","Sección de Instituto de Educación Secundaria","Sástago","BENJAMÍN JARNÉS","Cl. Luis Gracia, S/N",50780,"976 17 21 92","976 17 20 98","iessastago@educa.aragon.es"]
[50011719,"Zaragoza","Sección de Instituto de Educación Secundaria","Belchite","BENJAMÍN JARNÉS","Ronda Zaragoza, S/N",50130,"976 83 90 75","976 83 90 75","iesbelchite@educa.aragon.es"]
[50011720,"Zaragoza","Sección de Instituto de Educación Secundaria","Bujaraloz","MAR DE ARAGÓN","Cl. La Luna, S/N",50177,"976 17 32 20","976 17 93 12","iesbujaraloz@educa.aragon.es"]
[50011732,"Zaragoza","Instituto de Educación Secundaria","Caspe","MAR DE ARAGÓN","CL. JOSÉ MARÍA ALBAREDA, S/N",50700,"976 63 02 08","976 63 08 43","iescaspe@educa.aragon.es"]
[50011756,"Zaragoza","Centro Privado de Educación Infantil","Zaragoza","PELUCHE","Cl. Pedro Cerbuna, 41",50009,"976 56 00 05"]
[50011771,"Zaragoza","Centro Privado de Educación Infantil","Garrapinillos","GARRAPINIÑOS","Cl. Barón De La Linde, 14",50190,"976 23 90 51","976 58 09 21"]
[50011781,"Zaragoza","Centro Privado de Formación Profesional Específica","Zaragoza","VALLE DE TENA","P.º Isabel La Católica, 5-7",50009,"976 55 03 65","976 56 94 43","secretaria@fpvalledetena.com"]
[50011793,"Zaragoza","Centro Privado de Formación Profesional Específica","Zaragoza","ARTE-MISS ZARAGOZA, CENTRO 1","Cl. Padre Manjón, 38-40",50010,"976 33 11 88","976 33 11 20","educacion@arte-miss.com"]
[50011801,"Zaragoza","Colegio de Educación Infantil y Primaria","Zaragoza","JOSÉ ANTONIO LABORDETA SUBÍAS","Pza. Pedro Saputo, 7",50018,"976 73 78 42","976 737842","cpjalzaragoza@educa.aragon.es"]
[50011811,"Zaragoza","Centro Privado de Educación Infantil","Zaragoza","CHIQUITINES II","AVDA. SANTA ISABEL, 20",50003,"976 57 73 70"]
[50011847,"Zaragoza","Colegio de Educación Infantil y Primaria","Zaragoza","JOSEFA AMAR Y BORBÓN","CL. Julio García Condoy, 50",50018,"976 732450","976 51 80 59","cpavzaragoza@educa.aragon.es"]
[50011872,"Zaragoza","Escuela de Educación Infantil","Zaragoza","VILLACAMPA","Cl. Villacampa, 32-36",50015,"976 52 32 83","976 39 90 71","einfantil-villacampa@zaragoza.es"]
[50017001,"Zaragoza","Centro Privado de Educación Infantil","Zaragoza","ANDARINES","Cl. Matías Pastor Sancho, 2 , Blo. 4-5",50015,"976 52 32 60"]
[50017011,"Zaragoza","Centro Privado de Educación Infantil","Zaragoza","EDUCANDO","Cl. Río Cinca, 35",50003,"976 28 29 97",null,"ceieducando@gmail.com"]
[50017023,"Zaragoza","Escuela Privada de Música y Danza","Zaragoza","ALMOZARA","Avda. Puerta Sancho, 14",50003,"976 44 38 04",null,"fernandoromeroterrel@gmail.com"]
[50017035,"Zaragoza","Escuela de Educación Infantil","Biota","DE BIOTA","Cl. De La Fuente, S/N",50695,"976 67 00 14","976 67 02 87","ayto.biota@terra.es"]
[50017047,"Zaragoza","Centro Privado Autorizado Elemental de Música","Zaragoza","ACTUR","Cl. Poeta León Felipe, 19-21",50018,"976 74 40 07","976 74 40 07","fernandoromeroterrel@gmail.com"]
[50017059,"Zaragoza","Centro Privado Autorizado Superior de Diseño","Zaragoza","CENTRO DE DISEÑO HACER CREATIVO","Avda. Alcalde Sáinz De Varanda, 1 - 3",50009,"976 40 03 25","976 56 49 52"]
[50017060,"Zaragoza","Escuela Privada de Música y Danza","Zaragoza","FEDERICO CHOPÍN","Urb. Parque Roma, Local 12-B",50010,"976 33 34 35",null,"chopin@chopinzaragoza.com"]
[50017072,"Zaragoza","Centro Público Integrado","Zaragoza","PARQUE GOYA","CL. EL COLOSO, 5",50015,"976 10 63 88","976 10 63 88","cppgzaragoza@educa.aragon.es"]
[50017084,"Zaragoza","Centro Privado de Educación Infantil","Calatayud","PEQUEAYUD","Cl. Fernández Ardavín, 3",50300,"976 88 22 31"]
[50017096,"Zaragoza","Centro Privado de Formación Profesional Específica","Zaragoza","ARSENIO JIMENO","Cl. Eduardo Jimeno Correas, S/N",50018,"976 70 05 00","976 70 05 01","info@centroformacion.ugt.org"]
[50017102,"Zaragoza","Extensión de Escuela Oficial de Idiomas","Zaragoza","Nº 1","CL. SAN VICENTE FERRER, 6",50011,"976 33 18 03","976 31 28 00","extension.eoi1z@educa.aragon.es"]
[50017114,"Zaragoza","Extensión de Escuela Oficial de Idiomas","Zuera","FERNANDO LÁZARO CARRETER","Cl. Puilatos, S/N",50800,"976 69 04 83","976 69 04 83","eoizuera@educa.aragon.es"]
[50017126,"Zaragoza","Extensión de Escuela Oficial de Idiomas","Caspe","DE ALCAÑIZ","Cl. José Mª. Albareda, 4",50700,"976 63 02 08","976 63 08 43","eoialcaniz@educa.aragon.es"]
[50017138,"Zaragoza","Centro Privado de Educación Infantil","Zaragoza","LA PEQUEÑA COMETA","Cl. Ildefonso Manuel Gil, 37",50018,"976 73 04 72"]
[50017141,"Zaragoza","Escuela de Educación Infantil","Herrera de los Navarros","ZAGALICOS","Cl. Revés, 43",50150,"976 14 31 06","976 14 31 51","cpherrera@educa.aragon.es"]
[50017151,"Zaragoza","Escuela de Educación Infantil","Calatorao","DE CALATORAO","Cl. Fernando El Católico, 2",50280,"976 60 78 04","976 81 36 06","calatorao1@terra.es"]
[50017163,"Zaragoza","Centro Privado de Educación Infantil","Zaragoza","FUNDACIÓN EL REFUGIO","Cl. Crespo De Agüero, 1",50004,"976 22 18 37","976 22 18 37"]
[50017175,"Zaragoza","Centro Privado de Educación Infantil","Zaragoza","NTRA. SRA. DE LOS DOLORES","Cl. Privilegio De La Unión, 39",50013,"976 49 97 03","976 48 02 40","patronato@albadanet.com"]
[50017187,"Zaragoza","Escuela Pública de Música","Alagón","MIGUEL ARNAUDAS","Pza. San Antonio",50630,"976 61 03 00","976 61 05 65","info@alagon.net"]
[50017199,"Zaragoza","Escuela Pública de Música","Utebo","ESCUELA DE MÚSICA","AVDA. DE NAVARRA, 12 (CENTRO POLIFUNCION)",50180,"976 79 20 60","976 79 20 61","cmoliner@ayto-utebo.es"]
[50017205,"Zaragoza","Centro Privado de Educación Infantil","Casetas","NUESTRA SEÑORA DE LA ROSA","CL. SANTIAGO CASTILLO, 11",50620,"976 77 10 49"]
[50017217,"Zaragoza","Centro Privado de Educación Infantil","Villamayor","ALDEAS INFANTILES SOS DE ESPAÑA","Cami. Del Molino, 100",50162,"976 58 28 09"]
[50017229,"Zaragoza","Centro Privado de Educación Infantil","Zaragoza","BOLANDRINA","Cl. Refugio, 9, Local",50001,"976 20 39 24",null,"bolandrina@hotmail.com"]
[50017230,"Zaragoza","Escuela Pública de Música","Ejea de los Caballeros","ESCUELA DE MÚSICA","Cl. Joaquín Costa, 29",50600,"976 67 77 69","976 67 77 70","escuelademusica@aytoejea.es"]
[50017242,"Zaragoza","Centro Privado de Educación Infantil","Zaragoza","EL CARMEN","CL. DOCTOR FLEMING, 15; BAJO",50004,"976 40 45 50"]
[50017254,"Zaragoza","Centro Privado de Educación Infantil","Zaragoza","SIERVAS DE LOS POBRES","Cl. Pablo Parellada, 44",50007,"976 27 12 42",null,"siervaspobres@terra.com"]
[50017266,"Zaragoza","Centro Privado de Educación Infantil","Zaragoza","MUÑECOS","Cl. Mesones De Isuela, 62",50007,"976 38 73 54"]
[50017278,"Zaragoza","Escuela Pública de Música","Pina de Ebro","ESCUELA DE MÚSICA","Cl Fernando El Católico, 20",50750,"976 16 50 07","976 15 55 88","aytopina@terra.es"]
[50017281,"Zaragoza","Escuela Pública de Música","Calatayud","JOSÉ DE NEBRA","Cl Baja Del Sepulcro, 2",50300,"976 88 59 24","976 88 56 48"]
[50017291,"Zaragoza","Centro Privado de Educación Infantil","Zaragoza","NUESTRA SEÑORA DE LA PAZ","Cl La Salud, 11",50007,"976 27 27 89"]
[50017308,"Zaragoza","Centro Privado de Educación Infantil","Zaragoza","LA VIRGEN NIÑA","Cami. De Cuarte, 71",50007,"976 37 92 96"]
[50017311,"Zaragoza","Escuela Superior de Diseño","Zaragoza","DE ARAGÓN","CL. MARÍA ZAMBRANO Nº 3",50018,"976 23 75 45","976 21 56 29","esdiseza@educa.aragon.es,esda@educa.aragon.es"]
[50017321,"Zaragoza","Escuela de Educación Infantil","Pinseque","DE PINSEQUE","P.º DEL PALACIO, 8",50298,"976 61 71 98","976 65 16 91","eeipinseque@gmail.com"]
[50017333,"Zaragoza","Centro Privado de Educación Infantil","Zaragoza","SOLETES","Avda. Santa Isabel, 166",50016,"976 57 09 58"]
[50017345,"Zaragoza","Centro Privado de Educación Infantil","Zaragoza","EL MANZANO","Cl. Emilia Pardo Bazán, 12- Local-",50018,"976 06 30 63"]
[50017369,"Zaragoza","Colegio de Educación Especial","Zaragoza","ANGEL RIVIÈRE","CL. José Galiay, 4",50018,"976 49 39 03","976 42 91 62","ceeangelriviere@educa.aragon.es"]
[50017370,"Zaragoza","Escuela Privada de Música","Zaragoza","ESCUELA POPULAR DE MÚSICA","Cl. Jusepe Martínez, 17. Bajo",50003,"976 29 13 38","976 20 33 87","epmzgz@gmail.com"]
[50017382,"Zaragoza","Centro Privado de Educación Infantil","Zaragoza","CHICOTES","Cl. Balbino Orensanz, 55",50014,"976 39 52 21"]
[50017394,"Zaragoza","Escuela de Educación Infantil","Puebla de Alfindén (La)","JUNQUICOS","CL. CIPRIANO GONZÁLEZ, 5",50171,"976 10 96 76","976 10 70 76","junquicos@puebladealfinden.org"]
[50017400,"Zaragoza","Escuela Privada de Música","Zaragoza","PABLO NASSARRE","Cl. Maestro Estremiana, 6",50006,"976 25 08 48","976 25 08 48"]
[50017412,"Zaragoza","Escuela Pública de Música","Almunia de Doña Godina (La)","ESCUELA DE MÚSICA","Cl. San Juan (Casa De Cultura)",50100,"976 60 00 76","976 31 24 51"]
[50017424,"Zaragoza","Centro Privado de Educación Infantil","Zaragoza","TAMBOR","Cl. Mariana Pineda, 22",50018]
[50017448,"Zaragoza","Colegio de Educación Infantil y Primaria","Muela (La)","GIL TARÍN","Camino de las Banqueras nº 2",50196,976144255,976144255,"cpgtlamuela@educa.aragon.es"]
[50017451,"Zaragoza","Colegio de Educación Infantil y Primaria","Utebo","PARQUE EUROPA","CL. Tenerife, s/n",50180,"976 787 480","976 770 727","cputebo3@educa.aragon.es"]
[50017461,"Zaragoza","Centro Privado de Educación Infantil","Zaragoza","CHIP Y CHOP","AVDA. SALVADOR ALLENDE, 44",50015,"976 74 27 07"]
[50017503,"Zaragoza","Centro Privado de Formación Profesional Específica","Zaragoza","OCÉANO ATLÁNTICO","CL. Francisco Oliván Bayle, 4",50015,"976 10 64 51",null,"formacion@oceanoatlantico.org"]
[50017515,"Zaragoza","Centro Privado Autorizado de Enseñanzas Deportivas","Utebo","CENTRO NACIONAL DE ESTUDIOS E INVESTIGACIÓN DE FÚTBOL SALA (CENEIFS)","Plaza Fueros de Aragón s/n (Centro Cultural María Moliner)",50180,976488991]
[50017527,"Zaragoza","Escuela de Educación Infantil","Zaragoza","PIRINEOS","CL. VALLE DE BROTO, S/N",50015,"976 51 33 23","976 39 90 71","einfantil-pirineos@zaragoza.es"]
[50017539,"Zaragoza","Escuela de Educación Infantil","Zaragoza","LOS VIENTOS","CL. POETA LUÍS CERNUDA",50018,"976 51 57 50","976 39 90 71","einfantil-vientos@zaragoza.es"]
[50017540,"Zaragoza","Escuela de Educación Infantil","Almunia de Doña Godina (La)","DE LA ALMUNIA DE DOÑA GODINA","CL. GOYA, 2-4",50100,"976 81 20 41","976 81 24 51","almunia@dpz.es"]
[50017552,"Zaragoza","Escuela de Educación Infantil","Tauste","DE TAUSTE","ADVA. OBISPO JOSÉ MARÍA CONGET, S/N",50660,"976 85 40 01","976 85 50 00","oficinas.tauste@dpz.es"]
[50017564,"Zaragoza","Escuela de Educación Infantil","Santa Engracia","DE SANTA ENGRACIA","CTRA. DE TAUSTE - SANTA ENGRACIA, S/N",50669,"976 85 67 13","976 85 68 05","cpsengracia@educa.aragon.es"]
[50017576,"Zaragoza","Escuela de Educación Infantil","Sabiñán","DE SABIÑÁN","Avda. San Roque, 22",50299,"976 82 60 43","976 82 52 30","savinan@dpz.es"]
[50017588,"Zaragoza","Centro Privado de Educación Infantil","San Mateo de Gállego","PEQUES","CL. SAN FRANCISCO DE PAULA, 55, BAJOS",50840,"976 68 42 96"]
[50017591,"Zaragoza","Escuela Privada de Música","Zaragoza","ENCLAVE DE AR-T","CL. PREVISIÓN SOCIAL, 18, LOCAL",50008,"976 13 44 85",null,"administrador@enclavedeart.com"]
[50017606,"Zaragoza","Escuela de Educación Infantil","Utebo","LA COMETA","CL. LUÍS BUÑUEL, 7",50180,"976 46 28 36","976 46 28 36"]
[50017618,"Zaragoza","Escuela Pública de Música","Uncastillo","ESCUELA MUNICIPAL DE MÚSICA","CL.AFUERAS, S/N, PLTA. 1ª, EDIFICIO ESCOLAR",50678,"976 67 90 01","976 67 94 97"]
[50017631,"Zaragoza","Escuela de Educación Infantil","Alagón","DE ALAGÓN","Avda. de la Portalada, 24",50630,"976 61 31 04","976 61 05 65","ayuntamiento@alagon.net"]
[50017643,"Zaragoza","Centro Privado de Educación Infantil","Cartuja Baja","LA CARTUJA BAJA","CL. AUTONOMÍA DE ARAGÓN, 11",50720]
[50017655,"Zaragoza","Colegio de Educación Infantil y Primaria","Ainzón","EL POMILLO","CL. Demetrio Galán Bergua s/n",50570,976868676,"976 86 86 76","cpainzon@educa.aragon.es"]
[50017667,"Zaragoza","Colegio de Educación Infantil y Primaria","Longares","DIEGO ESCOLANO","AVDA. de valencia s/n",50460,"976 14 24 18",null,"cplongares@educa.aragon.es"]
[50017679,"Zaragoza","Colegio de Educación Infantil y Primaria","Alhama de Aragón","PABLO LUNA","AVDA. ARAGÓN, 19",50230,"976 84 00 24",976840024,"cpalhama@educa.aragon.es"]
[50017680,"Zaragoza","Colegio de Educación Infantil y Primaria","Pina de Ebro","RAMÓN Y CAJAL","Ramón y Cajal 60",50750,976165347,null,"cppina@educa.aragon.es"]
[50017692,"Zaragoza","Escuela de Educación Infantil","Mallén","DE MALLÉN","AVDA. DE LA LIBERTAD, S/N",50550,"976 85 01 96","976 84 05 25","aytomallen@aytomallen.com"]
[50017709,"Zaragoza","Escuela Pública de Música","Gallur","DE GALLUR","CL. CONSTITUCIÓN, S/N",50650,"976 857 300","976 86 40 65","casacultura@gallur.es"]
[50017710,"Zaragoza","Colegio de Educación Infantil y Primaria","Zaragoza","MONTECANAL","CL. Tomás de Lezaún, 15",50012,"976 75 69 25",976756925,"cpmontecanal@educa.aragon.es"]
[50017734,"Zaragoza","Escuela de Educación Infantil","Zuera","LAS BALSAS","CL. VEINTITRÉS DE ABRIL, 20",50800,"976 69 04 28","976 68 13 07","culturzuera@hotmail.com"]
[50017746,"Zaragoza","Escuela de Educación Infantil","Caspe","DE CASPE","AVDA. RÍO EBRO, S/N",50700,"976 63 14 30","976 63 90 69","gesclan@terra.es"]
[50017758,"Zaragoza","Escuela de Educación Infantil","Daroca","PINOCHO","CL. LAMINEROS, S/N",50360,"976 80 03 96","976 80 03 62","alcaldia@daroca.e.telefonica.net"]
[50017761,"Zaragoza","Centro Privado Autorizado de Enseñanzas Deportivas","Remolinos","CENTRO NACIONAL DE ESTUDIOS DE TÉCNICOS DEPORTIVOS (CENETED). ESPECIALIDAD FÚTBOL","CL. PADRE ARRUPE, 13",50637,"976 087 068","976 46 03 05","franciscofernandofutbol@hotmail.com"]
[50017771,"Zaragoza","Centro Privado de Educación Infantil","Zaragoza","SCHOOLHOUSE VÍA IBÉRICA","CL. VÍA IBÉRICA, 67",50012,"976 56 99 00",null,"mar@pequeninos.net"]
[50017783,"Zaragoza","Escuela de Educación Infantil","Cadrete","ARCO-IRIS","AVDA. ZARAGOZA, 2",50420,"976 12 65 72","976 12 66 09"]
[50017795,"Zaragoza","Escuela Pública de Música","Villanueva de Gállego","EVARISTO BERNAL","PZA. ESPAÑA, 2",50830,"976 744 007",null,"villanueva@acamusica.com"]
[50017801,"Zaragoza","Centro Privado de Educación Infantil","Zaragoza","CU CU-TAS TAS","CL. MARÍA MONTESSORI, 12",50018,"976 73 39 44"]
[50017825,"Zaragoza","Escuela de Educación Infantil","Escatrón","DE ESCATRÓN","CL. ESCUELAS, 2",50790,"976 17 00 06","976 17 10 25","escatron@dpz.es"]
[50017837,"Zaragoza","Escuela de Educación Infantil","Tarazona","DE TARAZONA","AVDA. DE LA ESTACIÓN, 8",50500,"976 64 11 41","976 19 90 54","bsancho@tarazona.es"]
[50017849,"Zaragoza","Centro Privado de Educación Infantil","Zaragoza","EL TREN CHU-CHU","CL. MATILDE SANGÜESA, 9-11",50014,"976 393 046",null,"centroeltrenchuchu@gmail.com"]
[50017850,"Zaragoza","Centro Privado de Educación Infantil","Casetas","EL DUENDE DEL BOSQUE","CL. SANTIAGO CASTILLO, 4",50620,"976 787 520",null,"el_duende_del_bosque@hotmail.com"]
[50017862,"Zaragoza","Colegio de Educación Infantil y Primaria","Zaragoza","AGUSTINA DE ARAGÓN","Eugenio Lucas nº 14",50018,"976 79 94 99",976506110,"cpaarzaragoza@educa.aragon.es"]
[50017874,"Zaragoza","Colegio de Educación Infantil y Primaria","Zaragoza","EL ESPARTIDERO","CL. DIECISÉIS DE JULIO, 46 (Bº STA.ISABEL)",50016,976582061,"976 58 20 61","cpespartidero@educa.aragon.es"]
[50017886,"Zaragoza","Instituto de Educación Secundaria","Zaragoza","LA AZUCARERA","CL. Matilde Sangüesa, 53",50015,976525380,"976 47 84 06","iesazuzaragoza@educa.aragon.es"]
[50017898,"Zaragoza","Colegio de Educación Infantil y Primaria","Puebla de Alfindén (La)","REINO DE ARAGÓN","AVDA. CORTES DE ARAGÓN, 111",50171,976108232,976108232,"cpreinoaragon@educa.aragon.es"]
[50017904,"Zaragoza","Colegio de Educación Infantil y Primaria","San Mateo de Gállego","GALO PONTE","CL. Huesca, 33",50840,976683030,"976 68 30 30","cpsmateo@educa.aragon.es"]
[50017916,"Zaragoza","Colegio de Educación Infantil y Primaria","María de Huerva","SAN ROQUE","AVDA. de Zaragoza s/n",50430,"976 12 42 11","976 12 42 11","ceipsanroque@educa.aragon.es"]
[50017931,"Zaragoza","Escuela de Educación Infantil","Burgo de Ebro (El)","LA COMETA","CL. ESCUELAS, 8",50730,"976 10 50 83","976 10 53 51","ayuntamiento@elburgodeebro.es"]
[50017941,"Zaragoza","Centro Privado de Educación Infantil","Zaragoza","EL BARQUITO DE PAPEL","CL. DAROCA, 42-44",50017,976535762,null,"barquitodepapelsm@yahoo.es"]
[50017953,"Zaragoza","Escuela de Educación Infantil","Maluenda","BLANCANIEVES","AVDA. DOCTOR GARCÍA SANCHO, 7",50340,"976 89 30 07","976 89 32 73","maluenda@dpz.es"]
[50017965,"Zaragoza","Escuela de Educación Infantil","Boquiñeni","DE BOQUIÑENI","CL. TENOR FLETA, S/N",50641,"976 65 22 01","976 65 13 37","boquinen@dpz.es"]
[50017977,"Zaragoza","Escuela de Educación Infantil","Brea de Aragón","DE BREA DE ARAGÓN","CL. CAYO VELA, S/N",50246,"976 82 46 41","976 82 44 19","brea@dpz.es"]
[50017989,"Zaragoza","Escuela de Educación Infantil","Ricla","NERTÓBRIGA","CL. JOAQUÍN ARTIGAS \"EL PÍO\", S/N",50270,"976 60 62 96","976 60 61 06","ricla@dpz.es"]
[50017990,"Zaragoza","Centro Privado de Educación Infantil","María de Huerva","MI MUNDO","CL. ESCUELAS, 7- BAJOS",50430,"976 124 679",null,"cei_mimundo@yahoo.es"]
[50018015,"Zaragoza","Centro Privado de Educación Infantil","Zaragoza","KARACOL","PZA.TAUROMAQUIA, 1",50015,"976 526 867",null,"cei.karacol@ono.com"]
[50018027,"Zaragoza","Escuela de Educación Infantil","Sádaba","DE SÁDABA","AVDA. PIRINEOS, S/N",50670,"976 67 54 33","976 67 54 28","ayuntamiento@sadaba.es"]
[50018039,"Zaragoza","Escuela de Educación Infantil","Épila","ISABEL DE ARAGÓN","PZA. DE LA CONSTITUCIÓN, 1",50290,"976 60 34 52","976 60 31 28","epila@dpz.es"]
[50018040,"Zaragoza","Escuela de Educación Infantil","Zaragoza","NUESTRA SEÑORA DE LORETO","BASE AÉREA DE ZARAGOZA, CTRA. DEL AEROPUERTO, S/N",50071,"976 70 90 90","976 70 80 17","lorena.gil@kidsco.es"]
[50018052,"Zaragoza","Centro Privado de Educación Infantil","Zaragoza","PATINETE","CL. PAMPLONA ESCUDERO, 12",50005,"976 791 916",null,"patinetezgz@hotmail.com"]
[50018064,"Zaragoza","Centro Privado de Educación Infantil","Zaragoza","MI COLE","CL. LAGO DE MILLARES, 48",50011,"876 266 235",null,"cei_micole@hotmail.com"]
[50018076,"Zaragoza","Centro Privado de Educación Infantil","Zaragoza","PEQUEÑOS MAESTROS","CL. LUDWIG VAN BEETHOVEN, 52",50012,"876 241455",null,"rosales@pequeninos.net"]
[50018088,"Zaragoza","Escuela de Educación Infantil","Mores","FRANCISCA GIL DE LA RIVA","Avda. Francisca Gil de la Riva, 42",50240,"976 82 64 94","976 82 66 01","mores@dpz.es"]
[50018091,"Zaragoza","Escuela de Educación Infantil","Ariza","COLORADO COLORÍN","CL. PILAR, 12",50220,"680 46 04 22","976 84 50 36","aytoariza@terra.es"]
[50018106,"Zaragoza","Escuela de Educación Infantil","Maella","DE MAELLA","AVDA. RAMÓN Y CAJAL, S/N",50710,"976 63 83 16","976 63 86 30","oficinas.maella@dpz.es"]
[50018118,"Zaragoza","Escuela de Educación Infantil","Quinto","DE QUINTO","P.º RONDA, 11",50770,"976 17 76 73","976 17 60 11","quinto@dpz.es"]
[50018121,"Zaragoza","Colegio de Educación Infantil y Primaria","Utebo","OCTAVUS","CL. Pablo Ruiz Picasso 9",50180,"976 46 25 39","976 46 25 43","cputebo4@educa.aragon.es"]
[50018131,"Zaragoza","Colegio de Educación Especial","Zaragoza","JEAN PIAGET","ANDADOR JEAN PIAGET 4-6",50018,"976 799 837",null,"ceepgozaragoza@educa.aragon.es"]
[50018143,"Zaragoza","Colegio de Educación Infantil y Primaria","Zaragoza","LUCIEN BRIET","Camino Juslibol 57",50015,"976 74 35 16","976 515333","cpjuszaragoza@educa.aragon.es"]
[50018155,"Zaragoza","Escuela Privada de Música y Danza","Zaragoza","MOLINER","CL. MARÍA MOLINER, 20",50007,"976 385 759",null,"moliner@acamusica.com"]
[50018167,"Zaragoza","Centro Privado de Educación Infantil","Zaragoza","DUENDEDUCA","AVDA. SALVADOR ALLENDE, 71",50015,"976 736 464",null,"duendeduca@hotmail.com"]
[50018179,"Zaragoza","Escuela de Educación Infantil","Mequinenza","LA RUELLA","CL. Q, 44",50170,"974 46 43 85","974 46 50 53","mequinenza@dpz.es"]
[50018180,"Zaragoza","Escuela de Educación Infantil","Sobradiel","LA PARVADICA","CL. CONDE, 2",50629,"976 13 96 39","976 13 91 12","sobradiel@dpz.es"]
[50018192,"Zaragoza","Escuela de Educación Infantil","Zaragoza","LA PIRAÑA","CL. FLORENTINO BALLESTEROS, 2",50002,"976 49 36 70","976 39 90 71","einfantil-pirana@zaragoza.es"]
[50018209,"Zaragoza","Centro Privado de Educación Infantil","Utebo","ZAGALICOS","CL. SAN FRANCISCO, 3",50180,"976 774 005",null,"ceizagalicos@hotmail.com"]
[50018210,"Zaragoza","Escuela de Educación Infantil","Cariñena","ARCO IRIS","Camino Platera, 2",50400,"654 62 38 49","976 62 03 75","ayuntamiento@carinena.es"]
[50018222,"Zaragoza","Escuela Privada de Música","Zaragoza","LA PAZ","CL. OVIEDO, 181",50007,"976 742 931",null,"escuelademusicalapaz@gmail.com"]
[50018234,"Zaragoza","Centro Privado de Educación Infantil","Zaragoza","LA LOCOMOTORA","CL. VALLE DE ZURIZA, 36-38, LOCAL 2",50014,"976 296 554",null,"cei.locomotora@hotmail.com"]
[50018246,"Zaragoza","Colegio de Educación Infantil y Primaria","Zaragoza","VALDESPARTERA","CL. Volver a Empezar, 7",50019,976933599,976933601,"cpvaldespartera@educa.aragon.es"]
[50018258,"Zaragoza","Colegio de Educación Infantil y Primaria","Zaragoza","MARIE CURIE","CL. Molino de las Armas, nº 57",50014,"976 47 88 41","976 47 31 06","cpmarquesc@educa.aragon.es"]
[50018261,"Zaragoza","Colegio de Educación Infantil y Primaria","Zaragoza","MIRALBUENO","CL. ENRIQUE VAL, 20",50011,"876 26 65 99","876 26 65 85","cpmiralbueno@educa.aragon.es"]
[50018271,"Zaragoza","Colegio de Educación Infantil y Primaria","Zaragoza","ROSALES DEL CANAL","CL.San Juan Bautista de la Salle, 21",50012,876241565,876241182,"cprdczaragoza@educa.aragon.es"]
[50018283,"Zaragoza","Colegio de Educación Infantil y Primaria","Cuarte de Huerva","FORO ROMANO","FORO ROMANO S/N",50410,976509824,976509824,"ceipfororomano@educa.aragon.es"]
[50018295,"Zaragoza","Centro Privado de Educación Infantil","Zaragoza","ZARAPEQUES","CL. ENRIQUE VAL, 4-LOCAL",50011,"976 508 739",null,"zarapeques@gmail.com"]
[50018301,"Zaragoza","Escuela de Educación Infantil","Borja","BALTASAR GONZÁLEZ","CL. PROLONGACIÓN LA FLORIDA",50540,"976 86 82 77","607 19 04 44","esc.inf.bgonzalez@hotmail.es"]
[50018313,"Zaragoza","Escuela de Educación Infantil","Villanueva de Gállego","ZAGALICOS","CL. CONDE ARANDA 6",50830,"976 45 13 42","976 18 04 04","zagalicos@villanuevadegallego.org"]
[50018325,"Zaragoza","Escuela de Educación Infantil","Ejea de los Caballeros","GLORIA FUERTES","CL. ERAS ALTAS, 34-50",50600,"976 67 75 56","976 66 38 16","escuelainfantil@aytoejea.es"]
[50018337,"Zaragoza","Escuela de Educación Infantil","Zaragoza","EL TREN","CL. Reino nº 5",50003,"976 28 03 60","976 39 90 71","einfantil-tren@zaragoza.es"]
[50018349,"Zaragoza","Escuela de Educación Infantil","Zaragoza","LOS IBONES","CL. ANTONIO LEYVA Nº 102",50011,"976 48 91 60","976 48 91 60","einfantil-oliver@zaragoza.es"]
[50018350,"Zaragoza","Escuela de Educación Infantil","Zaragoza","BRIOLETAS","CL. LA IGLESIA, Nº 32",50058,"976 58 85 46","976 58 85 46","einfantil-santaisabel@zaragoza.es"]
[50018362,"Zaragoza","Escuela de Educación Infantil","Zaragoza","MARÍA URREA","CL. LUIS LEGAZ LACAMBRA Nº 44",50018,"976 73 77 16","976 73 77 16","einfantil-acturnorte@zaragoza.es"]
[50018374,"Zaragoza","Escuela de Educación Infantil","Zaragoza","LA PAZ","CL. EMILIO PÉREZ VIDAL, Nº 9",50007,"976 27 23 48","976 27 23 48","einfantil-lapaz@zaragoza.es"]
[50018386,"Zaragoza","Centro Privado de Educación Infantil","Zaragoza","EL ARKA","CL GERONA 3",50007,"976 254 985",null,"cei.elarka@hotmail.com"]
[50018398,"Zaragoza","Centro Privado de Educación Infantil","Zaragoza","ZAGALINES","AVDA. PUENTE DEL PILAR/CL JESÚS, 41",50014,"976 39 10 61"]
[50018404,"Zaragoza","Escuela de Educación Infantil","Fuendejalón","DE FUENDEJALÓN","CL. AFUERAS, S/N",50529,"976 86 24 49","976 85 70 34","fuendejalon@dpz.es"]
[50018416,"Zaragoza","Instituto de Educación Secundaria","Zaragoza","PARQUE GOYA","CL. Eugenio Lucas s/n",50018,"976 506628","976 506630","iesparquegoya@educa.aragon.es"]
[50018428,"Zaragoza","Instituto de Educación Secundaria","Utebo","TORRE DE LOS ESPEJOS","Avda. Puerto Rico, 9-11",50180,976772475,976792336,"iesutebo2@educa.aragon.es"]
[50018441,"Zaragoza","Escuela de Educación Infantil","Fuentes de Ebro","DE FUENTES DE EBRO","CL. CORTES DE CADIZ Nº 6",50740,"976 16 91 20","976 16 08 32","ayuntamiento@fuentesdeebro.es"]
[50018453,"Zaragoza","Centro Privado de Educación Infantil","Zaragoza","LAS TORRES DE MONTECANAL","CL. TOMÁS ANZANO, Nº 37 URB. MONTECANAL",50297,"976 751 939","976 751 939","info@guarderiamontecanal.com"]
[50018465,"Zaragoza","Escuela de Educación Infantil","Novillas","DE NOVILLAS","CL. PORTUGALETE, 17",50530,"976 86 10 84","976 86 10 59","novillas@dpz.es"]
[50018477,"Zaragoza","Escuela de Educación Infantil","Jaraba","DE JARABA","CL. LA VIUNA, S/N",50237,"680 80 54 85","976 87 27 33","jaraba@dpz.es"]
[50018489,"Zaragoza","Escuela de Educación Infantil","Almonacid de la Sierra","EL CASTILLO","CL. DUQUE, 13",50108,"976 62 72 22","976 62 70 90","alsierra@dpz.es"]
[50018490,"Zaragoza","Centro Privado de Educación Infantil","Puebla de Alfindén (La)","PEDUGUINES","CL. MEDIODÍA, 5-7; BAJOS",50171,"876 246 240",null,"cei_peduguines@hotmail.com"]
[50018507,"Zaragoza","Centro Privado de Educación Infantil","Zaragoza","JUEGO Y APRENDO","CL. LAGO DE MILLARES, 34-36",50011,"976 508 382",null,"ceijuegoyaprendo@gmail.com"]
[50018519,"Zaragoza","Centro Privado de Educación Infantil","Zaragoza","CHIQUILINES","CL. TODO SOBRE MI MADRE, 2",50019,"976 934 709",null,"info@chiquilines.es"]
[50018520,"Zaragoza","Escuela de Educación Infantil","Luceni","DE LUCENI","CL. RAMÓN Y CAJAL, ANGULAR CON AVDA. CONSTITUCIÓN",50640,"976 65 20 03","976 65 24 53","luceni@dpz.es"]
[50018532,"Zaragoza","Escuela de Educación Infantil","Joyosa (La)","LA CUNICA","CTRA. TORRES DE BERRELLÉN, S/N",50692,"976 65 30 01","976 65 32 88","joyosa@dpz.es"]
[50018556,"Zaragoza","Centro Privado de Formación Profesional Específica","Zaragoza","LUIS MANUEL GARCÍA URREA","CL. LAGASCA, 25-27",50006,"976 30 61 00","976 56 21 43","administracion@fundacionmontessori.com"]
[50018568,"Zaragoza","Centro Privado de Educación Infantil y Formación Profesional","Zaragoza","FANTASÍA-PLAZA","Avda. Diagonal, 30",50197,"876 76 88 00",null,"gerencia@plazafantasia.com"]
[50018571,"Zaragoza","Centro Privado de Educación Infantil","Zaragoza","LA JOTA 2","CL. TERESA SALVO PUERTO, 30",50014,"976 475 008",null,"ceilajota@yahoo.es"]
[50018581,"Zaragoza","Escuela de Educación Infantil","Alfamén","CHIRIBILLAS","CL. ALFONSO TIMONEDA, 4",50461,976626210,976628308,"alfamen@dpz.es"]
[50018593,"Zaragoza","Escuela de Educación Infantil","Alpartir","DE ALPARTIR","P.º RAMÓN Y CAJAL, S/N",50109,"976 81 31 49","976 81 34 55","alpartir@dpz.es"]
[50018601,"Zaragoza","Escuela de Educación Infantil","Belchite","GARABATOS","CL. EL FERIAL, 6",50130,"976 83 07 49","976 83 05 14","belchite@dpz.es"]
[50018611,"Zaragoza","Escuela de Educación Infantil","Morata de Jalón","DE MORATA DE JALÓN","CAMI. DEL BALDÍO, S/N",50260,"976 60 50 18","976 81 81 86","oficina@moratadejalon.org"]
[50018623,"Zaragoza","Escuela de Educación Infantil","Muel","PASICOS","CL. Alonso V, nº 2 Bajo",50450,"976 14 01 00","976 14 04 04","alcaldia.muel@dpz.es"]
[50018635,"Zaragoza","Escuela de Educación Infantil","Murillo De Gállego","REINA BERTA","CTRA. A-132, S/N",22808,974383171,974383171,"murillo@dpz.es"]
[50018647,"Zaragoza","Escuela de Educación Infantil","Ontinar de Salz","DE ONTINAR DE SALZ","CL. Sol, 15 - C",50810,"625 17 96 33","976 69 31 19","alcalde@ontinardesalz.com"]
[50018659,"Zaragoza","Escuela de Educación Infantil","Pastriz","RENACUAJOS","PARAJE DEL BERGEL (POLÍGONO 1; PARCELAS 157-159-164-190-226)",50195,"976 58 34 07","976 58 64 69","pastriz@dpz.es"]
[50018672,"Zaragoza","Escuela de Educación Infantil","Utebo","LA ESTRELLA","CL. DINAMARCA ESQ.CL. MIGUEL, S/N SERVET",50180,"976 773758","976 773758"]
[50018684,"Zaragoza","Escuela de Educación Infantil","Villafranca de Ebro","LOS ZAGALES","CL. ESCUELAS, S/N",50174,"976 16 70 01","976 16 62 65","a_villafranca@terra.es"]
[50018696,"Zaragoza","Centro Privado de Educación Infantil","Utebo","RISETAS","CL. PUERTO RICO, 12",50180,"976 775 557",null,"risetas@gmail.com"]
[50018702,"Zaragoza","Centro Privado de Educación Infantil","Zaragoza","KID'S GARDEN REYES DE ARAGÓN","P.º REYES DE ARAGÓN, 21",50012,"976 561 370",null,"info@kidsgardenaragon.es"]
[50018714,"Zaragoza","Escuela de Educación Infantil","Ainzón","GARNACHICA","PARAJE LALOZ",50570,976868715,976868215]
[50018726,"Zaragoza","Escuela de Educación Infantil","Ateca","LA SOLANA","CL. LA SOLANA, S/N",50200,626221251]
[50018738,"Zaragoza","Escuela de Educación Infantil","Leciñena","DE LECIÑENA","AVDA. ZARAGOZA, 84",50160,976166146,976168059]
[50018741,"Zaragoza","Escuela de Educación Infantil","Perdiguera","DE PERDIGUERA","CL. DEL PASO, 4",50161,976168965]
[50018751,"Zaragoza","Escuela de Educación Infantil","Bujaraloz","DE BUJARALOZ","CL. SANTA MARÍA, 27",50177,976173241]
[50018763,"Zaragoza","Escuela de Educación Infantil","Cosuenda","DE COSUENDA","CL. ESCUELAS, S/N",50409,976627440]
[50018775,"Zaragoza","Escuela de Educación Infantil","Illueca","DE ILLUECA","CL. SAN JUAN BAUTISTA, S/N",50250,976820290]
[50018787,"Zaragoza","Escuela de Educación Infantil","Magallón","ARCO-IRIS","CL. LA VÍA, S/N",50520,976858101,976858451,"magjulia@telefonica.net"]
[50018799,"Zaragoza","Escuela de Educación Infantil","Pedrola","DE PEDROLA","CL. LAS MONJAS, S/N",50690,976615027]
[50018805,"Zaragoza","Escuela de Educación Infantil","San Mateo de Gállego","POMPITAS","Cl. SIERRA DE ALCUBIERRE, 1",50840,976683137]
[50018817,"Zaragoza","Colegio de Educación Infantil y Primaria","Zaragoza","CATALINA DE ARAGÓN","CL. La Fragua s/n",50018,"976 50 68 11","976 52 65 46","ceipcatalinadearagon@educa.aragon.es"]
[50018829,"Zaragoza","Centro Público Integrado de Formación Profesional","Zaragoza","CORONA DE ARAGÓN","Corona de Aragón, 35",null,"976 467 000","976 467 061","cpifpcorona@educa.aragon.es"]
[50018830,"Zaragoza","Colegio de Educación Infantil y Primaria","Zaragoza","VADORREY-LES ALLÉES","CL. ALFONSO ZAPATER CERDÁN, S/N",50014,976399685,976295245,"cpvadorrey@educa.aragon.es"]
[50018842,"Zaragoza","Instituto de Educación Secundaria","Puebla de Alfindén (La)","DE LA PUEBLA DE ALFINDÉN","Avda. de Pastriz 2",50171,"976 107602",null,"ieslapuebla@educa.aragon.es"]
[50018854,"Zaragoza","Centro Privado de Educación Infantil","Utebo","MAGIC FOREST","PZA. JOAQUÍN SOROLLA, 2",50180,"691 963 960",null,"ceimagicforest@yahoo.es"]
[50018866,"Zaragoza","Centro Privado de Educación Infantil","Zaragoza","MONIGOTES","CL. SAN ANTONIO MARÍA CLARET, 14",50005,"976 551 126",null,"info@monigoteszaragoza.com"]
[50018878,"Zaragoza","Escuela de Educación Infantil","Zaragoza","EL BOSQUE","Pº. ECHEGARAY Y CABALLERO, 5",50003,976430862,976391522]
[50018881,"Zaragoza","Escuela de Educación Infantil","Zaragoza","EL ANDÉN","CL. SAN PEDRO ARBUÉS, 4",50010,976348103,976348103,"einfantil-delicias@zaragoza.es"]
[50018891,"Zaragoza","Escuela de Educación Infantil","Cuarte de Huerva","LAS HABLILLAS","CL. TRAJANO, S/N",50410,976503067]
[50018908,"Zaragoza","Escuela de Educación Infantil","María de Huerva","PALMAS PALMITAS","AVDA. RÍO EBRO, S/N",50430,976124728,976124090]
[50018911,"Zaragoza","Escuela de Educación Infantil","Alfajarín","LA CUEVA ENCANTADA","Pº. DE ARAGÓN, 120",50172,976101234,976101234]
[50018921,"Zaragoza","Escuela de Educación Infantil","Alhama de Aragón","Zagalines","AVDA. DE ARAGÓN, 78",50230,976840018,976840483]
[50018933,"Zaragoza","Escuela de Educación Infantil","Calatayud","MARGARITA","CL. BENEDICTO XIII, 3",50300,976883747,976885648]
[50018957,"Zaragoza","Escuela de Educación Infantil","Longares","DE LONGARES","RONDA DE LA VILLA, A-IA",50460,976142596,976142537]
[50018969,"Zaragoza","Escuela de Educación Infantil","Zaragoza","DE LA DELEGACIÓN ESPECIAL DE ECONOMÍA Y HACIENDA DE ARAGÓN","CL. José Luis Albareda, 18",50004,"976 769 984"]
[50018982,"Zaragoza","Escuela de Educación Infantil","Pinsoro","DE EJEA DE LOS CABALLEROS (PINSORO)","CL. Acuerdo, S/N",50694,"619 428 387",null,"escuelainfantil@aytoejea.es"]
[50018994,"Zaragoza","Escuela de Educación Infantil","Santa Anastasia","DE EJEA DE LOS CABALLEROS (SANTA ANASTASIA)","CL. Nueva, S/N",50694,"619 428 387",null,"escuelainfantil@aytoejea.es"]
[50019007,"Zaragoza","Centro Privado de Educación Infantil","Zaragoza","NENETES","PZA. DE LOS LAGOS AZULES, 6",50011,"976 30 73 79",null,"guarderianenetes@hotmail.com"]
[50019019,"Zaragoza","Colegio de Educación Infantil y Primaria","Zaragoza","JULIO VERNE","CL. Iñigo Manuel Marín Sancho nº 20",50011,"876 26 31 00","976 34 08 87","ceipjulioverne@educa.aragon.es"]
[50019020,"Zaragoza","Instituto de Educación Secundaria","Zaragoza","VALDESPARTERA","CL. Isla del Tesoro, 14",50019,976932353,976932353,"iesvaldespartera@educa.aragon.es"]
[50019032,"Zaragoza","Escuela de Educación Infantil","Aguarón","ZAGALICOS","CL. Tejero, S/N",50408,"976 62 03 83"]
[50019044,"Zaragoza","Escuela de Educación Infantil","Lumpiaque","DE LUMPIAQUE","CL. Muntadas, 12",50295,"976 60 16 50","976 60 18 30"]
[50019056,"Zaragoza","Escuela de Educación Infantil","Paniza","EL JARDINCILLO","CL. Arrabal, 37",50480,"976 62 27 45","976 62 26 81","paniza@dpz.es"]
[50019068,"Zaragoza","Escuela de Educación Infantil","Torres de Berrellén","DE TORRES DE BERRELLÉN","CL. Tenor Fleta, 4",50693,"976 65 31 01","976 65 10 01","ayuntamiento@torresdeberrellen.net"]
[50019081,"Zaragoza","Colegio de Educación Infantil y Primaria","Zaragoza","SAN JORGE","CL. El Tambor de Hojalata, 6",50019,"976 97 40 14",null,"ceipsanjorge@educa.aragon.es"]
[50019093,"Zaragoza","Escuela de Educación Infantil","Cuarte de Huerva","LAS FÁBULAS","CL. Monasterio de Siresa, 7",50410,"976 463 705"]
[50019101,"Zaragoza","Instituto de Educación Secundaria","Villanueva de Gállego","VILLANUEVA DE GÁLLEGO","Rigoberta Menchú s/n",50830,"976 18 50 27","97618 50 27","iesvillanuevadegallego@educa.aragon.es"]
[50019111,"Zaragoza","Centro Privado de Educación Infantil","Zaragoza","SALTARINES","CL. DEL GLOBO, 9",50015,976547156,976547156,"saltarines.julieta@hotmail.com"]
[50019123,"Zaragoza","Escuela de Educación Infantil","Pina de Ebro","DE PINA DE EBRO","CL. Fernando el Católico nº 16",50750,976165007,976165588,"ayuntamiento@pinadeebro.es"]
[50019135,"Zaragoza","Escuela de Educación Infantil","Zaragoza","PARQUE BRUIL","CL. Vicente López Abadía, 4",50002,"976 203 332",null,"einfantil-parquebruil@zaragoza.es"]
[50019147,"Zaragoza","Centro Privado de Formación Profesional Específica","Villanueva de Gállego","FUNDACIÓN LABORAL DE LA CONSTRUCCIÓN","Cl. Isaac Newton, 1 - Parcela 15",50830,"976 74 06 26","976 74 00 68","jandres@fundacionlaboral.org"]
[50019159,"Zaragoza","Centro Privado de Educación Infantil","Zaragoza","EL NIDO DE PATRICIA","CL. EMILIO CASTELAR, 91",50013,"976 496 439","976 496 439","info@elnidodepatricia.com"]
[50019160,"Zaragoza","Centro Privado de Educación Infantil","Zaragoza","ES-COOL","Paseo del Botánico, 2 (Parque Metropolitano del Agua)",50018,"976 095 977",null,"info@escoolzaragoza.com"]
[50019184,"Zaragoza","Escuela Pública de Música","Zuera","VILLA DE ZUERA","CL. CRUZ CUBIERTA, 1",50800,976680002,976680818,"ayuntamiento@ayunzuera.com"]
[50019196,"Zaragoza","Escuela de Educación Infantil","Novallas","CANTACUCOS","AVDA. NAVARRA, 16",50510,976198292]
[50019202,"Zaragoza","Centro Privado Autorizado de Enseñanzas Deportivas","Ejea de los Caballeros","CENTRO NACIONAL DE ESTUDIOS DE TÉCNICOS DEPORTIVOS (CENETED). ESPECIALIDAD FÚTBOL","Pº Constitución, 136",50600,"675 55 20 15","976 32 07 19","joseaanted@gmail.com"]
[50019214,"Zaragoza","Centro Privado de Educación Infantil","Zaragoza","IR CRECIENDO","CL. Ciudadano Kane, 33-35",50019,"976 93 21 27"]
[50019226,"Zaragoza","Escuela de Educación Infantil","Sástago","SÁSTAGO","CL. San Roque, 105",50780,"976 17 80 11"]
[50019238,"Zaragoza","Escuela de Educación Infantil","Muela (La)","LA MUELA","Cami. de las Banqueras,4",50196,"976 14 42 93","976 14 42 87"]
[50019239,"Zaragoza","Extensión de Escuela Oficial de Idiomas","Tauste","DE EJEA DE LOS CABALLEROS","Pza. De Aragón, 1. Casa de la cultura",50660,976663544,null,"eoitauste@educa.aragon.es"]
[50019241,"Zaragoza","Centro Privado de Educación Infantil","Zaragoza","PLANETA IMAGINARIO","AVDA. CASABLANCA, 34",50019,"976 953 659",null,"info@planeta-imaginario.es"]
[50019251,"Zaragoza","Colegio de Educación Infantil y Primaria","María de Huerva","VAL DE LA ATALAYA","Cl. Río Jalón, S/N",50430,976124549,null,"ceipmaria2@educa.aragon.es"]
[50019263,"Zaragoza","Centro Privado de Educación Infantil","Zaragoza","KID'S GARDEN ACTUR","Cl. Santiago Lagunas, 1",50018,"876 040 944",null,"info@kidsgardenactur.com"]
[50019275,"Zaragoza","Centro Privado Autorizado de Enseñanzas Deportivas","Zaragoza","CENTRO DE ENSEÑANZAS DEPORTIVAS-ENTEDE","Cl. Tomás Anzano, 1",50012]
[50019287,"Zaragoza","Colegio de Educación Infantil y Primaria","Zaragoza","ZARAGOZA SUR","Antonio Vivaldi, 7",50012,976950696,null,"ceipzgzsur@educa.aragon.es"]
[50019299,"Zaragoza","Colegio de Educación Infantil y Primaria","Cuarte de Huerva","CUARTE DE HUERVA III","CL Francia, s/n",50410,"876 261 091",null,"ceipcuartetres@educa.aragon.es"]
[50019305,"Zaragoza","Centro Privado de Educación Infantil","Zaragoza","DADA","Cl. Mi Tío, 13",50019,"976 935 661",null,"hola@escueladada.com"]
[50019317,"Zaragoza","Colegio de Educación Infantil y Primaria","Almunia de Doña Godina (La)","FLORIÁN REY","Avda. Laviaga Castillo, 14",50100,"976 81 35 97","976 81 34 96","ceipflorianrey@educa.aragon.es"]
[50019330,"Zaragoza","Centro Privado Autorizado de Enseñanzas Deportivas","Zaragoza","CENTRO NACIONAL DE FORMACIÓN DE ENTRENADORES DE FÚTBOL(C.E.N.A.F.E.)","P.º Reyes de Aragón, 5-7",50012,"626 547 509",null,"zaragoza@cenafe.es"]
[50019342,"Zaragoza","Centro Privado de Educación Infantil","Zaragoza","Reino Menudo","C/ Maurice Ravel, 67",50012,"876 244 966",null,"info@reinomenudo.es"]
[50019354,"Zaragoza","Sección de Instituto de Educación Secundaria","Muela (La)","RODANAS","Paseo de Nuestra Señora del Carmen, s/n",50196,null,null,"seccionlamuela@educa.aragon.es"]
[50019366,"Zaragoza","Centro Privado de Educación Infantil","Nuez de Ebro","MI CASITA EN EL JARDIN","C/ Sisallar L-3, número 99.",50173]
[50019378,"Zaragoza","Centro Privado de Educación Infantil Primaria y Secundaria","Cuarte de Huerva","COLEGIO INTERNACIONAL ÁNFORA","Calle Pirineos, 8",50410,976464.35582822084,976463238,"info@colegiointernacionalanfora.com"]
[50019381,"Zaragoza","Centro Privado de Formación Profesional Específica","Calatayud","ANDRÉS GARDE ERIKSON","Polígono Mediavega, 2-3",50300]
[50019391,"Zaragoza","Centro Privado de Educación Infantil","Zaragoza","BARQUITOS","C/ Todo sobre mi madre, 24",50019]
[50019408,"Zaragoza","Colegio de Educación Especial","Calatayud","SEGEDA","C/Aragón s/n",50300,"976 88 08 55",null,"ceecalatayud@educa.aragon.es"]
[50019421,"Zaragoza","Centro Privado de Educación Infantil","Zaragoza","SMALL WORLD","Cº Fuente de la Junquera, 21",50007]
[50019433,"Zaragoza","Centro Privado de Educación Infantil","Zaragoza","LUNA","C.º Valimaña, 20",50014,"976 29 70 57",null,"info@ceiluna.com"]
[50019445,"Zaragoza","Centro Privado de Educación Infantil","Zaragoza","NUVOLA","Avda. Andrea Palladio, 12 - Local 2",50021]
[50019457,"Zaragoza","Centro Privado de Educación Infantil","Zaragoza","LITTLE LANUZA","Ctra. del Aeropuerto, 275",50011]
[50019469,"Zaragoza","Centro Privado de Educación Infantil","Zaragoza","BOSQUE TERNURA 2","C/ Santiago Lapuente, 4-8",50014]
[50019470,"Zaragoza","Centro Privado de Educación Infantil","Zaragoza","MONTESSORI KIDS","C/ Cervantes, 34.",50006]
[50019482,"Zaragoza","Centro Privado de Formación Profesional Específica","Zaragoza","ARTE-MISS ZARAGOZA, CENTRO 2","C/ Gran Vía, 22",50005]
[50019494,"Zaragoza","Centro Privado de Educación Infantil","Zaragoza","BALÚ","C/ Lista de Schindler, 11-13",50019]
[50019500,"Zaragoza","Instituto de Educación Secundaria","Zaragoza","EL PICARRAL","Cl. Teniente Ortiz de Zarate, 26",50015,976741112,null,"iespicarral@educa.aragon.es"]
[50019512,"Zaragoza","Conservatorio Profesional de Música","Zaragoza","MODERNO SANTA MARÍA","C/ Pedro Joaquín Soler, locales 8 y 20",50001,976293871,null,"cmusicasantamaria2013@gmail.com"]
[50019536,"Zaragoza","Centro Privado de Educación Infantil","Zaragoza","ARQUERITOS","Avda. 21 de junio de 2009, 56",50022]
[50019548,"Zaragoza","Centro Público Integrado","Zaragoza","ARCOSUR","Av. del Cierzo",50022,876241479,null,"ceiparcosur@educa.aragon.es"]
[50019551,"Zaragoza","Centro Público Integrado","Zaragoza","VALDESPARTERA III","C/ El Jeque Blanco",50019,630884097,null,"cpivaldespartera3@educa.aragon.es"]
[50019561,"Zaragoza","Centro Privado Autorizado de Enseñanzas Deportivas","Zaragoza","PARQUE DEL AGUA","Padre Arrupe,13",50009]
[50019597,"Zaragoza","Centro Público Integrado","Zaragoza","PARQUE VENECIA","Avda. de la Policía Local, s/n",50021]
[50019615,"Zaragoza","Centro Público Integrado","Zaragoza","Soledad Puértolas","c/ La lista de Schindler, 13",50019]
[50019676,"Zaragoza","Instituto de Educación Secundaria","Cuarte de Huerva","Martina Bescós","c/ Loarre, s/n",50410]
[50019718,"Zaragoza","Centro Privado de Educación Infantil","Zaragoza","Nanyland Parque Venecia","C/ Palacio Ducal, número 18",50021]
[50600105,"Zaragoza","Guardería del Gobierno de Aragón","Calatayud","NUESTRA SEÑORA DEL CARMEN","CL. Ramón y Cajal, s/n",50300,"976 88 41 03",null,"ginsdelcarmen@educa.aragon.es"]
[50600117,"Zaragoza","Guardería del Gobierno de Aragón","Ejea de los Caballeros","VIRGEN DE LA OLIVA","CL. Tauste, 28",50600,"976 66 11 44",null,"givirgendelaoliva@educa.aragon.es"]
[50600129,"Zaragoza","Guardería del Gobierno de Aragón","Gallur","SAN ANTONIO DE PADUA","CL. Colón, 4",50650,"976 86 41 98","976 86 41 98","gisanantonio@educa.aragon.es"]
[50600130,"Zaragoza","Guardería del Gobierno de Aragón","Zaragoza","ARAGÓN","CL. Pablo Parellada, 46",50007,"976 38 50 33",null,"giaragon@educa.aragon.es"]
[50600142,"Zaragoza","Guardería del Gobierno de Aragón","Zaragoza","INMACULADA CONCEPCIÓN","Avda. Manuel Rodríguez Ayuso 45",50012,"976 33 20 78",null,"giinmaculada@educa.aragon.es"]
[50600154,"Zaragoza","Guardería del Gobierno de Aragón","Zaragoza","MONSALUD","CL. Ramiro I de Aragón, s/n",50017,"976 32 62 91",null,"gimonsalud@educa.aragon.es"]
[50600166,"Zaragoza","Guardería del Gobierno de Aragón","Zaragoza","SANTA MARÍA DEL PILAR","CL. José Pellicer, 2",50007,"976 27 24 87",null,"gismdelpilar@educa.aragon.es"]
[50600713,"Zaragoza","Equipo de Apoyo Itinerante","Zaragoza","DE ZARAGOZA","Pº Cuellar, 6",50007,null,null,"eapmzaragoza@educa.aragon.es"]
[50700011,"Zaragoza","Centro de Profesores y Recursos","Calatayud","DE CALATAYUD","CL. RAMON Y CAJAL, 1",50300,"976 88 43 56","976 88 56 66","cpr.de.calatayud@centros5.pntic.mec.es"]
[50700021,"Zaragoza","Centro de Profesores y Recursos","Ejea de los Caballeros","DE EJEA DE LOS CABALLEROS","Pza. de Goya, s/n",50600,"976 67 71 60","976 67 71 61","cprejea@educa.aragon.es"]
[50700033,"Zaragoza","Centros de Innovación y Formación Educativa","Zaragoza","JUAN DE LANUZA","CL. Buen Pastor, 4",50003,"976 39 55 50","976 39 55 54","cprzaragoza2@educa.aragon.es"]
[50700045,"Zaragoza","Centros de innovación y Formación Educativa","Almunia de Doña Godina (La)",null,"c/ María Auxiliadora S/N",50100]
[50700069,"Zaragoza","Centros de Innovación y Formación Educativa","Zaragoza","MARÍA DE ÁVILA","Pº Reyes de Aragón, 20",50012,"976 56 32 48","976 35 43 78","cprzaragoza1@educa.aragon.es"]
[50700070,"Zaragoza","Equipo de Orientación Educativa de Infantil y Primaria","Alagón","DE ALAGÓN","Avda. de la Portalada, 22",50630,"976 61 34 42",null,"eoepalagon@educa.aragon.es"]
[50700082,"Zaragoza","Equipo de Orientación Educativa de Infantil y Primaria","Calatayud","DE CALATAYUD","P.º RAMON Y CAJAL, 1, 2º",50300,"976 88 56 90",null,"eoepcalatayud@educa.aragon.es"]
[50700094,"Zaragoza","Equipo de Orientación Educativa de Infantil y Primaria","Caspe","DE CASPE","CL. Gumá, 35",50700,"976 63 16 08",null,"eoepcaspe@educa.aragon.es"]
[50700100,"Zaragoza","Equipo de Orientación Educativa de Infantil y Primaria","Ejea de los Caballeros","DE EJEA DE LOS CABALLEROS","Pº de la Constitución, s/n",50600,"976 66 28 77",null,"eoepejea@educa.aragon.es"]
[50700124,"Zaragoza","Equipo de Orientación Educativa de Infantil y Primaria","Almunia de Doña Godina (La)","DE LA ALMUNIA DE DOÑA GODINA","Avenida de María Auxiliadora, 2",50100,"976 81 25 52",null,"eoepalmunia@educa.aragon.es"]
[50700136,"Zaragoza","Equipo de Orientación Educativa de Infantil y Primaria","Tarazona","DE TARAZONA","Pza. de la Merced, 6",50500,"976 64 47 87",null,"eoeptarazona@educa.aragon.es"]
[50700148,"Zaragoza","Equipo de Orientación Educativa de Infantil y Primaria","Zaragoza","Nº 4 de ZARAGOZA","Avda. de la Almozara, s/n",50003,"976 44 08 87",null,"eoepzaragoza4@educa.aragon.es"]
[50700151,"Zaragoza","Equipo de Orientación Educativa de Infantil y Primaria","Zaragoza","Nº 1 de ZARAGOZA","CL. Cañon de Añisclo, s/n",50015,"976 52 95 87",null,"eoepzaragoza1@educa.aragon.es"]
[50700161,"Zaragoza","Equipo de Orientación Educativa de Infantil y Primaria","Zaragoza","Nº 2 de ZARAGOZA","CL. José Galiay, s/n",50008,"976 59 44 13",null,"eoepzaragoza2@educa.aragon.es"]
[50700173,"Zaragoza","Equipo de Orientación Educativa de Infantil y Primaria","Zaragoza","Nº 3 de ZARAGOZA","Cl. Castellote, 3",50017,"976 30 03 82","976 54 13 16","eoepzaragoza3@educa.aragon.es"]
[50700185,"Zaragoza","Equipo de Orientación Educativa de Infantil y Primaria","Fuentes de Ebro","DE FUENTES DE EBRO","Pza. de la Constitución, 4",50740,"976 16 09 38",null,"eoepfuentes@educa.aragon.es"]
[50700239,"Zaragoza","Centro Rural de Innovación Educativa","Zaragoza","VENTA DEL OLIVAR","PLAZA MAYOR, S/N",50011,"976 34 11 33","976 34 11 33","criezzaragoza@educa.aragon.es"]
[50700240,"Zaragoza","Centros de Innovación y Formación Educativa","Zaragoza","CENTRO ARAGONÉS DE RECURSOS PARA LA EDUCACIÓN INCLUSIVA (CAREI)","Cl. San Antonio Abad, 38",50010,"976 71 30 25","976 54 12 89","carei@educa.aragon.es"]
[50701001,"Zaragoza","Centro de Innovacion para la Formación Profesional en Aragón","Zaragoza","CENTRO DE INNOVACIÓN PARA LA FORMACIÓN PROFESIONAL DE ARAGÓN","C/ Castillo de capua, 2",50197,null,null,"cifpa@educa.aragon.es"]
[50701013,"Zaragoza","Equipo de Orientación Educativa de Infantil y Primaria","Zaragoza","Nº 5 de ZARAGOZA","José Galiay, s/n",50008,"976 413 595",null,"eoeip5zaragoza@educa.aragon.es"]
[50701025,"Zaragoza","Equipo Especializado de Orientación Educativa","Zaragoza","EQUIPO ESPECIALIZADO EN DISCAPACIDAD FÍSICA: MOTORA Y ORGÁNICA","CL. San Antonio Abad, 38 (Edificio Rosa Arjó)",50012,null,null,"equiespefisica@educa.aragon.es"]
[50701037,"Zaragoza","Equipo Especializado en trastornos graves de desarrollo","Zaragoza","EQUIPO ESPECIALIZADO EN TRASTORNOS GRAVES DE DESARROLLO","C/ San Antonio Abad, 38 (Edificio Rosa Arjó)",50010]
[50701049,"Zaragoza","Equipo Especializado en trastornos graves de desarrollo","Zaragoza","EQUIPO ESPECIALIZADO EN TRASTORNO MENTAL Y DE LA CONDUCTA","C/ San Antonio Abad, 38 (Edificio Rosa Arjó)",50010]

{"sheet":"dir20190527","index":5,"n_rows":1084,"n_cols":10,"rows_kept":1084,"cut":false,"hidden":true,"merged":[]}
["CÓDIGO","PROVINCIA","DENOMINACION GENÉRICA","LOCALIDAD","DENOMINACION ESPECÍFICA","DOMICILIO","CODPOSTAL","TELÉFONO","FAX","EMAIL"]
[22000056,"Huesca","Colegio Rural Agrupado","Adahuesca","VERO-ALCANADRE","Avda. .De Santiago Foncillas, S/N",22147,"974 31 82 97",974318297,"craadahuesca@educa.aragon.es"]
[22000071,"Huesca","Colegio de Educación Infantil y Primaria","Aínsa","ASUNCIÓN PAÑART MONTANER","Cl. Cortes De Aragón, 1-3",22330,"974 51 00 40",974510040,"cpainsa@educa.aragon.es"]
[22000251,"Huesca","Colegio de Educación Infantil y Primaria","Alcolea de Cinca","JOSÉ MANUEL BLECUA","Avda. Autonomía De Aragón, S/N",22410,"974 46 85 85","974 46 85 85","cpalcolea@educa.aragon.es"]
[22000299,"Huesca","Colegio de Educación Infantil y Primaria","Almudévar","SANTOS SAMPER SARASA","Cl. Las Ciencias, S/N",22270,"974 250 218","974 250 218","cpssalmudevar@educa.aragon.es"]
[22000585,"Huesca","Centro Público Integrado","Ayerbe","RAMÓN Y CAJAL","Cl. Progreso, 4",22800,"974 38 00 28","974 38 00 28","cpayerbe@educa.aragon.es"]
[22000706,"Huesca","Colegio de Educación Infantil y Primaria","Ballobar","FRANCISCO GALIAY SARAÑANA","Cl. Barrio Nuevo, S/N",22234,"974 46 11 97",974461197,"cpballobar@educa.aragon.es"]
[22000721,"Huesca","Colegio de Educación Infantil y Primaria","Barbastro","ALTO ARAGÓN","Avda. Del Cinca, S/N",22300,"974 31 19 76","974 31 19 76","cpaabarbastro@educa.aragon.es"]
[22000731,"Huesca","Colegio de Educación Infantil y Primaria","Barbastro","LA MERCED","Cl. Beato Florentino Asensio, S/N",22300,"974 313813","974 306275","cplmbarbastro@educa.aragon.es"]
[22000767,"Huesca","Centro Privado de Educación Infantil Primaria y Secundaria","Barbastro","SAN VICENTE DE PAÚL","Cami. Real De Zaragoza, S/N",22300,"974 31 02 95","974 31 45 31","svpaulbar@planalfa.es"]
[22000779,"Huesca","Centro Privado de Educación Infantil Primaria y Secundaria","Barbastro","SAN JOSÉ DE CALASANZ","Pza. Constitución, 2",22300,"974 31 43 31","974 31 50 55","sjcalasanzbar@escolapiosemaus.org"]
[22000809,"Huesca","Instituto de Educación Secundaria","Barbastro","HERMANOS ARGENSOLA","Avda. Del Cinca, S/N",22300,"974 31 17 38","974 31 14 38","ieshabarbastro@educa.aragon.es"]
[22001073,"Huesca","Colegio de Educación Infantil y Primaria","Binéfar","VÍCTOR MENDOZA MENDOZA","CL. ALMACELLAS, 31",22500,"974 42 83 50","974 42 83 77","cpbinefar@educa.aragon.es"]
[22001085,"Huesca","Centro Privado de Educación Infantil Primaria y Secundaria","Binéfar","VIRGEN DEL ROMERAL","Cl. Mariano De Pano, 5 Y 7",22500,"974 42 80 84","974 43 08 39","virgenromeral@colegiosaragon.org"]
[22001191,"Huesca","Colegio de Educación Infantil y Primaria","Bolea","VIRGEN DE LA SOLEDAD","Cl. Carretera, 6",22160,"974 27 25 62",null,"cpbolea@educa.aragon.es"]
[22001218,"Huesca","Escuela Hogar","Boltaña","DE BOLTAÑA","Cl. Samper, S/N",22340,"974 50 20 75","974 50 23 06","ehboltana@educa.aragon.es"]
[22001243,"Huesca","Colegio Rural Agrupado","Broto","ALTO ARA","Cl. Santa Cruz, s/n",22370,"974 486 317","974 486 317","crabroto@educa.aragon.es"]
[22001358,"Huesca","Colegio de Educación Infantil y Primaria","Campo","CERBÍN","Pza. Cabovila, 5",22450,"974 55 01 80",null,"cpcampo@educa.aragon.es"]
[22001437,"Huesca","Colegio de Educación Infantil y Primaria","Canfranc-Estación","LOS ARAÑONES","Pza. De Las Escuelas S/N",22880,"974 37 30 15",974373015,"cpcanfranc@educa.aragon.es"]
[22001656,"Huesca","Colegio de Educación Infantil y Primaria","Chalamera","RAMÓN J. SENDER","Cl. Extramuros, S/N",22233,"974 46 16 17",null,"cpchalamera@educa.aragon.es"]
[22001875,"Huesca","Colegio de Educación Infantil y Primaria","Fraga","MIGUEL SERVET","Pza. Valencia, S/N",22520,"974 47 04 98","974 47 04 98","cpmsfraga@educa.aragon.es"]
[22001887,"Huesca","Colegio de Educación Infantil y Primaria","Fraga","SAN JOSÉ DE CALASANZ","Avda. Deportes, 4",22520,"974 47 27 06","974 47 13 92","cpjcfraga@educa.aragon.es"]
[22001899,"Huesca","Centro Privado de Educación Infantil Primaria y Secundaria","Fraga","SANTA ANA","Cl. Hermana Andresa, S/N",22520,"974 47 18 62","974 47 18 28","csantanafraga@gmail.com"]
[22001905,"Huesca","Colegio de Educación Infantil y Primaria","Litera","LITERA","Ctra. Nacional, Km.442",22520,"974 47 04 30","974 47 04 30","cplitera@educa.aragon.es"]
[22001917,"Huesca","Instituto de Educación Secundaria","Fraga","RAMÓN J. SENDER","P.º De La Constitución, S/N",22520,"974 47 01 44","974 45 38 36","iesrsfraga@educa.aragon.es"]
[22002016,"Huesca","Colegio de Educación Infantil y Primaria","Tierrantona","LA FUEVA","Cl. La Fuente, S/N",22336,"974 50 71 41","974 50 71 41","cptierrantona@educa.aragon.es"]
[22002119,"Huesca","Colegio de Educación Infantil y Primaria","Grañén","SANTIAGO APÓSTOL","Cl. Escuelas, S/N",22260,"974 39 02 03",974390203,"cpsaphuesca@educa.aragon.es"]
[22002156,"Huesca","Colegio de Educación Infantil y Primaria","Graus","JOAQUÍN COSTA","Cl. Angel Samblancat, 10",22430,"974 54 01 18","974 540118","cpjcgraus@educa.aragon.es"]
[22002168,"Huesca","Instituto de Educación Secundaria","Graus","BALTASAR GRACIÁN","Partida Coscolla, S/N",22430,"974 54 01 57","974 54 05 01","iesgraus@educa.aragon.es"]
[22002302,"Huesca","Colegio de Educación Infantil y Primaria","Huesca","JUAN XXIII","Cl. Fraga, 1",22004,"974 22 02 96","974 24 49 09","cpjxxhuesca@educa.aragon.es"]
[22002338,"Huesca","Colegio de Educación Infantil y Primaria","Huesca","PÍO XII","Cl. PÍO XII, 1",22006,974223593,974245661,"cppxhuesca@educa.aragon.es"]
[22002341,"Huesca","Colegio de Educación Infantil y Primaria","Huesca","SANCHO RAMÍREZ","Cl. Torre Mendoza, 1",22005,"974 24 24 83","974 24 24 83","cpsrahuesca@educa.aragon.es"]
[22002351,"Huesca","Colegio de Educación Infantil y Primaria","Huesca","SAN VICENTE","Pza. De San Vicente, 1",22002,"974 22 06 25","974 22 06 25","cpsvihuesca@educa.aragon.es"]
[22002405,"Huesca","Centro Privado de Educación Infantil","Huesca","SAN JOSÉ","Cl. Pedro Iv, 81",22002,"974 22 07 74",null,"ceisanjose_h@hotmail.com"]
[22002417,"Huesca","Centro Privado de Educación Infantil Primaria y Secundaria","Huesca","SANTA ANA","CL. COSO ALTO, 47",22003,"974 22 02 70","974 22 00 51","santaanahu@planalfa.es"]
[22002429,"Huesca","Centro Privado de Educación Infantil","Huesca","NTRA.SRA.DEL PILAR","Avda. Dr. Artero, 66",22004,"974 24 18 61","974 24 18 61"]
[22002430,"Huesca","Centro Privado de Educación Infantil Primaria y Secundaria","Huesca","SAN BERNARDO","Avda. Monreal, 14",22003,"974 22 18 00","974 22 18 08","salesianos.huesca@salesianos.org"]
[22002466,"Huesca","Centro Privado de Educación Infantil Primaria y Secundaria","Huesca","SANTA ROSA - ALTOARAGÓN","Psje. Pico del Águila nº 7",22004,"974 23 86 25","974 23 83 69","santarosa.altoaragon@colegiosfec.com"]
[22002478,"Huesca","Centro Privado de Educación Infantil Primaria y Secundaria","Huesca","SAN VIATOR","Cl. Del Parque, 15",22003,"974 23 81 12","974 23 81 26","csv59hue@planalfa.es"]
[22002491,"Huesca","Centro Público Integrado de Formación Profesional","Huesca","MONTEARAGÓN","Ctra. De Sariñena, Km. 4",22111,"974 24 26 73","974 24 58 66","cpifpmontearagon@educa.aragon.es"]
[22002508,"Huesca","Instituto de Educación Secundaria","Huesca","RAMÓN Y CAJAL","Avda. De La Paz, 9",22004,"974 22 04 36","974 22 08 85","iesrychuesca@educa.aragon.es"]
[22002511,"Huesca","Instituto de Educación Secundaria","Huesca","PIRÁMIDE","CAMI. DE CUARTE, S/N",22004,974210012,974210042,"iespirhuesca@educa.aragon.es"]
[22002521,"Huesca","Instituto de Educación Secundaria","Huesca","SIERRA DE GUARA","Cl. Ramón J. Sender, 4",22005,"974 24 34 77","974 24 31 07","iessguhuesca@educa.aragon.es"]
[22002569,"Huesca","Colegio de Educación Infantil y Primaria","Huesca","ALCORAZ","Cl. Binéfar, 5",22004,"974 21 03 08","974 210308","cpalchuesca@educa.aragon.es"]
[22002673,"Huesca","Colegio de Educación Infantil y Primaria","Jaca","SAN JUAN DE LA PEÑA","Cl. San José De Calasanz, 3",22700,"974 35 63 70","974 35 63 70","cpsjphuesca@educa.aragon.es"]
[22002703,"Huesca","Centro Privado de Educación Infantil Primaria y Secundaria","Jaca","ESCUELAS PÍAS","Avda. Perimetral, 2",22700,"974 36 03 92","974 36 25 59","joseignaciobilbao@escolapiosemaus.org"]
[22002727,"Huesca","Instituto de Educación Secundaria","Jaca","DOMINGO MIRAL","Avda. Regimiento de Galicia, 6",22700,"974 36 18 47","974 35 58 53","iesdmjaca@educa.aragon.es"]
[22002739,"Huesca","Escuela Hogar","Jaca","DE JACA","CL. FERROCARRIL, 17",22700,"974 36 20 67",null,"ehjaca@educa.aragon.es"]
[22002740,"Huesca","Escuela de Capacitación Agraria","Jaca","INSTITUTO DE FORMACIÓN AGROAMBIENTAL","CTRA. JACA-PAMPLONA, KM. 7",22700,"974 35 68 19","974 35 68 21","ifaja@aragon.es"]
[22002843,"Huesca","Colegio Rural Agrupado","Lanaja","MONEGROS NORTE","Avda. Zaragoza-Monzón, 60",22250,"974 57 42 45","974 57 42 45","cralanaja@educa.aragon.es"]
[22003100,"Huesca","Colegio de Educación Infantil y Primaria","Lupiñén","SAN GINÉS","Cl. Única, S/N",22811,"974 27 00 24",null,"cplupinen@educa.aragon.es"]
[22003215,"Huesca","Colegio de Educación Infantil y Primaria","Monzón","JOAQUÍN COSTA","Avda. Goya, 2",22400,"974 40 08 19","974 40 08 19","cpjcmonzon@educa.aragon.es"]
[22003239,"Huesca","Centro Privado de Educación Secundaria","Monzón","SANTO DOMINGO SAVIO","P.º SAN JUAN BOSCO, 83-85",22400,"974 41 68 88","974 40 49 15","colegio.monzon@salesianos.org"]
[22003252,"Huesca","Centro Privado de Educación Infantil y Primaria","Monzón","SANTA ANA","Avda. Del Pilar, 6",22400,"974 40 07 21","974 40 49 82","santaanam@colegiosaragon.org"]
[22003276,"Huesca","Centro Privado de Educación Infantil y Primaria","Monzón","MINTE","Cl. Valencia, 18",22400,"974 41 68 35","974 41 68 35","colegio.minte@telefonica.net"]
[22003288,"Huesca","Instituto de Educación Secundaria","Monzón","JOSÉ MOR DE FUENTES","Avda. Del Pueyo, 89",22400,"974 40 16 30","974 40 38 82","iesmonzon@educa.aragon.es"]
[22003343,"Huesca","Colegio de Educación Infantil y Primaria","Ontiñena","SAN GREGORIO","Cl. San Gregorio, 55",22232,"974 46 85 52",974468552,"cpontinena@educa.aragon.es"]
[22003586,"Huesca","Colegio Rural Agrupado","Plan","CINCA-CINQUETA","Cl. Alta, S/N",22367,"974 50 61 61","974 50 61 61","crabielsa@educa.aragon.es"]
[22003835,"Huesca","Colegio de Educación Infantil y Primaria","Sabiñánigo","MONTECORONA","Cl. Ciudad De Billère, 18",22600,"974 48 40 38","974 48 40 38","ceipmontecorona@educa.aragon.es"]
[22003847,"Huesca","Colegio de Educación Infantil y Primaria","Sabiñánigo","PUENTE SARDAS","Cl. Derechos Humanos, 3",22600,"974 48 04 62","974 48 04 62","cppssabinanigo@educa.aragon.es"]
[22003860,"Huesca","Centro Privado de Educación Infantil y Primaria","Sabiñánigo","SANTA ANA","Pza. Santa Ana, 4",22600,"974 48 08 91","974 48 08 91","sabihcsa@gmail.com"]
[22003902,"Huesca","Instituto de Educación Secundaria","Sabiñánigo","SAN ALBERTO MAGNO","Paseo de la Corona nº 2",22600,"974 48 01 79","974 48 07 55","iesamsabinanigo@educa.aragon.es"]
[22003926,"Huesca","Colegio de Educación Infantil y Primaria","Senegüé","MIGUEL SERVET","Cl. Única, S/N",22666,"974 48 43 00",null,"cpsenegue@educa.aragon.es"]
[22004104,"Huesca","Colegio de Educación Infantil y Primaria","Sariñena","LA LAGUNA","PZA. MAYORAL ANTONIO SUSÍN, 3-4",22200,"974 57 13 14","974 57 02 69","cpsarinena@educa.aragon.es"]
[22004189,"Huesca","Colegio de Educación Infantil y Primaria","Sena","ALBERTO GALINDO","Avda. Huesca, S/N",22230,"974 57 83 45",null,"cpsena@educa.aragon.es"]
[22004271,"Huesca","Colegio de Educación Infantil y Primaria","Tamarite de Litera","SAN MIGUEL","Cl. La Colomina, S/N",22550,"974 42 03 71","974 42 03 71","cpsmtamarite@educa.aragon.es"]
[22004566,"Huesca","Colegio de Educación Infantil y Primaria","Villanúa","COLLARADA","Cami. La Fuente, S/N",22870,"974 37 80 43",974378197,"cpvillanua@educa.aragon.es"]
[22004578,"Huesca","Colegio de Educación Infantil y Primaria","Villanueva de Sigena","MIGUEL SERVET","Cl. El Salvador, 5",22231,"974 57 84 20",974578420,"cpvillanuevas@educa.aragon.es"]
[22004608,"Huesca","Colegio de Educación Infantil y Primaria","Zaidín","SAN JUAN BAUTISTA","Avda. San Antonio Abad, 37",22530,"974 47 82 08","974 47 82 08","cpzaidin@educa.aragon.es"]
[22004611,"Huesca","Instituto de Educación Secundaria","Barbastro","MARTÍNEZ VARGAS","Cami. De La Boquera, S/N",22300,"974 31 02 94","974 30 64 59","iesmvbarbastro@educa.aragon.es"]
[22004633,"Huesca","Colegio de Educación Infantil y Primaria","Huesca","EL PARQUE","Cl. Valentín Carderera, 6",22003,"974 22 10 38","974 23 16 85","cpepahuesca@educa.aragon.es"]
[22004773,"Huesca","Instituto de Educación Secundaria","Huesca","LUCAS MALLADA","Cl. Torre Mendoza, 2",22005,"974 24 48 34","974 24 17 70","ieslmahuesca@educa.aragon.es"]
[22004839,"Huesca","Colegio de Educación Infantil y Primaria","Jaca","MONTE OROEL","AVDA. JUAN XXIII, 48",22700,"974 35 64 59","974 35 64 59","ceipmonteoroel@educa.aragon.es"]
[22004840,"Huesca","Colegio de Educación Infantil y Primaria","Monzón","ARAGÓN","Cl. Calvario, 13",22400,"974 40 03 14","974 400314","cparmonzon@educa.aragon.es"]
[22004888,"Huesca","Instituto de Educación Secundaria","Fraga","BAJO CINCA","Cl. Río Cinca, S/N",22520,"974 45 38 60","974 45 39 00","iesbcfraga@educa.aragon.es"]
[22004891,"Huesca","Instituto de Educación Secundaria","Sabiñánigo","BIELLO ARAGÓN","Cl. Derechos Humanos, 5",22600,"974 48 26 82","974 48 30 28","iesbasabinanigo@educa.aragon.es"]
[22004906,"Huesca","Colegio de Educación Infantil y Primaria","Barbastro","PEDRO I","CL. Luis Buñuel, 7",22300,"974 31 25 21",974312521,"cpp1barbastro@educa.aragon.es"]
[22004943,"Huesca","Centro Privado de Formación Profesional Específica","Sahún","NTRA. SRA. DE GUAYENTE","CL. SANTUARIO DE GUAYENTE, S/N",22468,"974 55 13 27","974 55 21 16","escuelahosteleria@guayente.info"]
[22004955,"Huesca","Centro Público de Educación de Personas Adultas","Huesca","MIGUEL HERNÁNDEZ","Cl. Alfonso De Aragón, 12",22002,"974 24 15 04",null,"cpeahuesca@educa.aragon.es"]
[22005030,"Huesca","Instituto de Educación Secundaria","Sariñena","MONEGROS-GASPAR LAX","Cami. De Las Torres, S/N",22200,"974 57 11 14","974 57 05 65","iessarinena@educa.aragon.es"]
[22005054,"Huesca","Colegio de Educación Infantil y Primaria","Caldearenas","VIRGEN DE LOS RÍOS","Cl. La Iglesia, S/N",22624,"974 35 97 96",974359800,"cpcaldearenas@educa.aragon.es"]
[22005121,"Huesca","Centro Público Integrado de Formación Profesional","Huesca","SAN LORENZO","Cl. Madrid, 2",22004,"974 24 36 33","974 23 06 56","cpifpsanlorenzo@educa.aragon.es"]
[22005133,"Huesca","Conservatorio Profesional de Música","Huesca","ANTONIO VIÑUALES GRACIA","Cl. Fuente Del Ibón, 5",22003,"974 24 36 17","974 24 36 08","cpmhuesca@educa.aragon.es"]
[22005145,"Huesca","Escuela de Arte","Huesca","ESCUELA DE ARTE DE HUESCA","Cl. Santo Cristo De Los Milagros, 21",22004,"974 24 06 44","974 24 65 41","escueladeartedehuesca@educa.aragon.es"]
[22005157,"Huesca","Colegio de Educación Especial","Monzón","LA ALEGRÍA","Cl. Cinca, S/N",22400,"974 41 58 14","976 41 56 08","ceemonzon@educa.aragon.es"]
[22005200,"Huesca","Colegio de Educación Infantil y Primaria","Huesca","PEDRO J. RUBIO","Cl. Los Olivos, 2",22005,"974 22 93 12","974 23 87 17","cppjrhuesca@educa.aragon.es"]
[22005212,"Huesca","Escuela Oficial de Idiomas","Huesca","DE HUESCA","P.º Lucas Mallada, S/N",22006,"974 24 02 99","974 24 02 99","eoihuesca@educa.aragon.es"]
[22005224,"Huesca","Escuela Pública de Música y Danza","Jaca","PILAR BAYONA","CL. ISAAC ALBÉNIZ, S/N",22700,"974 35 55 28","974 35 55 28","escuelamusica@aytojaca.es"]
[22005340,"Huesca","Colegio de Educación Infantil y Primaria","Aineto","VALLE DEL GUARGA","Cl. San Francisco de Asís, S/N",22623,"974 33 79 50",null,"cpaineto@educa.aragon.es"]
[22005364,"Huesca","Escuela Pública de Música","Binéfar","ESCUELA DE MÚSICA","CL. GALILEO, 7-13",22500,"974 42 81 00","974 43 09 50","aytobinefar@aragob.es"]
[22005376,"Huesca","Conservatorio Profesional de Música","Monzón","MIGUEL FLETA","Pza. Aragón, 6",22400,"974 40 38 11","974 40 29 33","cpmmonzon@educa.aragon.es"]
[22005388,"Huesca","Instituto de Educación Secundaria","Binéfar","SIERRA DE SAN QUÍLEZ","PZA. HIPÓLITO BITRIÁN, 1",22500,"974 42 82 95","974 42 80 40","iesbinefar@educa.aragon.es"]
[22005391,"Huesca","Instituto de Educación Secundaria","Tamarite de Litera","LA LLITERA","Camino La Colomina s/n",22550,"974 42 03 60","974 42 19 59","iestamarite@educa.aragon.es"]
[22005406,"Huesca","Instituto de Educación Secundaria","Aínsa","SOBRARBE","Cl. Lucien Briet, S/N",22330,"974 50 00 56","974 510092","iesainsa@educa.aragon.es"]
[22005431,"Huesca","Colegio de Educación Infantil y Primaria","Paúles de Sarsa","DE PAÚLES DE SARSA","Cl. Escuelas, S/N",22149,"974 34 31 10",null,"cppaules@educa.aragon.es"]
[22005443,"Huesca","Conservatorio Profesional de Música","Sabiñánigo","DE SABIÑÁNIGO","CL. INSTITUTO LABORAL, 9",22600,"974 48 28 34","974 48 28 34","cpmsabinanigo@educa.aragon.es"]
[22005479,"Huesca","Centro Público de Educación de Personas Adultas","Tamarite de Litera","LITERA","PZA. MAYOR nº 7",22550,"974 42 19 19",null,"cpeatamarite@educa.aragon.es"]
[22005480,"Huesca","Centro Público de Educación de Personas Adultas","Monzón","CINCA MEDIO","Pza. Sto. Domingo, 6",22400,"974 41 62 90",null,"cpeamonzon@educa.aragon.es"]
[22005492,"Huesca","Centro Público de Educación de Personas Adultas","Jaca","JACETANIA","Cl Monte Perdido, 1",22700,"974 36 28 75",null,"cpeajaca@educa.aragon.es"]
[22005509,"Huesca","Centro Público de Educación de Personas Adultas","Graus","RIBAGORZA","Plaza Compañía 1, 1ª planta",22430,"974 54 05 28",null,"cpeagraus@educa.aragon.es"]
[22005558,"Huesca","Centro Público de Educación de Personas Adultas","Boltaña","SOBRARBE","Cl. Samper, 1",22340,"974 50 23 22",null,"cpeaboltana@educa.aragon.es"]
[22005561,"Huesca","Centro Público de Educación de Personas Adultas","Sabiñánigo","ALTO GÁLLEGO","Cl. Pedro Sesé, 2",22600,"974 48 25 32",null,"cpeasabinanigo@educa.aragon.es"]
[22005583,"Huesca","Centro Público de Educación de Personas Adultas","Sariñena","MONEGROS","Cl. El Carmen, 13",22200,"974 57 43 98",null,"cpeasarinena@educa.aragon.es"]
[22005595,"Huesca","Escuela Oficial de Idiomas","Monzón","IGNACIO LUZÁN","Avda. De Fonz, 1",22400,"974 41 58 40","974 41 58 70","eoimonzon@educa.aragon.es"]
[22005662,"Huesca","Escuela Oficial de Idiomas","Sabiñánigo","DE SABIÑÁNIGO","CL. INSTITUTO LABORAL, 9",22600,"974 48 33 80","974 48 33 32","eoisabinanigo@educa.aragon.es"]
[22005674,"Huesca","Colegio Rural Agrupado","Albelda","LA LLITERA","Cl. Granero, S/N",22558,"974 42 14 07","974 42 14 07","craalbelda@educa.aragon.es"]
[22005686,"Huesca","Colegio Rural Agrupado","Peñalba","MONTESNEGROS","Cl. Las Afueras, S/N",22592,"974 46 30 79","974 46 30 79","crapenalba@educa.aragon.es"]
[22005698,"Huesca","Colegio Rural Agrupado","Peralta de Alcofea","A REDOLADA","Cl. Balmes, 16",22130,"974 30 07 43","974 30 07 43","craperalta@educa.aragon.es"]
[22005704,"Huesca","Colegio Rural Agrupado","Capella","BAJA RIBAGORZA","Bo. Bajo, S/N",22480,974540432,974540432,"cracapella@educa.aragon.es"]
[22005716,"Huesca","Colegio Rural Agrupado","Fonz","ESTADILLA-FONZ","Avda. De Las Sierras, 1",22422,"974 41 20 31","974 41 20 31","crafonz@educa.aragon.es"]
[22005728,"Huesca","Colegio Rural Agrupado","Chimillas","MONTEARAGÓN","Ctra De Huesca , S/N",22194,"974 25 21 51","974 25 21 51","crachimillas@educa.aragon.es"]
[22005731,"Huesca","Colegio Rural Agrupado","Biescas","ALTO GÁLLEGO","Pza. Ayuntamiento, 4",22630,"974 48 53 08",null,"crabiescas@educa.aragon.es"]
[22005741,"Huesca","Colegio Rural Agrupado","Binaced","EL TRÉBOL","Cl. Joaquín Costa, S/N",22510,"974 42 71 31",974427131,"crabinaced@educa.aragon.es"]
[22005765,"Huesca","Instituto de Educación Secundaria","Jaca","PIRINEOS","Cl. Ferrocarril, 17",22700,"974 35 58 57","974 35 58 42","iespijaca@educa.aragon.es"]
[22005789,"Huesca","Colegio Rural Agrupado","Santa Cilia","RÍO ARAGÓN","Cl. Mosen José Pardo Aso, 17",22791,"974 37 70 49","974 37 70 49","direccion@crarioaragon.es"]
[22005790,"Huesca","Colegio Rural Agrupado","Benabarre","RIBAGORZA ORIENTAL","Cl. San José De Calasanz, 13",22580,"974 54 32 55","974 54 32 55","crabenabarre@educa.aragon.es"]
[22005807,"Huesca","Colegio Rural Agrupado","Torrente de Cinca","RIBERA DEL CINCA","Cl. Arrabal Del Norte, S/N",22590,"974 46 71 42","974 46 71 42","cratorrente@educa.aragon.es"]
[22005819,"Huesca","Colegio Rural Agrupado","Altorricón","DE ALTORRICÓN","Cl. Miguel Fleta, 1",22540,"974 42 52 02","974 42 52 02","craaltorricon@educa.aragon.es"]
[22005820,"Huesca","Colegio Rural Agrupado","Conchel","ARCO IRIS","Cl. Monzón, S/N",22414,"974 41 33 91","974 41 33 91","craconchel@educa.aragon.es"]
[22005832,"Huesca","Colegio Rural Agrupado","Belver de Cinca","ALBEOS","Cl. Escuelas, 28",22533,"974 46 81 26",null,"crabelver@educa.aragon.es"]
[22005844,"Huesca","Colegio Rural Agrupado","Tardienta","VIOLADA MONEGROS","Cl. José María Peleato, 18",22240,"974 25 32 41","974 25 32 41","cratardienta@educa.aragon.es"]
[22005856,"Huesca","Colegio Rural Agrupado","Robres","LA SABINA","CL. Canal de Monegros s/n",22252,"974 39 22 36","974 39 22 36","crarobres@educa.aragon.es"]
[22005868,"Huesca","Colegio Rural Agrupado","Lalueza","MONEGROS-HOYA","P.º Comenge, 42",22214,"974 57 51 46","974 57 51 46","cralalueza@educa.aragon.es"]
[22005881,"Huesca","Colegio Rural Agrupado","Benasque","ALTA RIBAGORZA","Avda. De Luchón, S/N",22440,"974 55 11 80","974 55 11 80","crabenasque@educa.aragon.es"]
[22005911,"Huesca","Escuela Pública de Música","Fraga","INSTITUTO MUSICAL COMARCAL","P.º Barrón Gengonyer, 7",22520,"974 47 09 89","974 47 42 74"]
[22005960,"Huesca","Centro Público de Educación de Personas Adultas","Barbastro","SOMONTANO","AVDA. del Cinca s/n",22300,"974 30 64 33",null,"cpeabarbastro@educa.aragon.es"]
[22006022,"Huesca","Aula de Educación de Adultos","Almudévar","DE ALMUDÉVAR","Cl. Las Ciencias, S/N",22270,"974 25 09 03"]
[22006034,"Huesca","Centro Público de Educación de Personas Adultas","Fraga","BAJO CINCA","CL. AIRETAS, 17",22520,"974 47 13 92",null,"cpeafraga@educa.aragon.es"]
[22006061,"Huesca","Centro Privado de Educación Infantil","Fraga","PATI","Avda. Mequinenza, S/N",22520,"974 47 35 68",null,"ceipatifraga@gmail.com"]
[22006083,"Huesca","Sección de Instituto de Educación Secundaria","Almudévar","PIRÁMIDE","CL. Miguel Monserrat s/n",22270,"974 25 02 66","974 25 02 66","iesalmudevar@educa.aragon.es"]
[22006095,"Huesca","Instituto de Educación Secundaria","Castejón de Sos","DE CASTEJÓN DE SOS","PZA. COSTITUCIÓN, S/N",22466,"974 55 33 08",974553308,"iescastejons@educa.aragon.es"]
[22006101,"Huesca","Instituto de Educación Secundaria","Grañén","MONTES NEGROS","Cl. Escuelas, S/N",22260,"974 39 03 03","974 39 10 03","iesgranen@educa.aragon.es"]
[22006113,"Huesca","Instituto de Educación Secundaria","Alcolea de Cinca","CINCA-ALCANADRE","Avda. Autonomía De Aragón, S/N",22410,"974 46 82 36","974 46 82 36","iesalcolea@educa.aragon.es"]
[22006125,"Huesca","Sección de Instituto de Educación Secundaria","Biescas","BIELLO ARAGÓN","Pza. de la Constitución s/n",22630,"974 49 56 34",null,"iesbiescas@educa.aragon.es"]
[22006137,"Huesca","Centro Privado de Educación Secundaria","Benasque","VALLE DE BENASQUE","Avda .De Luchón, S/N",22440,"974 55 21 07","974 55 21 07","cesbenasque@hotmail.com"]
[22010001,"Huesca","Centro Privado de Educación Especial","Huesca","SAN JORGE","Ctra. De Granén, S/N",22196,"974 22 79 62","974 22 55 13","aspacehuesca@telefonica.net"]
[22010013,"Huesca","Escuela de Educación Infantil","Sallent de Gállego","DE SALLENT DE GÁLLEGO","Paseo \"Gigante Aragonés\", 34 bis",22640,"974 48 82 74","974 48 83 07","guardesallent@hotmail.com"]
[22010025,"Huesca","Extensión de Escuela Oficial de Idiomas","Fraga","IGNACIO LUZÁN","P.º De La Constitución, S/N",22520,"974 41 58 40","974 45 38 36","eoimonzon@educa.aragon.es"]
[22010049,"Huesca","Extensión de Escuela Oficial de Idiomas","Jaca","DE SABIÑÁNIGO","Avda. Regimiento Galicia, S/N",22700,"974 36 18 47","974 35 58 53","eoisabinanigo@educa.aragon.es"]
[22010050,"Huesca","Centro Privado de Educación Infantil","Huesca","LAS OCAS","Cl. Miguel Servet, 9",22002,"974 24 65 50"]
[22010062,"Huesca","Escuela de Educación Infantil","Albelda","LO NIU","Cl. Lorenzo Barea, 4",22558,"974 42 02 02","974 42 08 02","aytoalbelda@educa.aragon.es"]
[22010074,"Huesca","Centro Privado de Educación Infantil","Huesca","CLUB MINNIE","Cl. Travesía Ballesteros, 23",22001,"974 24 64 90"]
[22010086,"Huesca","Escuela Superior de Conservación y Restauración de Bienes Culturales","Huesca","DE ARAGÓN","Cl. Coso Alto, 61",22003,"974 23 06 05","974 21 89 24","esconres@educa.aragon.es"]
[22010098,"Huesca","Centro Privado Autorizado de Enseñanzas Deportivas","Candanchú","ESCUELA ESPAÑOLA DE ESQUÍ","Ctra. De Francia, S/N",22889,"974 37 31 94","974 37 34 90"]
[22010104,"Huesca","Escuela de Educación Infantil","Esplús","LA COMETA","Pza. Escuelas, 9",22535,"974 43 51 29","974 43 51 00","ayuntamiento@esplus.info"]
[22010116,"Huesca","Escuela de Educación Infantil","Altorricón","EL PÍ","CL. MIGUEL FLETA, 3",22540,"974 42 52 01","974 42 51 16","eei@altorricon.com"]
[22010128,"Huesca","Escuela de Educación Infantil","Sabiñánigo","CARDELINA","Cl. Valle De Oza",22600,"974 48 42 62","974 48 42 01","cardelina@aytosabinanigo.net"]
[22010131,"Huesca","Escuela Pública de Música","Barbastro","ESCUELA DE MÚSICA","Cl. Argensola, 26 Casa De Cultura",22300,"974 31 52 25","974 31 52 25","musica@barbastro.org"]
[22010153,"Huesca","Centro Privado de Formación Profesional Específica","Huesca","ARTE-MISS HUESCA","Cl. Alcalde Carderera, 3",22002,"974 21 53 21","974 21 53 20","educacion@arte-miss.com"]
[22010165,"Huesca","Centro Privado Autorizado de Enseñanzas Deportivas","Benasque","ESCUELA DE MONTAÑA DE BENASQUE","Cl. Campalet, S/N",22440,"974 55 20 19","974 55 21 45","infoemb@fam.es"]
[22010177,"Huesca","Escuela de Educación Infantil","Castejón de Sos","LA MAINADA","CL. Constitución, 2",22466,"974 55 30 00","974 55 38 20","aytocastejondesos@educa.aragon.es"]
[22010189,"Huesca","Centro Privado de Educación Infantil","Huesca","PARCHÍS","Cl. Ramón J. Sender, 13",22001,"974 21 14 12"]
[22010190,"Huesca","Escuela de Educación Infantil","Tamarite de Litera","EL TAMARINDO","CL. SAN MIGUEL, 11",22550,"974 42 14 86","974 42 17 47","escuelainfantil@tamaritedelitera.es"]
[22010207,"Huesca","Escuela de Educación Infantil","Jaca","DE JACA","CL. BORNAO, S/N",22700,"974 35 60 01","974 35 60 01","escuelainfantil@aytojaca.es"]
[22010219,"Huesca","Centro Privado de Educación Infantil","Huesca","PASITO A PASO","CL. DOCTOR ARTERO, 17",22004,"974 24 48 48"]
[22010220,"Huesca","Centro Privado de Educación Infantil","Huesca","ZIMBEL","CL. TERUEL, 5",22005,"974 24 49 90"]
[22010232,"Huesca","Escuela de Educación Infantil","Binéfar","CONCEPCIÓN BAÑERES","CL. MADRID, 7",22500,"974 42 97 92","974 43 09 50","escinfantil@binefar.es"]
[22010244,"Huesca","Escuela de Educación Infantil","Tierz","LA CANTERA","CL. LA ALEGRÍA, 6",22192,"974 25 20 41","974 24 63 97","aytotierz@educa.aragon.es"]
[22010256,"Huesca","Centro Privado de Educación Infantil","Barbastro","ENCANTARIA","CL. RAMÓN Y CAJAL, 1",22300,"974 31 33 50"]
[22010268,"Huesca","Escuela de Educación Infantil","Biescas","DE BIESCAS","AVDA. ZARAGOZA. 21",22630,"974 48 53 16","974 49 55 09"]
[22010271,"Huesca","Escuela de Educación Infantil","Vencillón","LUPITA","CL. Mediodia s/n",22549,"974 43 43 10","974 43 43 16","vencillon@lalitera.org"]
[22010281,"Huesca","Escuela de Educación Infantil","Graus","NININS","CL. GAITEROS DE CASERRAS, 2",22430,974540299,974546002,"aytograus@educa.aragon.es"]
[22010293,"Huesca","Escuela de Educación Infantil","Ayerbe","LA FONTANETA","CL. PROGRESO, 4",22800,"974 38 08 95","974 38 01 19","aytoayerbe@reinodelosmallos.com"]
[22010301,"Huesca","Escuela de Educación Infantil","Binaced","ABABOL","CL. ALBALATE, 2",22510,"974 42 70 01","974 42 74 29","ayuntamiento@binaced.org"]
[22010311,"Huesca","Escuela de Educación Infantil","Benasque","LA MAINADA","AVDA. LUCHÓN, S/N",22440,"974 55 20 86","974 55 20 86","educacioninfantil@benasque.org"]
[22010323,"Huesca","Colegio de Educación Infantil y Primaria","Huesca","PIRINEOS-PYRÉNÉES","CL. CORONA DE ARAGÓN, 2",22005,974213678,"974 21 36 78","cppirhuesca@educa.aragon.es"]
[22010335,"Huesca","Escuela de Educación Infantil","Panticosa","TRIAMOLETA","CL. CAMPOS DE LA IGLESIA, S/N",22661,"974 48 70 16","974 48 75 77","ayto@panticosa.es"]
[22010347,"Huesca","Escuela Pública de Música","Altorricón","DE ALTORRICÓN","CL. MIGUEL FLETA, 2",22540,"974 425 002"]
[22010359,"Huesca","Escuela de Educación Infantil","Benabarre","LA CANALLA","NUEVO VIAL DE LA U.A. 3",22580,"974 54 30 00","974 54 74 04","aytobenabarre@educa.aragon.es"]
[22010360,"Huesca","Escuela de Educación Infantil","Almudévar","@S`CRI@S","AVDA. DEL ROSARIO Y C/ DE LAS CIENCIAS",22270,"974 25 06 78","974 25 09 04","guardealmudevar@hotmail.com"]
[22010372,"Huesca","Escuela Pública de Música","Gurrea de Gállego","DE GURREA DE GÁLLEGO","PZA. TÍO PEPE, S/N",22280,"976 688 375"]
[22010384,"Huesca","Centro Privado Autorizado de Enseñanzas Deportivas","Alquézar","ESCUELA DE MONTAÑA DE ALQUÉZAR","CL. SAN GREGORIO, 30",22145,"974 318 966",null,"era@prames.com"]
[22010396,"Huesca","Centro Privado de Educación Infantil","Huesca","KID'S GARDEN HUESCA","CL. CALATAYUD, 31 BAJOS",22005,"974 701 211",null,"info@kidsgardenhuesca.com"]
[22010402,"Huesca","Escuela de Educación Infantil","Fraga","XIQUETS","INTERSECCIÓN C/ CABAÑERA REAL Y C/ JAIME I",22520,"974 47 08 77","974 47 08 77","xiquets@fraga.org"]
[22010414,"Huesca","Escuela de Educación Infantil","Osso De Cinca","SANTA MARGARITA","CARRETERA DE FRAGA S/N",22532,"974 45 60 40","974 45 62 68","ossodecinca@ossodecinca.es"]
[22010426,"Huesca","Escuela de Educación Infantil","Belver de Cinca","DE BELVER DE CINCA","CL. TRAVESÍA DEL PILAR S/N",22533,"650 82 46 72","974 45 60 48","aytobelver1@telefonica.net"]
[22010438,"Huesca","Escuela de Educación Infantil","Gurrea de Gállego","DE GURREA DE GÁLLEGO","CL. CERVANTES Nº 1",22280,"976 68 80 95","976 68 83 37","escuelainfantilgurreadegallego@gmail.com"]
[22010441,"Huesca","Centro Privado de Educación Infantil","Huesca","ALBADA","CL. MARÍA MOLINER S/N",22004,"974 240 983",null,"vicentelachen@gmail.com"]
[22010451,"Huesca","Escuela Pública de Música","Aínsa","JOSE MARÍA CAMPO","CL. CORTES DE ARAGÓN, Nº 3",22330,974500074,974500955,"escuelademusicaainsa@gmail.com"]
[22010463,"Huesca","Escuela de Educación Infantil","Huesca","LAS PAJARITAS","CL. FUENTE DEL IBÓN, Nº 7",22002,"974 24 59 88","974 29 21 63","secretaria@huesca.es"]
[22010475,"Huesca","Escuela de Educación Infantil","Nueno","DE NUENO","URB. PARQUE DE GUARA",22193,"974 10 16 08","974 27 12 39","guardaytonueno@yahoo.es"]
[22010487,"Huesca","Escuela de Educación Infantil","Barbastro","DE BARBASTRO","CL. OBISPO AMBROSIO ECHEBARRÍA",22300,"974 26 90 82","974 30 63 11","escuelainfantil@barbastro.org"]
[22010499,"Huesca","Escuela de Educación Infantil","Peralta de Alcofea","DE PERALTA DE ALCOFEA","CL. BALMES, 16",22130,"974 30 11 62","974 30 13 43","secretaria@peraltadealcofea.org"]
[22010505,"Huesca","Escuela de Educación Infantil","Puente La Reina de Jaca","DE PUENTE LA REINA DE JACA","CL. MOLINO, S/N",22753,974377201,974377201]
[22010517,"Huesca","Escuela de Educación Infantil","Alcampell","DE ALCAMPELL","CL. LA LITERA, 15",22560,"974 42 09 52","974 42 09 52","secretaria@alcampell.net"]
[22010529,"Huesca","Escuela de Educación Infantil","Bielsa","VALLE DE BIELSA","CL. CALVARIO, S/N",22350,974501000,974501040,"secretaria@bielsa.com"]
[22010542,"Huesca","Escuela de Educación Infantil","Monflorite","ANDARINES","CL. Castillones, nº 6 - 8",22111,"974 28 01 51",974280151,"eiandarines1@gmail.com"]
[22010554,"Huesca","Escuela de Educación Infantil","Fonz","DE FONZ","CL. ZARAGOZA, 8",22422,974412001,974412247]
[22010566,"Huesca","Escuela de Educación Infantil","Ballobar","DE BALLOBAR","CL. BARRIO NUEVO, S/N",22234,974461288]
[22010578,"Huesca","Escuela de Educación Infantil","Boltaña","NINONES","CL. SAMPER, 1",22340,974502416]
[22010581,"Huesca","Escuela de Educación Infantil","Canfranc-Estación","LA CASITA BLANCA","PZA. DEL PILAR, 1",22880,974372041,974373037]
[22010591,"Huesca","Escuela de Educación Infantil","Berdún","DE CANAL DE BERDÚN","PZA. DEL CASTILLO, 1-BAJO",22770,974372719,974371729]
[22010608,"Huesca","Escuela de Educación Infantil","Villanúa","DE VILLANÚA","CL. FACI ABAD, S/N",22870,974378004,974378197]
[22010611,"Huesca","Escuela de Educación Infantil","Robres","DE ROBRES","CL. SAN BLAS, 9",22252,974392121]
[22010621,"Huesca","Escuela de Educación Infantil","Frula","DE FRULA","RONDA SUR, 6",22269,974392763]
[22010633,"Huesca","Escuela de Educación Infantil","Lalueza","DE LALUEZA","P.º COMENGE, 42",22214,974575146]
[22010645,"Huesca","Escuela de Educación Infantil","Tardienta","ARBOLEDA","AVDA. JOSÉ MARÍA PELEATO, 18",22240,659590832,976253135]
[22010657,"Huesca","Escuela de Educación Infantil","Lanaja","DE LANAJA","CL. José Borruel, S/N",22250,606240353,974574399]
[22010669,"Huesca","Escuela de Educación Infantil","Grañén","DE GRAÑÉN","CL. JUAN XXIII, 6",22260,974390252]
[22010670,"Huesca","Escuela de Educación Infantil","Sariñena","DE SARIÑENA","CTRA. DE FRAGA, S/N",22200,974570900,974570860]
[22010694,"Huesca","Escuela de Educación Infantil","Monzón","CLARA CAMPOAMOR","CL. HUERVA, 1",22400,617821817]
[22010700,"Huesca","Escuela de Educación Infantil","Torrente de Cinca","DE TORRENTE DE CINCA","CL. ARRABAL DEL NORTE, S/N",22590,"974 46 70 00","974 46 71 56","ayto.torrente@gmail.com"]
[22010712,"Huesca","Centro Público Integrado de Formación Profesional","Huesca","PIRÁMIDE","CAMI. DE CUARTE, S/N",22004,"974 21 01 02","974 21 61 96","cpifppiramide@educa.aragon.es"]
[22010724,"Huesca","Escuela de Educación Infantil","Aínsa","DE LA COMARCA DE SOBRARBE","Pº. DE LOS NAVATEROS, S/N",22330,"974 500 557",null,"escuelainfantil@sobrarbe.com"]
[22010736,"Huesca","Escuela de Educación Infantil","Fiscal","CHAVALINES","CL. COSO ALTO, 47",22373,"974 503369"]
[22010748,"Huesca","Escuela de Educación Infantil","Alcolea de Cinca","SANTA CATALINA","AVDA. DE LA CONSTITUCIÓN, S/N",22410,"974 469 912",null,"eisantacatalina@hotmail.com"]
[22010751,"Huesca","Escuela de Educación Infantil","Almunia de San Juan","ATALIA","CL. JOAQUÍN COSTA, 2",22420,"974 403 003",null,"aytoalmuniadesanjuan@educa.aragon.es"]
[22010761,"Huesca","Escuela de Educación Infantil","Peñalba","DE PEÑALBA","CL. LAS AFUERAS, S/N",22592,976462031,976463399]
[22010773,"Huesca","Escuela Pública de Música","Tardienta","VILLA DE TARDIENTA","CL. MARIANO GAVÍN, 13-15",22240,974253001,974253135,"aytotardienta@educa.aragon.es"]
[22010785,"Huesca","Escuela de Educación Infantil","Adahuesca","TREVIÑER","AVDA. Santiago Foncillas, 9",22147,"974 31 81 51"]
[22010797,"Huesca","Escuela de Educación Infantil","Sena","DE SENA","AVDA. de Huesca 14",22230,974578345,974578409,"aytosena@monegros.net"]
[22010803,"Huesca","Escuela de Educación Infantil","Huesca","MARÍA SÁNCHEZ ARBÓS","Cl. Ramón J. Sender, 19",22005,"974 21 33 25","974 21 56 98","juventud@huesca.es"]
[22010815,"Huesca","Escuela de Educación Infantil","Chimillas","VIRGEN DEL ROSARIO","CL. Escuelas, 22",22194,"974 224 571",null,"chimillas@chimillas.es"]
[22010827,"Huesca","Escuela de Educación Infantil","Broto","DE BROTO","CL. Morillo S/N",22370,974466306]
[22010839,"Huesca","Colegio de Educación Infantil y Primaria","Monzón","MONZÓN III","Avda. Del Pueyo, S/N",22400,"974 41 50 81","974 40 12 33","ceipmonzon@educa.aragon.es"]
[22010840,"Huesca","Centro Privado Autorizado de Enseñanzas Deportivas","Huesca","CENTRO DE FORMACIÓN EDUCATIVA FUNDACIÓN ALCORAZ","Camino del alto Cocorón, s/n Estadio El Alcoraz, puerta 3",22004,"974 243 834"]
[22010852,"Huesca","Extensión de Escuela Oficial de Idiomas","Binéfar","IGNACIO LUZÁN","Plza. Hipólito Bitrián, 1",22500,"974 428 295",null,"eoimonzon@educa.aragon.es"]
[22010864,"Huesca","Centro Privado de Educación Infantil","Fraga","COTONET","Cl. Valle de Tena, 14",22520,"636 434 982",null,"escuelacotonet@gmail.com"]
[22010876,"Huesca","Colegio de Educación Infantil y Primaria","Fraga","MARÍA MOLINER","C/ Valle de Pineta s/n",22520,"974 47 10 54",null,"cpfragaiii@educa.aragon.es"]
[22010888,"Huesca","Centro Privado Autorizado de Enseñanzas Deportivas","Huesca","International Coaches Education","Cl. Del Parque, 15",22003]
[22010906,"Huesca","Conservatorio Municipal Profesional de Música","Fraga","DE FRAGA","PS BARRÓN GENGONYER, 7",22520]
[22010918,"Huesca","Extensión de Escuela Oficial de Idiomas","Aínsa","RÍO VERO","CL. LUCIEN BRIET, S/N",22330]
[22010921,"Huesca","Centro Privado Autorizado Profesional de Música","Huesca","BRAVO ESPACIO DE MÚSICA","CL. José Castán Tobeñas, 52, L-1",22005,974218712,null,"info@bravoespaciomusica.com"]
[22010931,"Huesca","Escuela de Educación Infantil","Villanueva de Sigena","VILLANUEVA DE SIJENA","CL. EL SALVADOR, 9",22231]
[22010943,"Huesca","Escuela de Educación Infantil","Sodeto","DE SODETO","CL. GUITARRICO, 5, B",22212]
[22010967,"Huesca","Colegio de Educación Infantil y Primaria","Binéfar","KATIA ACÍN","C/ Olriols, s/n",22500]
[22010979,"Huesca","Extensión de Escuela Oficial de Idiomas","Benasque","RÍO VERO","Avda. de Luchón, s/n Benasque",22440]
[22600060,"Huesca","Guardería del Gobierno de Aragón","Barbastro","LA PAZ","CL. Miguel Fleta, 3",22300,"974 31 38 44",null,"gilapaz@educa.aragon.es"]
[22600072,"Huesca","Guardería del Gobierno de Aragón","Huesca","NUESTRA SEÑORA DE SAN LORENZO","CL. Ramón J. Sender nº 19",22006,"974 22 31 38","974 22 31 38","gisanlorenzo@educa.aragon.es"]
[22600084,"Huesca","Guardería del Gobierno de Aragón","Monzón","NUESTRA SEÑORA DE LA ALEGRÍA","Avda. del Pueyo, 78",22400,"974 40 16 26",null,"ginsdelaalegria@educa.aragon.es"]
[22600230,"Huesca","Escuela de Educación Infantil","Laspuña","GUARDERIA INFANTIL DE LASPUÑA","C/CANTONADA, S/N",22361,974505051]
[22700029,"Huesca","Centros de Innovación y Formación Educativa","Huesca","ANA ABARCA DE BOLEA","CL. SANCHO RAMÍREZ, 24",22001,"974 22 73 61","974 24 50 13","cprhuesca@educa.aragon.es"]
[22700030,"Huesca","Centros de Innovación y Formación Educativa","Monzón","MONZÓN","PZA. SANTA MARÍA, 2",22400]
[22700030,"Huesca","Centros de Innovación y Formación Educativa","Monzón","MONZÓN","PZA. SANTA MARÍA, 2",22400,"974 40 31 34",null,"cprmonzon@educa.aragon.es"]
[22700042,"Huesca","Centros de Innovación y Formación Educativa","Sabiñánigo","SABIÑANIGO","CL. LUIS BUÑUEL, 2",22600,974482612,974481780,"cprsabinanigo@educa.aragon.es"]
[22700054,"Huesca","Equipo de Orientación Educativa de Infantil y Primaria","Fraga","DE FRAGA","Cl. Airetas, 17; 2º",22520,"974 47 30 21","974 47 23 47","eoepfraga@educa.aragon.es"]
[22700066,"Huesca","Equipo de Orientación Educativa de Infantil y Primaria","Graus","DE GRAUS","Cl. Angel Samblancat, 10",22430,"974 54 60 62","974 54 60 62","eoepgraus@educa.aragon.es"]
[22700078,"Huesca","Equipo de Orientación Educativa de Infantil y Primaria","Huesca","DE HUESCA","Cl. Sancho Ramírez, 24",22001,"974 24 53 66","974 24 53 66","eoephuesca@educa.aragon.es"]
[22700081,"Huesca","Equipo de Orientación Educativa de Infantil y Primaria","Jaca","SUBSEDE E.O.E.I.P DE SABIÑÁNIGO en Jaca","Cl. Juan XXIII, S/N",22700,"974 36 32 00","974 36 32 00","eoepsabinanigo@educa.aragon.es"]
[22700091,"Huesca","Equipo de Orientación Educativa de Infantil y Primaria","Monzón","DE MONZÓN","Pza. Santa María, 2",22400,"974 41 58 58","974 40 18 68","eoepmonzon@educa.aragon.es"]
[22700108,"Huesca","Equipo de Orientación Educativa de Infantil y Primaria","Sabiñánigo","DE SABIÑÁNIGO","Cl. PEDRO DE SESÉ, 2",22600,"974 48 21 39",null,"eoepsabinanigo@educa.aragon.es"]
[22700111,"Huesca","Equipo de Orientación Educativa de Infantil y Primaria","Boltaña","SUBSEDE E.O.E.I.P. DE GRAUS en BoltañaBE-RIBAGORZA","Cl. Samper, S/N (Escuela hogar)",22340,"974 50 24 17",null,"eoepboltanna@educa.aragon.es"]
[22700145,"Huesca","Centro Rural de Innovación Educativa","Biescas","BUBAL-PROGRAMA PUEBLOS ABANDONADOS","BUBAL",22630,974487164,974487584,"ppabubal@educa.aragon.es"]
[22701009,"Huesca","Equipos de Atención Temprana","Huesca","DE HUESCA","c/ Sancho Ramírez, número 24",22001,null,null,"eoephuesca@aragon.aragon.es"]
[22701010,"Huesca","Equipos de Atención Temprana","Monzón","DE MONZÓN","Pza. Santa María, número 2",22400,null,null,"eoepmonzon@educa.aragon.es"]
[22701022,"Huesca","Centro Rural de Innovación Educativa","Benabarre","BENABARRE","Plaza Palau Quer, Número 3",22580]
[44000121,"Teruel","Colegio de Educación Infantil y Primaria","Albalate del Arzobispo","ROMÁN GARCÍA","Cl. Ronda Gárate S/N",44540,"978 81 22 31","978 81 22 31","cpalbalate@educa.aragon.es"]
[44000246,"Teruel","Colegio de Educación Infantil y Primaria","Alcañiz","EMILIO DÍAZ","Cl. Ronda De Caspe, 1",44600,"978 83 24 21","978 87 08 57","cpedalcaniz@educa.aragon.es"]
[44000261,"Teruel","Centro Privado de Educación Infantil Primaria y Secundaria","Alcañiz","SAN VALERO","Cl. Escolapios, 2",44600,"978 83 11 55","978 83 11 50","sanvalero@escolapiosemaus.org"]
[44000271,"Teruel","Centro Privado de Educación Infantil Primaria y Secundaria","Alcañiz","LA INMACULADA","Cl. Blasco, 1",44600,"978 83 10 87","978 83 12 07","lainmaculadaalcaniz@gmail.com"]
[44000325,"Teruel","Colegio de Educación Infantil y Primaria","Alcorisa","EL JUSTICIA DE ARAGÓN","Cl. San Pascual 22",44550,"978 84 02 75","978 84 02 28","cpalcorisa@educa.aragon.es"]
[44000465,"Teruel","Colegio de Educación Infantil y Primaria","Andorra","JUAN RAMÓN ALEGRE","Cl. San Isidro Labrador, 2",44500,"978 84 21 90","978 88 07 45","cpjraandorra@educa.aragon.es"]
[44000799,"Teruel","Colegio de Educación Infantil y Primaria","Calamocha","RICARDO MALLÉN","Avda. De La Constitución, 1",44200,"978 73 02 34","978 730 234","cprmcalamocha@educa.aragon.es"]
[44000829,"Teruel","Colegio de Educación Infantil y Primaria","Calanda","VIRGEN DEL PILAR","Avda. De Teruel S/N",44570,"978 84 61 09",null,"cpvpcalanda@educa.aragon.es"]
[44001159,"Teruel","Colegio de Educación Infantil y Primaria","Cella","ASTRÓNOMO ZARZOSO","Cl. Matadero, S/N",44370,"978 65 35 05","978 65 35 05","ceipazcella@educa.aragon.es"]
[44001378,"Teruel","Colegio de Educación Infantil y Primaria","Escucha","ANTONIO GARGALLO MOYA","Avda. De La Constitución, 3",44770,"978 75 81 27","978 75 81 27","cpagescucha@educa.aragon.es"]
[44001706,"Teruel","Colegio de Educación Infantil y Primaria","Híjar","LUIS TURÓN","Cl. Extramuros, S/N",44530,"978 82 01 04","978 82 01 04","cplthijar@educa.aragon.es"]
[44002061,"Teruel","Colegio de Educación Infantil y Primaria","Mas de las Matas","VALERO SERRANO","Cl. Escuelas, 9",44564,"978 84 80 87","978 84 80 87","cpvsmasmatas@educa.aragon.es"]
[44002152,"Teruel","Colegio de Educación Infantil y Primaria","Monreal del Campo","NTRA. SRA. DEL PILAR","Cl. Alfonso I El Batallador, 1",44300,"978 86 45 30","978 86 45 30","cpspmonreal@educa.aragon.es"]
[44002191,"Teruel","Colegio de Educación Infantil y Primaria","Montalbán","COMARCA CUENCAS MINERAS","Cl. Balmes, 7",44700,"978 75 02 85","978 75 02 85","cpmontalban@educa.aragon.es"]
[44002221,"Teruel","Colegio de Educación Infantil y Primaria","Mora de Rubielos","SAN MIGUEL","Avda. Ibáñez Martín, 13",44400,"978 80 01 92","978 80 01 92","cpsmmora@educa.aragon.es"]
[44002541,"Teruel","Colegio Rural Agrupado","Perales del Alfambra","TERUEL UNO","Cl. Frontón, 6",44163,"978 77 52 82","978 77 52 82","craperalesa@educa.aragon.es"]
[44002942,"Teruel","Colegio de Educación Infantil y Primaria","Sarrión","DE SARRIÓN","Cl. Tenor Juan García, 2",44460,"978 78 01 78","978 78 01 78","cpsarrion@educa.aragon.es"]
[44003028,"Teruel","Centro Público Integrado de Formación Profesional","San Blas","DE SAN BLAS","Bo. San Blas, S/N",44195,"978 61 88 20","978 61 88 21","ifpeteruel@educa.aragon.es"]
[44003041,"Teruel","Centro Privado de Educación Infantil Primaria y Secundaria","Teruel","LA SALLE-SAN JOSÉ","Cl. Tenor Marín, nº 6A",44002,"978 61 71 78","978 61 71 77","colegioteruel@lasallevp.es"]
[44003077,"Teruel","Centro Privado de Educación Infantil Primaria y Secundaria","Teruel","LAS VIÑAS","Cami. De Capuchinos, 1",44003,"978 61 71 15","978 61 71 19","semimen@planalfa.es"]
[44003090,"Teruel","Colegio de Educación Infantil y Primaria","Teruel","PIERRES VEDEL","Cl. Yagüe De Salas, 21",44001,"978 60 32 57","978 60 32 57","cppvteruel@educa.aragon.es"]
[44003107,"Teruel","Colegio de Educación Infantil y Primaria","Teruel","MIGUEL VALLÉS","Rambla De San Julián, 57",44003,"978 60 39 11","978 60 39 11","cpmvteruel@educa.aragon.es"]
[44003120,"Teruel","Colegio de Educación Infantil y Primaria","Teruel","LAS ANEJAS","Ctra. Alcañiz, S/N",44003,"978 60 35 87","978 60 35 87","cplateruel@educa.aragon.es"]
[44003156,"Teruel","Centro Privado de Educación Infantil Primaria y Secundaria","Teruel","VICTORIA DÍEZ","Avda. Ruiz Jarabo, 4",44002,"978 62 01 31","978 62 20 91","victoriadiez@planalfa.es"]
[44003171,"Teruel","Centro Privado de Educación Infantil Primaria y Secundaria","Teruel","LA PURÍSIMA Y SANTOS MÁRTIRES","Pza. Goya, 5",44001,"978 60 11 61","978 60 62 02","terciarias@planalfa.es"]
[44003211,"Teruel","Instituto de Educación Secundaria","Teruel","SANTA EMERENCIANA","CL. Juez Villanueva, 1",44002,"978 62 05 64","978 62 02 38","iessemteruel@educa.aragon.es"]
[44003223,"Teruel","Instituto de Educación Secundaria","Teruel","SEGUNDO DE CHOMÓN","CL. PABLO MONGUIÓ, 48",44003,"978 625112","978 60 00 80","iesschteruel@educa.aragon.es"]
[44003235,"Teruel","Instituto de Educación Secundaria","Teruel","VEGA DEL TURIA","Cl. Victor Pruneda, 1",44001,"978 60 26 44","978 60 26 44","iesvtteruel@educa.aragon.es"]
[44003247,"Teruel","Instituto de Educación Secundaria","Teruel","FRANCÉS DE ARANDA","CL. ATARAZANAS, 1",44003,"978 60 25 42","978 62 08 46","iesfrateruel@educa.aragon.es"]
[44003259,"Teruel","Colegio de Educación Especial","Teruel","ARBOLEDA","Camino de Capuchinos, 6",44003,"978 60 28 20","978 60 19 50","ceealteruel@educa.aragon.es"]
[44003260,"Teruel","Escuela Hogar","Teruel","DE TERUEL","Cl. Leocadio Brun, 5",44003,"978 60 32 33","978 60 32 33","ehteruel@educa.aragon.es"]
[44003272,"Teruel","Colegio de Educación Infantil y Primaria","Teruel","ENSANCHE","Cl. José Torán, 5",44002,"978 60 38 61","978 60 38 61","cpenteruel@educa.aragon.es"]
[44003284,"Teruel","Escuela de Arte","Teruel","ESCUELA DE ARTE DE TERUEL","Pza. De La Catedral, 8",44001,"978 60 26 35","978 60 26 35","earteruel@educa.aragon.es"]
[44003636,"Teruel","Colegio de Educación Infantil y Primaria","Utrillas","VILLA DE UTRILLAS","Cl. Pablo Gargallo, S/N",44760,"978 75 72 26","978 75 72 26","cpvutrillas@educa.aragon.es"]
[44003715,"Teruel","Colegio de Educación Infantil y Primaria","Valderrobres","VICENTE FERRER RAMOS","Avda. Madrid, 2",44580,"978 85 06 55","978 85 06 55","cpvfvalderrobres@educa.aragon.es"]
[44004045,"Teruel","Instituto de Educación Secundaria","Calamocha","VALLE DEL JILOCA","Avda. Zaragoza, 42",44200,"978 73 01 37","978 73 01 13","iescalamocha@educa.aragon.es"]
[44004082,"Teruel","Escuela Hogar","Cantavieja","DE CANTAVIEJA","Avda. Maestrazgo, 5",44140,"964 18 50 27","964 18 50 27","decant1@centros6.pntic.mec.es"]
[44004124,"Teruel","Centro Público de Educación de Personas Adultas","Teruel","ISABEL DE SEGURA","Pza. Santa Teresa, 8",44003,"978 60 78 81","978 61 14 77","cpeateruel@educa.aragon.es"]
[44004148,"Teruel","Colegio de Educación Especial","Andorra","GLORIA FUERTES","CL. FUENTE BAJA, 28",44500,"978 84 26 52","978 84 26 52","ceeandorra@educa.aragon.es"]
[44004173,"Teruel","Conservatorio Profesional de Música","Teruel","DE TERUEL","CL. CIUDAD ESCOLAR - EDIFICIO C.E.E. ARB",44001,"978 60 57 14","978 60 57 14","cpmteruel@educa.aragon.es"]
[44004239,"Teruel","Instituto de Educación Secundaria","Híjar","PEDRO LAÍN ENTRALGO","Cl. Bajada De San Antonio, S/N",44530,"978 82 08 76","978 82 17 88","ieshijar@educa.aragon.es"]
[44004306,"Teruel","Colegio de Educación Infantil y Primaria","Teruel","LA FUENFRESCA","Cl. Los Tilos, 1",44002,"978 60 03 01",978600243,"cplfteruel@educa.aragon.es"]
[44004318,"Teruel","Escuela Oficial de Idiomas","Teruel","DE TERUEL","Juez Villanueva, 1",44002,"978 62 05 57","978 62 05 57","eoiteruel@educa.aragon.es"]
[44004331,"Teruel","Conservatorio Profesional de Música","Alcañiz","JOSÉ PERIS LACASA","CL. Federico García Lorca, 18",44600,"978 83 18 98","978 83 18 98","cpmalcaniz@educa.aragon.es"]
[44004446,"Teruel","Escuela Oficial de Idiomas","Alcañiz","DE ALCAÑIZ","Cl. José Pardo Sastrón, 1",44600,"978 83 29 36","978 87 08 02","eoialcaniz@educa.aragon.es"]
[44004471,"Teruel","Colegio Rural Agrupado","Puigmoreno","REGALLO","Cl. Ronda Miraflores, S/N",44660,"978 83 81 79","978 83 81 79","crapuigmoreno@educa.aragon.es"]
[44004483,"Teruel","Colegio Rural Agrupado","Manzanera","JAVALAMBRE","Cl. Ingeniero Piqueras, 1",44420,"978 78 18 13","978 78 18 13","cramanzanera@educa.aragon.es"]
[44004495,"Teruel","Colegio Rural Agrupado","Tramacastilla","SIERRA DE ALBARRACÍN","Cl. Magdalena, 32",44112,"978 70 69 40","978 70 69 40","cratramacastilla@educa.aragon.es"]
[44004550,"Teruel","Instituto de Educación Secundaria","Utrillas","FERNANDO LÁZARO CARRETER","Cl. Miguel Servet, 3",44760,"978 75 80 50","978 75 67 38","iesutrillas@educa.aragon.es"]
[44004562,"Teruel","Colegio de Educación Infantil y Primaria","Andorra","MANUEL FRANCO ROYO","Avda. Escatrón, 1",44500,"978 84 35 15","978 88 02 06","cpmfrandorra@educa.aragon.es"]
[44004574,"Teruel","Centro Público de Educación de Personas Adultas","Alcañiz","RÍO GUADALOPE","CL. PILAR NARVIÓN, 2",44600,"978 83 14 15","978 87 05 55","cpeaalcaniz@educa.aragon.es"]
[44004598,"Teruel","Instituto de Educación Secundaria","Valderrobres","MATARRAÑA","Avda. Gral. Gutiérrez Mellado, S/N",44580,"978 85 06 47","978 85 06 78","iesvalderrobres@educa.aragon.es"]
[44004604,"Teruel","Escuela Pública de Música y Danza","Andorra","ESCUELA DE MÚSICA Y DANZA DE ANDORRA","CL. ARAGON, 4",44500,"978 84 34 62","978 88 00 94"]
[44004616,"Teruel","Colegio Rural Agrupado","Mosqueruela","MAESTRAZGO GÚDAR","Cl. El Vall, 16",44410,"978 80 52 18","978 82 52 18","cramosqueruela@educa.aragon.es"]
[44004628,"Teruel","Colegio Rural Agrupado","San Blas","TURIA","Cl. La Iglesia, S/N",44195,"978 61 75 57","978 61 75 57","crasanblas@educa.aragon.es"]
[44004653,"Teruel","Instituto de Educación Secundaria","Andorra","PABLO SERRANO","CL. HERMANAS ZAPATA, 8",44500,"978 84 21 62","978 84 42 24","iesandorra@educa.aragon.es"]
[44004665,"Teruel","Instituto de Educación Secundaria","Monreal del Campo","SALVADOR VICTORIA","Cl. María Moliner, 4",44300,"978 86 35 11","978 86 45 35","iesmonreal@educa.aragon.es"]
[44004677,"Teruel","Colegio Rural Agrupado","Aliaga","PABLO ANTONIO CRESPO","Cl. Tras De La Iglesia , S/N",44150,"978 77 14 42","978 77 14 42","craaliaga@educa.aragon.es"]
[44004689,"Teruel","Colegio Rural Agrupado","Caminreal","GOYA","Pza. Escuelas, 3",44350,"978 86 20 15",978862015,"cracaminreal@educa.aragon.es"]
[44004690,"Teruel","Colegio Rural Agrupado","Cantavieja","ALTO MAESTRAZGO","Avda. Maestrazgo, 3",44140,"964 18 51 29","964 18 51 29","cracantavieja@educa.aragon.es"]
[44004707,"Teruel","Colegio Rural Agrupado","Mata de los Olmos (La)","SOMONTANO-BAJO ARAGÓN","Cl. Fondus, S/N",44557,"978 84 93 57","978 84 93 57","cramata@educa.aragon.es"]
[44004719,"Teruel","Colegio Rural Agrupado","Cedrillas","PALMIRA PLÁ","Cl. Basilio Muñoz, 20-29",44147,"978 77 41 62","978 77 41 62","cracedrillas@educa.aragon.es"]
[44004720,"Teruel","Colegio Rural Agrupado","Ariño","ARIÑO-ALLOZA","Cl. Teruel, 10",44547,"978 81 71 33",978817133,"craarino@educa.aragon.es"]
[44004732,"Teruel","Colegio Rural Agrupado","Castellote","OLEA","P.º. De La Mina, 3",44560,"978 88 74 15","978 88 74 15","cracastellote@educa.aragon.es / craaguaviva@educa.aragon.es"]
[44004744,"Teruel","Colegio Rural Agrupado","Fresneda (La)","ALIFARA","CL VIRGEN DE GRACIA, 38",44596,"978 85 45 53",null,"craalifara@educa.aragon.es"]
[44004756,"Teruel","Colegio Rural Agrupado","Peñarroya de Tastavins","TASTAVÍNS","Cl. SANTIAGO RAMÓN Y CAJAL, 2",44586,"978 89 67 96","978 89 67 96","crapenarroya@educa.aragon.es"]
[44004768,"Teruel","Colegio Rural Agrupado","Martín del Río","DE MARTÍN DEL RÍO","Cl. Baja, 37",44750,"978 75 00 22","978 75 00 22","cramartinrio@educa.aragon.es"]
[44004771,"Teruel","Colegio Rural Agrupado","Muniesa","DE MUNIESA","Pza. Aragón, 1",44780,"978 81 06 52","978 81 06 52","cramuniesa@educa.aragon.es"]
[44004781,"Teruel","Colegio Rural Agrupado","Rubielos de Mora","PÓRTICO DE ARAGÓN","Cl. Pintor Salvador Victoria, 6",44415,"978 80 44 18","978 804418","craportico@educa.aragon.es"]
[44004793,"Teruel","Colegio Rural Agrupado","Albarracín","DE ALBARRACÍN","Cami. De Gea, S/N",44100,"978 71 00 52",978710052,"craalbarracin@educa.aragon.es"]
[44004801,"Teruel","Colegio Rural Agrupado","Puebla de Híjar (La)","BAJO MARTÍN","Avda. De La Estación, 2",44511,"978 82 63 16","978 82 63 16","crapueblah@educa.aragon.es"]
[44004811,"Teruel","Colegio Rural Agrupado","Castelserás","DEL MEZQUÍN","Cl. Mayor Alta, 69",44630,"978 87 71 31",978877131,"cracastelseras@educa.aragon.es"]
[44004847,"Teruel","Centro Público de Educación de Personas Adultas","Alcorisa","DE ALCORISA","Cl. Fuente Nueva, 24",44550,"978 841117","978 841117","cpeaalcorisa@educa.aragon.es"]
[44004884,"Teruel","Centro Público de Educación de Personas Adultas","Valderrobres","DE VALDERROBRES","La Paz 7, 2º",44580,"978 85 06 47",null,"cpeavalderrobres@educa.aragon.es"]
[44004926,"Teruel","Centro Público de Educación de Personas Adultas","Rubielos de Mora","DE RUBIELOS DE MORA","Cl. El Plano, 13",44415,"978 80 43 09","978 80 43 09","cpearubielos@educa.aragon.es"]
[44004938,"Teruel","Centro Público de Educación de Personas Adultas","Calamocha","DE CALAMOCHA","CL. ENMEDIO, 24; BAJO",44200,"978 73 06 80","978 73 06 80","cpeacalamocha@educa.aragon.es"]
[44004951,"Teruel","Centro Público de Educación de Personas Adultas","Cella","DE CELLA","Cl. Sánchez Motos, 64",44370,"978 65 03 67","978 65 03 67","cpeacella@educa.aragon.es"]
[44005001,"Teruel","Centro Público de Educación de Personas Adultas","Montalbán","CUENCA MINERA","CL. MANUELA CIRUGEDA, EDIFICO ÍTACA",44700,"978 75 05 31","978 75 40 26","cpeamontalban@educa.aragon.es"]
[44005050,"Teruel","Escuela Pública de Música","Alcañiz","VIRGEN DE LOS PUEYOS","CL. MAYOR 43",44600,"978 83 49 67","978 83 12 39","ssaenz@ayto_alcaniz.es"]
[44005062,"Teruel","Colegio Rural Agrupado","Calaceite","MATARRANYA","Avda. De Aragón, 2-4",44610,"978 85 13 39","978 85 13 39","cracalaceit@educa.aragon.es"]
[44005074,"Teruel","Colegio Rural Agrupado","Santa Eulalia","CUNA DEL JILOCA","Cl. España, 10",44360,"978 86 07 79","978 86 07 79","crastaeulalia@educa.aragon.es"]
[44005098,"Teruel","Instituto de Educación Secundaria","Alcorisa","DAMIÁN FORMENT","CL. MIGUEL DE CERVANTES, 1",44550,"978 84 07 34","978 84 07 34","iesalcorisate@educa.aragon.es"]
[44005104,"Teruel","Instituto de Educación Secundaria","Calanda","VALLE DEL GUADALOPE","P.º Alcañiz, 27",44570,"978 84 60 02","978 88 61 19","iescalanda@educa.aragon.es"]
[44005116,"Teruel","Instituto de Educación Secundaria","Mora de Rubielos","GÚDAR-JAVALAMBRE","Avda. Ibáñez Martín, S/N",44400,"978 80 04 09","978 80 04 09","iesmora@educa.aragon.es"]
[44005128,"Teruel","Instituto de Educación Secundaria","Cella","SIERRA PALOMERA","Cl. Partida El Carro, S/N",44370,"978 65 33 12","978 65 35 42","iescella@educa.aragon.es"]
[44005131,"Teruel","Colegio Rural Agrupado","Cretas","ALGARS","Cl. Jardín De La Corona De Aragón, S/N",44623,"978 89 04 73","978 89 04 73","cracretas@educa.aragon.es"]
[44005141,"Teruel","Escuela Pública de Música","Calanda","ESCUELA DE MÚSICA","CL. CAPUCHINOS, 2",44570,"661 70 12 64","978 88 61 41","ayuntamiento@calanda.es"]
[44005153,"Teruel","Colegio Rural Agrupado","Bello","CAMPO BELLO","CL. EL PERILLAN, S/N",44232,"978 73 41 59","978 73 41 59","crabello@educa.aragon.es"]
[44005165,"Teruel","Colegio Rural Agrupado","Poyo del Cid (El)","EL POYO DEL CID","Cl. San Miguel, 26",44392,"978 73 15 04",978731504,"crapoyocid@educa.aragon.es"]
[44005177,"Teruel","Instituto de Educación Secundaria","Alcañiz","BAJO ARAGÓN","Cl. José Pardo Sastrón, S/N",44600,"978 83 10 63","978 87 05 40","iesalcaniz@educa.aragon.es"]
[44005190,"Teruel","Sección de Instituto de Educación Secundaria","Cantavieja","SEGUNDO DE CHOMÓN","Avda. Maestrazgo, 5",44140,"964 18 51 10","964 18 54 05","iescantavieja@educa.aragon.es"]
[44005207,"Teruel","Instituto de Educación Secundaria","Albarracín","LOBETANO","CAMI. DE GEA, 19",44100,978710215,978710215,"iesalbarracin@educa.aragon.es"]
[44005219,"Teruel","Escuela Pública de Música y Danza","Monreal del Campo","ESCUELA DE MÚSICA Y DANZA","Cl. Gonzalo De Liria, 2 - 2ª Plta.",44300,"978 86 33 73","978 86 33 73"]
[44005220,"Teruel","Centro Público de Educación de Personas Adultas","Andorra","DE ANDORRA","CL. ESCUELAS, 10",44500,"978 88 04 54","978 88 00 95","cpeaandorra@educa.aragon.es"]
[44010008,"Teruel","Escuela Pública de Música","Alcorisa","ESCUELA DE MÚSICA","CL. FUENTE NUEVA, 15",44550,"978 84 07 05","978 84 06 17"]
[44010011,"Teruel","Centro Público Integrado de Formación Profesional","Teruel","ESCUELA DE HOSTELERÍA DE TERUEL","Cl. Mariano Muñoz Nogués, 11-13",44001,"978 60 01 35","978 60 01 14","esuhosteruel@educa.aragon.es"]
[44010021,"Teruel","Extensión de Escuela Oficial de Idiomas","Monreal del Campo","DE TERUEL","Cl. Gonzalo De Liria, 2",44300,"978 62 05 57","978 62 05 57","eoiteruel@educa.aragon.es eoimonreal@educa.aragon.es"]
[44010033,"Teruel","Extensión de Escuela Oficial de Idiomas","Utrillas","DE TERUEL","Cl. Miguel Servet, 4",44760,"978 75 80 50","978 75 67 38","eoiteruel@educa.aragon.es; eoiutrillas@educa.aragon.es"]
[44010045,"Teruel","Extensión de Escuela Oficial de Idiomas","Calamocha","DE TERUEL","Avda. Zaragoza, 42",44200,"978 73 01 37","978 73 01 13","eoiteruel@educa.aragon.es eoicalamocha@educa.aragon.es"]
[44010069,"Teruel","Escuela de Educación Infantil","Andorra","LA MALENA","Cl. Subida A La Virgen, S/N",44500,"978 84 22 14","978 84 22 14","escuelamalena@terra.es"]
[44010070,"Teruel","Extensión de Escuela Superior de Diseño","Teruel","DE TERUEL","Pza. De La Catedral, 8",44001,"978 60 26 35","978 60 26 35","eayoteruel@educa.aragob.es"]
[44010082,"Teruel","Centro Privado de Educación Infantil","Alcañiz","VEO-VEO","Cl. Ronda De Caspe, 3",44600,"978 83 11 06"]
[44010094,"Teruel","Centro Privado de Educación Infantil","Teruel","DUMBO","CL. SAN DAMIÁN, 5",44003,"978 61 04 83"]
[44010100,"Teruel","Colegio de Educación Infantil y Primaria","Alcañiz","JUAN SOBRARIAS","CL. Morella s/n",44600,"978 83 40 35","978 83 40 35","cpjsalcaniz@educa.aragon.es"]
[44010112,"Teruel","Escuela de Educación Infantil","Alcorisa","DE ALCORISA","CL. FUENTE NUEVA, 15",44550,"978 84 07 05","978 84 06 17","secretarioayto@alcorisa.org"]
[44010124,"Teruel","Escuela de Educación Infantil","Valdealgorfa","LOS MONCHONES","CL. DIEGO RAMELLORE, 20",44594,"978 85 70 00","978 85 70 00","ayuntamiento@valdealgorfa.com"]
[44010136,"Teruel","Escuela de Educación Infantil","Calanda","DE CALANDA","CL. CAPUCHINOS, 2",44570,"978 88 61 54","978 88 60 61","aytocalanda@educa.aragon.es"]
[44010148,"Teruel","Escuela de Educación Infantil","Castelserás","SANTA BÁRBARA","CL. LA PARADA, S/N",44630,"978 87 73 40","978 87 71 01","a.castelseras@mezquin.com"]
[44010151,"Teruel","Escuela Pública de Música","Valderrobres","DE VALDERROBRES","CL. BELCHITE, 18",44580,"636 086 444"]
[44010161,"Teruel","Centro Privado de Educación Infantil","Alcañiz","SOLETES","PZA. PAOLA BLASCO, 14",44600,"978 834 909",null,"ceisoletes@hotmail.com"]
[44010173,"Teruel","Escuela de Educación Infantil","Ojos Negros","DE OJOS NEGROS","TRAVESÍA DE LA PLAZA, 11",44313,"978 86 52 57","978 86 52 86","aytoojosnegros@educa.aragon.es"]
[44010185,"Teruel","Escuela de Educación Infantil","Mazaleón","SAGALETS (AULA DE MAZALEÓN)","CL. REHUERTA, 2",44621,"978 89 86 92","978 89 87 08","madelriosanz@mazaleon.es"]
[44010197,"Teruel","Escuela de Educación Infantil","Cedrillas","EL PARQUE","CL. Basiliso Muñoz, S/N",44147,"978 77 40 01","978 77 40 01","ayuncedrillas@terra.es"]
[44010203,"Teruel","Colegio de Educación Infantil y Primaria","Alcañiz","JUAN LORENZO PALMIRENO","Avda. Aragón, 28",44600,978831338,"978 83 13 38","cppalmireno@educa.aragon.es"]
[44010215,"Teruel","Escuela Pública de Música","Teruel","ANTÓN GARCIA ABRIL. CIUDAD DE TERUEL","Ctra. de Alcañiz, S/N (Edificio antiguo matadero)",44003,"978 60 86 87","978 60 86 87","escuela@bandamusicateruel.com"]
[44010227,"Teruel","Escuela de Educación Infantil","Fresneda (La)","SAGALETS (AULA DE LA FRESNEDA)","CL. DEL PILAR, 21",44596,"646 18 12 89","978 85 41 69","lafresnedaweb@terra.es"]
[44010239,"Teruel","Escuela de Educación Infantil","Fuentespalda","SAGALETS (AULA DE FUENTESPALDA)","CL. Virgen del Pilar, 38",44587,978856750,978856751,"fondespala@telefonica.net"]
[44010240,"Teruel","Escuela de Educación Infantil","Codoñera (La)","LA CODOÑERA","AVDA. Isidoro Celma nº 6",44640,"978 85 23 07","978 85 20 00","aytolacodonnera@educa.aragon.es"]
[44010252,"Teruel","Escuela de Educación Infantil","Montalbán","DE MONTALBÁN","CL. BALMES, Nº 7",44700,"978 75 00 01","978 75 00 77","ayuntamiento@montalban.org"]
[44010264,"Teruel","Escuela de Educación Infantil","Torrecilla de Alcañiz","DE TORRECILLA DE ALCAÑIZ","CL. CARRETERA Nº 4",44640,"978 85 21 27","978 85 21 27","ayto-torrecilla@mezquin.com"]
[44010276,"Teruel","Escuela de Educación Infantil","Alcañiz","LA SELVETA","CL. CONCEPCIÓN GIMENO GIL, Nº 7, PLANTA BAJA",44600,"978 83 00 83","978 83 00 83"]
[44010288,"Teruel","Escuela Pública de Música","Escucha","SALVADOR SALVADOR NAVARRO","CL. SAN BARTOLOMÉ, 11",44770,"978 757 925"]
[44010291,"Teruel","Escuela de Educación Infantil","Utrillas","DE UTRILLAS","CL. CONSTITUCIÓN, S/N",44760,"978 75 70 01","978 75 82 22","ayuntamiento@utrillas.org"]
[44010306,"Teruel","Escuela de Educación Infantil","Monreal del Campo","RICARDA GONZALO DE LIRIA","CL. MARÍA MOLINER Nº 1",44300,"978 86 30 08","978 86 37 90","ayuntamiento@monrealdelcampo.com"]
[44010318,"Teruel","Centro Privado de Educación Infantil","Teruel","MAFALDA-LAS VIÑAS","CAMINO CAPUCHINOS, 1",44003,"978 601 327",null,"ceimafalda@colegiolasviñas.com"]
[44010321,"Teruel","Escuela de Educación Infantil","Híjar","EL CASTILLO","PLAZA DEL CASTILLO, Nº 6",44530,"978 82 05 08","978 82 00 37","hijar@hijar.com"]
[44010331,"Teruel","Escuela de Educación Infantil","Albalate del Arzobispo","DE ALBALATE DEL ARZOBISPO","CL. EL PALOMAR, S/N",44540,"978 81 39 80","978 81 31 16","ayuntamiento@albalatedelarzobispo.com"]
[44010343,"Teruel","Escuela de Educación Infantil","Albarracín","DE ALBARRACÍN","CAMI. DE GEA, S/N",44100,978700392,978710023]
[44010355,"Teruel","Escuela de Educación Infantil","Berge","DE BERGE","CL. ESCUELAS, 1",44556,978849001,978849001,"ayuntamiento@berge.es"]
[44010367,"Teruel","Escuela de Educación Infantil","Foz-Calanda","LA REPLACETA","PZA. DE LA IGLESIA, S/N",44579,978846951]
[44010379,"Teruel","Escuela de Educación Infantil","Mosqueruela","SANTA ENGRACIA","CL. SANTA ENGRACIA, 5",44410,"978 80 70 07","978 80 70 08"]
[44010380,"Teruel","Escuela de Educación Infantil","San Blas","DE TERUEL (SAN BLAS)","CL. LA IGLESIA, S/N",44195,978221839]
[44010392,"Teruel","Escuela de Educación Infantil","Cantavieja","DE CANTAVIEJA","AVDA. MAESTRAZGO, 3",44140,"964 18 50 01","964 18 50 01","ayuntamiento@cantavieja.es"]
[44010409,"Teruel","Escuela de Educación Infantil","Sarrión","DE SARRIÓN","C/ Tenor Juan García, 2",44460,"606 35 72 31","978 78 00 84","ayuntamiento@sarrion.es"]
[44010410,"Teruel","Escuela de Educación Infantil","Villarquemado","DE VILLARQUEMADO","CL. LARGA, 55-A",44380,"978 86 73 14","978 86 73 30","ayuntamiento@villarquemado.es"]
[44010422,"Teruel","Escuela de Educación Infantil","Puebla de Híjar (La)","DE LA PUEBLA DE HÍJAR","AVDA. ESTACIÓN, 2",44510,"978 82 67 38","978 82 66 53","aytopuebladehijar@educa.aragon.es"]
[44010434,"Teruel","Escuela de Educación Infantil","Calamocha","PRIMEROS PASOS","AVDA. CONSTITUCIÓN, 13",44200,"978 73 08 25","978 73 05 17","scd@infonegocio.com"]
[44010458,"Teruel","Escuela de Educación Infantil","Calaceite","DE CALACEITE","AVDA. ARAGÓN, 2-4",44610,"680 426 552","978 85 15 46","aytocalaceite@educa.aragon.es"]
[44010471,"Teruel","Escuela de Educación Infantil","Rubielos de Mora","DE RUBIELOS DE MORA","CL. ESTERRADOR, 1",44415,"978 80 41 44",null,"secretaria@aytorubielosdemora.com"]
[44010483,"Teruel","Escuela de Educación Infantil","Teruel","DE TERUEL (BARRIO ARRABAL)","PZA. PIRINEOS, S/N",44071,978619900]
[44010495,"Teruel","Escuela de Educación Infantil","Valderrobres","DE VALDERROBRES","CL. LOPE DE VEGA, 56",44580,"978 89 03 09","978 89 03 08","eeivalderrobres@hotmail.com"]
[44010501,"Teruel","Escuela de Educación Infantil","Valjunquera","SAGALETS (AULA DE VALJUNQUERA)","CL. FERRANDO, 3",44595,978899045,978854100,"aytovaljunquera@gmail.com"]
[44010513,"Teruel","Escuela de Educación Infantil","Santa Eulalia","DE SANTA EULALIA","CL. ESPAÑA, S/N",44360,"978 86 00 00","978 86 00 00","leonor@santaeulaliadelcampo.com"]
[44010525,"Teruel","Escuela de Educación Infantil","Villaspesa","DE TERUEL (VILLAESPESA)","El Paso 1",44190,978609120]
[44010537,"Teruel","Centro Público Integrado de Formación Profesional","Alcañiz","BAJO ARAGÓN","CL. José Pardo Sastrón, 1",null,"978 831063",null,"cpifpbajoaragon@educa.aragon.es"]
[44010549,"Teruel","Escuela de Educación Infantil","Urrea de Gaén","SEÑORA PABLA","AVDA. DE ÁNGEL GARGALLO, 16",44593,978821004,978821004,"ayuntamiento@urreadegaen.com"]
[44010550,"Teruel","Escuela de Educación Infantil","Mata de los Olmos (La)","DE LA MATA DE LOS OLMOS","CL. BAJA, 52",44557,978849154,978849154]
[44010562,"Teruel","Escuela de Educación Infantil","Aguaviva","DE AGUAVIVA","AVDA. PARRAS DE CASTELLOTE, 18",44560,978848234,978849906,"ayunagua@arrakis.es"]
[44010574,"Teruel","Escuela de Educación Infantil","Bronchales","DE BRONCHALES","CL. CARRETERA, 17-B",44367,608419386,978701085]
[44010598,"Teruel","Escuela de Educación Infantil","Monroyo","SAGALETS (AULA DE MONROYO)","CL.MURO, 5",44652,"978 856 001"]
[44010604,"Teruel","Escuela Pública de Música","Calaceite","DE CALACEITE","AVDA. DE ARAGÓN, 2-4; 1º",44610,978851209,978851546,"aytocalaceite@educa.aragon.es"]
[44010616,"Teruel","Escuela de Educación Infantil","Cretas","SAGALETS (AULA DE CRETAS)","CL. Ermita, 7",44623,"978 85 03 00"]
[44010628,"Teruel","Escuela de Educación Infantil","Mas de las Matas","DE MAS DE LAS MATAS","CL. Las Escuelas, S/N",44564,"619 634 069"]
[44010631,"Teruel","Escuela de Educación Infantil","Villastar","PEQUEÑALBA","CL. Camino Real S/N",44130,"978 680 100"]
[44010641,"Teruel","Escuela de Educación Infantil","Cella","SARGANTESA","CL. Aguaperdida, S/N",44370,978650002,978653204,"registro@cella.es"]
[44010653,"Teruel","Centro Privado de Educación Infantil","Teruel","SNOOPY","CL. TENOR MARÍN, 6-A",44002,978612180]
[44010665,"Teruel","Escuela de Educación Infantil","Beceite","SAGALETS (AULA DE BECEITE)","CL. La Pesquera, 3",44588,978850225]
[44010677,"Teruel","Residencia de Secundaria","Teruel","DE SANTA EMERENCIANA","Cl. Juez Villanueva, 1",44002,"978 62 05 33",null,"resseteruel@educa.aragon.es"]
[44010689,"Teruel","Centro Privado de Educación Infantil","Teruel","GAG CU CU-TRAS TRAS","Camino Castralvo 34, Bajo",44002,"978 227 224",null,"info@cucutrastrasteruel.es"]
[44010690,"Teruel","Escuela de Educación Infantil","Portellada (La)","SAGALETS (AULA DE PORTELLADA)","Cl. Las Escuelas, número 6",44589]
[44010707,"Teruel","Escuela Privada de Música y Danza","Teruel","LAS TORRES","PZA. LOS AMANTES, S/N",44001,null,null,"asocdanzalastorres@gmail.com"]
[44010719,"Teruel","Colegio Rural Agrupado","Orihuela del Tremedal","BRONCHALES-ORIHUELA","C/ Subida al Tremedal, 10",44366,978714352,978714352,"craorihuela@educa.aragon.es"]
[44010720,"Teruel","Escuela de Educación Infantil","Valdeltormo","SAGALETS (AULA DE VALDELTORMO)","CL MAYOR, 33",44620,978858001,978858001]
[44010732,"Teruel","Extensión de Escuela Oficial de Idiomas","Calanda","DE ALCAÑIZ","PS. ALCAÑIZ, 27",44570]
[44010744,"Teruel","Centro Público de Educación de Personas Adultas","Iglesuela del Cid (La)","HERMANAS CATALÁN DE OCÓN","Avda. Aragón, número 2",44142]
[44010756,"Teruel","Centro Privado de Educación Infantil","Teruel","INFANTIL 0-3 LA PURÍSIMA MONTESSORI","Ronda de Ambeles, 56",44001]
[44010768,"Teruel","Escuela de Educación Infantil","Mezquita de Jarque","MEZQUITA DE JARQUE","C/Palomar, 11",44169]
[44600021,"Teruel","Guardería del Gobierno de Aragón","Alcañiz","SANTO ÁNGEL CUSTODIO","Avda. Aragón, s/n",44600,"978 87 09 60","978 87 09 60","gisantoangel@educa.aragon.es"]
[44700013,"Teruel","Centros de Innovación y Formación Educativa","Alcañiz","ALCAÑIZ","CL. José Pardo Sastrón, 1 A",44600,"978 83 28 03",null,"cpralcaniz@educa.aragon.es"]
[44700025,"Teruel","Centros de Innovación y Formación Educativa","Teruel","ANGEL SANZ BRIZ","CL. Ciudad Escolar, s/n",44003,"978 61 84 60","978 61 70 88","cifeteruel@educa.aragon.es"]
[44700049,"Teruel","Equipo de Orientación Educativa de Infantil y Primaria","Alcañiz","DE ALCAÑIZ","CL. JOSÉ PARDO SASTRÓN, 1",44600,"978 83 28 81","978 83 28 81","eoepalcaniz@educa.aragon.es"]
[44700050,"Teruel","Equipo de Orientación Educativa de Infantil y Primaria","Cantavieja","DE CANTAVIEJA","AVDA. MAESTRAZGO, 5",null,"964 185 208",null,"eoep@educa.aragon.es"]
[44700062,"Teruel","Equipo de Orientación Educativa de Infantil y Primaria","Teruel","DE TERUEL","Cl. Miguel Servet, 2 Bajo",44002,978602693,null,"eoepteruel@educa.aragon.es"]
[44700074,"Teruel","Equipo de Orientación Educativa de Infantil y Primaria","Utrillas","DE UTRILLAS","Avda. Sres. Balsega, S/N",44760,"978 75 83 55","978 75 83 55","eoeputrillas@educa.aragon.es"]
[44700086,"Teruel","Equipo de Orientación Educativa de Infantil y Primaria","Andorra","DE ANDORRA","Cl. San Isidro Labrador, 2",44500,"978 84 34 78","978 84 34 78","eoepandorra@educa.aragon.es"]
[44700098,"Teruel","Equipo de Orientación Educativa de Infantil y Primaria","Calamocha","DE CALAMOCHA","Cl. Melchor de Luzón, 6 - 2ª Planta",44200,978730597,null,"eoepcalamocha@educa.aragon.es"]
[44700131,"Teruel","Centro Rural de Innovación Educativa","Alcorisa","ALCORISA","Pza. del Seminario, 1",44550,"978 84 05 03",null,"crietalcorisa@educa.aragon.es"]
[44700141,"Teruel","Centro Rural de Innovación Educativa","Albarracín","ALBARRACIN","Cami. De Gea, S/N",44100,"978 71 01 53","978 71 01 53","crietalbarracin@educa.aragon.es"]
[44700153,"Teruel","Centro Rural de Innovación Educativa","Calamocha","CALAMOCHA","Avda. de Aragón, 35",44200,"978 73 23 08","978 73 05 01","crietcalamocha@educa.aragon.es"]
[44700165,"Teruel","Centros de Innovación y Formación Educativa","Alcorisa","CENTRO ARAGONÉS DE TECNOLOGÍAS PARA LA EDUCACIÓN (CATEDU)","CL. Miguel de Cervantes, s/n",44550,"978 84 10 86","978 84 10 86","catedu@educa.aragon.es"]
[44701017,"Teruel","Centros de Innovación y Formación Educativa","Alcorisa","DE ALCORISA","Cl. Cervantes, 1",44550,978840357,null,"cifealcorisa@educa.aragon.es"]
[44701029,"Teruel","Equipos de Atención Temprana","Teruel","DE TERUEL","c/ Miguel Servet, 2",44002,null,null,"eoepteruel@educa.aragon.es"]
[44701030,"Teruel","Equipos de Atención Temprana","Alcañiz","DE ALCAÑIZ","c/ José Pardo Sastrón, número 1",44600,null,null,"eoepalcaniz@educa.aragon.es"]
[50000126,"Zaragoza","Colegio de Educación Infantil y Primaria","Alagón","ARAGÓN","Avda. De La Jarea, S/N",50630,976611354,976611354,"cpalagon@educa.aragon.es"]
[50000151,"Zaragoza","Centro Privado de Educación Infantil Primaria y Secundaria","Alagón","NTRA. SRA DEL CASTILLO","Avda. De La Portalada, 39",50630,"976 61 02 90","976 61 31 60","nscastillo@nscastillo.com"]
[50000163,"Zaragoza","Instituto de Educación Secundaria","Alagón","CONDE ARANDA","AVDA. DE LA PORTALADA, 22",50630,"976 61 60 80","976 61 60 80","iesalagon@educa.aragon.es"]
[50000291,"Zaragoza","Colegio de Educación Infantil y Primaria","Alfajarín","BRIANDA DE LUNA","Cl. La Portaza, 50",50172,"976 10 01 35",976100135,"cpalfajarin@educa.aragon.es"]
[50000369,"Zaragoza","Colegio de Educación Infantil y Primaria","Almonacid de la Sierra","ARZOBISPO DOMÉNECH","Cl. San Nicolás De Tolentino, 2",50108,"976 62 70 02",979627002,"cpalmonacids@educa.aragon.es"]
[50000370,"Zaragoza","Colegio de Educación Infantil y Primaria","Almunia de Doña Godina (La)","NERTÓBRIGA","C/ Carra La Hilera, s/n",50100,"976 81 21 99","976 81 18 84","cpalmunia@educa.aragon.es"]
[50000412,"Zaragoza","Centro Privado de Educación Secundaria","Almunia de Doña Godina (La)","SALESIANOS LAVIAGA-CASTILLO","Cl. María Auxiliadora, 12",50100,"976 81 24 20","976 81 22 59","secretaria.laalmunia@salesianos.edu"]
[50000436,"Zaragoza","Colegio de Educación Infantil y Primaria","Alpartir","RAMÓN Y CAJAL","CL. CAMINO DE ALMONACID S/N",50109,"976 81 30 01",null,"cpalpartir@educa.aragon.es"]
[50000618,"Zaragoza","Colegio de Educación Infantil y Primaria","Ateca","VIRGEN DE LA PEANA","PZA. DEL MESÓN, 8",50200,"976 84 20 69",976842069,"cpvpateca@educa.aragon.es"]
[50000722,"Zaragoza","Colegio de Educación Infantil y Primaria","Belchite","BELIA","Cl. El Ferial, 6",50130,"976 83 03 16",976830316,"cpbelchite@educa.aragon.es"]
[50000734,"Zaragoza","Centro Privado de Educación Infantil","Belchite","SAN RAFAEL","Cl. San Ramón, 21",50130,"976 83 00 59"]
[50000850,"Zaragoza","Colegio de Educación Infantil y Primaria","Borja","CAMPO DE BORJA","Cl. Ramón Y Cajal, 2",50540,"976 86 72 17","976 86 96 60","cpcbborja@educa.aragon.es"]
[50000862,"Zaragoza","Centro Privado de Educación Infantil Primaria y Secundaria","Borja","SANTA ANA","Cl. Amad, 22",50540,"976 86 71 40","976 85 24 08","santanaborja@telefonica.net"]
[50000874,"Zaragoza","Instituto de Educación Secundaria","Borja","JUAN DE LANUZA","Cl. Capuchinos, 1",50540,"976 86 73 68","976 85 26 27","iesborja@educa.aragon.es"]
[50000904,"Zaragoza","Colegio de Educación Infantil y Primaria","Brea de Aragón","DIPUTACIÓN PROVINCIAL","CL. CAYO VELA, 7",50246,"976 82 43 33","976 82 43 33","cpbrea@educa.aragon.es"]
[50001064,"Zaragoza","Colegio de Educación Infantil y Primaria","Calatayud","BALTASAR GRACIÁN","Ctra. De Valencia, S/N",50300,"976 88 16 52","976 88 16 52","cpbgcalatayud@educa.aragon.es"]
[50001076,"Zaragoza","Colegio de Educación Infantil y Primaria","Calatayud","FRANCISCO DE GOYA","Cl. Santander-Mediterráneo, S/N",50300,"976 88 26 96","976 54 65 29","cpfgcalatayud@educa.aragon.es"]
[50001088,"Zaragoza","Colegio de Educación Infantil y Primaria","Calatayud","SALVADOR MINGUIJÓN","Cl. Puerta De Soria, 35",50300,"976 88 16 71","976 88 16 71","cpsmcalatayud@educa.aragon.es"]
[50001121,"Zaragoza","Centro Privado de Educación Infantil Primaria y Secundaria","Calatayud","SANTA ANA","Cl. Madre Rafols, 2",50300,"976 88 20 22","976 88 19 13","secretaria@santanacalatayud.com"]
[50001167,"Zaragoza","Instituto de Educación Secundaria","Calatayud","LEONARDO DE CHABACIER","P.º San Nicolás De Francia, 10",50300,"976 88 10 15","976 88 62 40","ieslchcalatayud@educa.aragon.es"]
[50001179,"Zaragoza","Instituto de Educación Secundaria","Calatayud","EMILIO JIMENO","Cl. Río Perejiles, 2",50300,"976 881 009","976 884 593","iesejcalatayud@educa.aragon.es"]
[50001180,"Zaragoza","Centro Docente de Formación Militar","Calatayud","ACADEMIA DE LOGÍSTICA DEL EJÉRCITO DE TIERRA","AVDA. DE LAS FUERZAS ARMADAS, S/N",50300,"876 633000","876 633013"]
[50001222,"Zaragoza","Colegio de Educación Infantil y Primaria","Calatorao","DOMINGO JIMÉNEZ BELTRÁN","Paseo Bruno Solano, 2",50280,"976 60 73 67","976 60 73 67","cpdjbcalatorao@educa.aragon.es"]
[50001301,"Zaragoza","Colegio de Educación Infantil y Primaria","Cariñena","SANTO CRISTO DE SANTIAGO","CL. SAINT PIERRE D' OLÈRON, 12",50400,"976 62 08 96","976 62 08 96","cpcarinena@educa.aragon.es"]
[50001349,"Zaragoza","Instituto de Educación Secundaria","Cariñena","JOAQUÍN COSTA","Avda. Del Ejército, S/N",50400,"976 62 01 20","976 62 01 15","iescarinena@educa.aragon.es"]
[50001350,"Zaragoza","Colegio de Educación Infantil y Primaria","Caspe","COMPROMISO DE CASPE","Pza. Compromiso, 12",50700,"976 63 05 69","976 63 05 69","cpcccaspe@educa.aragon.es"]
[50001362,"Zaragoza","Centro Privado de Educación Infantil Primaria y Secundaria","Caspe","SANTA ANA","Cl. Coso, 18",50700,"976 63 03 96","976 63 18 92","santaanacaspe@planalfa.es"]
[50001672,"Zaragoza","Colegio de Educación Infantil y Primaria","Chiprana","LUCIO FABIO SEVERO","Cl. Lucio Fabio Severo, S/N",50792,"976 63 72 50",null,"cpchiprana@educa.aragon.es"]
[50001702,"Zaragoza","Colegio de Educación Infantil y Primaria","Daroca","PEDRO SÁNCHEZ CIRUELO","Calle Barranco de Luzbel s/n",50360,"976 80 08 79","976 80 08 79","cpscdaroca@educa.aragon.es"]
[50001738,"Zaragoza","Escuela Hogar","Daroca","PUERTA DE ZARAGOZA","Cl. Mayor, 2",50360,"976 80 02 33",null,"ehdaroca@educa.aragon.es"]
[50001763,"Zaragoza","Colegio de Educación Infantil y Primaria","Ejea de los Caballeros","CERVANTES","Paseo de la Constitución 38",50600,"976 66 15 11","976 66 15 11","cpcervantesejea@educa.aragon.es"]
[50001775,"Zaragoza","Colegio de Educación Infantil y Primaria","Ejea de los Caballeros","FERRER Y RACAJ","Cl. Alegría, S/N",50600,"976 66 27 66","976 66 27 66","cpfrejea@educa.aragon.es"]
[50001799,"Zaragoza","Centro Privado de Educación Infantil Primaria y Secundaria","Ejea de los Caballeros","NTRA. SRA. DE LAS MERCEDES","Pº. Justicia Mayor De Aragón, 49",50600,"976 66 36 36","976 66 36 36","mercedariasejea@colegiosaragon.org"]
[50001829,"Zaragoza","Centro Privado de Formación Profesional Específica","Ejea de los Caballeros","E.F.A. BOALARES","Carretera A-127, km 37",50600,"976 66 14 56","976 66 14 56","boalares@efasdearagon.es"]
[50001830,"Zaragoza","Instituto de Educación Secundaria","Ejea de los Caballeros","REYES CATÓLICOS","CL. MARIANO ALASTUEY, 26",50600,"976 66 06 45","976 66 40 30","iesrcejea@educa.aragon.es"]
[50002007,"Zaragoza","Colegio de Educación Infantil y Primaria","Épila","GASPAR REMIRO","Cl. Ronda Diputación, S/N",50290,"976 60 39 90","976 60 39 90","cpepila@educa.aragon.es"]
[50002032,"Zaragoza","Colegio de Educación Infantil y Primaria","Escatrón","SAN JAVIER","Cl. Plano De San Javier, S/N",50790,"976 17 00 95",null,"cpsjescatron@educa.aragon.es"]
[50002123,"Zaragoza","Colegio de Educación Infantil y Primaria","Fayón","NTRA. SRA. DEL PILAR","Cl. Heno, S/N",50795,"976 63 56 92","976 63 56 92","cpfayon@educa.aragon.es"]
[50002275,"Zaragoza","Colegio de Educación Infantil y Primaria","Fuentes de Ebro","LUIS GARCÍA SÁINZ","Cl. Agustina De Aragón, 1",50740,"976 16 01 01",null,"cpgsfuentes@educa.aragon.es"]
[50002329,"Zaragoza","Centro Público Integrado","Gallur","MARÍA DOMÍNGUEZ","Cl. Miguel Servet, S/N",50650,"976 86 48 45",976864845,"cpgallur@educa.aragon.es"]
[50002433,"Zaragoza","Colegio de Educación Infantil y Primaria","Herrera de los Navarros","SAN JORGE","Cl. Revés, 43",50150,"976 14 31 06","976 14 31 06","cpherrera@educa.aragon.es"]
[50002457,"Zaragoza","Colegio de Educación Infantil y Primaria","Illueca","BENEDICTO XIII","Avda. San Babil, S/N",50250,"976 82 02 27","976 820227","cpbxillueca@educa.aragon.es"]
[50002512,"Zaragoza","Colegio de Educación Infantil y Primaria","Joyosa (La)","RAMÓN Y CAJAL","Pza. De España, 1",50692,"976 65 11 55","976 65 11 55","cplajoyosa@educa.aragon.es"]
[50002810,"Zaragoza","Colegio de Educación Infantil y Primaria","Maella","VIRGEN DEL PORTAL","CL. ZARAGOZA, 38",50710,"976 63 80 65",976638065,"cpmaella@educa.aragon.es"]
[50002937,"Zaragoza","Colegio de Educación Infantil y Primaria","Mallén","MANLIA","Cl. Miraflores, S/N",50550,"976 85 03 94",null,"cpcmmallen@educa.aragon.es"]
[50003048,"Zaragoza","Colegio de Educación Infantil y Primaria","Mequinenza","MARÍA QUINTANA","Ctra. De Fraga, S/N",50170,"974 46 42 70","974 46 42 70","cpmequinenza@educa.aragon.es"]
[50003206,"Zaragoza","Colegio de Educación Infantil y Primaria","Morata de Jalón","LUCAS ARRIBAS","Cami. Baldío, S/N",50260,"976 60 52 93","976 60 52 93","cpmorataja@educa.aragon.es"]
[50003504,"Zaragoza","Colegio de Educación Infantil y Primaria","Novillas","SAN NICASIO","Camino de Mallén, 40",50530,"976 86 11 97",null,"cpnovillas@educa.aragon.es"]
[50003711,"Zaragoza","Colegio de Educación Infantil y Primaria","Pastriz","LA PORTALADA","CNO. ACCESO DESDE FINAL AVDA. SANTA ANA",50195,"976 58 30 49",null,"cppastriz@educa.aragon.es"]
[50003735,"Zaragoza","Colegio de Educación Infantil y Primaria","Pedrola","CERVANTES","Cl. Progreso, 6",50690,"976 61 52 81","976 61 52 81","cppedrola@educa.aragon.es"]
[50003838,"Zaragoza","Centro Privado de Educación Infantil Primaria y Secundaria","Pina de Ebro","SANTA MARÍA DE LA ESPERANZA","Cl. Rosales, 2",50750,"976 16 50 47","976 16 54 81","smesperanzape@planalfa.es"]
[50003851,"Zaragoza","Colegio de Educación Infantil y Primaria","Pinseque","MIGUEL ARTIGAS","P.º De Los Estudiantes, S/N",50298,"976 61 73 73","976 61 73 73","cppinseque@educa.aragon.es"]
[50003863,"Zaragoza","Centro Privado de Formación Profesional Específica","Pinseque","E.F.A. LA NORIA","CL. PUENTE JUBO, S/N",50298,"976 61 71 55","976 61 71 55","lanoria@efasdearagon.org"]
[50003981,"Zaragoza","Colegio de Educación Infantil y Primaria","Pradilla de Ebro","JOAQUÍN COSTA","Cl. Joaquín Costa, 73",50668,"976 86 02 16",null,"cppradilla@educa.aragon.es"]
[50004004,"Zaragoza","Colegio de Educación Infantil y Primaria","Puebla de Alfindén (La)","LOS ALBARES","ROSALÍA DE CASTRO, 2",50171,"976 45 55 86","976 10 77 67","cpalfinden@educa.aragon.es"]
[50004031,"Zaragoza","Colegio de Educación Infantil y Primaria","Quinto","FERNANDO EL CATÓLICO","Cl. Don Quintín Debón, 1",50770,"976 17 73 02","976 17 73 02","cpquinto@educa.aragon.es"]
[50004053,"Zaragoza","Colegio de Educación Infantil y Primaria","Remolinos","ALFREDO MUIÑOS","Cl. Escuelas Nuevas, S/N",50637,"976 61 83 56",null,"cpremolinos@educa.aragon.es"]
[50004077,"Zaragoza","Colegio de Educación Infantil y Primaria","Ricla","MAESTRO MONREAL","CL. Joaquín Artigas Lausín, 2",50270,"976 60 62 94",null,"cpricla@educa.aragon.es"]
[50004326,"Zaragoza","Colegio de Educación Infantil y Primaria","Sástago","DANIEL FEDERIO","Avda. Escuelas, 1-3",50780,"976 17 81 00","976 17 81 00","cpsastago@educa.aragon.es"]
[50004430,"Zaragoza","Colegio de Educación Infantil y Primaria","Sobradiel","SUBPRADEL","Cl. Asunción Muro Tejero, 1",50629,"976 13 91 16","976 13 91 16","cpsobradiel@educa.aragon.es"]
[50004478,"Zaragoza","Colegio de Educación Infantil y Primaria","Sos del Rey Católico","ISIDORO GIL DE JAZ","Pza. De La Villa, 2",50680,"948 88 82 02","948 88 84 64","cpsos@educa.aragon.es"]
[50004481,"Zaragoza","Escuela Hogar","Sos del Rey Católico","MANUELA PÉREZ DE BIEL","Pza. De La Villa, 2",50680,"948 88 80 20",null,"ehsos@educa.aragon.es"]
[50004545,"Zaragoza","Colegio de Educación Infantil y Primaria","Tarazona","JOAQUÍN COSTA","Avda. Navarra, 21",50500,"976 64 06 14","976 640614","cpjctarazona@educa.aragon.es"]
[50004570,"Zaragoza","Centro Privado de Educación Infantil Primaria y Secundaria","Tarazona","SAGRADA FAMILIA","Cl. Carmen, 2 - 3",50500,"976 64 07 68","976 64 19 86","sfamiliaz@planalfa.es"]
[50004594,"Zaragoza","Centro Privado de Educación Infantil Primaria y Secundaria","Tarazona","NTRA. SRA. DEL PILAR","Cl. Gutiérrez De Córdoba, 8",50500,"976 64 05 00","976 64 05 00","cpilartarazona@hotmail.com"]
[50004612,"Zaragoza","Colegio de Educación Infantil y Primaria","Tarazona","MONCAYO","AVDA. LA PAZ, 10",50500,"976 64 16 85","976 64 16 85","cpcmtarazona@educa.aragon.es"]
[50004703,"Zaragoza","Colegio de Educación Infantil y Primaria","Tauste","ALFONSO I EL BATALLADOR","AVDA. OBISPO JOSÉ MARÍA CONGET, S/N",50660,"976 85 41 92","976 85 41 92","cpabtauste@educa.aragon.es"]
[50004843,"Zaragoza","Colegio de Educación Infantil y Primaria","Torres de Berrellén","MONTES DEL CASTELLAR","CL. GARFILÁN, 37",50693,"976 65 31 10","976 65 31 10","cptorresb@educa.aragon.es"]
[50004879,"Zaragoza","Colegio de Educación Infantil y Primaria","Tosos","TOSOS","Ctra. Cariñena, 12",50154,"976 14 70 22","976 14 70 10","cptosos@educa.aragon.es"]
[50004946,"Zaragoza","Colegio de Educación Infantil y Primaria","Undués de Lerda","DE UNDUÉS DE LERDA","CL. Prado, 1-3",50689,948925929,null,"ceipunduesdelerda@educa.aragon.es"]
[50005011,"Zaragoza","Colegio de Educación Infantil y Primaria","Utebo","MIGUEL ARTAZOS TAMÉ","Cl. Zaragoza, S/N",50180,"976 77 11 28","976 784678","cpmautebo@educa.aragon.es"]
[50005276,"Zaragoza","Colegio de Educación Infantil y Primaria","Villanueva de Gállego","PINTOR PRADILLA","Cl. Pirineos, 10",50830,"976 18 01 78","976 45 11 39","cpppvillanuevag@educa.aragon.es"]
[50005291,"Zaragoza","Colegio de Educación Infantil y Primaria","Villanueva de Huerva","SAN BLAS","Avda. Zaragoza, 29",50153,"976 14 34 93",976143493,"ceipsanblas@educa.aragon.es"]
[50005331,"Zaragoza","Colegio de Educación Infantil y Primaria","Villarreal de Huerva","FERNANDO EL CATÓLICO","Camino de La Estación,15",50490,"976 80 72 19",null,"cpvillarrealh@educa.aragon.es"]
[50005422,"Zaragoza","Colegio de Educación Infantil y Primaria","Cartuja Baja","ÁNGEL ESCORIAZA","Cl. Juan De Las Viñas, 8",50720,"976 50 04 84","976 50 04 84","cpaeszaragoza@educa.aragon.es"]
[50005483,"Zaragoza","Centro Privado de Educación Infantil y Primaria","Zaragoza","VIRGEN DE GUADALUPE","Cl. Isla De Yerba, 12",50012,"976 75 40 82","976 75 40 80"]
[50005495,"Zaragoza","Centro Privado de Educación Infantil Primaria y Secundaria","Zaragoza","SANSUEÑA","CL. GASTÓN DE BEARNE, 3",50012,"976 56 10 00","976 56 22 79","sansuena@fomento.edu"]
[50005513,"Zaragoza","Centro Privado de Educación Infantil Primaria y Secundaria","Zaragoza","SAGRADA FAMILIA","P.º Infantes De España, 4",50012,"976 56 01 25","976 56 85 99","sfamilia@csafa.com"]
[50005537,"Zaragoza","Centro Privado de Educación Infantil Primaria y Secundaria","Zaragoza","MADRE MARÍA ROSA MOLAS","Vía Ibérica, 25",50009,"976 56 32 38","976 56 48 97","colegio@mariarosamolas.com"]
[50005549,"Zaragoza","Centro Privado de Educación Infantil Primaria y Secundaria","Zaragoza","BRITÁNICO DE ARAGÓN","Ctra. De Valencia, Km. 8,5",50410,"976 50 52 23","976 50 52 23","secretaria@britanico-aragon.edu"]
[50005550,"Zaragoza","Colegio de Educación Infantil y Primaria","Casetas","RICARDO MUR","Cl. Galicia, 2",50620,"976 78 88 46","976 77 17 16","cprmuzaragoza@educa.aragon.es"]
[50005562,"Zaragoza","Centro Privado de Educación Primaria","Casetas","SAN MIGUEL","Cl. Cataluña, S/N",50620,"976 77 11 37","976 77 11 37","976771137@telefonica.net"]
[50005574,"Zaragoza","Colegio de Educación Infantil y Primaria","Garrapinillos","GUSTAVO ADOLFO BÉCQUER","Avda. de la Jota, nº 7",50190,"976 78 03 45","976 30 30 32","cpgabzaragoza@educa.aragon.es"]
[50005598,"Zaragoza","Colegio de Educación Infantil y Primaria","Zaragoza","JULIÁN NIETO TAPIA","Cami. Del Pilón, 150",50011,"976 34 06 20","976 34 06 20","secretariacpjnt@educa.aragon.es"]
[50005616,"Zaragoza","Centro Privado de Educación Especial","Zaragoza","SAN ANTONIO","Cami. Del Buro, 80",50011,"976 33 19 40","976 32 86 50","eesanantonio@hotmail.com"]
[50005628,"Zaragoza","Centro Privado de Educación Infantil Primaria y Secundaria","Zaragoza","SAN ALBERTO MAGNO","Urb. Torres San Lamberto, 58",50011,"976 34 03 21","976 31 61 81","secretaria@colegioaleman.com"]
[50005631,"Zaragoza","Colegio de Educación Infantil y Primaria","Montañana","HERMANOS ARGENSOLA","Cl. Escuelas, 23",50059,"976 57 53 25","976 57 53 25","cpharzaragoza@educa.aragon.es"]
[50005641,"Zaragoza","Colegio de Educación Infantil y Primaria","Monzalbarba","FERNÁNDEZ VIZARRA","Cl. Gaspar De Pex, 3",50120,"976 78 58 28","976 78 58 28","cpfvizaragoza@educa.aragon.es"]
[50005653,"Zaragoza","Colegio de Educación Infantil y Primaria","Movera","MAESTRO DON PEDRO ORÓS","Pza. Mayor, 7",50194,"976 58 64 33","976 58 64 33","cppomovera@educa.aragon.es"]
[50005677,"Zaragoza","Colegio de Educación Infantil y Primaria","Movera","JUAN PABLO BONET","Cl. Río Gállego, 42",50194,"976 57 44 95",976574495,"cpjpbzaragoza@educa.aragon.es"]
[50005690,"Zaragoza","Centro Público Integrado de Formación Profesional","Movera","DE MOVERA","Ctra. Pastriz, Km. 3,6",50194,"976 58 62 84","876 28 60 80","cpifpmovera@educa.aragon.es"]
[50005707,"Zaragoza","Colegio de Educación Infantil y Primaria","Peñaflor","FLORENCIO JARDIEL","Cl. Francisco Gracia, 18",50193,"976 15 42 91","976 15 42 91","cppenaflor@educa.aragon.es"]
[50005744,"Zaragoza","Colegio de Educación Infantil y Primaria","San Juan de Mozarrifar","ANDRÉS OLIVÁN","Cl. Alejandro Palomar, 21",50820,"976 15 02 49","976 15 02 49","cpaolzaragoza@educa.aragon.es"]
[50005768,"Zaragoza","Colegio de Educación Infantil y Primaria","Zaragoza","GUILLERMO FATÁS","Cl. La Iglesia, 61",50016,"976 46 58 25","976 46 58 25","cpgfazaragoza@educa.aragon.es"]
[50005781,"Zaragoza","Centro Privado de Educación Infantil Primaria y Secundaria","Zaragoza","LA CONCEPCIÓN","Cl. La Iglesia, 30",50016,"976 57 03 22","976 57 03 22","laconcepcion@colegiosfec.com"]
[50005793,"Zaragoza","Instituto de Educación Secundaria","Zaragoza","ÍTACA","Avda de los Estudiantes, 1",50058,"976 57 24 26","976 57 44 71","iesitazaragoza@educa.aragon.es"]
[50005823,"Zaragoza","Centro Privado de Educación Infantil Primaria y Secundaria","Venta del Olivar","CONDES DE ARAGÓN","Ctra. De Logroño, Km.7,8",50011,"976 33 03 00","976 33 17 71","caragon@cece.es"]
[50005872,"Zaragoza","Colegio de Educación Infantil y Primaria","Villamayor","MARIANO CASTILLO","Cl. Calera, 30",50162,"976 58 97 14",976589714,"cpmcazaragoza@educa.aragon.es"]
[50005896,"Zaragoza","Colegio de Educación Infantil y Primaria","Zaragoza","ANA MAYAYO","CL. Alfonso Carlos Comín Ros, 2",50017,"976 33 27 97","976 33 27 97","cpamazaragoza@educa.aragon.es"]
[50005902,"Zaragoza","Colegio de Educación Infantil y Primaria","Zaragoza","ANDRÉS MANJÓN","Cl. Delicias, 90",50017,"976 33 17 28","976 30 03 72","cpamanzaragoza@educa.aragon.es"]
[50005914,"Zaragoza","Colegio de Educación Infantil y Primaria","Zaragoza","RECARTE Y ORNAT","Cl. San Juan Bosco, 7",50009,"976 35 23 38","976 55 67 84","cpryozaragoza@educa.aragon.es"]
[50005926,"Zaragoza","Colegio de Educación Infantil y Primaria","Zaragoza","CÁNDIDO DOMINGO","Cl. Sobrarbe, 8",50015,"976 29 38 12","976 297 319","cpcdozaragoza@educa.aragon.es"]
[50005951,"Zaragoza","Colegio de Educación Infantil y Primaria","Zaragoza","DOMINGO MIRAL","CL. MESONES DE ISUELA, 7",50007,"976 27 56 28",976275628,"cpdmizaragoza@educa.aragon.es"]
[50005963,"Zaragoza","Colegio de Educación Infantil y Primaria","Zaragoza","FERNANDO EL CATÓLICO","Cl San Vicente Ferrer, 2",50011,"976 33 20 32","976 33 20 32","cpfeczaragoza@educa.aragon.es"]
[50005975,"Zaragoza","Colegio de Educación Infantil y Primaria","Zaragoza","GASCÓN Y MARÍN","Pza. de los Sitios, 4",50001,"976 23 19 60","976 23 19 60","cpgymzaragoza@educa.aragon.es"]
[50005999,"Zaragoza","Colegio de Educación Infantil y Primaria","Zaragoza","JERÓNIMO BLANCAS Y TOMÁS","CL. El Noticiero, 1",50012,"976 34 53 42","976 34 53 42","cpjbtzaragoza@educa.aragon.es"]
[50006001,"Zaragoza","Colegio de Educación Infantil y Primaria","Zaragoza","JERÓNIMO ZURITA Y CASTRO","Avda. De La Almozara, 58",50003,"976 40 46 08","976 40 46 09","cpjzczaragoza@educa.aragon.es"]
[50006013,"Zaragoza","Colegio de Educación Infantil y Primaria","Zaragoza","JOAQUÍN COSTA","P.º María Agustín, 41",50004,"976 23 55 65","976 23 55 65","cpjcozaragoza@educa.aragon.es"]
[50006025,"Zaragoza","Colegio de Educación Infantil y Primaria","Zaragoza","JOSÉ MARÍA MIR","Cl. Duquesa Villahermosa, 58",50010,"976 33 17 97","976 34 44 01","cpjmmzaragoza@educa.aragon.es"]
[50006037,"Zaragoza","Centro Público Integrado","Zaragoza","LA JOTA","Cl. Balbino Orensanz, 3-5",50014,"976 47 41 29","976 47 41 29","cpljozaragoza@educa.aragon.es"]
[50006049,"Zaragoza","Colegio de Educación Infantil y Primaria","Zaragoza","JULIÁN SANZ IBÁÑEZ","Cl. Leopoldo Romeo, 24",50002,"976 42 58 70","976 42 58 70","cpjsizaragoza@educa.aragon.es"]
[50006050,"Zaragoza","Colegio de Educación Infantil y Primaria","Zaragoza","LUIS VIVES","CL. JENARO CHECA, 25",50007,"976 27 13 08","976 37 39 90","cplvizaragoza@educa.aragon.es"]
[50006074,"Zaragoza","Colegio de Educación Infantil y Primaria","Zaragoza","MARCOS FRECHÍN","CL. DOCTOR IRANZO, 25",50013,"976 41 59 07","976 41 59 07","cpmfrzaragoza@educa.aragon.es"]
[50006128,"Zaragoza","Colegio de Educación Infantil y Primaria","Zaragoza","SAN BRAULIO","Cl. Pantano De Yesa, 10",50015,"976 51 43 35",976740135,"cpsbrzaragoza@educa.aragon.es"]
[50006141,"Zaragoza","Colegio de Educación Infantil y Primaria","Zaragoza","SANTO DOMINGO","Cl. Predicadores, 60",50003,"976 44 07 03","976 44 07 03","cpsdozaragoza@educa.aragon.es"]
[50006153,"Zaragoza","Colegio de Educación Infantil y Primaria","Zaragoza","SAN JOSÉ DE CALASANZ","Cl. Eduardo Salvador Hernaz, 43",50008,"976 41 12 17",976411217,"cpsjczaragoza@educa.aragon.es"]
[50006165,"Zaragoza","Colegio de Educación Infantil y Primaria","Zaragoza","TÍO JORGE","Cl. Valle De Zuriza, 1",50015,"976 51 48 76","976 74 35 41","cptjozaragoza@educa.aragon.es"]
[50006207,"Zaragoza","Colegio de Educación Infantil y Primaria","Zaragoza","CALIXTO ARIÑO-HILARIO VAL","CL. JOSÉ GALIAY, 2",50008,"976 41 39 97","976 41 39 97","cpcarzaragoza@educa.aragon.es"]
[50006219,"Zaragoza","Colegio de Educación Infantil y Primaria","Zaragoza","EMILIO MORENO CALVETE","Paseo Calanda, 13",50010,"976 53 19 38","976 53 19 38","cpemczaragoza@educa.aragon.es"]
[50006220,"Zaragoza","Colegio de Educación Infantil y Primaria","Zaragoza","HILARIÓN GIMENO","CL. Pedro Arnal Cavero, 1",50014,"976 39 91 38","976 20 35 28","cphgizaragoza@educa.aragon.es"]
[50006232,"Zaragoza","Colegio de Educación Infantil y Primaria","Zaragoza","JUAN XXIII","Cl. Juan XXIII, 2",50010,"976 33 74 78","976 33 74 78","cpjxizaragoza@educa.aragon.es"]
[50006281,"Zaragoza","Colegio de Educación Infantil y Primaria","Zaragoza","TOMÁS ALVIRA","Cl. Pasaje Cigüeñas, 3",50013,"976 42 33 00","976 46 14 31","cptalzaragoza@educa.aragon.es"]
[50006311,"Zaragoza","Colegio de Educación Infantil y Primaria","Zaragoza","BASILIO PARAÍSO","Cl. Supervía, 29",50006,"976 55 28 46","976 55 28 46","cpbpazaragoza@educa.aragon.es"]
[50006414,"Zaragoza","Instituto de Educación Secundaria","Zaragoza","VIRGEN DEL PILAR","P.º Reyes De Aragón, 20",50012,"976 30 60 09","976 56 42 68","iesvdpzaragoza@educa.aragon.es"]
[50006426,"Zaragoza","Centro Privado de Educación Primaria","Zaragoza","ADVENTISTA RIGEL","Cl. Alicante, 3 - 11",50007,"976 27 26 23",null,"direccion@colegiorigel.es"]
[50006438,"Zaragoza","Colegio de Educación Infantil y Primaria","Zaragoza","LA ALMOZARA","Cl. Bonn, 7",50003,"976 43 35 95","976 43 00 47","cplalzaragoza@educa.aragon.es"]
[50006463,"Zaragoza","Centro Privado de Educación Infantil Primaria y Secundaria","Zaragoza","LA ANUNCIATA","Cl. Santa Inés, 3",50003,"976 43 66 00","976 28 40 66","direccionsecundaria.zaragoza@fefcoll.org"]
[50006529,"Zaragoza","Centro Privado de Educación Infantil Primaria y Secundaria","Zaragoza","EL BUEN PASTOR","Cl. Monzón, 27",50007,"976 27 37 62","976 25 81 92","secretaria@elbuenpastorzaragoza.net"]
[50006542,"Zaragoza","Centro Privado de Educación Infantil Primaria y Secundaria","Zaragoza","CALASANCIO","Cl. Sevilla, 19",50006,"976 27 49 00","976 27 49 09","calasanciozgz@escolapiosemaus.org"]
[50006554,"Zaragoza","Centro Privado de Educación Infantil Primaria y Secundaria","Zaragoza","CALASANZ","Cl. Teniente Coronel Valenzuela, 2",50004,"976 22 38 86","976 23 39 71","escolapiascalasanz@planalfa.es"]
[50006566,"Zaragoza","Centro Privado de Educación Infantil Primaria y Secundaria","Zaragoza","CARDENAL XAVIERRE","Pza. San Francisco, 15",50006,"976 79 11 30","976 35 26 91","colegio@xavierre.com"]
[50006578,"Zaragoza","Centro Privado de Educación Infantil Primaria y Secundaria","Zaragoza","CANTÍN Y GAMBOA","Cl. Moret, 4",50001,"976 22 32 11","976 22 83 19","cantin@cantinygamboa.com"]
[50006581,"Zaragoza","Centro Privado de Educación Infantil Primaria y Secundaria","Zaragoza","COLEGIO MONTESSORI","Cl. Lagasca, 25-27",50006,"976 30 61 00","976 56 21 43","administracion@colegiomontessori.com"]
[50006633,"Zaragoza","Centro Privado de Educación Infantil Primaria y Secundaria","Zaragoza","COMPAÑÍA DE MARÍA","Cl. Bilbao, 10",50004,"976 22 18 63","976 22 51 85","secretaria@ciamariaz.org"]
[50006669,"Zaragoza","Centro Privado de Educación Infantil Primaria y Secundaria","Zaragoza","CRISTO REY","Avda. Academia General Militar, 80",50015,"976 51 44 22","976 73 29 86","cristorey@escolapiosemaus.org"]
[50006670,"Zaragoza","Centro Privado de Educación Infantil","Zaragoza","LENGUATRAPO","Cl. San Juan De La Peña, 181- Bloque 25",50015,"976 51 66 01",null,"vsantolaya@hotmail.com"]
[50006682,"Zaragoza","Centro Privado de Educación Infantil","Zaragoza","DIVINA PASTORA","Cl. Maestro Estremiana, 31-33",50006,"976 27 10 42",null,"colegio.divinapastora@hotmail.com"]
[50006700,"Zaragoza","Centro Privado de Educación Infantil Primaria y Secundaria","Zaragoza","DON BOSCO","Cl. Alfonso Zapater Cerdán, 21",50014,"976 39 66 19","976 39 69 59","donbosco@colegiodonbosco.es"]
[50006724,"Zaragoza","Centro Privado de Educación Infantil Primaria y Secundaria","Zaragoza","LICEO EUROPA","Cami. Fuente De La Junquera, 21",50012,"976 56 50.00","976 56 00 18"]
[50006736,"Zaragoza","Centro Docente Privado Extranjero en España","Zaragoza","LYCÉE FRANÇAIS MOLIÈRE","Cl. Manuel Marraco Ramón, 8",50018,"976 52 54 44","976 52 54 33","moliere-zaragoza@teleline.es"]
[50006751,"Zaragoza","Centro Privado de Educación Infantil Primaria y Secundaria","Zaragoza","ESCUELAS PÍAS","Cl. Conde De Aranda, 2",50003,"976 44 02 22","976 43 97 34","dirtitularepz@escolapiosemaus.org"]
[50006761,"Zaragoza","Centro Privado de Educación Infantil Primaria y Secundaria","Zaragoza","ESCUELAS PÍAS DE SANTA ENGRACIA","Cami. De Miraflores, 23",50007,"976 37 10 68","976 27 02 42","miraflores@fe-escolapias.org"]
[50006797,"Zaragoza","Centro Privado de Educación Infantil Primaria y Secundaria","Zaragoza","PADRE ENRIQUE DE OSSÓ","Cl. Enrique De Ossó, 2-4",50017,"976 33 18 38","976 33 00 31","direcciongeneral@eossozaragoza.escuelateresiana.com"]
[50006803,"Zaragoza","Centro Privado de Educación Infantil Primaria y Secundaria","Zaragoza","MARÍA INMACULADA","Vía Hispanidad, 91-93",50011,"976 33 17 64","976 33 55 33","info@zaragoza.colegiosclaretianas.org"]
[50006815,"Zaragoza","Centro Privado de Educación Infantil y Primaria","Zaragoza","LA SALLE FRANCISCANAS","Cl. Andrés Piquer, 5",50006,"976 55 12 50","976 55 02 02","colegio@lasallefranciscanas.com"]
[50006840,"Zaragoza","Centro Privado de Educación Infantil Primaria y Secundaria","Zaragoza","HIJAS DE SAN JOSÉ","Cl. Duquesa Villahermosa, 16",50010,"976 33 35 24","976 48 83 84","direccion@colegiohijasdesanjose.com"]
[50006888,"Zaragoza","Centro Privado de Educación Infantil Primaria y Secundaria","Zaragoza","INMACULADA CONCEPCIÓN","Cl. Concepción, 8-10",50008,"976 41 63 14","976 41 59 11","cinmaculadazgz@telefonica.net"]
[50006931,"Zaragoza","Centro Privado de Educación Infantil","Zaragoza","JESÚS REPARADOR","Cl. Sancho Y Gil, 6",50001,"976 22 13 88"]
[50007005,"Zaragoza","Centro Privado de Educación Infantil","Zaragoza","MADRE DE DIOS DE BEGOÑA","Cl. Terminillo, 22-24",50017,"976 33 81 19"]
[50007017,"Zaragoza","Centro Privado de Educación Infantil Primaria y Secundaria","Zaragoza","MARÍA AUXILIADORA","Cl. Mornés, 14",50007,"976 27 27 50","976 27 07 06","titularzaragoza@salesianas.org"]
[50007042,"Zaragoza","Centro Privado de Educación Infantil Primaria y Secundaria","Zaragoza","LA MILAGROSA","Cl. Maestro Estremiana, 3 Y 5",50006,"976 27 96 06","976 27 96 06","lamilagrosaz@lamilagrosaz.e.telefonica.net"]
[50007066,"Zaragoza","Centro Privado de Educación Primaria y Secundaria","Zaragoza","MONTEARAGÓN","P.º Reyes De Aragón, 21",50009,"976 56 22 67","976 35 30 76","montearagon@fomento.edu"]
[50007078,"Zaragoza","Centro Privado de Educación Infantil Primaria y Secundaria","Zaragoza","AGUSTÍN GERICÓ","Avda. Cesáreo Alierta, 72",50013,"976 41 00 77","976 49 68 05","direccionsec@agustingerico.com"]
[50007133,"Zaragoza","Centro Privado de Educación Infantil Primaria y Secundaria","Zaragoza","NTRA. SRA. DEL CARMEN","Cl. Madre Vedruna, 15",50008,"976 22 14 39","976 21 76 39","nscarmen@colegiosfec.com"]
[50007157,"Zaragoza","Centro Privado de Educación Infantil Primaria y Secundaria","Zaragoza","NTRA. SRA. DEL CARMEN Y SAN JOSÉ","Cl. Santa Inés, 1",50003,"976 43 05 05","976 43 05 03","elcarmenysanjosezgz@gmail.com"]
[50007194,"Zaragoza","Centro Privado de Educación Infantil Primaria y Secundaria","Zaragoza","NTRA. SRA. DE LA MERCED","P.º De Ruiseñores, 1",50006,"976 27 65 83","976 27 65 83","administracion@mercedariaszaragoza.es"]
[50007236,"Zaragoza","Centro Privado de Educación Infantil Primaria y Secundaria","Zaragoza","SALESIANO NTRA. SRA.DEL PILAR","Cl. María Auxiliadora, 57",50009,"976 30 68 78","976 55 46 28","secretaria.zaragoza@salesianos.edu"]
[50007248,"Zaragoza","Centro Privado de Educación Infantil Primaria y Secundaria","Zaragoza","TERESIANO DEL PILAR","CAMI. DE PINSEQUE, 37-39",50011,"976 34 80 95","976 32 49 72","infosecretaria@tpilarzaragoza.escuelateresiana.com"]
[50007327,"Zaragoza","Centro Privado de Educación Infantil Primaria y Secundaria","Zaragoza","EL PILAR-MARISTAS","Cl. Rafael Alberti, 5",50018,"976 51 96 55","976 52 46 45","secretaria@elpilarmaristas.org"]
[50007352,"Zaragoza","Centro Privado de Educación Infantil Primaria y Secundaria","Zaragoza","POMPILIANO","P.º Ruiseñores, 28",50006,"976 27 64 92","976 37 91 05","pompiliano@fe-escolapias.org"]
[50007376,"Zaragoza","Centro Privado de Educación Especial","Zaragoza","LA PURÍSIMA PARA NIÑOS SORDOS","Cl. Corona De Aragón, 54",50009,"976 55 27 49","976 55 03 11","lpurisimansz@planalfa.es"]
[50007388,"Zaragoza","Centro Privado de Educación Infantil Primaria y Secundaria","Zaragoza","LA PURÍSIMA Y SAN ANTONIO","Cami. Del Vado, 7-9",50014,"976 20 22 53","976 20 45 41","colegio@lapurisimaysantonio.es"]
[50007421,"Zaragoza","Centro Privado de Educación Infantil Primaria y Secundaria","Zaragoza","SAGRADO CORAZÓN","P.º De La Mina, 4 - 10",50001,"976 22 48 64","976 22 29 99","secretaria.z@corazonistas.com"]
[50007431,"Zaragoza","Centro Privado de Educación Infantil Primaria y Secundaria","Zaragoza","SAGRADO CORAZÓN DE JESÚS","Cl. Poeta Pablo Neruda, 35",50018,"976 46 62 82","976 46 62 83","scjesusz@planalfa.es"]
[50007467,"Zaragoza","Centro Privado de Educación Secundaria","Zaragoza","LA SALLE FRANCISCANAS GRAN VÍA","Cl. Santa Teresa De Jesús, 23",50006,"976 30 60 60","976 30 60 62","direccion.granvia@lasalle.es"]
[50007479,"Zaragoza","Centro Privado de Educación Infantil Primaria y Secundaria","Zaragoza","LA SALLE MONTEMOLÍN","Cl. José Galiay, 11",50008,"976 41 63 06","976 49 24 44","lsmontemolin@lasalle.es"]
[50007492,"Zaragoza","Centro Privado Integrado de Formación Profesional","Zaragoza","LA SALLE-SANTO ANGEL","Cl. Tomás Anzano,1",50012,"976 75 37 18","976 75 37 28","admisaz@lasalle.es"]
[50007509,"Zaragoza","Centro Privado de Educación Infantil Primaria y Secundaria","Zaragoza","SAN AGUSTÍN","Cami. De Las Torres, 79-89",50008,"976 22 48 44","976 22 68 76","secretaria@agustinoszaragoza.com"]
[50007534,"Zaragoza","Centro Privado de Educación Infantil Primaria y Secundaria","Zaragoza","SAN ANTONIO DE PADUA","Cl. Fray Julián Garás, 1",50006,"976 38 51 55","976 25 87 00","direccion@ccsanantoniodepadua.com"]
[50007613,"Zaragoza","Centro Privado de Educación Infantil","Zaragoza","BOSQUE TERNURA","Vía Hispanidad, 117",50011,"976 33 24 50"]
[50007674,"Zaragoza","Centro Privado de Educación Especial","Zaragoza","ATADES, CENTRO DE EDUCACIÓN ESPECIAL SAN MARTÍN DE PORRES","Cl. Octavio De Toledo, 2",50007,"976 37 99 27","976 37 99 27","director.sanmartin@atades.org"]
[50007716,"Zaragoza","Centro Privado de Educación Secundaria","Zaragoza","SAN VALERO","Cl. Violeta Parra, 9",50015,"976 46 65 99","976 46 65 90","infoces@svalero.es"]
[50007728,"Zaragoza","Centro Privado de Educación Infantil Primaria y Secundaria","Zaragoza","SAN VICENTE DE PAÚL","Cl. San Vicente De Paúl, 31",50001,"976 29 15 25","976 29 05 08","svpaulz@planalfa.es"]
[50007731,"Zaragoza","Centro Privado de Educación Infantil Primaria y Secundaria","Zaragoza","SANTA ANA","P.º Del Canal, 135",50007,"976 38 58 11","976 37 31 30","titular@colegiosantaana.org"]
[50007777,"Zaragoza","Centro Privado de Educación Infantil Primaria y Secundaria","Zaragoza","SANTA MAGDALENA SOFÍA","Cl. Sagitario, 5",50012,"976 75 37 30",null,"secretaria.zar@redsagradocorazon.es"]
[50007789,"Zaragoza","Centro Privado de Educación Infantil Primaria y Secundaria","Zaragoza","SANTA MARÍA DEL PILAR","P.º Reyes De Aragón, 5-7",50012,"976 25 87 87","976 25 87 88","secretaria@marianistas.net"]
[50007790,"Zaragoza","Centro Privado de Educación Infantil Primaria y Secundaria","Zaragoza","SANTA MARÍA REINA","CL. Santa María Reina, 2",50009,"976 56 99 62","976 35 96 24","secretaria@colegiosantamariareina.org"]
[50007807,"Zaragoza","Centro Privado de Educación Infantil Primaria y Secundaria","Zaragoza","SANTA ROSA","Cl. Azoque, 33",50004,"976 22 26 99","976 22 26 99","dirgeneral.zaragoza@fesd.es"]
[50007856,"Zaragoza","Centro Privado de Educación Infantil Primaria y Secundaria","Zaragoza","OBRA DIOCESANA SANTO DOMINGO DE SILOS","Cl. Amistad, 6",50002,"976 42 49 47","976 42 47 93","odsds@planalfa.es"]
[50007996,"Zaragoza","Centro Privado de Educación Infantil Primaria y Secundaria","Zaragoza","VILLA CRUZ","Cl. Venecia, 12-16",50007,"976 27 12 05","976 37 81 27","colegiovillacruz@colegiovillacruz.com"]
[50008034,"Zaragoza","Centro Privado de Educación Infantil Primaria y Secundaria","Zaragoza","BAJO ARAGÓN","Cl. Padre Chaminade, 6",50013,"976 41 43 00","976 46 10 40","secretaria@bajoaragon-marianistas.org"]
[50008125,"Zaragoza","Instituto de Educación Secundaria","Zaragoza","CORONA DE ARAGÓN","Cl. Corona De Aragón, 35",50009,"976 46 70 00","976 46 70 61","iescorzaragoza@educa.aragon.es"]
[50008149,"Zaragoza","Colegio de Educación Infantil y Primaria","Zaragoza","EUGENIO LÓPEZ Y LÓPEZ","Cl. Cañon De Añisclo, 8",50015,"976 51 85 55","976 51 84 44","cpellzaragoza@educa.aragon.es"]
[50008174,"Zaragoza","Instituto de Educación Secundaria","Zaragoza","MIGUEL SERVET","Pº RUISEÑORES, 49-51",50006,"976 25 93 83","976 25 40 85","iesmsezaragoza@educa.aragon.es"]
[50008186,"Zaragoza","Instituto de Educación Secundaria","Zaragoza","RAMÓN PIGNATELLI","Cl. Jarque De Moncayo, 17",50012,"976 33 38 78","976 34 00 81","iespignatelli@educa.aragon.es"]
[50008198,"Zaragoza","Instituto de Educación Secundaria","Zaragoza","GOYA","Avda. Goya, 45",50006,"976 35 82 22","976 56 36 03","iesgoyzaragoza@educa.aragon.es"]
[50008277,"Zaragoza","Instituto de Educación Secundaria","Zaragoza","JERÓNIMO ZURITA","Avda. Juan Carlos I, 11",50009,"976 35 33 61",null,"iesjerzaragoza@educa.aragon.es"]
[50008289,"Zaragoza","Instituto de Educación Secundaria","Zaragoza","PEDRO DE LUNA","Cl. Universidad, 2",50001,"976 29 02 49","976 20 36 35","iespluzaragoza@educa.aragon.es"]
[50008332,"Zaragoza","Centro Privado de Educación Infantil Primaria y Secundaria","Zaragoza","ROMAREDA","Cl. Pedro Iv El Ceremonioso, 1",50009,"976 56 20 17","976 55 95 29","director@colegioromareda.com"]
[50008344,"Zaragoza","Centro Privado de Educación Primaria","Zaragoza","ESCOLANÍA INFANTES DEL PILAR","Cl. Florencio Jardiel, 1",50003,"976 29 82 73"]
[50008356,"Zaragoza","Colegio de Educación Infantil y Primaria","Zaragoza","CESÁREO ALIERTA","Cl. Pedro III El Grande, 4",50009,"976 55 79 35","976 55 79 35","cpcalzaragoza@educa.aragon.es"]
[50008368,"Zaragoza","Colegio de Educación Infantil y Primaria","Zaragoza","DOCTOR AZÚA","Cl. Pedro Iii El Grande, 4",50009,"976 30 65 92","976 30 65 92","cpdazzaragoza@educa.aragon.es"]
[50008371,"Zaragoza","Colegio de Educación Infantil y Primaria","Zaragoza","CÉSAR AUGUSTO","Cl. Pedro III El Grande, 5",50009,"976 56 32 16","976 56 32 16","cpcauzaragoza@educa.aragon.es"]
[50008381,"Zaragoza","Colegio de Educación Infantil y Primaria","Zaragoza","MARGARITA SALAS","Cl. Asín Y Palacios, 19",50009,"976 56 08 75","976 40 20 90","cpegbzaragoza@educa.aragon.es"]
[50008459,"Zaragoza","Instituto de Educación Secundaria","Zaragoza","EL PORTILLO","Cl. Juan Xxiii, 3",50010,"976 33 64 33","976 32 62 34","iesporzaragoza@educa.aragon.es"]
[50008460,"Zaragoza","Instituto de Educación Secundaria","Zaragoza","LUIS BUÑUEL","CL. Sierra Vicor, 20",50003,"976 44 00 28","976 43 73 09","ieslbuzaragoza@educa.aragon.es"]
[50008514,"Zaragoza","Escuela de Arte","Zaragoza","ESCUELA DE ARTE DE ZARAGOZA","CL. MARÍA ZAMBRANO,5",50018,"976 50 66 21","976.23.54.04","eartezaragoza@educa.aragon.es"]
[50008587,"Zaragoza","Colegio de Educación Infantil y Primaria","Zuera","ODÓN DE BUEN","Cl. Jorge Luna, 15",50800,"976 68 01 14","976 68 01 14","cpzuera@educa.aragon.es"]
[50008605,"Zaragoza","Centro Privado de Educación Infantil y Primaria","Zuera","NTRA. SRA. DEL PILAR","Cl. Antonio Machado, 18",50800,"976 68 01 16","976 68 02 51","nspilarzuera@gmail.com"]
[50008617,"Zaragoza","Centro Privado de Educación Infantil Primaria y Secundaria","Zuera","SAN GABRIEL","Cl. San Gabriel, S/N",50800,"976 68 00 44","976 68 02 51","direccion@sangabriel.es"]
[50008629,"Zaragoza","Centro Privado de Formación Profesional Específica","Zuera","E.F.A. EL SALTO","Ctra. De Huesca, Km. 28,5",50800,"976 68 03 70","976 68 03 70","elsalto@efasdearagon.org"]
[50008630,"Zaragoza","Centro Privado de Educación Especial","San Gregorio","CEDES","CL. SAN CRISTOBAL,4 BO.SAN GREGORIO",50015,"976 51 51 21","976 52 68 85","fundacioncedes@yahoo.es"]
[50008642,"Zaragoza","Instituto de Educación Secundaria","Zaragoza","MARÍA MOLINER","Cl. San Vicente Ferrer, 6",50011,"976 33 18 03","976 31 28 88","iesmmozaragoza@educa.aragon.es"]
[50008654,"Zaragoza","Centro Privado de Formación Profesional Específica","Zaragoza","CEFOR IZQUIERDO","Avda. Tenor Fleta, 57 (Pasaje)",50008,"976 48 62 71","976 36 21 63","ciclos@izquierdofp.es"]
[50008666,"Zaragoza","Colegio de Educación Infantil y Primaria","Calatayud","AUGUSTA BÍLBILIS","Cl. Aragón, S/N",50300,"976 88 17 43",876632100,"cpabcalatayud@educa.aragon.es"]
[50008678,"Zaragoza","Colegio de Educación Infantil y Primaria","Ejea de los Caballeros","RECTOR MAMÉS ESPERABÉ","P.º CONSTITUCIÓN, 136",50600,"976 66 13 23","979 66 13 23","cpmeejea@educa.aragon.es"]
[50008691,"Zaragoza","Colegio de Educación Infantil y Primaria","Zaragoza","RAMIRO SOLÁNS","Cl. Teodora Lamadrid, 61",50011,"976 34 48 65","976 34 48 65","cprsozaragoza@educa.aragon.es"]
[50008770,"Zaragoza","Instituto de Educación Secundaria","Tauste","RÍO ARBA","Avda. Del Pilar, S/N",50660,"976 85 40 20","976 85 94 49","iestauste@educa.aragon.es"]
[50008782,"Zaragoza","Colegio de Educación Infantil y Primaria","Santa Engracia","SANTA ENGRACIA","Cl. Ronda De Mediodía, S/N",50669,"976 85 68 09",null,"cpsengracia@educa.aragon.es"]
[50008915,"Zaragoza","Centro Privado de Educación Especial","Zaragoza","SAN GERMÁN","Ctra. De Huesca, S/N",50020,"976 51 65 22","976 73 02 38","aspacezaragoza@hotmail.com"]
[50008952,"Zaragoza","Colegio de Educación Infantil y Primaria","Cuarte de Huerva","RAMÓN Y CAJAL","Cl. Ramón Y Cajal, 53",50410,"976 46 32 95","976 46 32 95","cpcuarte@educa.aragon.es"]
[50008976,"Zaragoza","Centro Privado de Educación Infantil Primaria y Secundaria","Venta del Olivar","ANTONIO MACHADO","AUTOVÍA DE LOGROÑO, KM. 7200",50011,"976 46 08 60","976 34 02 78","colegio@colegioantoniomachado.com"]
[50009026,"Zaragoza","Centro Privado de Educación Secundaria","Zaragoza","LICEO EUROPA","CAMI. FUENTE DE LA JUNQUERA, 21",50012,"976 56 50 00","976 56 00 18"]
[50009051,"Zaragoza","Centro Privado de Formación Profesional Específica","Zaragoza","PLUS ULTRA","Cl. Gran Via, 11",50006,"976 22 61 44","976 22 21 18","centro@plusultraformacion.com"]
[50009129,"Zaragoza","Instituto de Educación Secundaria","Ejea de los Caballeros","CINCO VILLAS","P.º DE LA CONSTITUCIÓN, 122-124-126",50600,"976 66 00 08","976 66 30 93","iescvejea@educa.aragon.es"]
[50009142,"Zaragoza","Centro Privado de Educación Infantil","Zaragoza","HEIDI","Cl. Martín Abanto, 12",50013,"976 41 19 48","976 41 19 48","ciheidi@ono.com"]
[50009166,"Zaragoza","Instituto de Educación Secundaria","Zaragoza","JOSÉ MANUEL BLECUA","Cl. Cuarta Avenida, 13",50007,"976 25 86 20","976 25 86 21","iesjmbzaragoza@educa.aragon.es"]
[50009178,"Zaragoza","Instituto de Educación Secundaria","Zaragoza","PABLO GARGALLO","Cami. Miraflores, 13",50007,"976 38 50 12","976 25 54 20","iespagazaragoza@educa.aragon.es"]
[50009208,"Zaragoza","Colegio de Educación Infantil y Primaria","Zaragoza","TORRE RAMONA","Cl. Batalla De Lepanto, 40",50002,"976 41 84 77","976 41 84 77","cptrazaragoza@educa.aragon.es"]
[50009211,"Zaragoza","Instituto de Educación Secundaria","Zaragoza","FÉLIX DE AZARA","CL. RAMIRO DE ARAGÓN, 15",50017,"976 34 76 90","976 53 38 48","iesfazzaragoza@educa.aragon.es"]
[50009221,"Zaragoza","Centro Privado de Formación Profesional Específica","Mequinenza","SANTA AGATOCLIA","Ctra. De Fraga, S/N",50170,"974 46 42 11","976 46 42 11","colegiosantaagatoclia@gmail.com"]
[50009324,"Zaragoza","Centro Privado de Educación de Personas Adultas","Zaragoza","O.S.C.U.S.","Cl. Boggiero,166",50003,"976 43 20 90","976 28 19 96"]
[50009348,"Zaragoza","Instituto de Educación Secundaria","Zaragoza","AVEMPACE","Cl. Islas Canarias, 5",50015,"976 51 86 66","976 73 01 69","iesavempace@educa.aragon.es"]
[50009361,"Zaragoza","Centro Privado de Educación Infantil Primaria y Secundaria","Zaragoza","JUAN DE LANUZA","CTRA. DEL AEROPUERTO, 275",50011,"976 30 03 36","976 30 03 37","colegio@juandelanuza.org"]
[50009373,"Zaragoza","Colegio de Educación Infantil y Primaria","Zaragoza","JOSÉ CAMÓN AZNAR","Avda.de Navarra,nº 141",50017,"976 32 91 02","976 32 91 02","cpjcazaragoza@educa.aragon.es"]
[50009385,"Zaragoza","Colegio de Educación Infantil y Primaria","Zaragoza","ZALFONADA","Cl. Islas Canarias, 1",50015,"976 73 45 00","976 73 45 00","cpzalzaragoza@educa.aragon.es"]
[50009397,"Zaragoza","Colegio de Educación Infantil y Primaria","Zaragoza","TENERÍAS","CL. Coso nº 214",50002,"976 29 29 50","976 39 04 34","cptenzaragoza@educa.aragon.es"]
[50009403,"Zaragoza","Colegio de Educación Infantil y Primaria","Zaragoza","LAS FUENTES","Cl. Doctor Iranzo, 65",50002,"976 49 49 00","976 41 61 78","cplfuzaragoza@educa.aragon.es"]
[50009415,"Zaragoza","Colegio de Educación Infantil y Primaria","Zaragoza","GLORIA ARENILLAS","Cl. Río Perejiles, 2",50014,"976 57 28 38",976572838,"cpgarzaragoza@educa.aragon.es"]
[50009452,"Zaragoza","Colegio de Educación Infantil y Primaria","Zaragoza","MARÍA MOLINER","Cami. De Miraflores, 10",50007,"976 38 09 91","976 38 09 91","cpmmozaragoza@educa.aragon.es"]
[50009488,"Zaragoza","Centro Privado de Educación Especial","Villamayor","LOS PUEYOS","Cl. Paso, 250",50162,"976 57 02 44","976 57 02 44","cpueyos@infonegocio.com"]
[50009531,"Zaragoza","Colegio de Educación Infantil y Primaria","Zaragoza","RAMÓN SÁINZ DE VARANDA","CL. NTRA. SRA. DE LA OLIVA, 3",50007,"976 38 23 09","976 38 23 09","cprsvzaragoza@educa.aragon.es"]
[50009543,"Zaragoza","Instituto de Educación Secundaria","Fuentes de Ebro","BENJAMÍN JARNÉS","Cl. Agustina De Aragón, S/N",50740,"976 16 08 87","976 16 12 72","iesfuentes@educa.aragon.es"]
[50009567,"Zaragoza","Instituto de Educación Secundaria","Zaragoza","RÍO GÁLLEGO","Cl. Río Piedra, 4",50014,"976 58 81 70","976 57 04 08","iesrgazaragoza@educa.aragon.es"]
[50009580,"Zaragoza","Colegio de Educación Infantil y Primaria","Zaragoza","MIRAFLORES","Parque Miraflores Nº 1",50008,"976 49 31 05","976 49 31 05","cpmirzaragoza@educa.aragon.es"]
[50009592,"Zaragoza","Instituto de Educación Secundaria","Zuera","GALLICUM","Cami. De San Juan, S/N",50800,"976 68 03 41","976 68 04 83","ieszuera@educa.aragon.es"]
[50009646,"Zaragoza","Centro Privado de Educación Especial","Zaragoza","MARÍA SORIANO","Ctra. Logroño, Km. 7,8",50011,"976 33 89 76","976 33 89 76","colegio@maria-soriano.es"]
[50009725,"Zaragoza","Centro Privado de Educación de Personas Adultas","Zaragoza","CODEF","CL. San Roque, 5-7",50017,"976 33 26 38","976 33 26 38"]
[50009749,"Zaragoza","Colegio de Educación Infantil y Primaria","Zaragoza","LA ESTRELLA","Cl. Pedro Lázaro, 18",50014,"976 47 27 29","976 47 27 29","cpleszaragoza@educa.aragon.es"]
[50009762,"Zaragoza","Escuela Oficial de Idiomas","Zaragoza","Nº 1","Cl. Domingo Miral, 23",50009,"976 35 74 00","976 56 80 34","eoizaragoza1@educa.aragon.es"]
[50009786,"Zaragoza","Colegio de Educación Infantil y Primaria","Casetas","ANTONIO MARTÍNEZ GARAY","CL. Cádiz, 12",50620,"976 77 44 17","976 77 44 17","cpamgzaragoza@educa.aragon.es"]
[50009889,"Zaragoza","Centro Privado de Formación Profesional Específica","Zaragoza","ACADEMIA MARCO","Cl. Conde De Aranda, 7-9",50004,"976 44 16 99","976 40 51 00","info@academiamarco.com"]
[50009944,"Zaragoza","Colegio de Educación Infantil y Primaria","Zaragoza","MONSALUD","Cl. Marianela García Villas, 1",50017,"976 30 00 11","976 30 00 11","cpmonzaragoza@educa.aragon.es"]
[50009993,"Zaragoza","Centro Público de Educación de Personas Adultas","Zaragoza","CONCEPCIÓN ARENAL","Cl. Santo Dominguito De Val, S/N",50001,"976 29 64 91","976 29 17 11","cpeacarzaragoza@educa.aragon.es"]
[50010028,"Zaragoza","Centro Privado de Formación Profesional Específica","Alagón","ALAÚN","Cl. Ramón Y Cajal, 10",50630,"976 61 13 74","976 61 62 25","centroalaun@alaun.es"]
[50010041,"Zaragoza","Instituto de Educación Secundaria","Utebo","PEDRO CERRADA","Cl. Las Fuentes, 14",50180,"976 77 42 55",null,"iesutebo@educa.aragon.es"]
[50010144,"Zaragoza","Instituto de Educación Secundaria","Zaragoza","PABLO SERRANO","CL. BATALLA DE LEPANTO, 30",50002,"976 49 10 15","976 59 05 42","iespsezaragoza@educa.aragon.es"]
[50010156,"Zaragoza","Instituto de Educación Secundaria","Zaragoza","MIRALBUENO","Cl. Vistabella, 8",50011,"976 33 04 50","976 31 62 20","iesmirzaragoza@educa.aragon.es"]
[50010168,"Zaragoza","Centro Privado de Formación Profesional Específica","Zaragoza","CONDES DE ARAGÓN","Cl. Condes De Aragón, 9",50009,"976 35 48 80","976 55 66 79","fpcondesdearagon@gmail.com"]
[50010171,"Zaragoza","Colegio de Educación Infantil y Primaria","Zaragoza","HERMANOS MARX","Cl. Antón García Abril, 39",50018,"976 51 34 02","976 74 07 99","cphmazaragoza@educa.aragon.es"]
[50010181,"Zaragoza","Colegio de Educación Infantil y Primaria","Zaragoza","HISPANIDAD","Cl. Océano Atlántico, 15",50012,"976 32 98 98","976 32 98 98","cphiszaragoza@educa.aragon.es"]
[50010193,"Zaragoza","Colegio de Educación Infantil y Primaria","Zaragoza","PUERTA DE SANCHO","Cl. Batalla De Arapiles, S/N",50003,"976 44 35 77","976 46 98 70","cppsazaragoza@educa.aragon.es"]
[50010247,"Zaragoza","Colegio de Educación Infantil y Primaria","Mainar","SANTA ANA","Ctra. De Valencia, S/N",50368,"976 80 72 18","976 80 70 01","cpmainar@educa.aragon.es"]
[50010272,"Zaragoza","Centro Privado de Educación Infantil Primaria y Secundaria","Zaragoza","EL SALVADOR","Cl. Padre Arrupe, 13",50009,"976 35 34 00","976 55 65 97","colegio@jesuitaszaragoza.es"]
[50010284,"Zaragoza","Instituto de Educación Secundaria","Daroca","COMUNIDAD DE DAROCA","Cl. Barranco De Luzbel, S/N",50360,"976 80 20 72","976 80 20 16","iesdaroca@educa.aragon.es"]
[50010296,"Zaragoza","Colegio de Educación Infantil y Primaria","Utebo","INFANTA ELENA","Cl. Rosalía De Castro, 40",50180,"976 77 44 42",976774442,"cpieutebo@educa.aragon.es"]
[50010302,"Zaragoza","Instituto de Educación Secundaria","Zaragoza","FRANCISCO GRANDE COVIÁN","Cl. Tomás Higuera, 60",50002,"976 42 23 08","976 59 42 96","iesfgczaragoza@educa.aragon.es"]
[50010314,"Zaragoza","Centro Público Integrado de Formación Profesional","Zaragoza","LOS ENLACES","Cl. Jarque De Moncayo, 10",50012,"976 30 08 04","976 31 44 03","cpilosenlaces@educa.aragon.es"]
[50010326,"Zaragoza","Conservatorio Superior de Música","Zaragoza","DE ARAGÓN","VIA HISPANIDAD, 22",50001,"976 22 26 32","976 23 01 95","csmzaragoza@educa.aragon.es"]
[50010387,"Zaragoza","Colegio de Educación Especial","Zaragoza","ALBORADA","Andador Pilar Cuartero Molinero, 1",50018,"976 51 05 20","976 58 62 28","ceealzaragoza@educa.aragon.es"]
[50010399,"Zaragoza","Colegio de Educación Infantil y Primaria","Zaragoza","RÍO EBRO","Andador Pilar Cuartero Molinero, 5",50018,"976 51 70 21","976 51 88 28","cprebzaragoza@educa.aragon.es"]
[50010430,"Zaragoza","Escuela Pública de Música","Daroca","PABLO BRUNA","Cl. Mayor, 36",50360,"976 80 10 37","976 80 03 62","emusipbruna@darcultura.e.telefonica.net"]
[50010454,"Zaragoza","Centro Privado Autorizado Elemental de Música","Zaragoza","ADAGIO","Cl. Residencial Paraíso, 5 - Bajos",50008,"976 23 26 01","976 21 98 97","estudioadagio@hotmail.com"]
[50010478,"Zaragoza","Colegio de Educación Infantil y Primaria","Zaragoza","CIUDAD DE ZARAGOZA","Cl. Escultor Palao, 17",50017,"976 31 46 20","976 31 46 20","cpczazaragoza@educa.aragon.es"]
[50010481,"Zaragoza","Colegio de Educación Infantil y Primaria","Zaragoza","CORTES DE ARAGÓN","CL. Valero Julián Ripol Urbano, 4",50018,"976 51 21 11","976 51 36 00","cpcarazaragoza@educa.aragon.es"]
[50010491,"Zaragoza","Instituto de Educación Secundaria","Zaragoza","SANTIAGO HERNÁNDEZ","Avda. De Navarra, 141",50017,"976 32 42 00","976 33 79 85","iesshezaragoza@educa.aragon.es"]
[50010511,"Zaragoza","Instituto de Educación Secundaria","Zaragoza","TIEMPOS MODERNOS","CL. CINEASTA SEGUNDO DE CHOMÓN, 4",50018,"976 52 53 02","976 52 56 92","iestiemposmodernos@educa.aragon.es"]
[50010533,"Zaragoza","Instituto de Educación Secundaria","Almunia de Doña Godina (La)","CABAÑAS","Cl. Carrera De La Hilera, S/N",50100,"976 81 24 80","976 81 21 62","iesalmunia@educa.aragon.es"]
[50010727,"Zaragoza","Instituto de Educación Secundaria","Zaragoza","ELAIOS","Andador Pilar Cuartero Molinero, 3",50018,"976 52 75 00","976 52 59 68","ieselazaragoza@educa.aragon.es"]
[50010739,"Zaragoza","Instituto de Educación Secundaria","Zaragoza","PILAR LORENGAR","Cl. Miguel Asso, 5",50014,"976 47 59 66","976 47 54 36","iesplozaragoza@educa.aragon.es"]
[50010740,"Zaragoza","Escuela Oficial de Idiomas","Zaragoza","FERNANDO LÁZARO CARRETER","Cl. Cineasta Segundo De Chomón, S/N",50018,"976 52 68 88","976 52 71 33","eoizaragoza2@educa.aragon.es"]
[50010764,"Zaragoza","Colegio de Educación Infantil y Primaria","Caspe","ALEJO LORÉN ALBAREDA","Cl. Glorieta Federico García Lorca, S/N",50700,"976 63 20 28","976 63 20 28","cpalcaspe@educa.aragon.es"]
[50010818,"Zaragoza","Centro Público de Educación de Personas Adultas","Calatayud","MARCO VALERIO MARCIAL","P.º Ramón Y Cajal, 1",50300,"976 88 93 89","976 88 93 88","cpeacalatayud@educa.aragon.es"]
[50010821,"Zaragoza","Centro Público de Educación de Personas Adultas","Cariñena","RICARDO SOLA ALMAU","Cl. Las Monjas, 27",50400,"976 62 10 79","976 62 10 79","cpeacarinena@educa.aragon.es"]
[50010831,"Zaragoza","Centro Público de Educación de Personas Adultas","Caspe","JOAQUÍN COSTA","Cl. Guma, 35",50700,"976 63 90 22","976 63 90 22","cpeacaspe@educa.aragon.es"]
[50010843,"Zaragoza","Centro Público de Educación de Personas Adultas","Ejea de los Caballeros","EXEA","PZA. DE GOYA, 7",50600,"976 66 28 65","976 67 70 90","cpeaejea@educa.aragon.es"]
[50010855,"Zaragoza","Centro Público de Educación de Personas Adultas","Utebo","EMILIO NAVARRO","Cl. Argentina, S/N",50180,"976 46 20 03","976 46 20 03","cpeautebo@educa.aragon.es"]
[50010867,"Zaragoza","Centro Público de Educación de Personas Adultas","Casetas","MIGUEL HERNÁNDEZ","CL. SAN MIGUEL, 20",50620,"976 46 22 30","976 46 22 30","cpeamhezaragoza@educa.aragon.es"]
[50010879,"Zaragoza","Centro Público de Educación de Personas Adultas","Zaragoza","MARGEN IZQUIERDA","Cl. Lourdes, 23",50014,"976 39 26 57","976 39 26 57","cpeamizzaragoza@educa.aragon.es"]
[50010880,"Zaragoza","Centro Público de Educación de Personas Adultas","Zaragoza","JUAN JOSÉ LORENTE","Cl. Castellote, 3",50017,"976 31 31 99","976 32 67 00","cpeajjlzaragoza@educa.aragon.es"]
[50010892,"Zaragoza","Escuela Oficial de Idiomas","Calatayud","JOHAN FERRÁNDEZ D'HEREDIA","P.º Ramón Y Cajal, 1",50300,"976 88 55 42","976 89 13 34","eoicalatayud@educa.aragon.es"]
[50010909,"Zaragoza","Escuela Oficial de Idiomas","Ejea de los Caballeros","DE EJEA DE LOS CABALLEROS","Pza. De Goya, S/N",50600,"976 66 35 44","976 66 35 44","eoiejea@educa.aragon.es"]
[50010910,"Zaragoza","Centro Privado Autorizado Elemental de Música","Zaragoza","SANTA CECILIA","Cl. Manuel Lasala Valdés, 6",50006,"976 27 15 64","976 27 15 64","jorgesope@hotmail.com"]
[50010922,"Zaragoza","Conservatorio Profesional de Música","Tarazona","DE TARAZONA","Pza. De La Merced, S/N",50500,"976 64 35 61","976 64 44 11","cemtarazona@educa.aragon.es"]
[50010946,"Zaragoza","Instituto de Educación Secundaria","Zaragoza","ANDALÁN","Cl. París, 1",50003,"976 28 19 43","976 28 35 46","iesandzaragoza@educa.aragon.es"]
[50010958,"Zaragoza","Instituto de Educación Secundaria","Zaragoza","MIGUEL DE MOLINOS","Cl. Gabriel García Márquez, 20",50018,"976 73 21 25","976 46 64 45","iesmimozaragoza@educa.aragon.es"]
[50010961,"Zaragoza","Instituto de Educación Secundaria","Illueca","SIERRA DE LA VIRGEN","Cl. San Ildefonso, S/N",50250,"976 82 25 44","976 82 22 11","iesillueca@educa.aragon.es"]
[50010995,"Zaragoza","Instituto de Educación Secundaria","Zaragoza","MEDINA ALBAIDA","Cl. José Luis Pomarón, 4",50008,"976 49 19 00","976 49 18 29","iesmalzaragoza@educa.aragon.es"]
[50011008,"Zaragoza","Instituto de Educación Secundaria","Épila","RODANAS","Avda. De La Estación, 1",50290,"976 81 70 90","976 81 72 30","iesepila@educa.aragon.es"]
[50011021,"Zaragoza","Centro Público de Educación de Personas Adultas","Tarazona","EL PÓSITO","Pza. Carmen Viejo, 15",50500,"976 19 90 41","976 64 24 82","cpeatarazona@educa.aragon.es"]
[50011033,"Zaragoza","Escuela Oficial de Idiomas","Utebo","DE UTEBO","P.º Berbegal, 22",50180,"976 78 59 62","976 78 60 07","eoiutebo@educa.aragon.es"]
[50011045,"Zaragoza","Escuela Oficial de Idiomas","Tarazona","DE TARAZONA","Cl. Iglesias, 1",50500,"976 64 24 21","976 64 30 04","eoitarazona@educa.aragon.es"]
[50011057,"Zaragoza","Centro Privado de Educación Infantil Primaria y Secundaria","Zaragoza","LA ALFRANCA","Avda. De Movera, 147",50194,"976 57 30 30","976 57 30 30","educacion@colegioingleszaragoza.org"]
[50011069,"Zaragoza","Instituto de Educación Secundaria","Casetas","ÁNGEL SANZ BRIZ","Avenida de la Constitución, 31",50620,"976 78 72 35","976 79 20 55","iesasbcasetas@educa.aragon.es"]
[50011070,"Zaragoza","Instituto de Educación Secundaria","Pedrola","SIGLO XXI","Avda. Virgen Del Pilar, S/N",50690,"976 61 91 31","976 61 91 82","iespedrola@educa.aragon.es"]
[50011100,"Zaragoza","Centro Privado de Educación Infantil Primaria y Secundaria","Zaragoza","SAGRADO CORAZÓN-MONCAYO","Juan Pablo II, 58",50009,"976 75 12 59","976 45 81 30","director.zm@corazonistas.com"]
[50011124,"Zaragoza","Colegio Rural Agrupado","Lumpiaque","DE LUMPIAQUE","Cl. Muntadas, 3",50295,"976 60 16 17","976 60 16 17","cralumpiaque@educa.aragon.es"]
[50011136,"Zaragoza","Colegio Rural Agrupado","Sabiñán","EL ENEBRO","Cl. San Roque, 24",50299,"976 82 55 60",null,"crasabinan@educa.aragon.es"]
[50011148,"Zaragoza","Colegio Rural Agrupado","Gotor","ARANDA-ISUELA","Cl. Convento, S/N",50257,"976 82 02 12","976 82 02 12","cragotor@educa.aragon.es, crajarque@educa.aragon.es"]
[50011151,"Zaragoza","Colegio Rural Agrupado","Maluenda","TRES RIBERAS","Cl. Doctor García Sancho, 7",50340,"976 89 02 89","976 89 02 89","cramaluenda@educa.aragon.es"]
[50011161,"Zaragoza","Colegio Rural Agrupado","Aniñón","RÍO RIBOTA","Avda. Constitución, S/N",50313,"976 89 61 28","976 89 61 28","craaninon@educa.aragon.es"]
[50011173,"Zaragoza","Colegio Rural Agrupado","Villalengua","EL MIRADOR","Pza. Mayor, 16",50216,"976 84 70 27",null,"cramoros@educa.aragon.es"]
[50011185,"Zaragoza","Colegio Rural Agrupado","Ibdes","MESA-PIEDRA-ALTO CAMPILLO","Cl. Puerta De La Aldea, S/N",50236,"976 87 27 69","976 87 27 69","craibdes@educa.aragon.es"]
[50011197,"Zaragoza","Colegio Rural Agrupado","Used","CERRO DE SANTA CRUZ","CTRA. DE ATEA, S/N",50374,"976 80 91 12",976809112,"craused@educa.aragon.es"]
[50011203,"Zaragoza","Colegio Rural Agrupado","Azuara","L' ALBARDÍN","Cl. Extramuros, 55-57",50140,"976 83 40 88",null,"craazuara@educa.aragon.es"]
[50011215,"Zaragoza","Colegio Rural Agrupado","Erla","MONLORA","Pza. Autonomía, S/N",50611,"976 69 41 61","976 69 41 61","craerla@educa.aragon.es"]
[50011227,"Zaragoza","Colegio Rural Agrupado","Novallas","BÉCQUER","CL. Serafín Villarroya Lahoz s/n",50510,"976 19 81 49","976 19 81 49","cranovallas@educa.aragon.es"]
[50011239,"Zaragoza","Colegio Rural Agrupado","Luceni","ÍNSULA BARATARIA","San Agustín, 6",50640,"976 65 12 40","976 65 12 40","crainsulabarataria@educa.aragon.es"]
[50011240,"Zaragoza","Colegio Rural Agrupado","Pinsoro","LUIS BUÑUEL","Cl. Corneta, S/N",50694,"976 67 38 52","976 67 38 52","crapinsoro@educa.aragon.es"]
[50011252,"Zaragoza","Instituto de Educación Secundaria","Ateca","ZAURÍN","P.º Manubles, 6",50200,"976 84 21 10","976 84 21 03","iesateca@educa.aragon.es"]
[50011264,"Zaragoza","Conservatorio Profesional de Música","Zaragoza","DE ZARAGOZA","Cl. San Vicente De Paúl, 39",50001,"976 20 19 28","976 20 22 05","cpmzaragoza@educa.aragon.es"]
[50011288,"Zaragoza","Centro Público Integrado","Cadrete","CASTILLO QADRIT","CL. Miguel Servet,3",50420,"976 12 50 79","976 12 50 79","cpicastilloqadrit@educa.aragon.es"]
[50011291,"Zaragoza","Colegio Rural Agrupado","Fuendejalón","LAS VIÑAS","Afueras s/n",50529,"976 86 21 31","976 86 21 31","crafuendejalon@educa.aragon.es"]
[50011306,"Zaragoza","Colegio de Educación Infantil y Primaria","Alfamén","MATEO VALERO","Ctra. De Longares, 57",50461,"976 62 60 60",null,"cpalfamen@educa.aragon.es"]
[50011318,"Zaragoza","Colegio Rural Agrupado","Ariza","PUERTA DE ARAGÓN","Cl. Pilar, 12",50220,"976 84 52 71","976 84 52 71","craariza@educa.aragon.es"]
[50011321,"Zaragoza","Colegio Rural Agrupado","Bujaraloz","L' ALBADA","Santa Bárbara 3",50177,"976 17 31 70","976 17 31 70","crabujaraloz@educa.aragon.es"]
[50011331,"Zaragoza","Colegio Rural Agrupado","Burgo de Ebro (El)","MARÍA MOLINER","CL. CRISTINA ALBERDI, S/N",50730,"976 10 52 53","976 10 52 53","craburgo@educa.aragon.es"]
[50011343,"Zaragoza","Colegio Rural Agrupado","Fábara","FABARA-NONASPE DOS AGUAS","Avda. La Jota Aragonesa, S/N",50793,"976 63 50 44","976 63 50 44","crafabara@educa.aragon.es"]
[50011355,"Zaragoza","Colegio Rural Agrupado","Gelsa","DEL EBRO","Cl. Buen Suceso, S/N",50786,"976 17 66 26",null,"cragelsa@educa.aragon.es"]
[50011367,"Zaragoza","Colegio Rural Agrupado","Frasno (El)","VICORT-ISUELA","Avda. Bardají, 42",50320,"976 60 93 76","976 60 93 76","craelfrasno@educa.aragon.es"]
[50011379,"Zaragoza","Colegio Rural Agrupado","Magallón","LA HUECHA","Pza. Aragón, 12",50520,"976 85 81 78","976 85 81 78","cramagallon@educa.aragon.es"]
[50011380,"Zaragoza","Colegio Rural Agrupado","Muel","ORBA","Cl. José Antonio, 24",50450,"976 14 03 87","976 14 03 87","craorba@educa.aragon.es"]
[50011392,"Zaragoza","Colegio Rural Agrupado","Paniza","LA CEPA","Ctra. De Aladrén, S/N",50480,"976 62 29 40","976 62 29 40","crapaniza@educa.aragon.es"]
[50011409,"Zaragoza","Colegio Rural Agrupado","Villafranca de Ebro","LA SABINA","Avda. Zaragoza, 23",50174,"976 16 71 83","976 16 71 83","cravillafrancae@educa.aragon.es"]
[50011410,"Zaragoza","Colegio Rural Agrupado","Sádaba","LOS BAÑALES","Avda. General Carlos De Castro, 1",50670,"976 67 52 90","976 67 52 90","crasadaba@educa.aragon.es"]
[50011422,"Zaragoza","Colegio Rural Agrupado","Leciñena","BAJO GÁLLEGO","Avda. Zaragoza, 84",50160,"976 16 80 84","976 168084","cralecinena@educa.aragon.es"]
[50011434,"Zaragoza","Centro Público de Educación de Personas Adultas","Fuentes de Ebro","DE FUENTES DE EBRO","P.º Del Justicia, S/N",50740,"976 16 90 90","976 16 91 72","cpeafuentes@educa.aragon.es"]
[50011446,"Zaragoza","Centro Público de Educación de Personas Adultas","Zaragoza","GÓMEZ LAFUENTE","Cl. Las Armas, 22",50003,"976 46 91 46","976 44 03 52","cpeaglazaragoza@educa.aragon.es"]
[50011458,"Zaragoza","Centro Público de Educación de Personas Adultas","Zaragoza","CASA CANAL","P.º Cuellar, 6",50006,"976 27 88 86","976 25 35 56","cpeaccazaragoza@educa.aragon.es"]
[50011461,"Zaragoza","Centro Público de Educación de Personas Adultas","Puebla de Alfindén (La)","ALFINDÉN","Cl. Barrio Nuevo, 37",50171,"976 10 85 71","976 10 85 71","cpeaalfinden@educa.aragon.es"]
[50011471,"Zaragoza","Centro Público de Educación de Personas Adultas","Almunia de Doña Godina (La)","DE LA ALMUNIA DE DOÑA GODINA","C/Mayor, 7",50100,"976 81 25 46","976 81 25 46","cpeaalmunia@educa.aragon.es"]
[50011483,"Zaragoza","Centro Público de Educación de Personas Adultas","Daroca","DE DAROCA","PZA. COMUNIDAD DE DAROCA, 2",50360,"976 80 05 48","976 80 05 48","cpeadaroca@educa.aragon.es"]
[50011495,"Zaragoza","Conservatorio Elemental de Música","Zaragoza","CONSERVATORIO MUNICIPAL ELEMENTAL MÚSICA","Cl. Domingo Miral, 3",50009,"976 72 49 60","976 56 10 36"]
[50011501,"Zaragoza","Conservatorio Profesional de Danza","Zaragoza","CONSERVATORIO MUNICIPAL PROFESIONAL DE DANZA","Cl. Domingo Miral, 3",50009,"976 72 17 30","976 72 17 32"]
[50011513,"Zaragoza","Instituto de Educación Secundaria","Tarazona","TUBALCAÍN","Avda. La Paz, S/N",50500,"976 64 29 15","976 64 42 02","iestarazona@educa.aragon.es"]
[50011525,"Zaragoza","Instituto de Educación Secundaria","Zaragoza","MIGUEL CATALÁN","P.º Isabel La Católica, 3",50009,"976 40 20 04","876 11 06 62","iesmcazaragoza@educa.aragon.es"]
[50011537,"Zaragoza","Colegio de Educación Especial","Zaragoza","RINCÓN DE GOYA","CL. RINCÓN DE GOYA, 4",50006,"976 25 55 45","976 25 53 96","ceergzaragoza@educa.aragon.es"]
[50011549,"Zaragoza","Escuela Pública de Música y Danza","Zaragoza","ESCUELA DE MÚSICA Y DANZA","Cl. Domingo Miral, 5",50009,"976 72 17 99"]
[50011550,"Zaragoza","Instituto de Educación Secundaria","Zaragoza","RAMÓN Y CAJAL","CL. RAMÓN PIGNATELLI, 102",50004,"976 40 51 80","976 28 50 75","iesryczaragoza@educa.aragon.es"]
[50011562,"Zaragoza","Colegio de Educación Infantil y Primaria","Zaragoza","ANTONIO BELTRÁN MARTÍNEZ","Avda. Vía Hispanidad, 68",50017,"976 33 28 64","976 33 28 64","cpabmzaragoza@educa.aragon.es"]
[50011574,"Zaragoza","Centro Privado de Formación Profesional Específica","Zaragoza","CPA-SALDUIE","AVDA. RAMÓN SAÍNZ DE VARANDA 1-3",50009,"976 52 27 41","976 06 88 89","info@cpasalduie.com"]
[50011598,"Zaragoza","Escuela Privada de Música","Zaragoza","SANTA MARÍA","Cl. Pedro Joaquín Soler, 8",50001,"976 29 38 71",null,"cmusicasantamaria@irsmaria.e.telefonica.net"]
[50011604,"Zaragoza","Centro Privado Autorizado Profesional de Música","Zaragoza","CITTÁ DI ROMA","Cl. Pablo Remacha, 13",50013,"976 59 71 36","976 42 94 33","cdroma@able.es"]
[50011628,"Zaragoza","Centro Privado de Educación Infantil","Zaragoza","TIC TAC","Cl. Pedro Arnal Cavero, 30",50014,"976 28 54 99"]
[50011631,"Zaragoza","Centro Privado de Formación Profesional Específica","Zaragoza","MARCO ALDANY TALLER DE PELUQUEROS","Cl. Via Pignatelli, 11",50007,"976 38 43 97",null,"zaragoza_marcoaldany@hotmail.com"]
[50011641,"Zaragoza","Centro Privado Autorizado Elemental de Música","Zaragoza","ANGEL MINGOTE","Cl. Andador De Los Hudies, 6-E, Bajos",50009,"976 56 84 84","976 35 70 61","angelmingote@gmail.com"]
[50011653,"Zaragoza","Centro Privado Autorizado Elemental de Música","Zaragoza","RUBINSTEIN","Cl. Barcelona, 17",50017,"976 33 23 46",null,"academiarubinstein@msn.com"]
[50011665,"Zaragoza","Instituto de Educación Secundaria","Maella","BAIX MATARRANYA","Cl. Zaragoza, 50",50710,"976 63 88 00","976 63 83 64","iesmaella@educa.aragon.es"]
[50011677,"Zaragoza","Instituto de Educación Secundaria","Mallén","VALLE DEL HUECHA","Avda. De La Libertad, 25",50550,"976 86 14 09","976 86 14 13","iesmallen@educa.aragon.es"]
[50011689,"Zaragoza","Instituto de Educación Secundaria","Mequinenza","JOAQUÍN TORRES","Ctra. De Fraga, S/N",50170,"974 46 50 73","974 46 50 73","iesmequinenza@educa.aragon.es"]
[50011690,"Zaragoza","Sección de Instituto de Educación Secundaria","Sádaba","REYES CATÓLICOS","Avda. Pirineos, S/N",50670,"976 67 54 25","976 67 55 79","iessadaba@educa.aragon.es"]
[50011707,"Zaragoza","Sección de Instituto de Educación Secundaria","Sástago","BENJAMÍN JARNÉS","Cl. Luis Gracia, S/N",50780,"976 17 21 92","976 17 20 98","iessastago@educa.aragon.es"]
[50011719,"Zaragoza","Sección de Instituto de Educación Secundaria","Belchite","BENJAMÍN JARNÉS","Ronda Zaragoza, S/N",50130,"976 83 90 75","976 83 90 75","iesbelchite@educa.aragon.es"]
[50011720,"Zaragoza","Instituto de Educación Secundaria","Bujaraloz","SABINA ALBAR","Cl. La Luna, S/N",50177,"976 17 32 20","976 17 93 12","iesbujaraloz@educa.aragon.es"]
[50011732,"Zaragoza","Instituto de Educación Secundaria","Caspe","MAR DE ARAGÓN","CL. JOSÉ MARÍA ALBAREDA, S/N",50700,"976 63 02 08","976 63 08 43","iescaspe@educa.aragon.es"]
[50011756,"Zaragoza","Centro Privado de Educación Infantil","Zaragoza","PELUCHE","Cl. Pedro Cerbuna, 41",50009,"976 56 00 05"]
[50011771,"Zaragoza","Centro Privado de Educación Infantil","Garrapinillos","GARRAPINIÑOS","Cl. Barón De La Linde, 14",50190,"976 23 90 51","976 58 09 21"]
[50011781,"Zaragoza","Centro Privado de Formación Profesional Específica","Zaragoza","VALLE DE TENA","P.º Isabel La Católica, 5-7",50009,"976 55 03 65","976 56 94 43","secretaria@fpvalledetena.com"]
[50011793,"Zaragoza","Centro Privado de Formación Profesional Específica","Zaragoza","ARTE-MISS ZARAGOZA, CENTRO 1","Cl. Padre Manjón, 38-40",50010,"976 33 11 88","976 33 11 20","educacion@arte-miss.com"]
[50011801,"Zaragoza","Colegio de Educación Infantil y Primaria","Zaragoza","JOSÉ ANTONIO LABORDETA SUBÍAS","Pza. Pedro Saputo, 7",50018,"976 73 78 42","976 737842","cpjalzaragoza@educa.aragon.es"]
[50011811,"Zaragoza","Centro Privado de Educación Infantil","Zaragoza","CHIQUITINES II","AVDA. SANTA ISABEL, 20",50003,"976 57 73 70"]
[50011847,"Zaragoza","Colegio de Educación Infantil y Primaria","Zaragoza","JOSEFA AMAR Y BORBÓN","CL. Julio García Condoy, 50",50018,"976 732450","976 51 80 59","cpavzaragoza@educa.aragon.es"]
[50011872,"Zaragoza","Escuela de Educación Infantil","Zaragoza","VILLACAMPA","Cl. Villacampa, 32-36",50015,"976 52 32 83","976 39 90 71","einfantil-villacampa@zaragoza.es"]
[50017001,"Zaragoza","Centro Privado de Educación Infantil","Zaragoza","ANDARINES","Cl. Matías Pastor Sancho, 2 , Blo. 4-5",50015,"976 52 32 60"]
[50017011,"Zaragoza","Centro Privado de Educación Infantil","Zaragoza","EDUCANDO","Cl. Río Cinca, 35",50003,"976 28 29 97",null,"ceieducando@gmail.com"]
[50017023,"Zaragoza","Escuela Privada de Música y Danza","Zaragoza","ALMOZARA","Avda. Puerta Sancho, 14",50003,"976 44 38 04",null,"fernandoromeroterrel@gmail.com"]
[50017035,"Zaragoza","Escuela de Educación Infantil","Biota","DE BIOTA","Cl. De La Fuente, S/N",50695,"976 67 00 14","976 67 02 87","ayto.biota@terra.es"]
[50017047,"Zaragoza","Centro Privado Autorizado Elemental de Música","Zaragoza","ACTUR","Cl. Poeta León Felipe, 19-21",50018,"976 74 40 07","976 74 40 07","fernandoromeroterrel@gmail.com"]
[50017059,"Zaragoza","Centro Privado Autorizado Superior de Diseño","Zaragoza","CENTRO DE DISEÑO HACER CREATIVO","Avda. Ranillas 5D planta baja",50018,"976 40 03 25","976 56 49 52","info@hacercreativo.com"]
[50017060,"Zaragoza","Escuela Privada de Música y Danza","Zaragoza","FEDERICO CHOPÍN","Urb. Parque Roma, Local 12-B",50010,"976 33 34 35",null,"chopin@chopinzaragoza.com"]
[50017072,"Zaragoza","Centro Público Integrado","Zaragoza","PARQUE GOYA","CL. EL COLOSO, 5",50015,"976 10 63 88","976 10 63 88","cppgzaragoza@educa.aragon.es"]
[50017084,"Zaragoza","Centro Privado de Educación Infantil","Calatayud","PEQUEAYUD","Cl. Fernández Ardavín, 3",50300,"976 88 22 31"]
[50017096,"Zaragoza","Centro Privado de Formación Profesional Específica","Zaragoza","ARSENIO JIMENO","Cl. Eduardo Jimeno Correas, S/N",50018,"976 70 05 00","976 70 05 01","info@centroformacion.ugt.org"]
[50017102,"Zaragoza","Extensión de Escuela Oficial de Idiomas","Zaragoza","Nº 1","CL. SAN VICENTE FERRER, 6",50011,"976 33 18 03","976 31 28 00","extension.eoi1z@educa.aragon.es"]
[50017114,"Zaragoza","Extensión de Escuela Oficial de Idiomas","Zuera","FERNANDO LÁZARO CARRETER","Cl. Puilatos, S/N",50800,"976 69 04 83","976 69 04 83","eoizuera@educa.aragon.es"]
[50017126,"Zaragoza","Extensión de Escuela Oficial de Idiomas","Caspe","DE ALCAÑIZ","Cl. José Mª. Albareda, 4",50700,"976 63 02 08","976 63 08 43","eoialcaniz@educa.aragon.es"]
[50017141,"Zaragoza","Escuela de Educación Infantil","Herrera de los Navarros","ZAGALICOS","Cl. Revés, 43",50150,"976 14 31 06","976 14 31 51","cpherrera@educa.aragon.es"]
[50017151,"Zaragoza","Escuela de Educación Infantil","Calatorao","CALATORINES","Paseo Bruno Solano, 15",50280,"976 60 78 04","976 81 36 06","calatorao1@terra.es"]
[50017163,"Zaragoza","Centro Privado de Educación Infantil","Zaragoza","FUNDACIÓN EL REFUGIO","Cl. Crespo De Agüero, 1",50004,"976 22 18 37","976 22 18 37"]
[50017175,"Zaragoza","Centro Privado de Educación Infantil","Zaragoza","NTRA. SRA. DE LOS DOLORES","Cl. Privilegio De La Unión, 39",50013,"976 49 97 03","976 48 02 40","patronato@albadanet.com"]
[50017187,"Zaragoza","Escuela Pública de Música","Alagón","MIGUEL ARNAUDAS","Pza. San Antonio",50630,"976 61 03 00","976 61 05 65","info@alagon.net"]
[50017199,"Zaragoza","Escuela Pública de Música","Utebo","ESCUELA DE MÚSICA","AVDA. DE NAVARRA, 12 (CENTRO POLIFUNCION)",50180,"976 79 20 60","976 79 20 61","cmoliner@ayto-utebo.es"]
[50017205,"Zaragoza","Centro Privado de Educación Infantil","Casetas","NUESTRA SEÑORA DE LA ROSA","CL. SANTIAGO CASTILLO, 11",50620,"976 77 10 49"]
[50017217,"Zaragoza","Centro Privado de Educación Infantil","Villamayor de Gállego","ALDEAS INFANTILES SOS DE ESPAÑA","Cami. Del Molino, 100",50162,"976 58 28 09"]
[50017229,"Zaragoza","Centro Privado de Educación Infantil","Zaragoza","BOLANDRINA","Cl. Refugio, 9, Local",50001,"976 20 39 24",null,"bolandrina@hotmail.com"]
[50017230,"Zaragoza","Escuela Pública de Música","Ejea de los Caballeros","ESCUELA DE MÚSICA","Cl. Joaquín Costa, 29",50600,"976 67 77 69","976 67 77 70","escuelademusica@aytoejea.es"]
[50017242,"Zaragoza","Centro Privado de Educación Infantil","Zaragoza","EL CARMEN","CL. DOCTOR FLEMING, 15; BAJO",50004,"976 40 45 50"]
[50017254,"Zaragoza","Centro Privado de Educación Infantil","Zaragoza","SIERVAS DE LOS POBRES","Cl. Pablo Parellada, 44",50007,"976 27 12 42",null,"siervaspobres@terra.com"]
[50017266,"Zaragoza","Centro Privado de Educación Infantil","Zaragoza","MUÑECOS","Cl. Mesones De Isuela, 62",50007,"976 38 73 54"]
[50017278,"Zaragoza","Escuela Pública de Música","Pina de Ebro","ESCUELA DE MÚSICA","Cl Fernando El Católico, 20",50750,"976 16 50 07","976 15 55 88","aytopina@terra.es"]
[50017281,"Zaragoza","Escuela Pública de Música","Calatayud","JOSÉ DE NEBRA","Cl Baja Del Sepulcro, 2",50300,"976 88 59 24","976 88 56 48"]
[50017291,"Zaragoza","Centro Privado de Educación Infantil","Zaragoza","NUESTRA SEÑORA DE LA PAZ","Cl La Salud, 11",50007,"976 27 27 89"]
[50017308,"Zaragoza","Centro Privado de Educación Infantil","Zaragoza","LA VIRGEN NIÑA","Cami. De Cuarte, 71",50007,"976 37 92 96"]
[50017311,"Zaragoza","Escuela Superior de Diseño","Zaragoza","DE ARAGÓN","CL. MARÍA ZAMBRANO Nº 3",50018,"976 23 75 45","976 21 56 29","esdiseza@educa.aragon.es; esda@educa.aragon.es"]
[50017321,"Zaragoza","Escuela de Educación Infantil","Pinseque","DE PINSEQUE","P.º DEL PALACIO, 8",50298,"976 61 71 98","976 65 16 91","eeipinseque@gmail.com"]
[50017333,"Zaragoza","Centro Privado de Educación Infantil","Zaragoza","SOLETES","Avda. Santa Isabel, 166",50016,"976 57 09 58"]
[50017345,"Zaragoza","Centro Privado de Educación Infantil","Zaragoza","EL MANZANO","Cl. Emilia Pardo Bazán, 12- Local-",50018,"976 06 30 63"]
[50017369,"Zaragoza","Colegio de Educación Especial","Zaragoza","ANGEL RIVIÈRE","CL. José Galiay, 4",50018,"976 49 39 03","976 42 91 62","ceeangelriviere@educa.aragon.es"]
[50017370,"Zaragoza","Escuela Privada de Música","Zaragoza","ESCUELA POPULAR DE MÚSICA","Cl. Jusepe Martínez, 17. Bajo",50003,"976 29 13 38","976 20 33 87","epmzgz@gmail.com"]
[50017382,"Zaragoza","Centro Privado de Educación Infantil","Zaragoza","CHICOTES","Cl. Balbino Orensanz, 55",50014,"976 39 52 21"]
[50017394,"Zaragoza","Escuela de Educación Infantil","Puebla de Alfindén (La)","JUNQUICOS","CL. CIPRIANO GONZÁLEZ, 5",50171,"976 10 96 76","976 10 70 76","junquicos@puebladealfinden.org"]
[50017400,"Zaragoza","Escuela Privada de Música","Zaragoza","PABLO NASSARRE","Cl. Maestro Estremiana, 6",50006,"976 25 08 48","976 25 08 48"]
[50017412,"Zaragoza","Escuela Pública de Música","Almunia de Doña Godina (La)","ESCUELA DE MÚSICA","Cl. San Juan (Casa De Cultura)",50100,"976 60 00 76","976 31 24 51"]
[50017448,"Zaragoza","Colegio de Educación Infantil y Primaria","Muela (La)","GIL TARÍN","Camino de las Banqueras nº 2",50196,"976 14 42 55","976 14 42 55","cpgtlamuela@educa.aragon.es"]
[50017451,"Zaragoza","Colegio de Educación Infantil y Primaria","Utebo","PARQUE EUROPA","CL. Tenerife, s/n",50180,"976 787 480","976 770 727","cputebo3@educa.aragon.es"]
[50017461,"Zaragoza","Centro Privado de Educación Infantil","Zaragoza","CHIP Y CHOP","AVDA. SALVADOR ALLENDE, 44",50015,"976 74 27 07"]
[50017503,"Zaragoza","Centro Privado de Formación Profesional Específica","Zaragoza","OCÉANO ATLÁNTICO","CL. Francisco Oliván Bayle, 4",50015,"976 10 64 51",null,"formacion@oceanoatlantico.org"]
[50017515,"Zaragoza","Centro Privado Autorizado de Enseñanzas Deportivas","Utebo","CENTRO NACIONAL DE ESTUDIOS E INVESTIGACIÓN DE FÚTBOL SALA (CENEIFS)","Plaza Fueros de Aragón s/n (Centro Cultural María Moliner)",50180,976488991]
[50017527,"Zaragoza","Escuela de Educación Infantil","Zaragoza","PIRINEOS","CL. VALLE DE BROTO, S/N",50015,"976 51 33 23","976 39 90 71","einfantil-pirineos@zaragoza.es"]
[50017539,"Zaragoza","Escuela de Educación Infantil","Zaragoza","LOS VIENTOS","CL. POETA LUÍS CERNUDA",50018,"976 51 57 50","976 39 90 71","einfantil-vientos@zaragoza.es"]
[50017540,"Zaragoza","Escuela de Educación Infantil","Almunia de Doña Godina (La)","DE LA ALMUNIA DE DOÑA GODINA","CL. GOYA, 2-4",50100,"976 81 20 41","976 81 24 51","almunia@dpz.es"]
[50017552,"Zaragoza","Escuela de Educación Infantil","Tauste","DE TAUSTE","ADVA. OBISPO JOSÉ MARÍA CONGET, S/N",50660,"976 85 40 01","976 85 50 00","oficinas.tauste@dpz.es"]
[50017564,"Zaragoza","Escuela de Educación Infantil","Santa Engracia","DE SANTA ENGRACIA","CTRA. DE TAUSTE - SANTA ENGRACIA, S/N",50669,"976 85 67 13","976 85 68 05","cpsengracia@educa.aragon.es"]
[50017576,"Zaragoza","Escuela de Educación Infantil","Sabiñán","DE SABIÑÁN","Avda. San Roque, 22",50299,"976 82 60 43","976 82 52 30","savinan@dpz.es"]
[50017588,"Zaragoza","Centro Privado de Educación Infantil","San Mateo de Gállego","PEQUES","CL. SAN FRANCISCO DE PAULA, 55, BAJOS",50840,"976 68 42 96"]
[50017591,"Zaragoza","Escuela Privada de Música","Zaragoza","ENCLAVE DE AR-T","CL. PREVISIÓN SOCIAL, 18, LOCAL",50008,"976 13 44 85",null,"administrador@enclavedeart.com"]
[50017606,"Zaragoza","Escuela de Educación Infantil","Utebo","LA COMETA","CL. LUÍS BUÑUEL, 7",50180,"976 46 28 36","976 46 28 36"]
[50017618,"Zaragoza","Escuela Pública de Música","Uncastillo","ESCUELA MUNICIPAL DE MÚSICA","CL.AFUERAS, S/N, PLTA. 1ª, EDIFICIO ESCOLAR",50678,"976 67 90 01","976 67 94 97"]
[50017631,"Zaragoza","Escuela de Educación Infantil","Alagón","DE ALAGÓN","Avda. de la Portalada, 24",50630,"976 61 31 04","976 61 05 65","ayuntamiento@alagon.net"]
[50017643,"Zaragoza","Centro Privado de Educación Infantil","Cartuja Baja","LA CARTUJA BAJA","CL. AUTONOMÍA DE ARAGÓN, 11",50720]
[50017655,"Zaragoza","Colegio de Educación Infantil y Primaria","Ainzón","EL POMILLO","CL. Demetrio Galán Bergua s/n",50570,976868676,"976 86 86 76","cpainzon@educa.aragon.es"]
[50017667,"Zaragoza","Colegio de Educación Infantil y Primaria","Longares","DIEGO ESCOLANO","AVDA. de valencia s/n",50460,"976 14 24 18",null,"cplongares@educa.aragon.es"]
[50017679,"Zaragoza","Colegio de Educación Infantil y Primaria","Alhama de Aragón","PABLO LUNA","AVDA. ARAGÓN, 19",50230,"976 84 00 24",976840024,"cpalhama@educa.aragon.es"]
[50017680,"Zaragoza","Colegio de Educación Infantil y Primaria","Pina de Ebro","RAMÓN Y CAJAL","Ramón y Cajal 60",50750,976165347,null,"cppina@educa.aragon.es"]
[50017692,"Zaragoza","Escuela de Educación Infantil","Mallén","DE MALLÉN","AVDA. DE LA LIBERTAD, S/N",50550,"976 85 01 96","976 84 05 25","aytomallen@aytomallen.com"]
[50017709,"Zaragoza","Escuela Pública de Música","Gallur","DE GALLUR","CL. CONSTITUCIÓN, S/N",50650,"976 857 300","976 86 40 65","casacultura@gallur.es"]
[50017710,"Zaragoza","Colegio de Educación Infantil y Primaria","Zaragoza","MONTECANAL","CL. Tomás de Lezaún, 15",50012,"976 75 69 25",976756925,"cpmontecanal@educa.aragon.es"]
[50017734,"Zaragoza","Escuela de Educación Infantil","Zuera","LAS BALSAS","CL. VEINTITRÉS DE ABRIL, 20",50800,"976 69 04 28","976 68 13 07","culturzuera@hotmail.com"]
[50017746,"Zaragoza","Escuela de Educación Infantil","Caspe","DE CASPE","AVDA. RÍO EBRO, S/N",50700,"976 63 14 30","976 63 90 69","gesclan@terra.es"]
[50017758,"Zaragoza","Escuela de Educación Infantil","Daroca","PINOCHO","CL. LAMINEROS, S/N",50360,"976 80 03 96","976 80 03 62","alcaldia@daroca.e.telefonica.net"]
[50017761,"Zaragoza","Centro Privado Autorizado de Enseñanzas Deportivas","Remolinos","CENTRO NACIONAL DE ESTUDIOS DE TÉCNICOS DEPORTIVOS (CENETED). ESPECIALIDAD FÚTBOL","CL. PADRE ARRUPE, 13",50637,"976 087 068","976 46 03 05","franciscofernandofutbol@hotmail.com"]
[50017771,"Zaragoza","Centro Privado de Educación Infantil","Zaragoza","ZARAGOZA SCHOOLHOUSE","CL. VÍA IBÉRICA, 67",50012,"976 56 99 00",null,"mar@pequeninos.net"]
[50017783,"Zaragoza","Escuela de Educación Infantil","Cadrete","ARCO-IRIS","AVDA. ZARAGOZA, 2",50420,"976 12 65 72","976 12 66 09"]
[50017795,"Zaragoza","Escuela Pública de Música","Villanueva de Gállego","EVARISTO BERNAL","PZA. ESPAÑA, 2",50830,"976 744 007",null,"villanueva@acamusica.com"]
[50017801,"Zaragoza","Centro Privado de Educación Infantil","Zaragoza","CU CU-TAS TAS","CL. MARÍA MONTESSORI, 12",50018,"976 73 39 44"]
[50017825,"Zaragoza","Escuela de Educación Infantil","Escatrón","DE ESCATRÓN","CL. ESCUELAS, 2",50790,"976 17 00 06","976 17 10 25","escatron@dpz.es"]
[50017837,"Zaragoza","Escuela de Educación Infantil","Tarazona","DE TARAZONA","AVDA. DE LA ESTACIÓN, 8",50500,"976 64 11 41","976 19 90 54","bsancho@tarazona.es"]
[50017849,"Zaragoza","Centro Privado de Educación Infantil","Zaragoza","EL TREN CHU-CHU","CL. MATILDE SANGÜESA, 9-11",50014,"976 393 046",null,"centroeltrenchuchu@gmail.com"]
[50017850,"Zaragoza","Centro Privado de Educación Infantil","Casetas","EL DUENDE DEL BOSQUE","CL. SANTIAGO CASTILLO, 4",50620,"976 787 520",null,"el_duende_del_bosque@hotmail.com"]
[50017862,"Zaragoza","Colegio de Educación Infantil y Primaria","Zaragoza","AGUSTINA DE ARAGÓN","Eugenio Lucas nº 14",50018,"976 79 94 99",976506110,"cpaarzaragoza@educa.aragon.es"]
[50017874,"Zaragoza","Centro Público Integrado","Zaragoza","EL ESPARTIDERO","CL. DIECISÉIS DE JULIO, 46 (Bº STA.ISABEL)",50016,976582061,"976 58 10 65","cpespartidero@educa.aragon.es"]
[50017886,"Zaragoza","Instituto de Educación Secundaria","Zaragoza","LA AZUCARERA","CL. Matilde Sangüesa, 53",50015,976525380,"976 47 84 06","iesazuzaragoza@educa.aragon.es"]
[50017898,"Zaragoza","Colegio de Educación Infantil y Primaria","Puebla de Alfindén (La)","REINO DE ARAGÓN","AVDA. CORTES DE ARAGÓN, 111",50171,"976 10 82 32","976 10 82 32","cpreinoaragon@educa.aragon.es"]
[50017904,"Zaragoza","Centro Público Integrado","San Mateo de Gállego","GALO PONTE","CL. Huesca, 33",50840,976683030,"976 68 30 30","cpsmateo@educa.aragon.es"]
[50017916,"Zaragoza","Colegio de Educación Infantil y Primaria","María de Huerva","SAN ROQUE","AVDA. de Zaragoza s/n",50430,"976 12 42 11","976 12 42 11","ceipsanroque@educa.aragon.es"]
[50017931,"Zaragoza","Escuela de Educación Infantil","Burgo de Ebro (El)","LA COMETA","CL. ESCUELAS, 8",50730,"976 10 50 83","976 10 53 51","ayuntamiento@elburgodeebro.es"]
[50017941,"Zaragoza","Centro Privado de Educación Infantil","Zaragoza","EL BARQUITO DE PAPEL","CL. DAROCA, 42-44",50017,976535762,null,"barquitodepapelsm@yahoo.es"]
[50017953,"Zaragoza","Escuela de Educación Infantil","Maluenda","BLANCANIEVES","AVDA. DOCTOR GARCÍA SANCHO, 7",50340,"976 89 30 07","976 89 32 73","maluenda@dpz.es"]
[50017965,"Zaragoza","Escuela de Educación Infantil","Boquiñeni","DE BOQUIÑENI","CL. TENOR FLETA, S/N",50641,"976 65 22 01","976 65 13 37","boquinen@dpz.es"]
[50017977,"Zaragoza","Escuela de Educación Infantil","Brea de Aragón","DE BREA DE ARAGÓN","CL. CAYO VELA, S/N",50246,"976 82 46 41","976 82 44 19","brea@dpz.es"]
[50017989,"Zaragoza","Escuela de Educación Infantil","Ricla","NERTÓBRIGA","CL. JOAQUÍN ARTIGAS \"EL PÍO\", S/N",50270,"976 60 62 96","976 60 61 06","ricla@dpz.es"]
[50017990,"Zaragoza","Centro Privado de Educación Infantil","María de Huerva","MI MUNDO","CL. ESCUELAS, 7- BAJOS",50430,"976 124 679",null,"cei_mimundo@yahoo.es"]
[50018027,"Zaragoza","Escuela de Educación Infantil","Sádaba","DE SÁDABA","AVDA. PIRINEOS, S/N",50670,"976 67 54 33","976 67 54 28","ayuntamiento@sadaba.es"]
[50018039,"Zaragoza","Escuela de Educación Infantil","Épila","ISABEL DE ARAGÓN","PZA. DE LA CONSTITUCIÓN, 1",50290,"976 60 34 52","976 60 31 28","epila@dpz.es"]
[50018040,"Zaragoza","Escuela de Educación Infantil","Zaragoza","NUESTRA SEÑORA DE LORETO","BASE AÉREA DE ZARAGOZA, CTRA. DEL AEROPUERTO, S/N",50071,"976 70 90 90","976 70 80 17","lorena.gil@kidsco.es"]
[50018052,"Zaragoza","Centro Privado de Educación Infantil","Zaragoza","PATINETE","CL. PAMPLONA ESCUDERO, 12",50005,"976 791 916",null,"patinetezgz@hotmail.com"]
[50018064,"Zaragoza","Centro Privado de Educación Infantil","Zaragoza","MI COLE","CL. LAGO DE MILLARES, 48",50011,"876 266 235",null,"cei_micole@hotmail.com"]
[50018076,"Zaragoza","Centro Privado de Educación Infantil","Zaragoza","PEQUEÑOS MAESTROS","CL. LUDWIG VAN BEETHOVEN, 52",50012,"876 241455",null,"rosales@pequeninos.net"]
[50018088,"Zaragoza","Escuela de Educación Infantil","Mores","FRANCISCA GIL DE LA RIVA","Avda. Francisca Gil de la Riva, 42",50240,"976 82 64 94","976 82 66 01","mores@dpz.es"]
[50018091,"Zaragoza","Escuela de Educación Infantil","Ariza","COLORADO COLORÍN","CL. PILAR, 12",50220,"680 46 04 22","976 84 50 36","aytoariza@terra.es"]
[50018106,"Zaragoza","Escuela de Educación Infantil","Maella","DE MAELLA","AVDA. RAMÓN Y CAJAL, S/N",50710,"976 63 83 16","976 63 86 30","oficinas.maella@dpz.es"]
[50018118,"Zaragoza","Escuela de Educación Infantil","Quinto","DE QUINTO","P.º RONDA, 11",50770,"976 17 76 73","976 17 60 11","quinto@dpz.es"]
[50018121,"Zaragoza","Colegio de Educación Infantil y Primaria","Utebo","OCTAVUS","CL. Pablo Ruiz Picasso 9",50180,"976 46 25 39","976 46 25 43","cputebo4@educa.aragon.es"]
[50018131,"Zaragoza","Colegio de Educación Especial","Zaragoza","JEAN PIAGET","ANDADOR JEAN PIAGET 4-6",50018,"976 799 837",null,"ceepgozaragoza@educa.aragon.es"]
[50018143,"Zaragoza","Colegio de Educación Infantil y Primaria","Zaragoza","LUCIEN BRIET","Camino Juslibol 57",50015,"976 74 35 16","976 515333","cpjuszaragoza@educa.aragon.es"]
[50018155,"Zaragoza","Escuela Privada de Música y Danza","Zaragoza","MOLINER","CL. MARÍA MOLINER, 20",50007,"976 385 759",null,"moliner@acamusica.com"]
[50018167,"Zaragoza","Centro Privado de Educación Infantil","Zaragoza","ÉRASE UNA VEZ","AVDA. SALVADOR ALLENDE, 71",50015,"976 736 464",null,"duendeduca@hotmail.com"]
[50018179,"Zaragoza","Escuela de Educación Infantil","Mequinenza","LA RUELLA","CL. Q, 44",50170,"974 46 43 85","974 46 50 53","mequinenza@dpz.es"]
[50018180,"Zaragoza","Escuela de Educación Infantil","Sobradiel","LA PARVADICA","CL. CONDE, 2",50629,"976 13 96 39","976 13 91 12","sobradiel@dpz.es"]
[50018192,"Zaragoza","Escuela de Educación Infantil","Zaragoza","LA PIRAÑA","CL. FLORENTINO BALLESTEROS, 2",50002,"976 49 36 70","976 39 90 71","einfantil-pirana@zaragoza.es"]
[50018209,"Zaragoza","Centro Privado de Educación Infantil","Utebo","ZAGALICOS","CL. SAN FRANCISCO, 3",50180,"976 774 005",null,"ceizagalicos@hotmail.com"]
[50018210,"Zaragoza","Escuela de Educación Infantil","Cariñena","ARCO IRIS","Camino Platera, 2",50400,"654 62 38 49","976 62 03 75","ayuntamiento@carinena.es"]
[50018222,"Zaragoza","Escuela Privada de Música","Zaragoza","LA PAZ","CL. OVIEDO, 181",50007,"976 742 931",null,"escuelademusicalapaz@gmail.com"]
[50018234,"Zaragoza","Centro Privado de Educación Infantil","Zaragoza","PEQUEÑOS MAESTROS AZUCARERA","CL. VALLE DE ZURIZA, 36-38, LOCAL 2",50014,"976 296 554",null,"cei.locomotora@hotmail.com"]
[50018246,"Zaragoza","Colegio de Educación Infantil y Primaria","Zaragoza","VALDESPARTERA","CL. Volver a Empezar, 7",50019,"976 93 35 99","976 93 36 01","cpvaldespartera@educa.aragon.es"]
[50018258,"Zaragoza","Colegio de Educación Infantil y Primaria","Zaragoza","MARIE CURIE","CL. Molino de las Armas, nº 57",50014,"976 47 88 41","976 47 31 06","cpmarquesc@educa.aragon.es"]
[50018261,"Zaragoza","Centro Público Integrado","Zaragoza","RÍO SENA","CL. ENRIQUE VAL, 20",50011,"876 26 65 99","876 26 65 85","cpmiralbueno@educa.aragon.es"]
[50018271,"Zaragoza","Centro Público Integrado","Zaragoza","ROSALES DEL CANAL","CL.San Juan Bautista de la Salle, 21",50012,876241565,876241182,"cprdczaragoza@educa.aragon.es"]
[50018283,"Zaragoza","Colegio de Educación Infantil y Primaria","Cuarte de Huerva","FORO ROMANO","FORO ROMANO S/N",50410,"976 50 98 24","976 50 98 24","ceipfororomano@educa.aragon.es"]
[50018295,"Zaragoza","Centro Privado de Educación Infantil","Zaragoza","ZARAPEQUES","CL. ENRIQUE VAL, 4-LOCAL",50011,"976 508 739",null,"zarapeques@gmail.com"]
[50018301,"Zaragoza","Escuela de Educación Infantil","Borja","BALTASAR GONZÁLEZ","CL. PROLONGACIÓN LA FLORIDA",50540,"976 86 82 77","607 19 04 44","esc.inf.bgonzalez@hotmail.es"]
[50018313,"Zaragoza","Escuela de Educación Infantil","Villanueva de Gállego","ZAGALICOS","CL. CONDE ARANDA 6",50830,"976 45 13 42","976 18 04 04","zagalicos@villanuevadegallego.org"]
[50018325,"Zaragoza","Escuela de Educación Infantil","Ejea de los Caballeros","GLORIA FUERTES","CL. ERAS ALTAS, 34-50",50600,"976 67 75 56","976 66 38 16","escuelainfantil@aytoejea.es"]
[50018337,"Zaragoza","Escuela de Educación Infantil","Zaragoza","EL TREN","CL. Reino nº 5",50003,"976 28 03 60","976 39 90 71","einfantil-tren@zaragoza.es"]
[50018349,"Zaragoza","Escuela de Educación Infantil","Zaragoza","LOS IBONES","CL. ANTONIO LEYVA Nº 102",50011,"976 48 91 60","976 48 91 60","einfantil-oliver@zaragoza.es"]
[50018350,"Zaragoza","Escuela de Educación Infantil","Zaragoza","BRIOLETAS","CL. LA IGLESIA, Nº 32",50058,"976 58 85 46","976 58 85 46","einfantil-santaisabel@zaragoza.es"]
[50018362,"Zaragoza","Escuela de Educación Infantil","Zaragoza","MARÍA URREA","CL. LUIS LEGAZ LACAMBRA Nº 44",50018,"976 73 77 16","976 73 77 16","einfantil-acturnorte@zaragoza.es"]
[50018374,"Zaragoza","Escuela de Educación Infantil","Zaragoza","LA PAZ","CL. EMILIO PÉREZ VIDAL, Nº 9",50007,"976 27 23 48","976 27 23 48","einfantil-lapaz@zaragoza.es"]
[50018386,"Zaragoza","Centro Privado de Educación Infantil","Zaragoza","EL ARKA","CL GERONA 3",50007,"976 254 985",null,"cei.elarka@hotmail.com"]
[50018398,"Zaragoza","Centro Privado de Educación Infantil","Zaragoza","ZAGALINES","AVDA. PUENTE DEL PILAR/CL JESÚS, 41",50014,"976 39 10 61"]
[50018404,"Zaragoza","Escuela de Educación Infantil","Fuendejalón","DE FUENDEJALÓN","CL. AFUERAS, S/N",50529,"976 86 24 49","976 85 70 34","fuendejalon@dpz.es"]
[50018416,"Zaragoza","Instituto de Educación Secundaria","Zaragoza","PARQUE GOYA","CL. Eugenio Lucas s/n",50018,"976 506628","976 506630","iesparquegoya@educa.aragon.es"]
[50018428,"Zaragoza","Instituto de Educación Secundaria","Utebo","TORRE DE LOS ESPEJOS","Avda. Puerto Rico, 9-11",50180,976772475,976792336,"iestorredelosespejos@educa.aragon.es"]
[50018441,"Zaragoza","Escuela de Educación Infantil","Fuentes de Ebro","DE FUENTES DE EBRO","CL. CORTES DE CADIZ Nº 6",50740,"976 16 91 20","976 16 08 32","ayuntamiento@fuentesdeebro.es"]
[50018453,"Zaragoza","Centro Privado de Educación Infantil","Zaragoza","LAS TORRES DE MONTECANAL","CL. TOMÁS ANZANO, Nº 37 URB. MONTECANAL",50297,"976 751 939","976 751 939","info@guarderiamontecanal.com"]
[50018465,"Zaragoza","Escuela de Educación Infantil","Novillas","DE NOVILLAS","CL. PORTUGALETE, 17",50530,"976 86 10 84","976 86 10 59","novillas@dpz.es"]
[50018477,"Zaragoza","Escuela de Educación Infantil","Jaraba","DE JARABA","CL. LA VIUNA, S/N",50237,"680 80 54 85","976 87 27 33","jaraba@dpz.es"]
[50018489,"Zaragoza","Escuela de Educación Infantil","Almonacid de la Sierra","EL CASTILLO","CL. DUQUE, 13",50108,"976 62 72 22","976 62 70 90","alsierra@dpz.es"]
[50018490,"Zaragoza","Centro Privado de Educación Infantil","Puebla de Alfindén (La)","PEDUGUINES","CL. MEDIODÍA, 5-7; BAJOS",50171,"876 246 240",null,"cei_peduguines@hotmail.com"]
[50018507,"Zaragoza","Centro Privado de Educación Infantil","Zaragoza","JUEGO Y APRENDO","CL. LAGO DE MILLARES, 34-36",50011,"976 508 382",null,"ceijuegoyaprendo@gmail.com"]
[50018519,"Zaragoza","Centro Privado de Educación Infantil","Zaragoza","CHIQUILINES","CL. TODO SOBRE MI MADRE, 2",50019,"976 934 709",null,"info@chiquilines.es"]
[50018520,"Zaragoza","Escuela de Educación Infantil","Luceni","DE LUCENI","CL. RAMÓN Y CAJAL, ANGULAR CON AVDA. CONSTITUCIÓN",50640,"976 65 20 03","976 65 24 53","luceni@dpz.es"]
[50018532,"Zaragoza","Escuela de Educación Infantil","Joyosa (La)","LA CUNICA","CTRA. TORRES DE BERRELLÉN, S/N",50692,"976 65 30 01","976 65 32 88","joyosa@dpz.es"]
[50018556,"Zaragoza","Centro Privado de Formación Profesional Específica","Zaragoza","LUIS MANUEL GARCÍA URREA","CL. LAGASCA, 25-27",50006,"976 30 61 00","976 56 21 43","administracion@fundacionmontessori.com"]
[50018568,"Zaragoza","Centro Privado de Educación Infantil y Formación Profesional","Zaragoza","FANTASÍA-PLAZA","Avda. Diagonal, 30",50197,"876 76 88 00",null,"gerencia@plazafantasia.com"]
[50018571,"Zaragoza","Centro Privado de Educación Infantil","Zaragoza","LA JOTA 2","CL. TERESA SALVO PUERTO, 30",50014,"976 475 008",null,"ceilajota@yahoo.es"]
[50018581,"Zaragoza","Escuela de Educación Infantil","Alfamén","CHIRIBILLAS","CL. ALFONSO TIMONEDA, 4",50461,976626210,976628308,"alfamen@dpz.es"]
[50018593,"Zaragoza","Escuela de Educación Infantil","Alpartir","DE ALPARTIR","P.º RAMÓN Y CAJAL, S/N",50109,"976 81 31 49","976 81 34 55","alpartir@dpz.es"]
[50018601,"Zaragoza","Escuela de Educación Infantil","Belchite","GARABATOS","CL. EL FERIAL, 6",50130,"976 83 07 49","976 83 05 14","belchite@dpz.es"]
[50018611,"Zaragoza","Escuela de Educación Infantil","Morata de Jalón","DE MORATA DE JALÓN","CAMI. DEL BALDÍO, S/N",50260,"976 60 50 18","976 81 81 86","oficina@moratadejalon.org"]
[50018623,"Zaragoza","Escuela de Educación Infantil","Muel","PASICOS","CL. Alonso V, nº 2 Bajo",50450,"976 14 01 00","976 14 04 04","alcaldia.muel@dpz.es"]
[50018647,"Zaragoza","Escuela de Educación Infantil","Ontinar de Salz","DE ONTINAR DE SALZ","CL. Sol, 15 - C",50810,"625 17 96 33","976 69 31 19","alcalde@ontinardesalz.com"]
[50018659,"Zaragoza","Escuela de Educación Infantil","Pastriz","RENACUAJOS","PARAJE DEL BERGEL (POLÍGONO 1; PARCELAS 157-159-164-190-226)",50195,"976 58 34 07","976 58 64 69","pastriz@dpz.es"]
[50018660,"Zaragoza","Escuela de Educación Infantil","Uncastillo","DE UNCASTILLO","CL. ERAS, S/N",50678,976679001,976679497,"AYTO.UNCASTILLO@terra.es"]
[50018672,"Zaragoza","Escuela de Educación Infantil","Utebo","LA ESTRELLA","CL. DINAMARCA ESQ.CL. MIGUEL, S/N SERVET",50180,"976 773758","976 773758"]
[50018684,"Zaragoza","Escuela de Educación Infantil","Villafranca de Ebro","LOS ZAGALES","CL. ESCUELAS, S/N",50174,"976 16 70 01","976 16 62 65","a_villafranca@terra.es"]
[50018696,"Zaragoza","Centro Privado de Educación Infantil","Utebo","RISETAS","CL. PUERTO RICO, 12",50180,"976 775 557",null,"risetas@gmail.com"]
[50018702,"Zaragoza","Centro Privado de Educación Infantil","Zaragoza","KID'S GARDEN REYES DE ARAGÓN","P.º REYES DE ARAGÓN, 21",50012,"976 561 370",null,"info@kidsgardenaragon.es"]
[50018714,"Zaragoza","Escuela de Educación Infantil","Ainzón","GARNACHICA","PARAJE LALOZ",50570,976868715,976868215]
[50018726,"Zaragoza","Escuela de Educación Infantil","Ateca","LA SOLANA","CL. LA SOLANA, S/N",50200,626221251]
[50018738,"Zaragoza","Escuela de Educación Infantil","Leciñena","DE LECIÑENA","AVDA. ZARAGOZA, 84",50160,976166146,976168059]
[50018741,"Zaragoza","Escuela de Educación Infantil","Perdiguera","DE PERDIGUERA","CL. DEL PASO, 4",50161,976168965]
[50018751,"Zaragoza","Escuela de Educación Infantil","Bujaraloz","DE BUJARALOZ","CL. SANTA MARÍA, 27",50177,976173241]
[50018763,"Zaragoza","Escuela de Educación Infantil","Cosuenda","DE COSUENDA","CL. ESCUELAS, S/N",50409,976627440]
[50018775,"Zaragoza","Escuela de Educación Infantil","Illueca","DE ILLUECA","CL. SAN JUAN BAUTISTA, S/N",50250,976820290]
[50018787,"Zaragoza","Escuela de Educación Infantil","Magallón","ARCO-IRIS","CL. LA VÍA, S/N",50520,976858101,976858451,"magjulia@telefonica.net"]
[50018799,"Zaragoza","Escuela de Educación Infantil","Pedrola","DE PEDROLA","CL. LAS MONJAS, S/N",50690,976615027]
[50018805,"Zaragoza","Escuela de Educación Infantil","San Mateo de Gállego","POMPITAS","Cl. SIERRA DE ALCUBIERRE, 1",50840,976683137]
[50018817,"Zaragoza","Colegio de Educación Infantil y Primaria","Zaragoza","CATALINA DE ARAGÓN","CL. La Fragua s/n",50018,"976 50 68 11","976 52 65 46","ceipcatalinadearagon@educa.aragon.es"]
[50018829,"Zaragoza","Centro Público Integrado de Formación Profesional","Zaragoza","CORONA DE ARAGÓN","Corona de Aragón, 35",50009,"976 467 000","976 467 061","cpifpcorona@educa.aragon.es"]
[50018830,"Zaragoza","Colegio de Educación Infantil y Primaria","Zaragoza","VADORREY-LES ALLÉES","CL. ALFONSO ZAPATER CERDÁN, S/N",50014,"976 39 96 85","976 29 52 45","cpvadorrey@educa.aragon.es"]
[50018842,"Zaragoza","Instituto de Educación Secundaria","Puebla de Alfindén (La)","DE LA PUEBLA DE ALFINDÉN","Avda. de Pastriz 2",50171,"976 107602",null,"ieslapuebla@educa.aragon.es"]
[50018854,"Zaragoza","Centro Privado de Educación Infantil","Utebo","MAGIC FOREST","PZA. JOAQUÍN SOROLLA, 2",50180,"691 963 960",null,"ceimagicforest@yahoo.es"]
[50018866,"Zaragoza","Centro Privado de Educación Infantil","Zaragoza","MONIGOTES","CL. SAN ANTONIO MARÍA CLARET, 14",50005,"976 551 126",null,"info@monigoteszaragoza.com"]
[50018878,"Zaragoza","Escuela de Educación Infantil","Zaragoza","EL BOSQUE","Pº. ECHEGARAY Y CABALLERO, 5",50003,976430862,976391522]
[50018881,"Zaragoza","Escuela de Educación Infantil","Zaragoza","EL ANDÉN","CL. SAN PEDRO ARBUÉS, 4",50010,976348103,976348103,"einfantil-delicias@zaragoza.es"]
[50018891,"Zaragoza","Escuela de Educación Infantil","Cuarte de Huerva","LAS HABLILLAS","CL. TRAJANO, S/N",50410,976503067]
[50018908,"Zaragoza","Escuela de Educación Infantil","María de Huerva","PALMAS PALMITAS","AVDA. RÍO EBRO, S/N",50430,976124728,976124090]
[50018911,"Zaragoza","Escuela de Educación Infantil","Alfajarín","LA CUEVA ENCANTADA","Pº. DE ARAGÓN, 120",50172,976101234,976101234]
[50018921,"Zaragoza","Escuela de Educación Infantil","Alhama de Aragón","Zagalines","AVDA. DE ARAGÓN, 78",50230,976840018,976840483]
[50018933,"Zaragoza","Escuela de Educación Infantil","Calatayud","MARGARITA","CL. BENEDICTO XIII, 3",50300,976883747,976885648]
[50018957,"Zaragoza","Escuela de Educación Infantil","Longares","DE LONGARES","RONDA DE LA VILLA, A-IA",50460,976142596,976142537]
[50018969,"Zaragoza","Escuela de Educación Infantil","Zaragoza","DE LA DELEGACIÓN ESPECIAL DE ECONOMÍA Y HACIENDA DE ARAGÓN","CL. José Luis Albareda, 18",50004,"976 769 984"]
[50018970,"Zaragoza","Escuela de Educación Infantil","Bardenas","GLORIA FUERTES-BARDENAS","CTRA. DE EL BAYO, S/N",50694,976677556,876637602,"escuelainfantil@aytoejea.es"]
[50018982,"Zaragoza","Escuela de Educación Infantil","Pinsoro","DE EJEA DE LOS CABALLEROS (PINSORO)","CL. Acuerdo, S/N",50694,"619 428 387",null,"escuelainfantil@aytoejea.es"]
[50018994,"Zaragoza","Escuela de Educación Infantil","Santa Anastasia","DE EJEA DE LOS CABALLEROS (SANTA ANASTASIA)","CL. Nueva, S/N",50694,"619 428 387",null,"escuelainfantil@aytoejea.es"]
[50019007,"Zaragoza","Centro Privado de Educación Infantil","Zaragoza","NENETES","PZA. DE LOS LAGOS AZULES, 6",50011,"976 30 73 79",null,"guarderianenetes@hotmail.com"]
[50019019,"Zaragoza","Centro Público Integrado","Zaragoza","JULIO VERNE","CL. Iñigo Manuel Marín Sancho nº 20",50011,"876 26 31 00","976 34 08 87","ceipjulioverne@educa.aragon.es"]
[50019020,"Zaragoza","Instituto de Educación Secundaria","Zaragoza","VALDESPARTERA","CL. Isla del Tesoro, 14",50019,976932353,976932353,"iesvaldespartera@educa.aragon.es"]
[50019032,"Zaragoza","Escuela de Educación Infantil","Aguarón","ZAGALICOS","CL. Tejero, S/N",50408,"976 62 03 83"]
[50019044,"Zaragoza","Escuela de Educación Infantil","Lumpiaque","DE LUMPIAQUE","CL. Muntadas, 12",50295,"976 60 16 50","976 60 18 30"]
[50019056,"Zaragoza","Escuela de Educación Infantil","Paniza","EL JARDINCILLO","CL. Arrabal, 37",50480,"976 62 27 45","976 62 26 81","paniza@dpz.es"]
[50019068,"Zaragoza","Escuela de Educación Infantil","Torres de Berrellén","DE TORRES DE BERRELLÉN","CL. Tenor Fleta, 4",50693,"976 65 31 01","976 65 10 01","ayuntamiento@torresdeberrellen.net"]
[50019081,"Zaragoza","Centro Público Integrado","Zaragoza","SAN JORGE","CL. El Tambor de Hojalata, 6",50019,"976 97 40 14",null,"ceipsanjorge@educa.aragon.es"]
[50019093,"Zaragoza","Escuela de Educación Infantil","Cuarte de Huerva","LAS FÁBULAS","CL. Monasterio de Siresa, 7",50410,"976 463 705"]
[50019101,"Zaragoza","Instituto de Educación Secundaria","Villanueva de Gállego","VILLANUEVA DE GÁLLEGO","Rigoberta Menchú s/n",50830,"976 18 50 27","97618 50 27","iesvillanuevadegallego@educa.aragon.es"]
[50019111,"Zaragoza","Centro Privado de Educación Infantil","Zaragoza","SALTARINES","CL. DEL GLOBO, 9",50015,976547156,976547156,"saltarines.julieta@hotmail.com"]
[50019123,"Zaragoza","Escuela de Educación Infantil","Pina de Ebro","DE PINA DE EBRO","CL. Fernando el Católico nº 16",50750,976165007,976165588,"ayuntamiento@pinadeebro.es"]
[50019135,"Zaragoza","Escuela de Educación Infantil","Zaragoza","PARQUE BRUIL","CL. Vicente López Abadía, 4",50002,"976 203 332",null,"einfantil-parquebruil@zaragoza.es"]
[50019147,"Zaragoza","Centro Privado de Formación Profesional Específica","Villanueva de Gállego","FUNDACIÓN LABORAL DE LA CONSTRUCCIÓN","Cl. Isaac Newton, 1 - Parcela 15",50830,"976 74 06 26","976 74 00 68","jandres@fundacionlaboral.org"]
[50019159,"Zaragoza","Centro Privado de Educación Infantil","Zaragoza","EL NIDO DE PATRICIA","CL. EMILIO CASTELAR, 91",50013,"976 496 439","976 496 439","info@elnidodepatricia.com"]
[50019184,"Zaragoza","Escuela Pública de Música","Zuera","VILLA DE ZUERA","CL. CRUZ CUBIERTA, 1",50800,976680002,976680818,"ayuntamiento@ayunzuera.com"]
[50019196,"Zaragoza","Escuela de Educación Infantil","Novallas","CANTACUCOS","AVDA. NAVARRA, 16",50510,976198292]
[50019202,"Zaragoza","Centro Privado Autorizado de Enseñanzas Deportivas","Ejea de los Caballeros","CENTRO NACIONAL DE ESTUDIOS DE TÉCNICOS DEPORTIVOS (CENETED). ESPECIALIDAD FÚTBOL","Pº Constitución, 136",50600,"675 55 20 15","976 32 07 19","joseaanted@gmail.com"]
[50019214,"Zaragoza","Centro Privado de Educación Infantil","Zaragoza","IR CRECIENDO","CL. Ciudadano Kane, 33-35",50019,"976 93 21 27"]
[50019226,"Zaragoza","Escuela de Educación Infantil","Sástago","SÁSTAGO","CL. San Roque, 105",50780,"976 17 80 11"]
[50019238,"Zaragoza","Escuela de Educación Infantil","Muela (La)","LA MUELA","Cami. de las Banqueras,4",50196,"976 14 42 93","976 14 42 87"]
[50019241,"Zaragoza","Centro Privado de Educación Infantil","Zaragoza","PLANETA IMAGINARIO","AVDA. CASABLANCA, 34",50019,"976 953 659",null,"info@planeta-imaginario.es"]
[50019251,"Zaragoza","Centro Público Integrado","María de Huerva","VAL DE LA ATALAYA","Cl. Río Jalón, S/N",50430,976124549,null,"ceipmaria2@educa.aragon.es"]
[50019263,"Zaragoza","Centro Privado de Educación Infantil","Zaragoza","KID'S GARDEN ACTUR","Cl. Santiago Lagunas, 1",50018,"876 040 944",null,"info@kidsgardenactur.com"]
[50019275,"Zaragoza","Centro Privado Autorizado de Enseñanzas Deportivas","Zaragoza","CENTRO DE ENSEÑANZAS DEPORTIVAS-ENTEDE","Cl. Tomás Anzano, 1",50012]
[50019287,"Zaragoza","Centro Público Integrado","Zaragoza","ZARAGOZA SUR","Antonio Vivaldi, 7",50012,"876 64 64 21",null,"ceipzgzsur@educa.aragon.es"]
[50019299,"Zaragoza","Colegio de Educación Infantil y Primaria","Cuarte de Huerva","PILAR BAYONA","CL Francia, s/n",50410,"876 261 091",null,"ceipcuartetres@educa.aragon.es"]
[50019305,"Zaragoza","Centro Privado de Educación Infantil","Zaragoza","DADA","Cl. Mi Tío, 13",50019,"976 935 661",null,"hola@escueladada.com"]
[50019317,"Zaragoza","Colegio de Educación Infantil y Primaria","Almunia de Doña Godina (La)","FLORIÁN REY","Avda. Laviaga Castillo, 14",50100,"976 81 35 97","976 81 34 96","ceipflorianrey@educa.aragon.es"]
[50019329,"Zaragoza","Extensión de Escuela Oficial de Idiomas","Tauste","DE EJEA DE LOS CABALLEROS","Pza. De Aragón, 1. Casa de la cultura",50660,976663544,null,"eoitauste@educa.aragon.es"]
[50019342,"Zaragoza","Centro Privado de Educación Infantil","Zaragoza","Reino Menudo","C/ Maurice Ravel, 67",50012,"876 244 966",null,"info@reinomenudo.es"]
[50019354,"Zaragoza","Instituto de Educación Secundaria","Muela (La)","DE LA MUELA","Paseo de Nuestra Señora del Carmen, s/n",50196,"976 14 99 64",null,"ieslamuela@educa.aragon.es"]
[50019366,"Zaragoza","Centro Privado de Educación Infantil","Nuez de Ebro","MI CASITA EN EL JARDIN","C/ Sisallar L-3, número 99.",50173]
[50019378,"Zaragoza","Centro Privado de Educación Infantil Primaria y Secundaria","Cuarte de Huerva","INTERNACIONAL ÁNFORA","Calle Pirineos, s/n",50410,976464.35582822084,976463238,"info@colegiointernacionalanfora.com"]
[50019381,"Zaragoza","Centro Privado de Formación Profesional Específica","Calatayud","ANDRÉS GARDE ERIKSON","Polígono Mediavega, 2-3",50300]
[50019391,"Zaragoza","Centro Privado de Educación Infantil","Zaragoza","BARQUITOS","C/ Todo sobre mi madre, 24",50019]
[50019408,"Zaragoza","Colegio de Educación Especial","Calatayud","SEGEDA","C/Aragón s/n",50300,"976 88 08 55",null,"ceecalatayud@educa.aragon.es"]
[50019411,"Zaragoza","Escuela Pública de Música","Sos del Rey Católico","DE SOS DEL REY CATÓLICO","PZA. DE LA VILLA, 1",50680,976550365,976569443,"secretaria@fpvalledetena.com"]
[50019421,"Zaragoza","Centro Privado de Educación Infantil","Zaragoza","SMALL WORLD","Cº Fuente de la Junquera, 21",50007]
[50019433,"Zaragoza","Centro Privado de Educación Infantil","Zaragoza","LUNA","C.º Valimaña, 20",50014,"976 29 70 57",null,"info@ceiluna.com"]
[50019445,"Zaragoza","Centro Privado de Educación Infantil","Zaragoza","NUVOLA","Avda. Andrea Palladio, 12 - Local 2",50021]
[50019457,"Zaragoza","Centro Privado de Educación Infantil","Zaragoza","LITTLE LANUZA","Ctra. del Aeropuerto, 275",50011]
[50019469,"Zaragoza","Centro Privado de Educación Infantil","Zaragoza","BOSQUE TERNURA 2","C/ Santiago Lapuente, 4-8",50014]
[50019470,"Zaragoza","Centro Privado de Educación Infantil","Zaragoza","MONTESSORI KIDS","C/ Cervantes, 34.",50006]
[50019482,"Zaragoza","Centro Privado de Formación Profesional Específica","Zaragoza","ARTE-MISS ZARAGOZA, CENTRO 2","C/ Gran Vía, 22",50005]
[50019494,"Zaragoza","Centro Privado de Educación Infantil","Zaragoza","BALÚ","C/ Lista de Schindler, 11-13",50019]
[50019500,"Zaragoza","Instituto de Educación Secundaria","Zaragoza","EL PICARRAL","Cl. Teniente Ortiz de Zarate, 26",50015,976741112,null,"iespicarral@educa.aragon.es"]
[50019512,"Zaragoza","Conservatorio Profesional de Música","Zaragoza","MODERNO SANTA MARÍA","C/ Pedro Joaquín Soler, locales 8 y 20",50001,976293871,null,"cmusicasantamaria2013@gmail.com"]
[50019524,"Zaragoza","Centro Público de Enseñanzas Deportivas","Zaragoza","ESCUELA ARAGONESA DEL DEPORTE","AVDA. RANILLAS, 5D, PLANTA 2",50018,976714978,976714726,"escadeporte@aragon.es"]
[50019536,"Zaragoza","Centro Privado de Educación Infantil","Zaragoza","ARQUERITOS","Avda. 21 de junio de 2009, 56",50022]
[50019548,"Zaragoza","Centro Público Integrado","Zaragoza","ARCOSUR","Av. del Cierzo, s/n",50022,876280570,null,"ceiparcosur@educa.aragon.es"]
[50019551,"Zaragoza","Centro Público Integrado","Zaragoza","VALDESPARTERA III","C/ El Jeque Blanco",50019,"976 87 69 19"]
[50019561,"Zaragoza","Centro Privado Autorizado de Enseñanzas Deportivas","Zaragoza","PARQUE DEL AGUA","Padre Arrupe,13",50009]
[50019573,"Zaragoza","Extensión de Escuela Oficial de Idiomas","Zaragoza","Nº 1","CM. MIRAFLORES, 13",50007,null,null,"iespagazaragoza@educa.aragon.es"]
[50019597,"Zaragoza","Centro Público Integrado","Zaragoza","PARQUE VENECIA","Avda. de la Policía Local, s/n",50021,876286890,null,"cpiparquevenecia@educa.aragon.es"]
[50019603,"Zaragoza","Escuela de Educación Infantil","Almolda (La)","DE LA ALMOLDA","PASEO FUEROS DE ARAGÓN, 2",50178]
[50019615,"Zaragoza","Centro Público Integrado","Zaragoza","SOLEDAD PUÉRTOLAS","C/ La Isla del Tesoro, s/n",50019,690025734,null,"cpisoledadpuertolas@educa.aragon.es"]
[50019627,"Zaragoza","Extensión de Escuela Oficial de Idiomas","Pedrola","DE UTEBO","AV. VÍRGEN DEL PILAR, 2",50690]
[50019639,"Zaragoza","Centro Privado de Educación Infantil","Zaragoza","PEQUEÑOS VENECIANOS","CL. VAPORETTO, 4, LOCAL",50021,653818266,null,"pvenecianos@gmail.com"]
[50019640,"Zaragoza","Centro Privado de Formación Profesional Específica","Zaragoza","FORMACCIONA","CL. ASÍN Y PALACIOS, 18",50009,976249622,null,"info@formacciona.com"]
[50019676,"Zaragoza","Instituto de Educación Secundaria","Cuarte de Huerva","MARTINA BESCÓS","C/LOARRE, S/N.",50410,null,null,"iesmartinabescos@educa.aragon.es"]
[50019688,"Zaragoza","Centro Privado Autorizado de Enseñanzas Deportivas","Zaragoza","ESCUELA ARAGONESA DE ENTRENADORES DE ATLETISMO","CL. POETA LUCIANO GRACIA, S/N (CENTRO ARAGONÉS DEL DEPORTE)",50018,"976 106 202",null,"faa@atletismoaragones.org"]
[50019691,"Zaragoza","Centro Privado de Educación Infantil","Zaragoza","NUNÚ BEBÉ","CL. GABRIEL Y GALÁN, 16",50016]
[50019718,"Zaragoza","Centro Privado de Educación Infantil","Zaragoza","NANYLAND PARQUE VENECIA","C/ Palacio Ducal, número 18",50021,976445479,null,"parquevenecia@nanyland.com"]
[50019721,"Zaragoza","Centro Privado Autorizado de Enseñanzas Deportivas","Zaragoza","CENTRO NACIONAL DE ESTUDIOS DE TÉCNICOS DEPORTIVOS 1 (CENETED 1)","C/ Juan Pablo II, 58",50009]
[50019731,"Zaragoza","Colegio de Educación Infantil y Primaria","Figueruelas","FIGUERUELAS","P.º La Nevería, S/N",50639,976656240,976656240,"ceipfigueruelas@educa.aragon.es"]
[50019743,"Zaragoza","Centro Privado de Educación Infantil","SANTA ISABEL","ISABELINOS","Avenida Santa Isabel, número 201",50016]
[50019755,"Zaragoza","Centro Privado de Educación Infantil","Zaragoza","NEMOMARLIN PASEO DE SAGASTA","C/ La Paz, 8",50008,634512322,976368103,"paseodesagasta@escuelanemomarlin.com"]
[50019779,"Zaragoza","Centro Privado de Educación de Personas Adultas","Zaragoza","ADUNARE-VALDEFIERRO","Avenida Valdefierro, 22",50012]
[50019792,"Zaragoza","Colegio de Educación Infantil y Primaria","Zaragoza","MARÍA ZAMBRANO","Avenida de la Policía Local, s/n",50021]
[50600105,"Zaragoza","Guardería del Gobierno de Aragón","Calatayud","NUESTRA SEÑORA DEL CARMEN","CL. Ramón y Cajal, s/n",50300,"976 88 41 03",null,"ginsdelcarmen@educa.aragon.es"]
[50600117,"Zaragoza","Guardería del Gobierno de Aragón","Ejea de los Caballeros","VIRGEN DE LA OLIVA","CL. Tauste, 28",50600,"976 66 11 44",null,"givirgendelaoliva@educa.aragon.es"]
[50600129,"Zaragoza","Guardería del Gobierno de Aragón","Gallur","SAN ANTONIO DE PADUA","CL. Colón, 4",50650,"976 86 41 98","976 86 41 98","gisanantonio@educa.aragon.es"]
[50600130,"Zaragoza","Guardería del Gobierno de Aragón","Zaragoza","ARAGÓN","CL. Pablo Parellada, 46",50007,"976 38 50 33",null,"giaragon@educa.aragon.es"]
[50600142,"Zaragoza","Guardería del Gobierno de Aragón","Zaragoza","INMACULADA CONCEPCIÓN","Avda. Manuel Rodríguez Ayuso 45",50012,"976 33 20 78",null,"giinmaculada@educa.aragon.es"]
[50600154,"Zaragoza","Guardería del Gobierno de Aragón","Zaragoza","MONSALUD","CL. Ramiro I de Aragón, s/n",50017,"976 32 62 91",null,"gimonsalud@educa.aragon.es"]
[50600166,"Zaragoza","Guardería del Gobierno de Aragón","Zaragoza","SANTA MARÍA DEL PILAR","CL. José Pellicer, 2",50007,"976 27 24 87",null,"gismdelpilar@educa.aragon.es"]
[50600336,"Zaragoza","Escuela de Educación Infantil","Nonaspe","GUARDERIA INFANTIL MUNICIPAL LO FORN","C/ HORNO 6",50794,"NULL","NULL","NULL"]
[50600361,"Zaragoza","Escuela de Educación Infantil","Remolinos","GUARDERIA INFANTIL DE REMOLINOS","C/ Los Sitios, 6",50637,976618112,"NULL","NULL"]
[50600713,"Zaragoza","Equipo de Apoyo Itinerante","Zaragoza","DE ZARAGOZA","Pº Cuellar, 6",50007,null,null,"eapmzaragoza@educa.aragon.es"]
[50700011,"Zaragoza","Centros de Innovación y Formación Educativa","Calatayud","CALATAYUD","CL. RAMON Y CAJAL, 1",50300,"976 88 43 56","976 88 56 66","cpr.de.calatayud@centros5.pntic.mec.es"]
[50700011,"Zaragoza","Centros de Innovación y Formación Educativa","Calatayud","CALATAYUD","CL. RAMON Y CAJAL, 1",50300]
[50700021,"Zaragoza","Centros de Innovación y Formación Educativa","Ejea de los Caballeros","EJEA LOS CABALLEROS","Pza. de Goya, s/n",50600,"976 67 71 60","976 67 71 61","cprejea@educa.aragon.es"]
[50700033,"Zaragoza","Centros de Innovación y Formación Educativa","Zaragoza","JUAN DE LANUZA","CL. Buen Pastor, 4",50003,"976 39 55 50","976 39 55 54","cprzaragoza2@educa.aragon.es"]
[50700045,"Zaragoza","Centros de Innovación y Formación Educativa","Almunia de Doña Godina (La)","DE LA ALMUNIA DE DOÑA GODINA","Edificio de la Comarca de Valdejalón, María Auxiliadora S.N",50100]
[50700069,"Zaragoza","Centros de Innovación y Formación Educativa","Zaragoza","MARÍA DE ÁVILA","Pº Reyes de Aragón, 20",50012,"976 56 32 48","976 35 43 78","cprzaragoza1@educa.aragon.es"]
[50700070,"Zaragoza","Equipo de Orientación Educativa de Infantil y Primaria","Alagón","DE ALAGÓN","Avda. de la Portalada, 22",50630,"976 61 34 42",null,"eoepalagon@educa.aragon.es"]
[50700082,"Zaragoza","Equipo de Orientación Educativa de Infantil y Primaria","Calatayud","DE CALATAYUD","P.º RAMON Y CAJAL, 1, 2º",50300,"976 88 56 90",null,"eoepcalatayud@educa.aragon.es"]
[50700094,"Zaragoza","Equipo de Orientación Educativa de Infantil y Primaria","Caspe","DE CASPE","CL. Gumá, 35",50700,"976 63 16 08",null,"eoepcaspe@educa.aragon.es"]
[50700100,"Zaragoza","Equipo de Orientación Educativa de Infantil y Primaria","Ejea de los Caballeros","DE EJEA DE LOS CABALLEROS","Pº de la Constitución, s/n",50600,"976 66 28 77",null,"eoepejea@educa.aragon.es"]
[50700124,"Zaragoza","Equipo de Orientación Educativa de Infantil y Primaria","Almunia de Doña Godina (La)","DE LA ALMUNIA DE DOÑA GODINA","Avenida de María Auxiliadora, 2",50100,"976 81 25 52",null,"eoepalmunia@educa.aragon.es"]
[50700136,"Zaragoza","Equipo de Orientación Educativa de Infantil y Primaria","Tarazona","DE TARAZONA","Pza. de la Merced, 6",50500,"976 64 47 87",null,"eoeptarazona@educa.aragon.es"]
[50700148,"Zaragoza","Equipo de Orientación Educativa de Infantil y Primaria","Zaragoza","Nº 4 de ZARAGOZA","Avda. de la Almozara, s/n",50003,"976 44 08 87",null,"eoepzaragoza4@educa.aragon.es"]
[50700151,"Zaragoza","Equipo de Orientación Educativa de Infantil y Primaria","Zaragoza","Nº 1 de ZARAGOZA","CL. Cañon de Añisclo, s/n",50015,"976 52 95 87",null,"eoepzaragoza1@educa.aragon.es"]
[50700161,"Zaragoza","Equipo de Orientación Educativa de Infantil y Primaria","Zaragoza","Nº 2 de ZARAGOZA","CL. José Galiay, s/n",50008,"976 59 44 13",null,"eoepzaragoza2@educa.aragon.es"]
[50700173,"Zaragoza","Equipo de Orientación Educativa de Infantil y Primaria","Zaragoza","Nº 3 de ZARAGOZA","Cl. Castellote, 3",50017,"976 30 03 82","976 54 13 16","eoepzaragoza3@educa.aragon.es"]
[50700185,"Zaragoza","Equipo de Orientación Educativa de Infantil y Primaria","Fuentes de Ebro","DE FUENTES DE EBRO","Pza. de la Constitución, 4",50740,"976 16 09 38",null,"eoepfuentes@educa.aragon.es"]
[50700239,"Zaragoza","Centro Rural de Innovación Educativa","Zaragoza","VENTA DEL OLIVAR","PLAZA MAYOR, S/N",50011,"976 34 11 33","976 34 11 33","criezzaragoza@educa.aragon.es"]
[50700240,"Zaragoza","Centros de Innovación y Formación Educativa","Zaragoza","CENTRO ARAGONÉS DE RECURSOS PARA LA EDUCACIÓN INCLUSIVA (CAREI)","Cl. San Antonio Abad, 38",50010,"976 71 30 25","976 54 12 89","carei@educa.aragon.es"]
[50701001,"Zaragoza","Centro de Innovacion para la Formación Profesional en Aragón","Zaragoza","CENTRO DE INNOVACIÓN PARA LA FORMACIÓN PROFESIONAL DE ARAGÓN","C/ Castillo de capua, 2",50197,null,null,"cifpa@educa.aragon.es"]
[50701013,"Zaragoza","Equipo de Orientación Educativa de Infantil y Primaria","Zaragoza","Nº 5 de ZARAGOZA","José Galiay, s/n",50008,"976 413 595",null,"eoeip5zaragoza@educa.aragon.es"]
[50701025,"Zaragoza","Equipo Especializado de Orientación Educativa","Zaragoza","EQUIPO ESPECIALIZADO EN DISCAPACIDAD FÍSICA: MOTORA Y ORGÁNICA","CL. San Antonio Abad, 38 (Edificio Rosa Arjó)",50012,null,null,"equiespefisica@educa.aragon.es"]
[50701037,"Zaragoza","Equipo Especializado de Orientación Educativa","Zaragoza","EQUIPO ESPECIALIZADO EN TRASTORNOS GRAVES DE DESARROLLO","C/ San Antonio Abad, 38 (Edificio Rosa Arjó)",50010]
[50701049,"Zaragoza","Equipo Especializado de Orientación Educativa","Zaragoza","EQUIPO ESPECIALIZADO EN TRASTORNO MENTAL Y DE LA CONDUCTA","C/ San Antonio Abad, 38 (Edificio Rosa Arjó)",50010]
[50701050,"Zaragoza","Escuela Oficial de Idiomas","Zaragoza","C.ARAG.LENGUAS EXTRANJ.PARA LA EDUCACIÓN","CL. EUGENIO LUCAS, S/N",50018,976506628,null,"centrolenguas@aragon.es"]
[50701062,"Zaragoza","Equipos de Atención Temprana","Zaragoza","DE ZARAGOZA","Vía Hispanidad, número 68",50017]
[50701074,"Zaragoza","Equipos de Atención Temprana","Calatayud","DE CALATAYUD","P.º Ramón y Cajal, número 1",50300]
[50701086,"Zaragoza","Equipos de Atención Temprana","Ejea de los Caballeros","DE EJEA DE LOS CABALLEROS","Ctra. Erla, número 50",50600]
[50701098,"Zaragoza","Equipo Especializado de Orientación Educativa","Zaragoza","EQUIPO DE ORIENTACIÓN EDUCATIVA EN CONVIVENCIA ESCOLAR","Calle Castellote, número 3",50017]